{"text_format":"1","workbook":"xlsx","n_sheets":15,"sheets":["Instructions","Holidays","Flexi Timesheet (1)","Flexi Timesheet (2)","Flexi Timesheet (3)","Flexi Timesheet (4)","Flexi Timesheet (5)","Flexi Timesheet (6)","Flexi Timesheet (7)","Flexi Timesheet (8)","Flexi Timesheet (9)","Flexi Timesheet (10)","Flexi Timesheet (11)","Flexi Timesheet (12)","Flexi Timesheet (13)"],"not_rendered":{"charts":0,"images":5,"macros":1,"external_links":0,"defined_names":30,"comments":13,"pivot_tables":0},"unopened":[],"bounds":{"document_bytes":16777216,"sheet_cells":100000,"rows_first":2000,"rows_last":500,"rows_between":2000,"halvings":0,"cell_chars":16384,"cell_head_chars":4096},"cells_cut":0,"cells_raw":0,"read":"whole","date_system":"1900"}

{"sheet":"Instructions","index":0,"n_rows":1,"n_cols":1,"rows_kept":1,"cut":false,"hidden":false,"merged":[[0,0,10,1]]}
["\n\n\n\n\n\nSetting your Timesheet period\nUpdate cell C10 with the date that timesheet period starts, the sheet will auto populate the monthly date range and the dates within the sheet.\n\n\n\n\n\n\n\n\n\nSetting up your Timesheet with rostered hours\nThe default setting on the Timesheet is for a full-time employee. If you work part time, amend the sheet by updating the hours per day in K9. \nNOTE: Don’t override cell K9, click into the cell and change the time to equal your hours. For example, 7-hour day should show as 7:00am\n\nUpdate your days per week into K10 and your workdays into K11.\n\n\n\n\n\n\n\n\nIf you’re a part time employee, and don't work the same hours each day, average your hours of work over the week. Add that average to K9 by clicking in the cell and changing the time.\nexample – You work 7 hours on Monday, Tuesday and Wednesday (21 hours) but Thursday you work 5 hours with Friday off. \n21 hours + 5 hours = 26 hours per week. \n26 hours per week / 4 working days = 6.5 hours\n\nOnce you have amended your hours in K9, click in the 'Holidays' tab and update column H with your work hours. This will ensure the correct allocation of rostered days are applied in the timesheet. \n\n\n\n\n\n\n\n\n\n\n\n\n\nNOTE: Don’t override cell, click into the cell and change the time to equal your hours. For example, 7-hour day should show as 7:00am"]

{"sheet":"Holidays","index":1,"n_rows":44,"n_cols":10,"rows_kept":44,"cut":false,"hidden":false,"merged":[]}
["Listed Holidays",null,null,null,"Day Abbreviations",null,null,null,"Holiday Types"]
["Date","Holiday Type","Holiday","Paid?","Code","Day of Week","Abbrev.","Work Hours","Type","Listed Holiday"]
["2025-01-01","Public Holiday","New Years Day",true,1,"Monday","Mo","07:00:00","Annual Leave",false]
["2025-01-27","Public Holiday","Australia Day",true,2,"Tuesday","Tu","07:00:00","Carers Leave",false]
["2025-04-18","Public Holiday","Good Friday",true,3,"Wednesday","We","07:00:00","Concessional Half Day",false]
[{"$f":"A5+1","v":"2025-04-19"},"Public Holiday","Easter Saturday",true,4,"Thursday","Th","07:00:00","Leave Without Pay",false]
[{"$f":"A6+1","v":"2025-04-20"},"Public Holiday","Easter Sunday",true,5,"Friday","Fr","07:00:00","Long Service Leave",false]
[{"$f":"A7+1","v":"2025-04-21"},"Public Holiday","Easter Monday",true,6,"Saturday","Sa","00:00:00","Parental Leave",false]
["2025-04-25","Public Holiday","ANZAC Day",true,7,"Sunday","Su","00:00:00","Public Holiday",true]
["2025-06-09","Public Holiday","King's Birthday",true,null,null,null,null,"Purchased Leave",false]
["2025-10-06","Public Holiday","Labour Day",true,null,null,null,null,"Study Leave",false]
["2025-12-25","Public Holiday","Christmas Day",true,null,null,null,null,"Sick Leave",false]
[null,"Public Holiday","Christmas Day - In Lieu",true,null,null,null,null,"Special Leave",false]
["2025-12-26","Public Holiday","Boxing Day",true]
[null,"Public Holiday","Boxing Day - In Lieu",true]
["2025-12-29","Public Holiday","In Lieu Bank Hol.",true]
["2026-01-01","Public Holiday","New Years Day",true]
["2026-01-26","Public Holiday","Australia Day",true]
["2026-04-03","Public Holiday","Good Friday",true]
["2026-04-04","Public Holiday","Easter Saturday",true]
["2026-04-05","Public Holiday","Easter Sunday",true]
["2026-04-06","Public Holiday","Easter Monday",true]
["2026-04-25","Public Holiday","ANZAC Day",true]
["2026-06-08","Public Holiday","King's Birthday",true]
["2026-10-05","Public Holiday","Labour Day",true]
["2026-12-25","Public Holiday","Christmas Day",true]
[null,"Public Holiday","Christmas Day - In Lieu",true]
["2026-12-26","Public Holiday","Boxing Day",true]
["2026-12-28","Public Holiday","Boxing Day - In Lieu",true]
["2026-12-29","Public Holiday","In Lieu Bank Hol.",true]
["2027-01-01","Public Holiday","New Years Day",true]
["2027-01-26","Public Holiday","Australia Day",true]
["2027-03-26","Public Holiday","Good Friday",true]
["2027-03-27","Public Holiday","Easter Saturday",true]
["2027-03-28","Public Holiday","Easter Sunday",true]
["2027-03-29","Public Holiday","Easter Monday",true]
["2027-04-25","Public Holiday","ANZAC Day",true]
["2027-06-14","Public Holiday","King's Birthday",true]
["2027-10-04","Public Holiday","Labour Day",true]
["2027-12-25","Public Holiday","Christmas Day",true]
["2027-12-27","Public Holiday","Christmas Day - In Lieu",true]
["2027-12-26","Public Holiday","Boxing Day",true]
["2027-12-28","Public Holiday","Boxing Day - In Lieu",true]
["2027-12-29","Public Holiday","In Lieu Bank Hol.",true]

{"sheet":"Flexi Timesheet (1)","index":2,"n_rows":78,"n_cols":12,"rows_kept":78,"cut":false,"hidden":false,"merged":[[7,2,7,4],[8,2,8,4],[52,1,52,2],[53,1,53,2],[52,5,52,10],[53,5,53,10],[59,0,59,1],[60,0,60,1],[62,0,62,1],[63,0,63,1],[64,0,64,1],[65,0,65,1],[72,0,72,1],[79,0,79,1],[73,0,73,1],[77,0,77,1],[66,0,66,1],[67,0,67,1],[68,0,68,1],[69,0,69,1],[70,0,70,1]]}
[null,null,null,null,null,null,null,null,null,null,"Flexible Working Hours Scheme"]
[null,null,null,null,null,null,null,null,null,null,"2025 Flexi-Timesheet"]
[]
[]
[]
[]
[]
[null,"Name:"]
[null,"Team:",null,null,null,null,null,null,"Hours per Day",{"$f":"HOUR(K9)+MINUTE(K9)/60","v":7},"07:00:00","Don't override cell, click into cell and change time to equal your hours. i.e. 7 hours = 7:00am"]
[null,"Accounting Period:","2024-12-30",{"$f":"CONCATENATE(\" to \",TEXT(C10+27,\"dd-mmm-yyyy\"))","v":" to 26-Jan-2025"},null,null,null,null,"Days per Week",{"$f":"J9*K10","v":35},5]
[null,null,null,null,{"$f":"IF(ISERROR(VLOOKUP($A11,Holidays,2,FALSE)),\"\",VLOOKUP($A11,Holidays,2,0))","v":""},null,null,null,"Work Days",null,"Mo, Tu, We, Th, Fr"]
["Date","Start Time","Finish Time","Unpaid Breaks","Comments/Leave","Rate","Elapsed Time","Decimal Hours","Total Hours","Cum. Dec.","Cumulative Total"]
[{"$f":"C10","v":"2024-12-30"},null,null,null,null,1,{"$f":"IF(ISERROR(VLOOKUP($E13,HolidayType,2,FALSE)),IF(OR(ISBLANK(B13),ISBLANK(C13),ISBLANK(D13)),\"0:00\",C13-(B13+D13)),IF(OR(ISBLANK(B13),ISBLANK(C13),ISBLANK(D13)),IF(VLOOKUP($E13,HolidayType,2,FALSE),IF(VLOOKUP($A13,Holidays,4,FALSE),VLOOKUP(WEEKDAY($A13,2),Holidays!$E$3:$H$9,4,FALSE),\"0:00\"),VLOOKUP(WEEKDAY($A13,2),Holidays!$E$3:$H$9,4,FALSE)),IF(C13-(B13+D13)>VLOOKUP(WEEKDAY($A13,2),Holidays!$E$3:$H$9,4,FALSE),C13-(B13+D13),IF(VLOOKUP($E13,HolidayType,2,FALSE),IF(VLOOKUP($A13,Holidays,4,FALSE),VLOOKUP(WEEKDAY($A13,2),Holidays!$E$3:$H$9,4,FALSE),C13-(B13+D13)),VLOOKUP(WEEKDAY($A13,2),Holidays!$E$3:$H$9,4,FALSE)))))","v":"0:00"},{"$f":"((HOUR(G13)+MINUTE(G13)/60))*F13","v":0},{"$f":"CONCATENATE(TRUNC(INT(H13)),\":\",TEXT((H13-TRUNC(INT(H13)))*60,\"00\"))","v":"0:00"},{"$f":"H13","v":0},{"$f":"CONCATENATE(TRUNC(INT(J13)),\":\",TEXT((J13-TRUNC(INT(J13)))*60,\"00\"))","v":"0:00"},{"$f":"IF(WEEKDAY(A13,2)<6,IF(F13<>0,1,0),0)","v":1}]
[{"$f":"A13+1","v":"2024-12-31"},null,null,null,null,1,{"$f":"IF(ISERROR(VLOOKUP($E14,HolidayType,2,FALSE)),IF(OR(ISBLANK(B14),ISBLANK(C14),ISBLANK(D14)),\"0:00\",C14-(B14+D14)),IF(OR(ISBLANK(B14),ISBLANK(C14),ISBLANK(D14)),IF(VLOOKUP($E14,HolidayType,2,FALSE),IF(VLOOKUP($A14,Holidays,4,FALSE),VLOOKUP(WEEKDAY($A14,2),Holidays!$E$3:$H$9,4,FALSE),\"0:00\"),VLOOKUP(WEEKDAY($A14,2),Holidays!$E$3:$H$9,4,FALSE)),IF(C14-(B14+D14)>VLOOKUP(WEEKDAY($A14,2),Holidays!$E$3:$H$9,4,FALSE),C14-(B14+D14),IF(VLOOKUP($E14,HolidayType,2,FALSE),IF(VLOOKUP($A14,Holidays,4,FALSE),VLOOKUP(WEEKDAY($A14,2),Holidays!$E$3:$H$9,4,FALSE),C14-(B14+D14)),VLOOKUP(WEEKDAY($A14,2),Holidays!$E$3:$H$9,4,FALSE)))))","v":"0:00"},0,{"$f":"CONCATENATE(TRUNC(INT(H14)),\":\",TEXT((H14-TRUNC(INT(H14)))*60,\"00\"))","v":"0:00"},{"$f":"J13+H14","v":0},{"$f":"CONCATENATE(TRUNC(INT(J14)),\":\",TEXT((J14-TRUNC(INT(J14)))*60,\"00\"))","v":"0:00"},1]
["2025-01-01",null,null,null,"Public Holiday",1,{"$f":"IF(ISERROR(VLOOKUP($E15,HolidayType,2,FALSE)),IF(OR(ISBLANK(B15),ISBLANK(C15),ISBLANK(D15)),\"0:00\",C15-(B15+D15)),IF(OR(ISBLANK(B15),ISBLANK(C15),ISBLANK(D15)),IF(VLOOKUP($E15,HolidayType,2,FALSE),IF(VLOOKUP($A15,Holidays,4,FALSE),VLOOKUP(WEEKDAY($A15,2),Holidays!$E$3:$H$9,4,FALSE),\"0:00\"),VLOOKUP(WEEKDAY($A15,2),Holidays!$E$3:$H$9,4,FALSE)),IF(C15-(B15+D15)>VLOOKUP(WEEKDAY($A15,2),Holidays!$E$3:$H$9,4,FALSE),C15-(B15+D15),IF(VLOOKUP($E15,HolidayType,2,FALSE),IF(VLOOKUP($A15,Holidays,4,FALSE),VLOOKUP(WEEKDAY($A15,2),Holidays!$E$3:$H$9,4,FALSE),C15-(B15+D15)),VLOOKUP(WEEKDAY($A15,2),Holidays!$E$3:$H$9,4,FALSE)))))","v":"07:00:00"},7,"7:00",{"$f":"J14+H15","v":7},"7:00",1]
["2025-01-02",null,null,null,null,1,{"$f":"IF(ISERROR(VLOOKUP($E16,HolidayType,2,FALSE)),IF(OR(ISBLANK(B16),ISBLANK(C16),ISBLANK(D16)),\"0:00\",C16-(B16+D16)),IF(OR(ISBLANK(B16),ISBLANK(C16),ISBLANK(D16)),IF(VLOOKUP($E16,HolidayType,2,FALSE),IF(VLOOKUP($A16,Holidays,4,FALSE),VLOOKUP(WEEKDAY($A16,2),Holidays!$E$3:$H$9,4,FALSE),\"0:00\"),VLOOKUP(WEEKDAY($A16,2),Holidays!$E$3:$H$9,4,FALSE)),IF(C16-(B16+D16)>VLOOKUP(WEEKDAY($A16,2),Holidays!$E$3:$H$9,4,FALSE),C16-(B16+D16),IF(VLOOKUP($E16,HolidayType,2,FALSE),IF(VLOOKUP($A16,Holidays,4,FALSE),VLOOKUP(WEEKDAY($A16,2),Holidays!$E$3:$H$9,4,FALSE),C16-(B16+D16)),VLOOKUP(WEEKDAY($A16,2),Holidays!$E$3:$H$9,4,FALSE)))))","v":"0:00"},0,"0:00",7,"7:00",1]
["2025-01-03",null,null,null,null,1,{"$f":"IF(ISERROR(VLOOKUP($E17,HolidayType,2,FALSE)),IF(OR(ISBLANK(B17),ISBLANK(C17),ISBLANK(D17)),\"0:00\",C17-(B17+D17)),IF(OR(ISBLANK(B17),ISBLANK(C17),ISBLANK(D17)),IF(VLOOKUP($E17,HolidayType,2,FALSE),IF(VLOOKUP($A17,Holidays,4,FALSE),VLOOKUP(WEEKDAY($A17,2),Holidays!$E$3:$H$9,4,FALSE),\"0:00\"),VLOOKUP(WEEKDAY($A17,2),Holidays!$E$3:$H$9,4,FALSE)),IF(C17-(B17+D17)>VLOOKUP(WEEKDAY($A17,2),Holidays!$E$3:$H$9,4,FALSE),C17-(B17+D17),IF(VLOOKUP($E17,HolidayType,2,FALSE),IF(VLOOKUP($A17,Holidays,4,FALSE),VLOOKUP(WEEKDAY($A17,2),Holidays!$E$3:$H$9,4,FALSE),C17-(B17+D17)),VLOOKUP(WEEKDAY($A17,2),Holidays!$E$3:$H$9,4,FALSE)))))","v":"0:00"},0,"0:00",7,"7:00",1]
["2025-01-04",null,null,null,{"$f":"IF(ISERROR(VLOOKUP($A18,Holidays,2,FALSE)),\"\",VLOOKUP($A18,Holidays,2,0))","v":""},1.5,{"$f":"IF(ISERROR(VLOOKUP($E18,HolidayType,2,FALSE)),IF(OR(ISBLANK(B18),ISBLANK(C18),ISBLANK(D18)),\"0:00\",C18-(B18+D18)),IF(OR(ISBLANK(B18),ISBLANK(C18),ISBLANK(D18)),IF(VLOOKUP($E18,HolidayType,2,FALSE),IF(VLOOKUP($A18,Holidays,4,FALSE),VLOOKUP(WEEKDAY($A18,2),Holidays!$E$3:$H$9,4,FALSE),\"0:00\"),VLOOKUP(WEEKDAY($A18,2),Holidays!$E$3:$H$9,4,FALSE)),IF(C18-(B18+D18)>VLOOKUP(WEEKDAY($A18,2),Holidays!$E$3:$H$9,4,FALSE),C18-(B18+D18),IF(VLOOKUP($E18,HolidayType,2,FALSE),IF(VLOOKUP($A18,Holidays,4,FALSE),VLOOKUP(WEEKDAY($A18,2),Holidays!$E$3:$H$9,4,FALSE),C18-(B18+D18)),VLOOKUP(WEEKDAY($A18,2),Holidays!$E$3:$H$9,4,FALSE)))))","v":"0:00"},0,"0:00",7,"7:00",0]
["2025-01-05",null,null,null,{"$f":"IF(ISERROR(VLOOKUP($A19,Holidays,2,FALSE)),\"\",VLOOKUP($A19,Holidays,2,0))","v":""},2,{"$f":"IF(ISERROR(VLOOKUP($E19,HolidayType,2,FALSE)),IF(OR(ISBLANK(B19),ISBLANK(C19),ISBLANK(D19)),\"0:00\",C19-(B19+D19)),IF(OR(ISBLANK(B19),ISBLANK(C19),ISBLANK(D19)),IF(VLOOKUP($E19,HolidayType,2,FALSE),IF(VLOOKUP($A19,Holidays,4,FALSE),VLOOKUP(WEEKDAY($A19,2),Holidays!$E$3:$H$9,4,FALSE),\"0:00\"),VLOOKUP(WEEKDAY($A19,2),Holidays!$E$3:$H$9,4,FALSE)),IF(C19-(B19+D19)>VLOOKUP(WEEKDAY($A19,2),Holidays!$E$3:$H$9,4,FALSE),C19-(B19+D19),IF(VLOOKUP($E19,HolidayType,2,FALSE),IF(VLOOKUP($A19,Holidays,4,FALSE),VLOOKUP(WEEKDAY($A19,2),Holidays!$E$3:$H$9,4,FALSE),C19-(B19+D19)),VLOOKUP(WEEKDAY($A19,2),Holidays!$E$3:$H$9,4,FALSE)))))","v":"0:00"},{"$f":"((HOUR(G19)+MINUTE(G19)/60))*F19","v":0},"0:00",{"$f":"J18+H19","v":7},"7:00",0]
["2025-01-06",null,null,null,null,1,{"$f":"IF(ISERROR(VLOOKUP($E20,HolidayType,2,FALSE)),IF(OR(ISBLANK(B20),ISBLANK(C20),ISBLANK(D20)),\"0:00\",C20-(B20+D20)),IF(OR(ISBLANK(B20),ISBLANK(C20),ISBLANK(D20)),IF(VLOOKUP($E20,HolidayType,2,FALSE),IF(VLOOKUP($A20,Holidays,4,FALSE),VLOOKUP(WEEKDAY($A20,2),Holidays!$E$3:$H$9,4,FALSE),\"0:00\"),VLOOKUP(WEEKDAY($A20,2),Holidays!$E$3:$H$9,4,FALSE)),IF(C20-(B20+D20)>VLOOKUP(WEEKDAY($A20,2),Holidays!$E$3:$H$9,4,FALSE),C20-(B20+D20),IF(VLOOKUP($E20,HolidayType,2,FALSE),IF(VLOOKUP($A20,Holidays,4,FALSE),VLOOKUP(WEEKDAY($A20,2),Holidays!$E$3:$H$9,4,FALSE),C20-(B20+D20)),VLOOKUP(WEEKDAY($A20,2),Holidays!$E$3:$H$9,4,FALSE)))))","v":"0:00"},0,"0:00",{"$f":"J19+H20","v":7},"7:00",1]
["2025-01-07",null,null,null,null,1,{"$f":"IF(ISERROR(VLOOKUP($E21,HolidayType,2,FALSE)),IF(OR(ISBLANK(B21),ISBLANK(C21),ISBLANK(D21)),\"0:00\",C21-(B21+D21)),IF(OR(ISBLANK(B21),ISBLANK(C21),ISBLANK(D21)),IF(VLOOKUP($E21,HolidayType,2,FALSE),IF(VLOOKUP($A21,Holidays,4,FALSE),VLOOKUP(WEEKDAY($A21,2),Holidays!$E$3:$H$9,4,FALSE),\"0:00\"),VLOOKUP(WEEKDAY($A21,2),Holidays!$E$3:$H$9,4,FALSE)),IF(C21-(B21+D21)>VLOOKUP(WEEKDAY($A21,2),Holidays!$E$3:$H$9,4,FALSE),C21-(B21+D21),IF(VLOOKUP($E21,HolidayType,2,FALSE),IF(VLOOKUP($A21,Holidays,4,FALSE),VLOOKUP(WEEKDAY($A21,2),Holidays!$E$3:$H$9,4,FALSE),C21-(B21+D21)),VLOOKUP(WEEKDAY($A21,2),Holidays!$E$3:$H$9,4,FALSE)))))","v":"0:00"},0,"0:00",7,"7:00",1]
["2025-01-08",null,null,null,null,1,{"$f":"IF(ISERROR(VLOOKUP($E22,HolidayType,2,FALSE)),IF(OR(ISBLANK(B22),ISBLANK(C22),ISBLANK(D22)),\"0:00\",C22-(B22+D22)),IF(OR(ISBLANK(B22),ISBLANK(C22),ISBLANK(D22)),IF(VLOOKUP($E22,HolidayType,2,FALSE),IF(VLOOKUP($A22,Holidays,4,FALSE),VLOOKUP(WEEKDAY($A22,2),Holidays!$E$3:$H$9,4,FALSE),\"0:00\"),VLOOKUP(WEEKDAY($A22,2),Holidays!$E$3:$H$9,4,FALSE)),IF(C22-(B22+D22)>VLOOKUP(WEEKDAY($A22,2),Holidays!$E$3:$H$9,4,FALSE),C22-(B22+D22),IF(VLOOKUP($E22,HolidayType,2,FALSE),IF(VLOOKUP($A22,Holidays,4,FALSE),VLOOKUP(WEEKDAY($A22,2),Holidays!$E$3:$H$9,4,FALSE),C22-(B22+D22)),VLOOKUP(WEEKDAY($A22,2),Holidays!$E$3:$H$9,4,FALSE)))))","v":"0:00"},0,"0:00",7,"7:00",1]
["2025-01-09",null,null,null,null,1,{"$f":"IF(ISERROR(VLOOKUP($E23,HolidayType,2,FALSE)),IF(OR(ISBLANK(B23),ISBLANK(C23),ISBLANK(D23)),\"0:00\",C23-(B23+D23)),IF(OR(ISBLANK(B23),ISBLANK(C23),ISBLANK(D23)),IF(VLOOKUP($E23,HolidayType,2,FALSE),IF(VLOOKUP($A23,Holidays,4,FALSE),VLOOKUP(WEEKDAY($A23,2),Holidays!$E$3:$H$9,4,FALSE),\"0:00\"),VLOOKUP(WEEKDAY($A23,2),Holidays!$E$3:$H$9,4,FALSE)),IF(C23-(B23+D23)>VLOOKUP(WEEKDAY($A23,2),Holidays!$E$3:$H$9,4,FALSE),C23-(B23+D23),IF(VLOOKUP($E23,HolidayType,2,FALSE),IF(VLOOKUP($A23,Holidays,4,FALSE),VLOOKUP(WEEKDAY($A23,2),Holidays!$E$3:$H$9,4,FALSE),C23-(B23+D23)),VLOOKUP(WEEKDAY($A23,2),Holidays!$E$3:$H$9,4,FALSE)))))","v":"0:00"},0,"0:00",7,"7:00",1]
["2025-01-10",null,null,null,null,1,{"$f":"IF(ISERROR(VLOOKUP($E24,HolidayType,2,FALSE)),IF(OR(ISBLANK(B24),ISBLANK(C24),ISBLANK(D24)),\"0:00\",C24-(B24+D24)),IF(OR(ISBLANK(B24),ISBLANK(C24),ISBLANK(D24)),IF(VLOOKUP($E24,HolidayType,2,FALSE),IF(VLOOKUP($A24,Holidays,4,FALSE),VLOOKUP(WEEKDAY($A24,2),Holidays!$E$3:$H$9,4,FALSE),\"0:00\"),VLOOKUP(WEEKDAY($A24,2),Holidays!$E$3:$H$9,4,FALSE)),IF(C24-(B24+D24)>VLOOKUP(WEEKDAY($A24,2),Holidays!$E$3:$H$9,4,FALSE),C24-(B24+D24),IF(VLOOKUP($E24,HolidayType,2,FALSE),IF(VLOOKUP($A24,Holidays,4,FALSE),VLOOKUP(WEEKDAY($A24,2),Holidays!$E$3:$H$9,4,FALSE),C24-(B24+D24)),VLOOKUP(WEEKDAY($A24,2),Holidays!$E$3:$H$9,4,FALSE)))))","v":"0:00"},0,"0:00",7,"7:00",1]
["2025-01-11",null,null,null,null,1.5,{"$f":"IF(ISERROR(VLOOKUP($E25,HolidayType,2,FALSE)),IF(OR(ISBLANK(B25),ISBLANK(C25),ISBLANK(D25)),\"0:00\",C25-(B25+D25)),IF(OR(ISBLANK(B25),ISBLANK(C25),ISBLANK(D25)),IF(VLOOKUP($E25,HolidayType,2,FALSE),IF(VLOOKUP($A25,Holidays,4,FALSE),VLOOKUP(WEEKDAY($A25,2),Holidays!$E$3:$H$9,4,FALSE),\"0:00\"),VLOOKUP(WEEKDAY($A25,2),Holidays!$E$3:$H$9,4,FALSE)),IF(C25-(B25+D25)>VLOOKUP(WEEKDAY($A25,2),Holidays!$E$3:$H$9,4,FALSE),C25-(B25+D25),IF(VLOOKUP($E25,HolidayType,2,FALSE),IF(VLOOKUP($A25,Holidays,4,FALSE),VLOOKUP(WEEKDAY($A25,2),Holidays!$E$3:$H$9,4,FALSE),C25-(B25+D25)),VLOOKUP(WEEKDAY($A25,2),Holidays!$E$3:$H$9,4,FALSE)))))","v":"0:00"},0,"0:00",{"$f":"J24+H25","v":7},"7:00",0]
["2025-01-12",null,null,null,null,2,{"$f":"IF(ISERROR(VLOOKUP($E26,HolidayType,2,FALSE)),IF(OR(ISBLANK(B26),ISBLANK(C26),ISBLANK(D26)),\"0:00\",C26-(B26+D26)),IF(OR(ISBLANK(B26),ISBLANK(C26),ISBLANK(D26)),IF(VLOOKUP($E26,HolidayType,2,FALSE),IF(VLOOKUP($A26,Holidays,4,FALSE),VLOOKUP(WEEKDAY($A26,2),Holidays!$E$3:$H$9,4,FALSE),\"0:00\"),VLOOKUP(WEEKDAY($A26,2),Holidays!$E$3:$H$9,4,FALSE)),IF(C26-(B26+D26)>VLOOKUP(WEEKDAY($A26,2),Holidays!$E$3:$H$9,4,FALSE),C26-(B26+D26),IF(VLOOKUP($E26,HolidayType,2,FALSE),IF(VLOOKUP($A26,Holidays,4,FALSE),VLOOKUP(WEEKDAY($A26,2),Holidays!$E$3:$H$9,4,FALSE),C26-(B26+D26)),VLOOKUP(WEEKDAY($A26,2),Holidays!$E$3:$H$9,4,FALSE)))))","v":"0:00"},0,"0:00",{"$f":"J25+H26","v":7},"7:00",0]
["2025-01-13",null,null,null,null,1,{"$f":"IF(ISERROR(VLOOKUP($E27,HolidayType,2,FALSE)),IF(OR(ISBLANK(B27),ISBLANK(C27),ISBLANK(D27)),\"0:00\",C27-(B27+D27)),IF(OR(ISBLANK(B27),ISBLANK(C27),ISBLANK(D27)),IF(VLOOKUP($E27,HolidayType,2,FALSE),IF(VLOOKUP($A27,Holidays,4,FALSE),VLOOKUP(WEEKDAY($A27,2),Holidays!$E$3:$H$9,4,FALSE),\"0:00\"),VLOOKUP(WEEKDAY($A27,2),Holidays!$E$3:$H$9,4,FALSE)),IF(C27-(B27+D27)>VLOOKUP(WEEKDAY($A27,2),Holidays!$E$3:$H$9,4,FALSE),C27-(B27+D27),IF(VLOOKUP($E27,HolidayType,2,FALSE),IF(VLOOKUP($A27,Holidays,4,FALSE),VLOOKUP(WEEKDAY($A27,2),Holidays!$E$3:$H$9,4,FALSE),C27-(B27+D27)),VLOOKUP(WEEKDAY($A27,2),Holidays!$E$3:$H$9,4,FALSE)))))","v":"0:00"},0,"0:00",{"$f":"J26+H27","v":7},"7:00",1]
["2025-01-14",null,null,null,null,1,{"$f":"IF(ISERROR(VLOOKUP($E28,HolidayType,2,FALSE)),IF(OR(ISBLANK(B28),ISBLANK(C28),ISBLANK(D28)),\"0:00\",C28-(B28+D28)),IF(OR(ISBLANK(B28),ISBLANK(C28),ISBLANK(D28)),IF(VLOOKUP($E28,HolidayType,2,FALSE),IF(VLOOKUP($A28,Holidays,4,FALSE),VLOOKUP(WEEKDAY($A28,2),Holidays!$E$3:$H$9,4,FALSE),\"0:00\"),VLOOKUP(WEEKDAY($A28,2),Holidays!$E$3:$H$9,4,FALSE)),IF(C28-(B28+D28)>VLOOKUP(WEEKDAY($A28,2),Holidays!$E$3:$H$9,4,FALSE),C28-(B28+D28),IF(VLOOKUP($E28,HolidayType,2,FALSE),IF(VLOOKUP($A28,Holidays,4,FALSE),VLOOKUP(WEEKDAY($A28,2),Holidays!$E$3:$H$9,4,FALSE),C28-(B28+D28)),VLOOKUP(WEEKDAY($A28,2),Holidays!$E$3:$H$9,4,FALSE)))))","v":"0:00"},0,"0:00",7,"7:00",1]
["2025-01-15",null,null,null,null,1,{"$f":"IF(ISERROR(VLOOKUP($E29,HolidayType,2,FALSE)),IF(OR(ISBLANK(B29),ISBLANK(C29),ISBLANK(D29)),\"0:00\",C29-(B29+D29)),IF(OR(ISBLANK(B29),ISBLANK(C29),ISBLANK(D29)),IF(VLOOKUP($E29,HolidayType,2,FALSE),IF(VLOOKUP($A29,Holidays,4,FALSE),VLOOKUP(WEEKDAY($A29,2),Holidays!$E$3:$H$9,4,FALSE),\"0:00\"),VLOOKUP(WEEKDAY($A29,2),Holidays!$E$3:$H$9,4,FALSE)),IF(C29-(B29+D29)>VLOOKUP(WEEKDAY($A29,2),Holidays!$E$3:$H$9,4,FALSE),C29-(B29+D29),IF(VLOOKUP($E29,HolidayType,2,FALSE),IF(VLOOKUP($A29,Holidays,4,FALSE),VLOOKUP(WEEKDAY($A29,2),Holidays!$E$3:$H$9,4,FALSE),C29-(B29+D29)),VLOOKUP(WEEKDAY($A29,2),Holidays!$E$3:$H$9,4,FALSE)))))","v":"0:00"},0,"0:00",7,"7:00",1]
["2025-01-16",null,null,null,null,1,{"$f":"IF(ISERROR(VLOOKUP($E30,HolidayType,2,FALSE)),IF(OR(ISBLANK(B30),ISBLANK(C30),ISBLANK(D30)),\"0:00\",C30-(B30+D30)),IF(OR(ISBLANK(B30),ISBLANK(C30),ISBLANK(D30)),IF(VLOOKUP($E30,HolidayType,2,FALSE),IF(VLOOKUP($A30,Holidays,4,FALSE),VLOOKUP(WEEKDAY($A30,2),Holidays!$E$3:$H$9,4,FALSE),\"0:00\"),VLOOKUP(WEEKDAY($A30,2),Holidays!$E$3:$H$9,4,FALSE)),IF(C30-(B30+D30)>VLOOKUP(WEEKDAY($A30,2),Holidays!$E$3:$H$9,4,FALSE),C30-(B30+D30),IF(VLOOKUP($E30,HolidayType,2,FALSE),IF(VLOOKUP($A30,Holidays,4,FALSE),VLOOKUP(WEEKDAY($A30,2),Holidays!$E$3:$H$9,4,FALSE),C30-(B30+D30)),VLOOKUP(WEEKDAY($A30,2),Holidays!$E$3:$H$9,4,FALSE)))))","v":"0:00"},0,"0:00",7,"7:00",1]
["2025-01-17",null,null,null,{"$f":"IF(ISERROR(VLOOKUP($A31,Holidays,2,FALSE)),\"\",VLOOKUP($A31,Holidays,2,0))","v":""},1,{"$f":"IF(ISERROR(VLOOKUP($E31,HolidayType,2,FALSE)),IF(OR(ISBLANK(B31),ISBLANK(C31),ISBLANK(D31)),\"0:00\",C31-(B31+D31)),IF(OR(ISBLANK(B31),ISBLANK(C31),ISBLANK(D31)),IF(VLOOKUP($E31,HolidayType,2,FALSE),IF(VLOOKUP($A31,Holidays,4,FALSE),VLOOKUP(WEEKDAY($A31,2),Holidays!$E$3:$H$9,4,FALSE),\"0:00\"),VLOOKUP(WEEKDAY($A31,2),Holidays!$E$3:$H$9,4,FALSE)),IF(C31-(B31+D31)>VLOOKUP(WEEKDAY($A31,2),Holidays!$E$3:$H$9,4,FALSE),C31-(B31+D31),IF(VLOOKUP($E31,HolidayType,2,FALSE),IF(VLOOKUP($A31,Holidays,4,FALSE),VLOOKUP(WEEKDAY($A31,2),Holidays!$E$3:$H$9,4,FALSE),C31-(B31+D31)),VLOOKUP(WEEKDAY($A31,2),Holidays!$E$3:$H$9,4,FALSE)))))","v":"0:00"},0,"0:00",7,"7:00",1]
["2025-01-18",null,null,null,"",1.5,{"$f":"IF(ISERROR(VLOOKUP($E32,HolidayType,2,FALSE)),IF(OR(ISBLANK(B32),ISBLANK(C32),ISBLANK(D32)),\"0:00\",C32-(B32+D32)),IF(OR(ISBLANK(B32),ISBLANK(C32),ISBLANK(D32)),IF(VLOOKUP($E32,HolidayType,2,FALSE),IF(VLOOKUP($A32,Holidays,4,FALSE),VLOOKUP(WEEKDAY($A32,2),Holidays!$E$3:$H$9,4,FALSE),\"0:00\"),VLOOKUP(WEEKDAY($A32,2),Holidays!$E$3:$H$9,4,FALSE)),IF(C32-(B32+D32)>VLOOKUP(WEEKDAY($A32,2),Holidays!$E$3:$H$9,4,FALSE),C32-(B32+D32),IF(VLOOKUP($E32,HolidayType,2,FALSE),IF(VLOOKUP($A32,Holidays,4,FALSE),VLOOKUP(WEEKDAY($A32,2),Holidays!$E$3:$H$9,4,FALSE),C32-(B32+D32)),VLOOKUP(WEEKDAY($A32,2),Holidays!$E$3:$H$9,4,FALSE)))))","v":"0:00"},0,"0:00",{"$f":"J31+H32","v":7},"7:00",0]
["2025-01-19",null,null,null,"",2,{"$f":"IF(ISERROR(VLOOKUP($E33,HolidayType,2,FALSE)),IF(OR(ISBLANK(B33),ISBLANK(C33),ISBLANK(D33)),\"0:00\",C33-(B33+D33)),IF(OR(ISBLANK(B33),ISBLANK(C33),ISBLANK(D33)),IF(VLOOKUP($E33,HolidayType,2,FALSE),IF(VLOOKUP($A33,Holidays,4,FALSE),VLOOKUP(WEEKDAY($A33,2),Holidays!$E$3:$H$9,4,FALSE),\"0:00\"),VLOOKUP(WEEKDAY($A33,2),Holidays!$E$3:$H$9,4,FALSE)),IF(C33-(B33+D33)>VLOOKUP(WEEKDAY($A33,2),Holidays!$E$3:$H$9,4,FALSE),C33-(B33+D33),IF(VLOOKUP($E33,HolidayType,2,FALSE),IF(VLOOKUP($A33,Holidays,4,FALSE),VLOOKUP(WEEKDAY($A33,2),Holidays!$E$3:$H$9,4,FALSE),C33-(B33+D33)),VLOOKUP(WEEKDAY($A33,2),Holidays!$E$3:$H$9,4,FALSE)))))","v":"0:00"},0,"0:00",{"$f":"J32+H33","v":7},"7:00",0]
["2025-01-20",null,null,null,null,1,{"$f":"IF(ISERROR(VLOOKUP($E34,HolidayType,2,FALSE)),IF(OR(ISBLANK(B34),ISBLANK(C34),ISBLANK(D34)),\"0:00\",C34-(B34+D34)),IF(OR(ISBLANK(B34),ISBLANK(C34),ISBLANK(D34)),IF(VLOOKUP($E34,HolidayType,2,FALSE),IF(VLOOKUP($A34,Holidays,4,FALSE),VLOOKUP(WEEKDAY($A34,2),Holidays!$E$3:$H$9,4,FALSE),\"0:00\"),VLOOKUP(WEEKDAY($A34,2),Holidays!$E$3:$H$9,4,FALSE)),IF(C34-(B34+D34)>VLOOKUP(WEEKDAY($A34,2),Holidays!$E$3:$H$9,4,FALSE),C34-(B34+D34),IF(VLOOKUP($E34,HolidayType,2,FALSE),IF(VLOOKUP($A34,Holidays,4,FALSE),VLOOKUP(WEEKDAY($A34,2),Holidays!$E$3:$H$9,4,FALSE),C34-(B34+D34)),VLOOKUP(WEEKDAY($A34,2),Holidays!$E$3:$H$9,4,FALSE)))))","v":"0:00"},0,"0:00",{"$f":"J31+H34","v":7},"7:00",1]
["2025-01-21",null,null,null,null,1,{"$f":"IF(ISERROR(VLOOKUP($E35,HolidayType,2,FALSE)),IF(OR(ISBLANK(B35),ISBLANK(C35),ISBLANK(D35)),\"0:00\",C35-(B35+D35)),IF(OR(ISBLANK(B35),ISBLANK(C35),ISBLANK(D35)),IF(VLOOKUP($E35,HolidayType,2,FALSE),IF(VLOOKUP($A35,Holidays,4,FALSE),VLOOKUP(WEEKDAY($A35,2),Holidays!$E$3:$H$9,4,FALSE),\"0:00\"),VLOOKUP(WEEKDAY($A35,2),Holidays!$E$3:$H$9,4,FALSE)),IF(C35-(B35+D35)>VLOOKUP(WEEKDAY($A35,2),Holidays!$E$3:$H$9,4,FALSE),C35-(B35+D35),IF(VLOOKUP($E35,HolidayType,2,FALSE),IF(VLOOKUP($A35,Holidays,4,FALSE),VLOOKUP(WEEKDAY($A35,2),Holidays!$E$3:$H$9,4,FALSE),C35-(B35+D35)),VLOOKUP(WEEKDAY($A35,2),Holidays!$E$3:$H$9,4,FALSE)))))","v":"0:00"},0,"0:00",7,"7:00",1]
["2025-01-22",null,null,null,null,1,{"$f":"IF(ISERROR(VLOOKUP($E36,HolidayType,2,FALSE)),IF(OR(ISBLANK(B36),ISBLANK(C36),ISBLANK(D36)),\"0:00\",C36-(B36+D36)),IF(OR(ISBLANK(B36),ISBLANK(C36),ISBLANK(D36)),IF(VLOOKUP($E36,HolidayType,2,FALSE),IF(VLOOKUP($A36,Holidays,4,FALSE),VLOOKUP(WEEKDAY($A36,2),Holidays!$E$3:$H$9,4,FALSE),\"0:00\"),VLOOKUP(WEEKDAY($A36,2),Holidays!$E$3:$H$9,4,FALSE)),IF(C36-(B36+D36)>VLOOKUP(WEEKDAY($A36,2),Holidays!$E$3:$H$9,4,FALSE),C36-(B36+D36),IF(VLOOKUP($E36,HolidayType,2,FALSE),IF(VLOOKUP($A36,Holidays,4,FALSE),VLOOKUP(WEEKDAY($A36,2),Holidays!$E$3:$H$9,4,FALSE),C36-(B36+D36)),VLOOKUP(WEEKDAY($A36,2),Holidays!$E$3:$H$9,4,FALSE)))))","v":"0:00"},0,"0:00",7,"7:00",1]
["2025-01-23",null,null,null,null,1,{"$f":"IF(ISERROR(VLOOKUP($E37,HolidayType,2,FALSE)),IF(OR(ISBLANK(B37),ISBLANK(C37),ISBLANK(D37)),\"0:00\",C37-(B37+D37)),IF(OR(ISBLANK(B37),ISBLANK(C37),ISBLANK(D37)),IF(VLOOKUP($E37,HolidayType,2,FALSE),IF(VLOOKUP($A37,Holidays,4,FALSE),VLOOKUP(WEEKDAY($A37,2),Holidays!$E$3:$H$9,4,FALSE),\"0:00\"),VLOOKUP(WEEKDAY($A37,2),Holidays!$E$3:$H$9,4,FALSE)),IF(C37-(B37+D37)>VLOOKUP(WEEKDAY($A37,2),Holidays!$E$3:$H$9,4,FALSE),C37-(B37+D37),IF(VLOOKUP($E37,HolidayType,2,FALSE),IF(VLOOKUP($A37,Holidays,4,FALSE),VLOOKUP(WEEKDAY($A37,2),Holidays!$E$3:$H$9,4,FALSE),C37-(B37+D37)),VLOOKUP(WEEKDAY($A37,2),Holidays!$E$3:$H$9,4,FALSE)))))","v":"0:00"},0,"0:00",7,"7:00",1]
["2025-01-24",null,null,null,null,1,{"$f":"IF(ISERROR(VLOOKUP($E38,HolidayType,2,FALSE)),IF(OR(ISBLANK(B38),ISBLANK(C38),ISBLANK(D38)),\"0:00\",C38-(B38+D38)),IF(OR(ISBLANK(B38),ISBLANK(C38),ISBLANK(D38)),IF(VLOOKUP($E38,HolidayType,2,FALSE),IF(VLOOKUP($A38,Holidays,4,FALSE),VLOOKUP(WEEKDAY($A38,2),Holidays!$E$3:$H$9,4,FALSE),\"0:00\"),VLOOKUP(WEEKDAY($A38,2),Holidays!$E$3:$H$9,4,FALSE)),IF(C38-(B38+D38)>VLOOKUP(WEEKDAY($A38,2),Holidays!$E$3:$H$9,4,FALSE),C38-(B38+D38),IF(VLOOKUP($E38,HolidayType,2,FALSE),IF(VLOOKUP($A38,Holidays,4,FALSE),VLOOKUP(WEEKDAY($A38,2),Holidays!$E$3:$H$9,4,FALSE),C38-(B38+D38)),VLOOKUP(WEEKDAY($A38,2),Holidays!$E$3:$H$9,4,FALSE)))))","v":"0:00"},0,"0:00",7,"7:00",1]
["2025-01-25",null,null,null,"",1.5,{"$f":"IF(ISERROR(VLOOKUP($E39,HolidayType,2,FALSE)),IF(OR(ISBLANK(B39),ISBLANK(C39),ISBLANK(D39)),\"0:00\",C39-(B39+D39)),IF(OR(ISBLANK(B39),ISBLANK(C39),ISBLANK(D39)),IF(VLOOKUP($E39,HolidayType,2,FALSE),IF(VLOOKUP($A39,Holidays,4,FALSE),VLOOKUP(WEEKDAY($A39,2),Holidays!$E$3:$H$9,4,FALSE),\"0:00\"),VLOOKUP(WEEKDAY($A39,2),Holidays!$E$3:$H$9,4,FALSE)),IF(C39-(B39+D39)>VLOOKUP(WEEKDAY($A39,2),Holidays!$E$3:$H$9,4,FALSE),C39-(B39+D39),IF(VLOOKUP($E39,HolidayType,2,FALSE),IF(VLOOKUP($A39,Holidays,4,FALSE),VLOOKUP(WEEKDAY($A39,2),Holidays!$E$3:$H$9,4,FALSE),C39-(B39+D39)),VLOOKUP(WEEKDAY($A39,2),Holidays!$E$3:$H$9,4,FALSE)))))","v":"0:00"},0,"0:00",7,"7:00",0]
["2025-01-26",null,null,null,"",2,{"$f":"IF(ISERROR(VLOOKUP($E40,HolidayType,2,FALSE)),IF(OR(ISBLANK(B40),ISBLANK(C40),ISBLANK(D40)),\"0:00\",C40-(B40+D40)),IF(OR(ISBLANK(B40),ISBLANK(C40),ISBLANK(D40)),IF(VLOOKUP($E40,HolidayType,2,FALSE),IF(VLOOKUP($A40,Holidays,4,FALSE),VLOOKUP(WEEKDAY($A40,2),Holidays!$E$3:$H$9,4,FALSE),\"0:00\"),VLOOKUP(WEEKDAY($A40,2),Holidays!$E$3:$H$9,4,FALSE)),IF(C40-(B40+D40)>VLOOKUP(WEEKDAY($A40,2),Holidays!$E$3:$H$9,4,FALSE),C40-(B40+D40),IF(VLOOKUP($E40,HolidayType,2,FALSE),IF(VLOOKUP($A40,Holidays,4,FALSE),VLOOKUP(WEEKDAY($A40,2),Holidays!$E$3:$H$9,4,FALSE),C40-(B40+D40)),VLOOKUP(WEEKDAY($A40,2),Holidays!$E$3:$H$9,4,FALSE)))))","v":"0:00"},0,"0:00",{"$f":"J39+H40","v":7},"7:00",0]
[null,null,null,null,null,null,null,null,null,null,null,{"$f":"SUM(L13:L40)","v":20}]
[null,null,null,null,"Total ordinary hours for accounting period",null,{"$f":"CONCATENATE(TRUNC(INT(ABS(J42))),\":\",TEXT(ABS(ABS(J42)-TRUNC(INT(ABS(J42))))*60,\"00\"))","v":"140:00"},null,null,{"$f":"J10*4","v":140}]
[null,null,null,null,"Total actual hours worked in accounting period",null,{"$f":"CONCATENATE(TRUNC(INT(ABS(J43))),\":\",TEXT(ABS(ABS(J43)-TRUNC(INT(ABS(J43))))*60,\"00\"))","v":"7:00"},null,null,{"$f":"J40","v":7}]
[null,null,null,null,"Difference",null,{"$f":"CONCATENATE(TRUNC(INT(ABS(J44))),\":\",TEXT(ABS(ABS(J44)-TRUNC(INT(ABS(J44))))*60,\"00\"))","v":"133:00"},null,{"$f":"IF(J44<0,\"Debit\",IF(J44=0,\"\",\"Credit\"))","v":"Debit"},{"$f":"ROUND(J43-J42,2)","v":-133}]
[null,null,null,null,"If applicable, carry over from previous period",null,"0:00",null,"Credit",{"$f":"IF(I45=\"Debit\",0-(LEFT(G45,FIND(\":\",G45)-1)+RIGHT(G45,2)/60),LEFT(G45,FIND(\":\",G45)-1)+RIGHT(G45,2)/60)","v":0}]
[null,null,null,null,"Carry over to following period",null,{"$f":"CONCATENATE(TRUNC(INT(ABS(J46))),\":\",TEXT(ABS(ABS(J46)-TRUNC(INT(ABS(J46))))*60,\"00\"))","v":"133:00"},null,{"$f":"IF(J46<0,\"Debit\",IF(J46=0,\"\",\"Credit\"))","v":"Debit"},{"$f":"ROUND(J44+J45,2)","v":-133}]
[]
[null,null,null,null,"Future flex leave bookings",null,"0:00",null,null,{"$f":"IF(I48=\"Debit\",0-(LEFT(G48,FIND(\":\",G48)-1)+RIGHT(G48,2)/60),LEFT(G48,FIND(\":\",G48)-1)+RIGHT(G48,2)/60)","v":0}]
[null,null,null,null,"Remaining",null,{"$f":"CONCATENATE(TRUNC(INT(ABS(J49))),\":\",TEXT(ABS(ABS(J49)-TRUNC(INT(ABS(J49))))*60,\"00\"))","v":"133:00"},null,{"$f":"IF(J49<0,\"Debit\",IF(J49=0,\"\",\"Credit\"))","v":"Debit"},{"$f":"J46-J48","v":-133}]
[]
[]
[]
["Signature",null,null,null,"Certified Correct"]
[null,"(Employee)",null,null,null,"(Supervisor)"]
[]
["Completed timesheets shall be authorised as correct by the supervisor and filed as an auditable document for 7yrs"]
[]
[]
["INSERT Comments/Leave below:"]
["Albury"]
["Annual Leave"]
["Carers Leave"]
["Concessional Half Day"]
["Dubbo"]
["Exam"]
["Flexi Day"]
["Goulburn"]
["Leave Without Pay"]
["Long Service Leave"]
["Maternity Leave"]
["Public Holiday"]
["Purchased Leave"]
["Sick Leave"]
["Special Leave"]
["Study Leave"]
["Training"]
["Wagga Wagga"]
["Working @ home"]

{"sheet":"Flexi Timesheet (2)","index":3,"n_rows":78,"n_cols":12,"rows_kept":78,"cut":false,"hidden":false,"merged":[[73,0,73,1],[77,0,77,1],[79,0,79,1],[66,0,66,1],[67,0,67,1],[68,0,68,1],[69,0,69,1],[70,0,70,1],[72,0,72,1],[65,0,65,1],[7,2,7,4],[8,2,8,4],[52,1,52,2],[52,5,52,10],[53,1,53,2],[53,5,53,10],[59,0,59,1],[60,0,60,1],[62,0,62,1],[63,0,63,1],[64,0,64,1]]}
[null,null,null,null,null,null,null,null,null,null,"Flexible Working Hours Scheme"]
[null,null,null,null,null,null,null,null,null,null,"2025 Flexi-Timesheet"]
[]
[]
[]
[]
[]
[null,"Name:"]
[null,"Team:",null,null,null,null,null,null,"Hours per Day",{"$f":"HOUR(K9)+MINUTE(K9)/60","v":7},"07:00:00","Don't override cell, click into cell and change time to equal your hours. i.e. 7 hours = 7:00am"]
[null,"Accounting Period:","2025-01-27",{"$f":"CONCATENATE(\" to \",TEXT(C10+27,\"dd-mmm-yyyy\"))","v":" to 23-Feb-2025"},null,null,null,null,"Days per Week",{"$f":"J9*K10","v":35},5]
[null,null,null,null,{"$f":"IF(ISERROR(VLOOKUP($A11,Holidays,2,FALSE)),\"\",VLOOKUP($A11,Holidays,2,0))","v":""},null,null,null,"Work Days",null,"Mo, Tu, We, Th, Fr"]
["Date","Start Time","Finish Time","Unpaid Breaks","Comments/Leave","Rate","Elapsed Time","Decimal Hours","Total Hours","Cum. Dec.","Cumulative Total"]
[{"$f":"C10","v":"2025-01-27"},null,null,null,"Public Holiday",1,{"$f":"IF(ISERROR(VLOOKUP($E13,HolidayType,2,FALSE)),IF(OR(ISBLANK(B13),ISBLANK(C13),ISBLANK(D13)),\"0:00\",C13-(B13+D13)),IF(OR(ISBLANK(B13),ISBLANK(C13),ISBLANK(D13)),IF(VLOOKUP($E13,HolidayType,2,FALSE),IF(VLOOKUP($A13,Holidays,4,FALSE),VLOOKUP(WEEKDAY($A13,2),Holidays!$E$3:$H$9,4,FALSE),\"0:00\"),VLOOKUP(WEEKDAY($A13,2),Holidays!$E$3:$H$9,4,FALSE)),IF(C13-(B13+D13)>VLOOKUP(WEEKDAY($A13,2),Holidays!$E$3:$H$9,4,FALSE),C13-(B13+D13),IF(VLOOKUP($E13,HolidayType,2,FALSE),IF(VLOOKUP($A13,Holidays,4,FALSE),VLOOKUP(WEEKDAY($A13,2),Holidays!$E$3:$H$9,4,FALSE),C13-(B13+D13)),VLOOKUP(WEEKDAY($A13,2),Holidays!$E$3:$H$9,4,FALSE)))))","v":"07:00:00"},{"$f":"((HOUR(G13)+MINUTE(G13)/60))*F13","v":7},{"$f":"CONCATENATE(TRUNC(INT(H13)),\":\",TEXT((H13-TRUNC(INT(H13)))*60,\"00\"))","v":"7:00"},{"$f":"H13","v":7},{"$f":"CONCATENATE(TRUNC(INT(J13)),\":\",TEXT((J13-TRUNC(INT(J13)))*60,\"00\"))","v":"7:00"},{"$f":"IF(WEEKDAY(A13,2)<6,IF(F13<>0,1,0),0)","v":1}]
[{"$f":"A13+1","v":"2025-01-28"},null,null,null,null,1,{"$f":"IF(ISERROR(VLOOKUP($E14,HolidayType,2,FALSE)),IF(OR(ISBLANK(B14),ISBLANK(C14),ISBLANK(D14)),\"0:00\",C14-(B14+D14)),IF(OR(ISBLANK(B14),ISBLANK(C14),ISBLANK(D14)),IF(VLOOKUP($E14,HolidayType,2,FALSE),IF(VLOOKUP($A14,Holidays,4,FALSE),VLOOKUP(WEEKDAY($A14,2),Holidays!$E$3:$H$9,4,FALSE),\"0:00\"),VLOOKUP(WEEKDAY($A14,2),Holidays!$E$3:$H$9,4,FALSE)),IF(C14-(B14+D14)>VLOOKUP(WEEKDAY($A14,2),Holidays!$E$3:$H$9,4,FALSE),C14-(B14+D14),IF(VLOOKUP($E14,HolidayType,2,FALSE),IF(VLOOKUP($A14,Holidays,4,FALSE),VLOOKUP(WEEKDAY($A14,2),Holidays!$E$3:$H$9,4,FALSE),C14-(B14+D14)),VLOOKUP(WEEKDAY($A14,2),Holidays!$E$3:$H$9,4,FALSE)))))","v":"0:00"},0,{"$f":"CONCATENATE(TRUNC(INT(H14)),\":\",TEXT((H14-TRUNC(INT(H14)))*60,\"00\"))","v":"0:00"},{"$f":"J13+H14","v":7},{"$f":"CONCATENATE(TRUNC(INT(J14)),\":\",TEXT((J14-TRUNC(INT(J14)))*60,\"00\"))","v":"7:00"},1]
["2025-01-29",null,null,null,null,1,{"$f":"IF(ISERROR(VLOOKUP($E15,HolidayType,2,FALSE)),IF(OR(ISBLANK(B15),ISBLANK(C15),ISBLANK(D15)),\"0:00\",C15-(B15+D15)),IF(OR(ISBLANK(B15),ISBLANK(C15),ISBLANK(D15)),IF(VLOOKUP($E15,HolidayType,2,FALSE),IF(VLOOKUP($A15,Holidays,4,FALSE),VLOOKUP(WEEKDAY($A15,2),Holidays!$E$3:$H$9,4,FALSE),\"0:00\"),VLOOKUP(WEEKDAY($A15,2),Holidays!$E$3:$H$9,4,FALSE)),IF(C15-(B15+D15)>VLOOKUP(WEEKDAY($A15,2),Holidays!$E$3:$H$9,4,FALSE),C15-(B15+D15),IF(VLOOKUP($E15,HolidayType,2,FALSE),IF(VLOOKUP($A15,Holidays,4,FALSE),VLOOKUP(WEEKDAY($A15,2),Holidays!$E$3:$H$9,4,FALSE),C15-(B15+D15)),VLOOKUP(WEEKDAY($A15,2),Holidays!$E$3:$H$9,4,FALSE)))))","v":"0:00"},0,"0:00",{"$f":"J14+H15","v":7},"7:00",1]
["2025-01-30",null,null,null,null,1,{"$f":"IF(ISERROR(VLOOKUP($E16,HolidayType,2,FALSE)),IF(OR(ISBLANK(B16),ISBLANK(C16),ISBLANK(D16)),\"0:00\",C16-(B16+D16)),IF(OR(ISBLANK(B16),ISBLANK(C16),ISBLANK(D16)),IF(VLOOKUP($E16,HolidayType,2,FALSE),IF(VLOOKUP($A16,Holidays,4,FALSE),VLOOKUP(WEEKDAY($A16,2),Holidays!$E$3:$H$9,4,FALSE),\"0:00\"),VLOOKUP(WEEKDAY($A16,2),Holidays!$E$3:$H$9,4,FALSE)),IF(C16-(B16+D16)>VLOOKUP(WEEKDAY($A16,2),Holidays!$E$3:$H$9,4,FALSE),C16-(B16+D16),IF(VLOOKUP($E16,HolidayType,2,FALSE),IF(VLOOKUP($A16,Holidays,4,FALSE),VLOOKUP(WEEKDAY($A16,2),Holidays!$E$3:$H$9,4,FALSE),C16-(B16+D16)),VLOOKUP(WEEKDAY($A16,2),Holidays!$E$3:$H$9,4,FALSE)))))","v":"0:00"},0,"0:00",7,"7:00",1]
["2025-01-31",null,null,null,null,1,{"$f":"IF(ISERROR(VLOOKUP($E17,HolidayType,2,FALSE)),IF(OR(ISBLANK(B17),ISBLANK(C17),ISBLANK(D17)),\"0:00\",C17-(B17+D17)),IF(OR(ISBLANK(B17),ISBLANK(C17),ISBLANK(D17)),IF(VLOOKUP($E17,HolidayType,2,FALSE),IF(VLOOKUP($A17,Holidays,4,FALSE),VLOOKUP(WEEKDAY($A17,2),Holidays!$E$3:$H$9,4,FALSE),\"0:00\"),VLOOKUP(WEEKDAY($A17,2),Holidays!$E$3:$H$9,4,FALSE)),IF(C17-(B17+D17)>VLOOKUP(WEEKDAY($A17,2),Holidays!$E$3:$H$9,4,FALSE),C17-(B17+D17),IF(VLOOKUP($E17,HolidayType,2,FALSE),IF(VLOOKUP($A17,Holidays,4,FALSE),VLOOKUP(WEEKDAY($A17,2),Holidays!$E$3:$H$9,4,FALSE),C17-(B17+D17)),VLOOKUP(WEEKDAY($A17,2),Holidays!$E$3:$H$9,4,FALSE)))))","v":"0:00"},0,"0:00",7,"7:00",1]
["2025-02-01",null,null,null,{"$f":"IF(ISERROR(VLOOKUP($A18,Holidays,2,FALSE)),\"\",VLOOKUP($A18,Holidays,2,0))","v":""},1.5,{"$f":"IF(ISERROR(VLOOKUP($E18,HolidayType,2,FALSE)),IF(OR(ISBLANK(B18),ISBLANK(C18),ISBLANK(D18)),\"0:00\",C18-(B18+D18)),IF(OR(ISBLANK(B18),ISBLANK(C18),ISBLANK(D18)),IF(VLOOKUP($E18,HolidayType,2,FALSE),IF(VLOOKUP($A18,Holidays,4,FALSE),VLOOKUP(WEEKDAY($A18,2),Holidays!$E$3:$H$9,4,FALSE),\"0:00\"),VLOOKUP(WEEKDAY($A18,2),Holidays!$E$3:$H$9,4,FALSE)),IF(C18-(B18+D18)>VLOOKUP(WEEKDAY($A18,2),Holidays!$E$3:$H$9,4,FALSE),C18-(B18+D18),IF(VLOOKUP($E18,HolidayType,2,FALSE),IF(VLOOKUP($A18,Holidays,4,FALSE),VLOOKUP(WEEKDAY($A18,2),Holidays!$E$3:$H$9,4,FALSE),C18-(B18+D18)),VLOOKUP(WEEKDAY($A18,2),Holidays!$E$3:$H$9,4,FALSE)))))","v":"0:00"},0,"0:00",7,"7:00",0]
["2025-02-02",null,null,null,{"$f":"IF(ISERROR(VLOOKUP($A19,Holidays,2,FALSE)),\"\",VLOOKUP($A19,Holidays,2,0))","v":""},2,{"$f":"IF(ISERROR(VLOOKUP($E19,HolidayType,2,FALSE)),IF(OR(ISBLANK(B19),ISBLANK(C19),ISBLANK(D19)),\"0:00\",C19-(B19+D19)),IF(OR(ISBLANK(B19),ISBLANK(C19),ISBLANK(D19)),IF(VLOOKUP($E19,HolidayType,2,FALSE),IF(VLOOKUP($A19,Holidays,4,FALSE),VLOOKUP(WEEKDAY($A19,2),Holidays!$E$3:$H$9,4,FALSE),\"0:00\"),VLOOKUP(WEEKDAY($A19,2),Holidays!$E$3:$H$9,4,FALSE)),IF(C19-(B19+D19)>VLOOKUP(WEEKDAY($A19,2),Holidays!$E$3:$H$9,4,FALSE),C19-(B19+D19),IF(VLOOKUP($E19,HolidayType,2,FALSE),IF(VLOOKUP($A19,Holidays,4,FALSE),VLOOKUP(WEEKDAY($A19,2),Holidays!$E$3:$H$9,4,FALSE),C19-(B19+D19)),VLOOKUP(WEEKDAY($A19,2),Holidays!$E$3:$H$9,4,FALSE)))))","v":"0:00"},0,"0:00",{"$f":"J18+H19","v":7},"7:00",0]
["2025-02-03",null,null,null,null,1,{"$f":"IF(ISERROR(VLOOKUP($E20,HolidayType,2,FALSE)),IF(OR(ISBLANK(B20),ISBLANK(C20),ISBLANK(D20)),\"0:00\",C20-(B20+D20)),IF(OR(ISBLANK(B20),ISBLANK(C20),ISBLANK(D20)),IF(VLOOKUP($E20,HolidayType,2,FALSE),IF(VLOOKUP($A20,Holidays,4,FALSE),VLOOKUP(WEEKDAY($A20,2),Holidays!$E$3:$H$9,4,FALSE),\"0:00\"),VLOOKUP(WEEKDAY($A20,2),Holidays!$E$3:$H$9,4,FALSE)),IF(C20-(B20+D20)>VLOOKUP(WEEKDAY($A20,2),Holidays!$E$3:$H$9,4,FALSE),C20-(B20+D20),IF(VLOOKUP($E20,HolidayType,2,FALSE),IF(VLOOKUP($A20,Holidays,4,FALSE),VLOOKUP(WEEKDAY($A20,2),Holidays!$E$3:$H$9,4,FALSE),C20-(B20+D20)),VLOOKUP(WEEKDAY($A20,2),Holidays!$E$3:$H$9,4,FALSE)))))","v":"0:00"},0,"0:00",{"$f":"J19+H20","v":7},"7:00",1]
["2025-02-04",null,null,null,null,1,{"$f":"IF(ISERROR(VLOOKUP($E21,HolidayType,2,FALSE)),IF(OR(ISBLANK(B21),ISBLANK(C21),ISBLANK(D21)),\"0:00\",C21-(B21+D21)),IF(OR(ISBLANK(B21),ISBLANK(C21),ISBLANK(D21)),IF(VLOOKUP($E21,HolidayType,2,FALSE),IF(VLOOKUP($A21,Holidays,4,FALSE),VLOOKUP(WEEKDAY($A21,2),Holidays!$E$3:$H$9,4,FALSE),\"0:00\"),VLOOKUP(WEEKDAY($A21,2),Holidays!$E$3:$H$9,4,FALSE)),IF(C21-(B21+D21)>VLOOKUP(WEEKDAY($A21,2),Holidays!$E$3:$H$9,4,FALSE),C21-(B21+D21),IF(VLOOKUP($E21,HolidayType,2,FALSE),IF(VLOOKUP($A21,Holidays,4,FALSE),VLOOKUP(WEEKDAY($A21,2),Holidays!$E$3:$H$9,4,FALSE),C21-(B21+D21)),VLOOKUP(WEEKDAY($A21,2),Holidays!$E$3:$H$9,4,FALSE)))))","v":"0:00"},0,"0:00",7,"7:00",1]
["2025-02-05",null,null,null,null,1,{"$f":"IF(ISERROR(VLOOKUP($E22,HolidayType,2,FALSE)),IF(OR(ISBLANK(B22),ISBLANK(C22),ISBLANK(D22)),\"0:00\",C22-(B22+D22)),IF(OR(ISBLANK(B22),ISBLANK(C22),ISBLANK(D22)),IF(VLOOKUP($E22,HolidayType,2,FALSE),IF(VLOOKUP($A22,Holidays,4,FALSE),VLOOKUP(WEEKDAY($A22,2),Holidays!$E$3:$H$9,4,FALSE),\"0:00\"),VLOOKUP(WEEKDAY($A22,2),Holidays!$E$3:$H$9,4,FALSE)),IF(C22-(B22+D22)>VLOOKUP(WEEKDAY($A22,2),Holidays!$E$3:$H$9,4,FALSE),C22-(B22+D22),IF(VLOOKUP($E22,HolidayType,2,FALSE),IF(VLOOKUP($A22,Holidays,4,FALSE),VLOOKUP(WEEKDAY($A22,2),Holidays!$E$3:$H$9,4,FALSE),C22-(B22+D22)),VLOOKUP(WEEKDAY($A22,2),Holidays!$E$3:$H$9,4,FALSE)))))","v":"0:00"},0,"0:00",7,"7:00",1]
["2025-02-06",null,null,null,null,1,{"$f":"IF(ISERROR(VLOOKUP($E23,HolidayType,2,FALSE)),IF(OR(ISBLANK(B23),ISBLANK(C23),ISBLANK(D23)),\"0:00\",C23-(B23+D23)),IF(OR(ISBLANK(B23),ISBLANK(C23),ISBLANK(D23)),IF(VLOOKUP($E23,HolidayType,2,FALSE),IF(VLOOKUP($A23,Holidays,4,FALSE),VLOOKUP(WEEKDAY($A23,2),Holidays!$E$3:$H$9,4,FALSE),\"0:00\"),VLOOKUP(WEEKDAY($A23,2),Holidays!$E$3:$H$9,4,FALSE)),IF(C23-(B23+D23)>VLOOKUP(WEEKDAY($A23,2),Holidays!$E$3:$H$9,4,FALSE),C23-(B23+D23),IF(VLOOKUP($E23,HolidayType,2,FALSE),IF(VLOOKUP($A23,Holidays,4,FALSE),VLOOKUP(WEEKDAY($A23,2),Holidays!$E$3:$H$9,4,FALSE),C23-(B23+D23)),VLOOKUP(WEEKDAY($A23,2),Holidays!$E$3:$H$9,4,FALSE)))))","v":"0:00"},0,"0:00",7,"7:00",1]
["2025-02-07",null,null,null,null,1,{"$f":"IF(ISERROR(VLOOKUP($E24,HolidayType,2,FALSE)),IF(OR(ISBLANK(B24),ISBLANK(C24),ISBLANK(D24)),\"0:00\",C24-(B24+D24)),IF(OR(ISBLANK(B24),ISBLANK(C24),ISBLANK(D24)),IF(VLOOKUP($E24,HolidayType,2,FALSE),IF(VLOOKUP($A24,Holidays,4,FALSE),VLOOKUP(WEEKDAY($A24,2),Holidays!$E$3:$H$9,4,FALSE),\"0:00\"),VLOOKUP(WEEKDAY($A24,2),Holidays!$E$3:$H$9,4,FALSE)),IF(C24-(B24+D24)>VLOOKUP(WEEKDAY($A24,2),Holidays!$E$3:$H$9,4,FALSE),C24-(B24+D24),IF(VLOOKUP($E24,HolidayType,2,FALSE),IF(VLOOKUP($A24,Holidays,4,FALSE),VLOOKUP(WEEKDAY($A24,2),Holidays!$E$3:$H$9,4,FALSE),C24-(B24+D24)),VLOOKUP(WEEKDAY($A24,2),Holidays!$E$3:$H$9,4,FALSE)))))","v":"0:00"},0,"0:00",7,"7:00",1]
["2025-02-08",null,null,null,null,1.5,{"$f":"IF(ISERROR(VLOOKUP($E25,HolidayType,2,FALSE)),IF(OR(ISBLANK(B25),ISBLANK(C25),ISBLANK(D25)),\"0:00\",C25-(B25+D25)),IF(OR(ISBLANK(B25),ISBLANK(C25),ISBLANK(D25)),IF(VLOOKUP($E25,HolidayType,2,FALSE),IF(VLOOKUP($A25,Holidays,4,FALSE),VLOOKUP(WEEKDAY($A25,2),Holidays!$E$3:$H$9,4,FALSE),\"0:00\"),VLOOKUP(WEEKDAY($A25,2),Holidays!$E$3:$H$9,4,FALSE)),IF(C25-(B25+D25)>VLOOKUP(WEEKDAY($A25,2),Holidays!$E$3:$H$9,4,FALSE),C25-(B25+D25),IF(VLOOKUP($E25,HolidayType,2,FALSE),IF(VLOOKUP($A25,Holidays,4,FALSE),VLOOKUP(WEEKDAY($A25,2),Holidays!$E$3:$H$9,4,FALSE),C25-(B25+D25)),VLOOKUP(WEEKDAY($A25,2),Holidays!$E$3:$H$9,4,FALSE)))))","v":"0:00"},0,"0:00",{"$f":"J24+H25","v":7},"7:00",0]
["2025-02-09",null,null,null,null,2,{"$f":"IF(ISERROR(VLOOKUP($E26,HolidayType,2,FALSE)),IF(OR(ISBLANK(B26),ISBLANK(C26),ISBLANK(D26)),\"0:00\",C26-(B26+D26)),IF(OR(ISBLANK(B26),ISBLANK(C26),ISBLANK(D26)),IF(VLOOKUP($E26,HolidayType,2,FALSE),IF(VLOOKUP($A26,Holidays,4,FALSE),VLOOKUP(WEEKDAY($A26,2),Holidays!$E$3:$H$9,4,FALSE),\"0:00\"),VLOOKUP(WEEKDAY($A26,2),Holidays!$E$3:$H$9,4,FALSE)),IF(C26-(B26+D26)>VLOOKUP(WEEKDAY($A26,2),Holidays!$E$3:$H$9,4,FALSE),C26-(B26+D26),IF(VLOOKUP($E26,HolidayType,2,FALSE),IF(VLOOKUP($A26,Holidays,4,FALSE),VLOOKUP(WEEKDAY($A26,2),Holidays!$E$3:$H$9,4,FALSE),C26-(B26+D26)),VLOOKUP(WEEKDAY($A26,2),Holidays!$E$3:$H$9,4,FALSE)))))","v":"0:00"},0,"0:00",{"$f":"J25+H26","v":7},"7:00",0]
["2025-02-10",null,null,null,null,1,{"$f":"IF(ISERROR(VLOOKUP($E27,HolidayType,2,FALSE)),IF(OR(ISBLANK(B27),ISBLANK(C27),ISBLANK(D27)),\"0:00\",C27-(B27+D27)),IF(OR(ISBLANK(B27),ISBLANK(C27),ISBLANK(D27)),IF(VLOOKUP($E27,HolidayType,2,FALSE),IF(VLOOKUP($A27,Holidays,4,FALSE),VLOOKUP(WEEKDAY($A27,2),Holidays!$E$3:$H$9,4,FALSE),\"0:00\"),VLOOKUP(WEEKDAY($A27,2),Holidays!$E$3:$H$9,4,FALSE)),IF(C27-(B27+D27)>VLOOKUP(WEEKDAY($A27,2),Holidays!$E$3:$H$9,4,FALSE),C27-(B27+D27),IF(VLOOKUP($E27,HolidayType,2,FALSE),IF(VLOOKUP($A27,Holidays,4,FALSE),VLOOKUP(WEEKDAY($A27,2),Holidays!$E$3:$H$9,4,FALSE),C27-(B27+D27)),VLOOKUP(WEEKDAY($A27,2),Holidays!$E$3:$H$9,4,FALSE)))))","v":"0:00"},0,"0:00",{"$f":"J26+H27","v":7},"7:00",1]
["2025-02-11",null,null,null,null,1,{"$f":"IF(ISERROR(VLOOKUP($E28,HolidayType,2,FALSE)),IF(OR(ISBLANK(B28),ISBLANK(C28),ISBLANK(D28)),\"0:00\",C28-(B28+D28)),IF(OR(ISBLANK(B28),ISBLANK(C28),ISBLANK(D28)),IF(VLOOKUP($E28,HolidayType,2,FALSE),IF(VLOOKUP($A28,Holidays,4,FALSE),VLOOKUP(WEEKDAY($A28,2),Holidays!$E$3:$H$9,4,FALSE),\"0:00\"),VLOOKUP(WEEKDAY($A28,2),Holidays!$E$3:$H$9,4,FALSE)),IF(C28-(B28+D28)>VLOOKUP(WEEKDAY($A28,2),Holidays!$E$3:$H$9,4,FALSE),C28-(B28+D28),IF(VLOOKUP($E28,HolidayType,2,FALSE),IF(VLOOKUP($A28,Holidays,4,FALSE),VLOOKUP(WEEKDAY($A28,2),Holidays!$E$3:$H$9,4,FALSE),C28-(B28+D28)),VLOOKUP(WEEKDAY($A28,2),Holidays!$E$3:$H$9,4,FALSE)))))","v":"0:00"},0,"0:00",7,"7:00",1]
["2025-02-12",null,null,null,null,1,{"$f":"IF(ISERROR(VLOOKUP($E29,HolidayType,2,FALSE)),IF(OR(ISBLANK(B29),ISBLANK(C29),ISBLANK(D29)),\"0:00\",C29-(B29+D29)),IF(OR(ISBLANK(B29),ISBLANK(C29),ISBLANK(D29)),IF(VLOOKUP($E29,HolidayType,2,FALSE),IF(VLOOKUP($A29,Holidays,4,FALSE),VLOOKUP(WEEKDAY($A29,2),Holidays!$E$3:$H$9,4,FALSE),\"0:00\"),VLOOKUP(WEEKDAY($A29,2),Holidays!$E$3:$H$9,4,FALSE)),IF(C29-(B29+D29)>VLOOKUP(WEEKDAY($A29,2),Holidays!$E$3:$H$9,4,FALSE),C29-(B29+D29),IF(VLOOKUP($E29,HolidayType,2,FALSE),IF(VLOOKUP($A29,Holidays,4,FALSE),VLOOKUP(WEEKDAY($A29,2),Holidays!$E$3:$H$9,4,FALSE),C29-(B29+D29)),VLOOKUP(WEEKDAY($A29,2),Holidays!$E$3:$H$9,4,FALSE)))))","v":"0:00"},0,"0:00",7,"7:00",1]
["2025-02-13",null,null,null,{"$f":"IF(ISERROR(VLOOKUP($A30,Holidays,2,FALSE)),\"\",VLOOKUP($A30,Holidays,2,0))","v":""},1,{"$f":"IF(ISERROR(VLOOKUP($E30,HolidayType,2,FALSE)),IF(OR(ISBLANK(B30),ISBLANK(C30),ISBLANK(D30)),\"0:00\",C30-(B30+D30)),IF(OR(ISBLANK(B30),ISBLANK(C30),ISBLANK(D30)),IF(VLOOKUP($E30,HolidayType,2,FALSE),IF(VLOOKUP($A30,Holidays,4,FALSE),VLOOKUP(WEEKDAY($A30,2),Holidays!$E$3:$H$9,4,FALSE),\"0:00\"),VLOOKUP(WEEKDAY($A30,2),Holidays!$E$3:$H$9,4,FALSE)),IF(C30-(B30+D30)>VLOOKUP(WEEKDAY($A30,2),Holidays!$E$3:$H$9,4,FALSE),C30-(B30+D30),IF(VLOOKUP($E30,HolidayType,2,FALSE),IF(VLOOKUP($A30,Holidays,4,FALSE),VLOOKUP(WEEKDAY($A30,2),Holidays!$E$3:$H$9,4,FALSE),C30-(B30+D30)),VLOOKUP(WEEKDAY($A30,2),Holidays!$E$3:$H$9,4,FALSE)))))","v":"0:00"},0,"0:00",7,"7:00",1]
["2025-02-14",null,null,null,"",1,{"$f":"IF(ISERROR(VLOOKUP($E31,HolidayType,2,FALSE)),IF(OR(ISBLANK(B31),ISBLANK(C31),ISBLANK(D31)),\"0:00\",C31-(B31+D31)),IF(OR(ISBLANK(B31),ISBLANK(C31),ISBLANK(D31)),IF(VLOOKUP($E31,HolidayType,2,FALSE),IF(VLOOKUP($A31,Holidays,4,FALSE),VLOOKUP(WEEKDAY($A31,2),Holidays!$E$3:$H$9,4,FALSE),\"0:00\"),VLOOKUP(WEEKDAY($A31,2),Holidays!$E$3:$H$9,4,FALSE)),IF(C31-(B31+D31)>VLOOKUP(WEEKDAY($A31,2),Holidays!$E$3:$H$9,4,FALSE),C31-(B31+D31),IF(VLOOKUP($E31,HolidayType,2,FALSE),IF(VLOOKUP($A31,Holidays,4,FALSE),VLOOKUP(WEEKDAY($A31,2),Holidays!$E$3:$H$9,4,FALSE),C31-(B31+D31)),VLOOKUP(WEEKDAY($A31,2),Holidays!$E$3:$H$9,4,FALSE)))))","v":"0:00"},0,"0:00",7,"7:00",1]
["2025-02-15",null,null,null,"",1.5,{"$f":"IF(ISERROR(VLOOKUP($E32,HolidayType,2,FALSE)),IF(OR(ISBLANK(B32),ISBLANK(C32),ISBLANK(D32)),\"0:00\",C32-(B32+D32)),IF(OR(ISBLANK(B32),ISBLANK(C32),ISBLANK(D32)),IF(VLOOKUP($E32,HolidayType,2,FALSE),IF(VLOOKUP($A32,Holidays,4,FALSE),VLOOKUP(WEEKDAY($A32,2),Holidays!$E$3:$H$9,4,FALSE),\"0:00\"),VLOOKUP(WEEKDAY($A32,2),Holidays!$E$3:$H$9,4,FALSE)),IF(C32-(B32+D32)>VLOOKUP(WEEKDAY($A32,2),Holidays!$E$3:$H$9,4,FALSE),C32-(B32+D32),IF(VLOOKUP($E32,HolidayType,2,FALSE),IF(VLOOKUP($A32,Holidays,4,FALSE),VLOOKUP(WEEKDAY($A32,2),Holidays!$E$3:$H$9,4,FALSE),C32-(B32+D32)),VLOOKUP(WEEKDAY($A32,2),Holidays!$E$3:$H$9,4,FALSE)))))","v":"0:00"},0,"0:00",{"$f":"J31+H32","v":7},"7:00",0]
["2025-02-16",null,null,null,"",2,{"$f":"IF(ISERROR(VLOOKUP($E33,HolidayType,2,FALSE)),IF(OR(ISBLANK(B33),ISBLANK(C33),ISBLANK(D33)),\"0:00\",C33-(B33+D33)),IF(OR(ISBLANK(B33),ISBLANK(C33),ISBLANK(D33)),IF(VLOOKUP($E33,HolidayType,2,FALSE),IF(VLOOKUP($A33,Holidays,4,FALSE),VLOOKUP(WEEKDAY($A33,2),Holidays!$E$3:$H$9,4,FALSE),\"0:00\"),VLOOKUP(WEEKDAY($A33,2),Holidays!$E$3:$H$9,4,FALSE)),IF(C33-(B33+D33)>VLOOKUP(WEEKDAY($A33,2),Holidays!$E$3:$H$9,4,FALSE),C33-(B33+D33),IF(VLOOKUP($E33,HolidayType,2,FALSE),IF(VLOOKUP($A33,Holidays,4,FALSE),VLOOKUP(WEEKDAY($A33,2),Holidays!$E$3:$H$9,4,FALSE),C33-(B33+D33)),VLOOKUP(WEEKDAY($A33,2),Holidays!$E$3:$H$9,4,FALSE)))))","v":"0:00"},0,"0:00",{"$f":"J32+H33","v":7},"7:00",0]
["2025-02-17",null,null,null,"",1,{"$f":"IF(ISERROR(VLOOKUP($E34,HolidayType,2,FALSE)),IF(OR(ISBLANK(B34),ISBLANK(C34),ISBLANK(D34)),\"0:00\",C34-(B34+D34)),IF(OR(ISBLANK(B34),ISBLANK(C34),ISBLANK(D34)),IF(VLOOKUP($E34,HolidayType,2,FALSE),IF(VLOOKUP($A34,Holidays,4,FALSE),VLOOKUP(WEEKDAY($A34,2),Holidays!$E$3:$H$9,4,FALSE),\"0:00\"),VLOOKUP(WEEKDAY($A34,2),Holidays!$E$3:$H$9,4,FALSE)),IF(C34-(B34+D34)>VLOOKUP(WEEKDAY($A34,2),Holidays!$E$3:$H$9,4,FALSE),C34-(B34+D34),IF(VLOOKUP($E34,HolidayType,2,FALSE),IF(VLOOKUP($A34,Holidays,4,FALSE),VLOOKUP(WEEKDAY($A34,2),Holidays!$E$3:$H$9,4,FALSE),C34-(B34+D34)),VLOOKUP(WEEKDAY($A34,2),Holidays!$E$3:$H$9,4,FALSE)))))","v":"0:00"},0,"0:00",{"$f":"J31+H34","v":7},"7:00",1]
["2025-02-18",null,null,null,"",1,{"$f":"IF(ISERROR(VLOOKUP($E35,HolidayType,2,FALSE)),IF(OR(ISBLANK(B35),ISBLANK(C35),ISBLANK(D35)),\"0:00\",C35-(B35+D35)),IF(OR(ISBLANK(B35),ISBLANK(C35),ISBLANK(D35)),IF(VLOOKUP($E35,HolidayType,2,FALSE),IF(VLOOKUP($A35,Holidays,4,FALSE),VLOOKUP(WEEKDAY($A35,2),Holidays!$E$3:$H$9,4,FALSE),\"0:00\"),VLOOKUP(WEEKDAY($A35,2),Holidays!$E$3:$H$9,4,FALSE)),IF(C35-(B35+D35)>VLOOKUP(WEEKDAY($A35,2),Holidays!$E$3:$H$9,4,FALSE),C35-(B35+D35),IF(VLOOKUP($E35,HolidayType,2,FALSE),IF(VLOOKUP($A35,Holidays,4,FALSE),VLOOKUP(WEEKDAY($A35,2),Holidays!$E$3:$H$9,4,FALSE),C35-(B35+D35)),VLOOKUP(WEEKDAY($A35,2),Holidays!$E$3:$H$9,4,FALSE)))))","v":"0:00"},0,"0:00",7,"7:00",1]
["2025-02-19",null,null,null,"",1,{"$f":"IF(ISERROR(VLOOKUP($E36,HolidayType,2,FALSE)),IF(OR(ISBLANK(B36),ISBLANK(C36),ISBLANK(D36)),\"0:00\",C36-(B36+D36)),IF(OR(ISBLANK(B36),ISBLANK(C36),ISBLANK(D36)),IF(VLOOKUP($E36,HolidayType,2,FALSE),IF(VLOOKUP($A36,Holidays,4,FALSE),VLOOKUP(WEEKDAY($A36,2),Holidays!$E$3:$H$9,4,FALSE),\"0:00\"),VLOOKUP(WEEKDAY($A36,2),Holidays!$E$3:$H$9,4,FALSE)),IF(C36-(B36+D36)>VLOOKUP(WEEKDAY($A36,2),Holidays!$E$3:$H$9,4,FALSE),C36-(B36+D36),IF(VLOOKUP($E36,HolidayType,2,FALSE),IF(VLOOKUP($A36,Holidays,4,FALSE),VLOOKUP(WEEKDAY($A36,2),Holidays!$E$3:$H$9,4,FALSE),C36-(B36+D36)),VLOOKUP(WEEKDAY($A36,2),Holidays!$E$3:$H$9,4,FALSE)))))","v":"0:00"},0,"0:00",7,"7:00",1]
["2025-02-20",null,null,null,"",1,{"$f":"IF(ISERROR(VLOOKUP($E37,HolidayType,2,FALSE)),IF(OR(ISBLANK(B37),ISBLANK(C37),ISBLANK(D37)),\"0:00\",C37-(B37+D37)),IF(OR(ISBLANK(B37),ISBLANK(C37),ISBLANK(D37)),IF(VLOOKUP($E37,HolidayType,2,FALSE),IF(VLOOKUP($A37,Holidays,4,FALSE),VLOOKUP(WEEKDAY($A37,2),Holidays!$E$3:$H$9,4,FALSE),\"0:00\"),VLOOKUP(WEEKDAY($A37,2),Holidays!$E$3:$H$9,4,FALSE)),IF(C37-(B37+D37)>VLOOKUP(WEEKDAY($A37,2),Holidays!$E$3:$H$9,4,FALSE),C37-(B37+D37),IF(VLOOKUP($E37,HolidayType,2,FALSE),IF(VLOOKUP($A37,Holidays,4,FALSE),VLOOKUP(WEEKDAY($A37,2),Holidays!$E$3:$H$9,4,FALSE),C37-(B37+D37)),VLOOKUP(WEEKDAY($A37,2),Holidays!$E$3:$H$9,4,FALSE)))))","v":"0:00"},0,"0:00",7,"7:00",1]
["2025-02-21",null,null,null,"",1,{"$f":"IF(ISERROR(VLOOKUP($E38,HolidayType,2,FALSE)),IF(OR(ISBLANK(B38),ISBLANK(C38),ISBLANK(D38)),\"0:00\",C38-(B38+D38)),IF(OR(ISBLANK(B38),ISBLANK(C38),ISBLANK(D38)),IF(VLOOKUP($E38,HolidayType,2,FALSE),IF(VLOOKUP($A38,Holidays,4,FALSE),VLOOKUP(WEEKDAY($A38,2),Holidays!$E$3:$H$9,4,FALSE),\"0:00\"),VLOOKUP(WEEKDAY($A38,2),Holidays!$E$3:$H$9,4,FALSE)),IF(C38-(B38+D38)>VLOOKUP(WEEKDAY($A38,2),Holidays!$E$3:$H$9,4,FALSE),C38-(B38+D38),IF(VLOOKUP($E38,HolidayType,2,FALSE),IF(VLOOKUP($A38,Holidays,4,FALSE),VLOOKUP(WEEKDAY($A38,2),Holidays!$E$3:$H$9,4,FALSE),C38-(B38+D38)),VLOOKUP(WEEKDAY($A38,2),Holidays!$E$3:$H$9,4,FALSE)))))","v":"0:00"},0,"0:00",7,"7:00",1]
["2025-02-22",null,null,null,"",1.5,{"$f":"IF(ISERROR(VLOOKUP($E39,HolidayType,2,FALSE)),IF(OR(ISBLANK(B39),ISBLANK(C39),ISBLANK(D39)),\"0:00\",C39-(B39+D39)),IF(OR(ISBLANK(B39),ISBLANK(C39),ISBLANK(D39)),IF(VLOOKUP($E39,HolidayType,2,FALSE),IF(VLOOKUP($A39,Holidays,4,FALSE),VLOOKUP(WEEKDAY($A39,2),Holidays!$E$3:$H$9,4,FALSE),\"0:00\"),VLOOKUP(WEEKDAY($A39,2),Holidays!$E$3:$H$9,4,FALSE)),IF(C39-(B39+D39)>VLOOKUP(WEEKDAY($A39,2),Holidays!$E$3:$H$9,4,FALSE),C39-(B39+D39),IF(VLOOKUP($E39,HolidayType,2,FALSE),IF(VLOOKUP($A39,Holidays,4,FALSE),VLOOKUP(WEEKDAY($A39,2),Holidays!$E$3:$H$9,4,FALSE),C39-(B39+D39)),VLOOKUP(WEEKDAY($A39,2),Holidays!$E$3:$H$9,4,FALSE)))))","v":"0:00"},0,"0:00",7,"7:00",0]
["2025-02-23",null,null,null,"",2,{"$f":"IF(ISERROR(VLOOKUP($E40,HolidayType,2,FALSE)),IF(OR(ISBLANK(B40),ISBLANK(C40),ISBLANK(D40)),\"0:00\",C40-(B40+D40)),IF(OR(ISBLANK(B40),ISBLANK(C40),ISBLANK(D40)),IF(VLOOKUP($E40,HolidayType,2,FALSE),IF(VLOOKUP($A40,Holidays,4,FALSE),VLOOKUP(WEEKDAY($A40,2),Holidays!$E$3:$H$9,4,FALSE),\"0:00\"),VLOOKUP(WEEKDAY($A40,2),Holidays!$E$3:$H$9,4,FALSE)),IF(C40-(B40+D40)>VLOOKUP(WEEKDAY($A40,2),Holidays!$E$3:$H$9,4,FALSE),C40-(B40+D40),IF(VLOOKUP($E40,HolidayType,2,FALSE),IF(VLOOKUP($A40,Holidays,4,FALSE),VLOOKUP(WEEKDAY($A40,2),Holidays!$E$3:$H$9,4,FALSE),C40-(B40+D40)),VLOOKUP(WEEKDAY($A40,2),Holidays!$E$3:$H$9,4,FALSE)))))","v":"0:00"},0,"0:00",{"$f":"J39+H40","v":7},"7:00",0]
[null,null,null,null,null,null,null,null,null,null,null,{"$f":"SUM(L13:L40)","v":20}]
[null,null,null,null,"Total ordinary hours for accounting period",null,{"$f":"CONCATENATE(TRUNC(INT(ABS(J42))),\":\",TEXT(ABS(ABS(J42)-TRUNC(INT(ABS(J42))))*60,\"00\"))","v":"140:00"},null,null,{"$f":"J10*4","v":140}]
[null,null,null,null,"Total actual hours worked in accounting period",null,{"$f":"CONCATENATE(TRUNC(INT(ABS(J43))),\":\",TEXT(ABS(ABS(J43)-TRUNC(INT(ABS(J43))))*60,\"00\"))","v":"7:00"},null,null,{"$f":"J40","v":7}]
[null,null,null,null,"Difference",null,{"$f":"CONCATENATE(TRUNC(INT(ABS(J44))),\":\",TEXT(ABS(ABS(J44)-TRUNC(INT(ABS(J44))))*60,\"00\"))","v":"133:00"},null,{"$f":"IF(J44<0,\"Debit\",IF(J44=0,\"\",\"Credit\"))","v":"Debit"},{"$f":"ROUND(J43-J42,2)","v":-133}]
[null,null,null,null,"If applicable, carry over from previous period",null,"0:00",null,"Credit",{"$f":"IF(I45=\"Debit\",0-(LEFT(G45,FIND(\":\",G45)-1)+RIGHT(G45,2)/60),LEFT(G45,FIND(\":\",G45)-1)+RIGHT(G45,2)/60)","v":0}]
[null,null,null,null,"Carry over to following period",null,{"$f":"CONCATENATE(TRUNC(INT(ABS(J46))),\":\",TEXT(ABS(ABS(J46)-TRUNC(INT(ABS(J46))))*60,\"00\"))","v":"133:00"},null,{"$f":"IF(J46<0,\"Debit\",IF(J46=0,\"\",\"Credit\"))","v":"Debit"},{"$f":"ROUND(J44+J45,2)","v":-133}]
[]
[null,null,null,null,"Future flex leave bookings",null,"0:00",null,null,{"$f":"IF(I48=\"Debit\",0-(LEFT(G48,FIND(\":\",G48)-1)+RIGHT(G48,2)/60),LEFT(G48,FIND(\":\",G48)-1)+RIGHT(G48,2)/60)","v":0}]
[null,null,null,null,"Remaining",null,{"$f":"CONCATENATE(TRUNC(INT(ABS(J49))),\":\",TEXT(ABS(ABS(J49)-TRUNC(INT(ABS(J49))))*60,\"00\"))","v":"133:00"},null,{"$f":"IF(J49<0,\"Debit\",IF(J49=0,\"\",\"Credit\"))","v":"Debit"},{"$f":"J46-J48","v":-133}]
[]
[]
[]
["Signature",null,null,null,"Certified Correct"]
[null,"(Employee)",null,null,null,"(Supervisor)"]
[]
["Completed timesheets shall be authorised as correct by the supervisor and filed as an auditable document for 7yrs"]
[]
[]
["INSERT Comments/Leave below:"]
["Albury"]
["Annual Leave"]
["Carers Leave"]
["Concessional Half Day"]
["Dubbo"]
["Exam"]
["Flexi Day"]
["Goulburn"]
["Leave Without Pay"]
["Long Service Leave"]
["Maternity Leave"]
["Public Holiday"]
["Purchased Leave"]
["Sick Leave"]
["Special Leave"]
["Study Leave"]
["Training"]
["Wagga Wagga"]
["Working @ home"]

{"sheet":"Flexi Timesheet (3)","index":4,"n_rows":78,"n_cols":12,"rows_kept":78,"cut":false,"hidden":false,"merged":[[73,0,73,1],[77,0,77,1],[79,0,79,1],[66,0,66,1],[67,0,67,1],[68,0,68,1],[69,0,69,1],[70,0,70,1],[72,0,72,1],[65,0,65,1],[7,2,7,4],[8,2,8,4],[52,1,52,2],[52,5,52,10],[53,1,53,2],[53,5,53,10],[59,0,59,1],[60,0,60,1],[62,0,62,1],[63,0,63,1],[64,0,64,1]]}
[null,null,null,null,null,null,null,null,null,null,"Flexible Working Hours Scheme"]
[null,null,null,null,null,null,null,null,null,null,"2025 Flexi-Timesheet"]
[]
[]
[]
[]
[]
[null,"Name:"]
[null,"Team:",null,null,null,null,null,null,"Hours per Day",{"$f":"HOUR(K9)+MINUTE(K9)/60","v":7},"07:00:00","Don't override cell, click into cell and change time to equal your hours. i.e. 7 hours = 7:00am"]
[null,"Accounting Period:","2025-02-24",{"$f":"CONCATENATE(\" to \",TEXT(C10+27,\"dd-mmm-yyyy\"))","v":" to 23-Mar-2025"},null,null,null,null,"Days per Week",{"$f":"J9*K10","v":35},5]
[null,null,null,null,{"$f":"IF(ISERROR(VLOOKUP($A11,Holidays,2,FALSE)),\"\",VLOOKUP($A11,Holidays,2,0))","v":""},null,null,null,"Work Days",null,"Mo, Tu, We, Th, Fr"]
["Date","Start Time","Finish Time","Unpaid Breaks","Comments/Leave","Rate","Elapsed Time","Decimal Hours","Total Hours","Cum. Dec.","Cumulative Total"]
[{"$f":"C10","v":"2025-02-24"},null,null,null,null,1,{"$f":"IF(ISERROR(VLOOKUP($E13,HolidayType,2,FALSE)),IF(OR(ISBLANK(B13),ISBLANK(C13),ISBLANK(D13)),\"0:00\",C13-(B13+D13)),IF(OR(ISBLANK(B13),ISBLANK(C13),ISBLANK(D13)),IF(VLOOKUP($E13,HolidayType,2,FALSE),IF(VLOOKUP($A13,Holidays,4,FALSE),VLOOKUP(WEEKDAY($A13,2),Holidays!$E$3:$H$9,4,FALSE),\"0:00\"),VLOOKUP(WEEKDAY($A13,2),Holidays!$E$3:$H$9,4,FALSE)),IF(C13-(B13+D13)>VLOOKUP(WEEKDAY($A13,2),Holidays!$E$3:$H$9,4,FALSE),C13-(B13+D13),IF(VLOOKUP($E13,HolidayType,2,FALSE),IF(VLOOKUP($A13,Holidays,4,FALSE),VLOOKUP(WEEKDAY($A13,2),Holidays!$E$3:$H$9,4,FALSE),C13-(B13+D13)),VLOOKUP(WEEKDAY($A13,2),Holidays!$E$3:$H$9,4,FALSE)))))","v":"0:00"},{"$f":"((HOUR(G13)+MINUTE(G13)/60))*F13","v":0},{"$f":"CONCATENATE(TRUNC(INT(H13)),\":\",TEXT((H13-TRUNC(INT(H13)))*60,\"00\"))","v":"0:00"},{"$f":"H13","v":0},{"$f":"CONCATENATE(TRUNC(INT(J13)),\":\",TEXT((J13-TRUNC(INT(J13)))*60,\"00\"))","v":"0:00"},{"$f":"IF(WEEKDAY(A13,2)<6,IF(F13<>0,1,0),0)","v":1}]
[{"$f":"A13+1","v":"2025-02-25"},null,null,null,null,1,{"$f":"IF(ISERROR(VLOOKUP($E14,HolidayType,2,FALSE)),IF(OR(ISBLANK(B14),ISBLANK(C14),ISBLANK(D14)),\"0:00\",C14-(B14+D14)),IF(OR(ISBLANK(B14),ISBLANK(C14),ISBLANK(D14)),IF(VLOOKUP($E14,HolidayType,2,FALSE),IF(VLOOKUP($A14,Holidays,4,FALSE),VLOOKUP(WEEKDAY($A14,2),Holidays!$E$3:$H$9,4,FALSE),\"0:00\"),VLOOKUP(WEEKDAY($A14,2),Holidays!$E$3:$H$9,4,FALSE)),IF(C14-(B14+D14)>VLOOKUP(WEEKDAY($A14,2),Holidays!$E$3:$H$9,4,FALSE),C14-(B14+D14),IF(VLOOKUP($E14,HolidayType,2,FALSE),IF(VLOOKUP($A14,Holidays,4,FALSE),VLOOKUP(WEEKDAY($A14,2),Holidays!$E$3:$H$9,4,FALSE),C14-(B14+D14)),VLOOKUP(WEEKDAY($A14,2),Holidays!$E$3:$H$9,4,FALSE)))))","v":"0:00"},0,{"$f":"CONCATENATE(TRUNC(INT(H14)),\":\",TEXT((H14-TRUNC(INT(H14)))*60,\"00\"))","v":"0:00"},{"$f":"J13+H14","v":0},{"$f":"CONCATENATE(TRUNC(INT(J14)),\":\",TEXT((J14-TRUNC(INT(J14)))*60,\"00\"))","v":"0:00"},1]
["2025-02-26",null,null,null,null,1,{"$f":"IF(ISERROR(VLOOKUP($E15,HolidayType,2,FALSE)),IF(OR(ISBLANK(B15),ISBLANK(C15),ISBLANK(D15)),\"0:00\",C15-(B15+D15)),IF(OR(ISBLANK(B15),ISBLANK(C15),ISBLANK(D15)),IF(VLOOKUP($E15,HolidayType,2,FALSE),IF(VLOOKUP($A15,Holidays,4,FALSE),VLOOKUP(WEEKDAY($A15,2),Holidays!$E$3:$H$9,4,FALSE),\"0:00\"),VLOOKUP(WEEKDAY($A15,2),Holidays!$E$3:$H$9,4,FALSE)),IF(C15-(B15+D15)>VLOOKUP(WEEKDAY($A15,2),Holidays!$E$3:$H$9,4,FALSE),C15-(B15+D15),IF(VLOOKUP($E15,HolidayType,2,FALSE),IF(VLOOKUP($A15,Holidays,4,FALSE),VLOOKUP(WEEKDAY($A15,2),Holidays!$E$3:$H$9,4,FALSE),C15-(B15+D15)),VLOOKUP(WEEKDAY($A15,2),Holidays!$E$3:$H$9,4,FALSE)))))","v":"0:00"},0,"0:00",{"$f":"J14+H15","v":0},"0:00",1]
["2025-02-27",null,null,null,null,1,{"$f":"IF(ISERROR(VLOOKUP($E16,HolidayType,2,FALSE)),IF(OR(ISBLANK(B16),ISBLANK(C16),ISBLANK(D16)),\"0:00\",C16-(B16+D16)),IF(OR(ISBLANK(B16),ISBLANK(C16),ISBLANK(D16)),IF(VLOOKUP($E16,HolidayType,2,FALSE),IF(VLOOKUP($A16,Holidays,4,FALSE),VLOOKUP(WEEKDAY($A16,2),Holidays!$E$3:$H$9,4,FALSE),\"0:00\"),VLOOKUP(WEEKDAY($A16,2),Holidays!$E$3:$H$9,4,FALSE)),IF(C16-(B16+D16)>VLOOKUP(WEEKDAY($A16,2),Holidays!$E$3:$H$9,4,FALSE),C16-(B16+D16),IF(VLOOKUP($E16,HolidayType,2,FALSE),IF(VLOOKUP($A16,Holidays,4,FALSE),VLOOKUP(WEEKDAY($A16,2),Holidays!$E$3:$H$9,4,FALSE),C16-(B16+D16)),VLOOKUP(WEEKDAY($A16,2),Holidays!$E$3:$H$9,4,FALSE)))))","v":"0:00"},0,"0:00",0,"0:00",1]
["2025-02-28",null,null,null,null,1,{"$f":"IF(ISERROR(VLOOKUP($E17,HolidayType,2,FALSE)),IF(OR(ISBLANK(B17),ISBLANK(C17),ISBLANK(D17)),\"0:00\",C17-(B17+D17)),IF(OR(ISBLANK(B17),ISBLANK(C17),ISBLANK(D17)),IF(VLOOKUP($E17,HolidayType,2,FALSE),IF(VLOOKUP($A17,Holidays,4,FALSE),VLOOKUP(WEEKDAY($A17,2),Holidays!$E$3:$H$9,4,FALSE),\"0:00\"),VLOOKUP(WEEKDAY($A17,2),Holidays!$E$3:$H$9,4,FALSE)),IF(C17-(B17+D17)>VLOOKUP(WEEKDAY($A17,2),Holidays!$E$3:$H$9,4,FALSE),C17-(B17+D17),IF(VLOOKUP($E17,HolidayType,2,FALSE),IF(VLOOKUP($A17,Holidays,4,FALSE),VLOOKUP(WEEKDAY($A17,2),Holidays!$E$3:$H$9,4,FALSE),C17-(B17+D17)),VLOOKUP(WEEKDAY($A17,2),Holidays!$E$3:$H$9,4,FALSE)))))","v":"0:00"},0,"0:00",0,"0:00",1]
["2025-03-01",null,null,null,{"$f":"IF(ISERROR(VLOOKUP($A18,Holidays,2,FALSE)),\"\",VLOOKUP($A18,Holidays,2,0))","v":""},1.5,{"$f":"IF(ISERROR(VLOOKUP($E18,HolidayType,2,FALSE)),IF(OR(ISBLANK(B18),ISBLANK(C18),ISBLANK(D18)),\"0:00\",C18-(B18+D18)),IF(OR(ISBLANK(B18),ISBLANK(C18),ISBLANK(D18)),IF(VLOOKUP($E18,HolidayType,2,FALSE),IF(VLOOKUP($A18,Holidays,4,FALSE),VLOOKUP(WEEKDAY($A18,2),Holidays!$E$3:$H$9,4,FALSE),\"0:00\"),VLOOKUP(WEEKDAY($A18,2),Holidays!$E$3:$H$9,4,FALSE)),IF(C18-(B18+D18)>VLOOKUP(WEEKDAY($A18,2),Holidays!$E$3:$H$9,4,FALSE),C18-(B18+D18),IF(VLOOKUP($E18,HolidayType,2,FALSE),IF(VLOOKUP($A18,Holidays,4,FALSE),VLOOKUP(WEEKDAY($A18,2),Holidays!$E$3:$H$9,4,FALSE),C18-(B18+D18)),VLOOKUP(WEEKDAY($A18,2),Holidays!$E$3:$H$9,4,FALSE)))))","v":"0:00"},0,"0:00",0,"0:00",0]
["2025-03-02",null,null,null,{"$f":"IF(ISERROR(VLOOKUP($A19,Holidays,2,FALSE)),\"\",VLOOKUP($A19,Holidays,2,0))","v":""},2,{"$f":"IF(ISERROR(VLOOKUP($E19,HolidayType,2,FALSE)),IF(OR(ISBLANK(B19),ISBLANK(C19),ISBLANK(D19)),\"0:00\",C19-(B19+D19)),IF(OR(ISBLANK(B19),ISBLANK(C19),ISBLANK(D19)),IF(VLOOKUP($E19,HolidayType,2,FALSE),IF(VLOOKUP($A19,Holidays,4,FALSE),VLOOKUP(WEEKDAY($A19,2),Holidays!$E$3:$H$9,4,FALSE),\"0:00\"),VLOOKUP(WEEKDAY($A19,2),Holidays!$E$3:$H$9,4,FALSE)),IF(C19-(B19+D19)>VLOOKUP(WEEKDAY($A19,2),Holidays!$E$3:$H$9,4,FALSE),C19-(B19+D19),IF(VLOOKUP($E19,HolidayType,2,FALSE),IF(VLOOKUP($A19,Holidays,4,FALSE),VLOOKUP(WEEKDAY($A19,2),Holidays!$E$3:$H$9,4,FALSE),C19-(B19+D19)),VLOOKUP(WEEKDAY($A19,2),Holidays!$E$3:$H$9,4,FALSE)))))","v":"0:00"},0,"0:00",{"$f":"J18+H19","v":0},"0:00",0]
["2025-03-03",null,null,null,null,1,{"$f":"IF(ISERROR(VLOOKUP($E20,HolidayType,2,FALSE)),IF(OR(ISBLANK(B20),ISBLANK(C20),ISBLANK(D20)),\"0:00\",C20-(B20+D20)),IF(OR(ISBLANK(B20),ISBLANK(C20),ISBLANK(D20)),IF(VLOOKUP($E20,HolidayType,2,FALSE),IF(VLOOKUP($A20,Holidays,4,FALSE),VLOOKUP(WEEKDAY($A20,2),Holidays!$E$3:$H$9,4,FALSE),\"0:00\"),VLOOKUP(WEEKDAY($A20,2),Holidays!$E$3:$H$9,4,FALSE)),IF(C20-(B20+D20)>VLOOKUP(WEEKDAY($A20,2),Holidays!$E$3:$H$9,4,FALSE),C20-(B20+D20),IF(VLOOKUP($E20,HolidayType,2,FALSE),IF(VLOOKUP($A20,Holidays,4,FALSE),VLOOKUP(WEEKDAY($A20,2),Holidays!$E$3:$H$9,4,FALSE),C20-(B20+D20)),VLOOKUP(WEEKDAY($A20,2),Holidays!$E$3:$H$9,4,FALSE)))))","v":"0:00"},0,"0:00",{"$f":"J19+H20","v":0},"0:00",1]
["2025-03-04",null,null,null,null,1,{"$f":"IF(ISERROR(VLOOKUP($E21,HolidayType,2,FALSE)),IF(OR(ISBLANK(B21),ISBLANK(C21),ISBLANK(D21)),\"0:00\",C21-(B21+D21)),IF(OR(ISBLANK(B21),ISBLANK(C21),ISBLANK(D21)),IF(VLOOKUP($E21,HolidayType,2,FALSE),IF(VLOOKUP($A21,Holidays,4,FALSE),VLOOKUP(WEEKDAY($A21,2),Holidays!$E$3:$H$9,4,FALSE),\"0:00\"),VLOOKUP(WEEKDAY($A21,2),Holidays!$E$3:$H$9,4,FALSE)),IF(C21-(B21+D21)>VLOOKUP(WEEKDAY($A21,2),Holidays!$E$3:$H$9,4,FALSE),C21-(B21+D21),IF(VLOOKUP($E21,HolidayType,2,FALSE),IF(VLOOKUP($A21,Holidays,4,FALSE),VLOOKUP(WEEKDAY($A21,2),Holidays!$E$3:$H$9,4,FALSE),C21-(B21+D21)),VLOOKUP(WEEKDAY($A21,2),Holidays!$E$3:$H$9,4,FALSE)))))","v":"0:00"},0,"0:00",0,"0:00",1]
["2025-03-05",null,null,null,null,1,{"$f":"IF(ISERROR(VLOOKUP($E22,HolidayType,2,FALSE)),IF(OR(ISBLANK(B22),ISBLANK(C22),ISBLANK(D22)),\"0:00\",C22-(B22+D22)),IF(OR(ISBLANK(B22),ISBLANK(C22),ISBLANK(D22)),IF(VLOOKUP($E22,HolidayType,2,FALSE),IF(VLOOKUP($A22,Holidays,4,FALSE),VLOOKUP(WEEKDAY($A22,2),Holidays!$E$3:$H$9,4,FALSE),\"0:00\"),VLOOKUP(WEEKDAY($A22,2),Holidays!$E$3:$H$9,4,FALSE)),IF(C22-(B22+D22)>VLOOKUP(WEEKDAY($A22,2),Holidays!$E$3:$H$9,4,FALSE),C22-(B22+D22),IF(VLOOKUP($E22,HolidayType,2,FALSE),IF(VLOOKUP($A22,Holidays,4,FALSE),VLOOKUP(WEEKDAY($A22,2),Holidays!$E$3:$H$9,4,FALSE),C22-(B22+D22)),VLOOKUP(WEEKDAY($A22,2),Holidays!$E$3:$H$9,4,FALSE)))))","v":"0:00"},0,"0:00",0,"0:00",1]
["2025-03-06",null,null,null,null,1,{"$f":"IF(ISERROR(VLOOKUP($E23,HolidayType,2,FALSE)),IF(OR(ISBLANK(B23),ISBLANK(C23),ISBLANK(D23)),\"0:00\",C23-(B23+D23)),IF(OR(ISBLANK(B23),ISBLANK(C23),ISBLANK(D23)),IF(VLOOKUP($E23,HolidayType,2,FALSE),IF(VLOOKUP($A23,Holidays,4,FALSE),VLOOKUP(WEEKDAY($A23,2),Holidays!$E$3:$H$9,4,FALSE),\"0:00\"),VLOOKUP(WEEKDAY($A23,2),Holidays!$E$3:$H$9,4,FALSE)),IF(C23-(B23+D23)>VLOOKUP(WEEKDAY($A23,2),Holidays!$E$3:$H$9,4,FALSE),C23-(B23+D23),IF(VLOOKUP($E23,HolidayType,2,FALSE),IF(VLOOKUP($A23,Holidays,4,FALSE),VLOOKUP(WEEKDAY($A23,2),Holidays!$E$3:$H$9,4,FALSE),C23-(B23+D23)),VLOOKUP(WEEKDAY($A23,2),Holidays!$E$3:$H$9,4,FALSE)))))","v":"0:00"},0,"0:00",0,"0:00",1]
["2025-03-07",null,null,null,null,1,{"$f":"IF(ISERROR(VLOOKUP($E24,HolidayType,2,FALSE)),IF(OR(ISBLANK(B24),ISBLANK(C24),ISBLANK(D24)),\"0:00\",C24-(B24+D24)),IF(OR(ISBLANK(B24),ISBLANK(C24),ISBLANK(D24)),IF(VLOOKUP($E24,HolidayType,2,FALSE),IF(VLOOKUP($A24,Holidays,4,FALSE),VLOOKUP(WEEKDAY($A24,2),Holidays!$E$3:$H$9,4,FALSE),\"0:00\"),VLOOKUP(WEEKDAY($A24,2),Holidays!$E$3:$H$9,4,FALSE)),IF(C24-(B24+D24)>VLOOKUP(WEEKDAY($A24,2),Holidays!$E$3:$H$9,4,FALSE),C24-(B24+D24),IF(VLOOKUP($E24,HolidayType,2,FALSE),IF(VLOOKUP($A24,Holidays,4,FALSE),VLOOKUP(WEEKDAY($A24,2),Holidays!$E$3:$H$9,4,FALSE),C24-(B24+D24)),VLOOKUP(WEEKDAY($A24,2),Holidays!$E$3:$H$9,4,FALSE)))))","v":"0:00"},0,"0:00",0,"0:00",1]
["2025-03-08",null,null,null,null,1.5,{"$f":"IF(ISERROR(VLOOKUP($E25,HolidayType,2,FALSE)),IF(OR(ISBLANK(B25),ISBLANK(C25),ISBLANK(D25)),\"0:00\",C25-(B25+D25)),IF(OR(ISBLANK(B25),ISBLANK(C25),ISBLANK(D25)),IF(VLOOKUP($E25,HolidayType,2,FALSE),IF(VLOOKUP($A25,Holidays,4,FALSE),VLOOKUP(WEEKDAY($A25,2),Holidays!$E$3:$H$9,4,FALSE),\"0:00\"),VLOOKUP(WEEKDAY($A25,2),Holidays!$E$3:$H$9,4,FALSE)),IF(C25-(B25+D25)>VLOOKUP(WEEKDAY($A25,2),Holidays!$E$3:$H$9,4,FALSE),C25-(B25+D25),IF(VLOOKUP($E25,HolidayType,2,FALSE),IF(VLOOKUP($A25,Holidays,4,FALSE),VLOOKUP(WEEKDAY($A25,2),Holidays!$E$3:$H$9,4,FALSE),C25-(B25+D25)),VLOOKUP(WEEKDAY($A25,2),Holidays!$E$3:$H$9,4,FALSE)))))","v":"0:00"},0,"0:00",{"$f":"J24+H25","v":0},"0:00",0]
["2025-03-09",null,null,null,null,2,{"$f":"IF(ISERROR(VLOOKUP($E26,HolidayType,2,FALSE)),IF(OR(ISBLANK(B26),ISBLANK(C26),ISBLANK(D26)),\"0:00\",C26-(B26+D26)),IF(OR(ISBLANK(B26),ISBLANK(C26),ISBLANK(D26)),IF(VLOOKUP($E26,HolidayType,2,FALSE),IF(VLOOKUP($A26,Holidays,4,FALSE),VLOOKUP(WEEKDAY($A26,2),Holidays!$E$3:$H$9,4,FALSE),\"0:00\"),VLOOKUP(WEEKDAY($A26,2),Holidays!$E$3:$H$9,4,FALSE)),IF(C26-(B26+D26)>VLOOKUP(WEEKDAY($A26,2),Holidays!$E$3:$H$9,4,FALSE),C26-(B26+D26),IF(VLOOKUP($E26,HolidayType,2,FALSE),IF(VLOOKUP($A26,Holidays,4,FALSE),VLOOKUP(WEEKDAY($A26,2),Holidays!$E$3:$H$9,4,FALSE),C26-(B26+D26)),VLOOKUP(WEEKDAY($A26,2),Holidays!$E$3:$H$9,4,FALSE)))))","v":"0:00"},0,"0:00",{"$f":"J25+H26","v":0},"0:00",0]
["2025-03-10",null,null,null,null,1,{"$f":"IF(ISERROR(VLOOKUP($E27,HolidayType,2,FALSE)),IF(OR(ISBLANK(B27),ISBLANK(C27),ISBLANK(D27)),\"0:00\",C27-(B27+D27)),IF(OR(ISBLANK(B27),ISBLANK(C27),ISBLANK(D27)),IF(VLOOKUP($E27,HolidayType,2,FALSE),IF(VLOOKUP($A27,Holidays,4,FALSE),VLOOKUP(WEEKDAY($A27,2),Holidays!$E$3:$H$9,4,FALSE),\"0:00\"),VLOOKUP(WEEKDAY($A27,2),Holidays!$E$3:$H$9,4,FALSE)),IF(C27-(B27+D27)>VLOOKUP(WEEKDAY($A27,2),Holidays!$E$3:$H$9,4,FALSE),C27-(B27+D27),IF(VLOOKUP($E27,HolidayType,2,FALSE),IF(VLOOKUP($A27,Holidays,4,FALSE),VLOOKUP(WEEKDAY($A27,2),Holidays!$E$3:$H$9,4,FALSE),C27-(B27+D27)),VLOOKUP(WEEKDAY($A27,2),Holidays!$E$3:$H$9,4,FALSE)))))","v":"0:00"},0,"0:00",{"$f":"J26+H27","v":0},"0:00",1]
["2025-03-11",null,null,null,null,1,{"$f":"IF(ISERROR(VLOOKUP($E28,HolidayType,2,FALSE)),IF(OR(ISBLANK(B28),ISBLANK(C28),ISBLANK(D28)),\"0:00\",C28-(B28+D28)),IF(OR(ISBLANK(B28),ISBLANK(C28),ISBLANK(D28)),IF(VLOOKUP($E28,HolidayType,2,FALSE),IF(VLOOKUP($A28,Holidays,4,FALSE),VLOOKUP(WEEKDAY($A28,2),Holidays!$E$3:$H$9,4,FALSE),\"0:00\"),VLOOKUP(WEEKDAY($A28,2),Holidays!$E$3:$H$9,4,FALSE)),IF(C28-(B28+D28)>VLOOKUP(WEEKDAY($A28,2),Holidays!$E$3:$H$9,4,FALSE),C28-(B28+D28),IF(VLOOKUP($E28,HolidayType,2,FALSE),IF(VLOOKUP($A28,Holidays,4,FALSE),VLOOKUP(WEEKDAY($A28,2),Holidays!$E$3:$H$9,4,FALSE),C28-(B28+D28)),VLOOKUP(WEEKDAY($A28,2),Holidays!$E$3:$H$9,4,FALSE)))))","v":"0:00"},0,"0:00",0,"0:00",1]
["2025-03-12",null,null,null,null,1,{"$f":"IF(ISERROR(VLOOKUP($E29,HolidayType,2,FALSE)),IF(OR(ISBLANK(B29),ISBLANK(C29),ISBLANK(D29)),\"0:00\",C29-(B29+D29)),IF(OR(ISBLANK(B29),ISBLANK(C29),ISBLANK(D29)),IF(VLOOKUP($E29,HolidayType,2,FALSE),IF(VLOOKUP($A29,Holidays,4,FALSE),VLOOKUP(WEEKDAY($A29,2),Holidays!$E$3:$H$9,4,FALSE),\"0:00\"),VLOOKUP(WEEKDAY($A29,2),Holidays!$E$3:$H$9,4,FALSE)),IF(C29-(B29+D29)>VLOOKUP(WEEKDAY($A29,2),Holidays!$E$3:$H$9,4,FALSE),C29-(B29+D29),IF(VLOOKUP($E29,HolidayType,2,FALSE),IF(VLOOKUP($A29,Holidays,4,FALSE),VLOOKUP(WEEKDAY($A29,2),Holidays!$E$3:$H$9,4,FALSE),C29-(B29+D29)),VLOOKUP(WEEKDAY($A29,2),Holidays!$E$3:$H$9,4,FALSE)))))","v":"0:00"},0,"0:00",0,"0:00",1]
["2025-03-13",null,null,null,{"$f":"IF(ISERROR(VLOOKUP($A30,Holidays,2,FALSE)),\"\",VLOOKUP($A30,Holidays,2,0))","v":""},1,{"$f":"IF(ISERROR(VLOOKUP($E30,HolidayType,2,FALSE)),IF(OR(ISBLANK(B30),ISBLANK(C30),ISBLANK(D30)),\"0:00\",C30-(B30+D30)),IF(OR(ISBLANK(B30),ISBLANK(C30),ISBLANK(D30)),IF(VLOOKUP($E30,HolidayType,2,FALSE),IF(VLOOKUP($A30,Holidays,4,FALSE),VLOOKUP(WEEKDAY($A30,2),Holidays!$E$3:$H$9,4,FALSE),\"0:00\"),VLOOKUP(WEEKDAY($A30,2),Holidays!$E$3:$H$9,4,FALSE)),IF(C30-(B30+D30)>VLOOKUP(WEEKDAY($A30,2),Holidays!$E$3:$H$9,4,FALSE),C30-(B30+D30),IF(VLOOKUP($E30,HolidayType,2,FALSE),IF(VLOOKUP($A30,Holidays,4,FALSE),VLOOKUP(WEEKDAY($A30,2),Holidays!$E$3:$H$9,4,FALSE),C30-(B30+D30)),VLOOKUP(WEEKDAY($A30,2),Holidays!$E$3:$H$9,4,FALSE)))))","v":"0:00"},0,"0:00",0,"0:00",1]
["2025-03-14",null,null,null,"",1,{"$f":"IF(ISERROR(VLOOKUP($E31,HolidayType,2,FALSE)),IF(OR(ISBLANK(B31),ISBLANK(C31),ISBLANK(D31)),\"0:00\",C31-(B31+D31)),IF(OR(ISBLANK(B31),ISBLANK(C31),ISBLANK(D31)),IF(VLOOKUP($E31,HolidayType,2,FALSE),IF(VLOOKUP($A31,Holidays,4,FALSE),VLOOKUP(WEEKDAY($A31,2),Holidays!$E$3:$H$9,4,FALSE),\"0:00\"),VLOOKUP(WEEKDAY($A31,2),Holidays!$E$3:$H$9,4,FALSE)),IF(C31-(B31+D31)>VLOOKUP(WEEKDAY($A31,2),Holidays!$E$3:$H$9,4,FALSE),C31-(B31+D31),IF(VLOOKUP($E31,HolidayType,2,FALSE),IF(VLOOKUP($A31,Holidays,4,FALSE),VLOOKUP(WEEKDAY($A31,2),Holidays!$E$3:$H$9,4,FALSE),C31-(B31+D31)),VLOOKUP(WEEKDAY($A31,2),Holidays!$E$3:$H$9,4,FALSE)))))","v":"0:00"},0,"0:00",0,"0:00",1]
["2025-03-15",null,null,null,"",1.5,{"$f":"IF(ISERROR(VLOOKUP($E32,HolidayType,2,FALSE)),IF(OR(ISBLANK(B32),ISBLANK(C32),ISBLANK(D32)),\"0:00\",C32-(B32+D32)),IF(OR(ISBLANK(B32),ISBLANK(C32),ISBLANK(D32)),IF(VLOOKUP($E32,HolidayType,2,FALSE),IF(VLOOKUP($A32,Holidays,4,FALSE),VLOOKUP(WEEKDAY($A32,2),Holidays!$E$3:$H$9,4,FALSE),\"0:00\"),VLOOKUP(WEEKDAY($A32,2),Holidays!$E$3:$H$9,4,FALSE)),IF(C32-(B32+D32)>VLOOKUP(WEEKDAY($A32,2),Holidays!$E$3:$H$9,4,FALSE),C32-(B32+D32),IF(VLOOKUP($E32,HolidayType,2,FALSE),IF(VLOOKUP($A32,Holidays,4,FALSE),VLOOKUP(WEEKDAY($A32,2),Holidays!$E$3:$H$9,4,FALSE),C32-(B32+D32)),VLOOKUP(WEEKDAY($A32,2),Holidays!$E$3:$H$9,4,FALSE)))))","v":"0:00"},0,"0:00",{"$f":"J31+H32","v":0},"0:00",0]
["2025-03-16",null,null,null,"",2,{"$f":"IF(ISERROR(VLOOKUP($E33,HolidayType,2,FALSE)),IF(OR(ISBLANK(B33),ISBLANK(C33),ISBLANK(D33)),\"0:00\",C33-(B33+D33)),IF(OR(ISBLANK(B33),ISBLANK(C33),ISBLANK(D33)),IF(VLOOKUP($E33,HolidayType,2,FALSE),IF(VLOOKUP($A33,Holidays,4,FALSE),VLOOKUP(WEEKDAY($A33,2),Holidays!$E$3:$H$9,4,FALSE),\"0:00\"),VLOOKUP(WEEKDAY($A33,2),Holidays!$E$3:$H$9,4,FALSE)),IF(C33-(B33+D33)>VLOOKUP(WEEKDAY($A33,2),Holidays!$E$3:$H$9,4,FALSE),C33-(B33+D33),IF(VLOOKUP($E33,HolidayType,2,FALSE),IF(VLOOKUP($A33,Holidays,4,FALSE),VLOOKUP(WEEKDAY($A33,2),Holidays!$E$3:$H$9,4,FALSE),C33-(B33+D33)),VLOOKUP(WEEKDAY($A33,2),Holidays!$E$3:$H$9,4,FALSE)))))","v":"0:00"},0,"0:00",{"$f":"J32+H33","v":0},"0:00",0]
["2025-03-17",null,null,null,"",1,{"$f":"IF(ISERROR(VLOOKUP($E34,HolidayType,2,FALSE)),IF(OR(ISBLANK(B34),ISBLANK(C34),ISBLANK(D34)),\"0:00\",C34-(B34+D34)),IF(OR(ISBLANK(B34),ISBLANK(C34),ISBLANK(D34)),IF(VLOOKUP($E34,HolidayType,2,FALSE),IF(VLOOKUP($A34,Holidays,4,FALSE),VLOOKUP(WEEKDAY($A34,2),Holidays!$E$3:$H$9,4,FALSE),\"0:00\"),VLOOKUP(WEEKDAY($A34,2),Holidays!$E$3:$H$9,4,FALSE)),IF(C34-(B34+D34)>VLOOKUP(WEEKDAY($A34,2),Holidays!$E$3:$H$9,4,FALSE),C34-(B34+D34),IF(VLOOKUP($E34,HolidayType,2,FALSE),IF(VLOOKUP($A34,Holidays,4,FALSE),VLOOKUP(WEEKDAY($A34,2),Holidays!$E$3:$H$9,4,FALSE),C34-(B34+D34)),VLOOKUP(WEEKDAY($A34,2),Holidays!$E$3:$H$9,4,FALSE)))))","v":"0:00"},0,"0:00",{"$f":"J31+H34","v":0},"0:00",1]
["2025-03-18",null,null,null,"",1,{"$f":"IF(ISERROR(VLOOKUP($E35,HolidayType,2,FALSE)),IF(OR(ISBLANK(B35),ISBLANK(C35),ISBLANK(D35)),\"0:00\",C35-(B35+D35)),IF(OR(ISBLANK(B35),ISBLANK(C35),ISBLANK(D35)),IF(VLOOKUP($E35,HolidayType,2,FALSE),IF(VLOOKUP($A35,Holidays,4,FALSE),VLOOKUP(WEEKDAY($A35,2),Holidays!$E$3:$H$9,4,FALSE),\"0:00\"),VLOOKUP(WEEKDAY($A35,2),Holidays!$E$3:$H$9,4,FALSE)),IF(C35-(B35+D35)>VLOOKUP(WEEKDAY($A35,2),Holidays!$E$3:$H$9,4,FALSE),C35-(B35+D35),IF(VLOOKUP($E35,HolidayType,2,FALSE),IF(VLOOKUP($A35,Holidays,4,FALSE),VLOOKUP(WEEKDAY($A35,2),Holidays!$E$3:$H$9,4,FALSE),C35-(B35+D35)),VLOOKUP(WEEKDAY($A35,2),Holidays!$E$3:$H$9,4,FALSE)))))","v":"0:00"},0,"0:00",0,"0:00",1]
["2025-03-19",null,null,null,"",1,{"$f":"IF(ISERROR(VLOOKUP($E36,HolidayType,2,FALSE)),IF(OR(ISBLANK(B36),ISBLANK(C36),ISBLANK(D36)),\"0:00\",C36-(B36+D36)),IF(OR(ISBLANK(B36),ISBLANK(C36),ISBLANK(D36)),IF(VLOOKUP($E36,HolidayType,2,FALSE),IF(VLOOKUP($A36,Holidays,4,FALSE),VLOOKUP(WEEKDAY($A36,2),Holidays!$E$3:$H$9,4,FALSE),\"0:00\"),VLOOKUP(WEEKDAY($A36,2),Holidays!$E$3:$H$9,4,FALSE)),IF(C36-(B36+D36)>VLOOKUP(WEEKDAY($A36,2),Holidays!$E$3:$H$9,4,FALSE),C36-(B36+D36),IF(VLOOKUP($E36,HolidayType,2,FALSE),IF(VLOOKUP($A36,Holidays,4,FALSE),VLOOKUP(WEEKDAY($A36,2),Holidays!$E$3:$H$9,4,FALSE),C36-(B36+D36)),VLOOKUP(WEEKDAY($A36,2),Holidays!$E$3:$H$9,4,FALSE)))))","v":"0:00"},0,"0:00",0,"0:00",1]
["2025-03-20",null,null,null,"",1,{"$f":"IF(ISERROR(VLOOKUP($E37,HolidayType,2,FALSE)),IF(OR(ISBLANK(B37),ISBLANK(C37),ISBLANK(D37)),\"0:00\",C37-(B37+D37)),IF(OR(ISBLANK(B37),ISBLANK(C37),ISBLANK(D37)),IF(VLOOKUP($E37,HolidayType,2,FALSE),IF(VLOOKUP($A37,Holidays,4,FALSE),VLOOKUP(WEEKDAY($A37,2),Holidays!$E$3:$H$9,4,FALSE),\"0:00\"),VLOOKUP(WEEKDAY($A37,2),Holidays!$E$3:$H$9,4,FALSE)),IF(C37-(B37+D37)>VLOOKUP(WEEKDAY($A37,2),Holidays!$E$3:$H$9,4,FALSE),C37-(B37+D37),IF(VLOOKUP($E37,HolidayType,2,FALSE),IF(VLOOKUP($A37,Holidays,4,FALSE),VLOOKUP(WEEKDAY($A37,2),Holidays!$E$3:$H$9,4,FALSE),C37-(B37+D37)),VLOOKUP(WEEKDAY($A37,2),Holidays!$E$3:$H$9,4,FALSE)))))","v":"0:00"},0,"0:00",0,"0:00",1]
["2025-03-21",null,null,null,"",1,{"$f":"IF(ISERROR(VLOOKUP($E38,HolidayType,2,FALSE)),IF(OR(ISBLANK(B38),ISBLANK(C38),ISBLANK(D38)),\"0:00\",C38-(B38+D38)),IF(OR(ISBLANK(B38),ISBLANK(C38),ISBLANK(D38)),IF(VLOOKUP($E38,HolidayType,2,FALSE),IF(VLOOKUP($A38,Holidays,4,FALSE),VLOOKUP(WEEKDAY($A38,2),Holidays!$E$3:$H$9,4,FALSE),\"0:00\"),VLOOKUP(WEEKDAY($A38,2),Holidays!$E$3:$H$9,4,FALSE)),IF(C38-(B38+D38)>VLOOKUP(WEEKDAY($A38,2),Holidays!$E$3:$H$9,4,FALSE),C38-(B38+D38),IF(VLOOKUP($E38,HolidayType,2,FALSE),IF(VLOOKUP($A38,Holidays,4,FALSE),VLOOKUP(WEEKDAY($A38,2),Holidays!$E$3:$H$9,4,FALSE),C38-(B38+D38)),VLOOKUP(WEEKDAY($A38,2),Holidays!$E$3:$H$9,4,FALSE)))))","v":"0:00"},0,"0:00",0,"0:00",1]
["2025-03-22",null,null,null,"",1.5,{"$f":"IF(ISERROR(VLOOKUP($E39,HolidayType,2,FALSE)),IF(OR(ISBLANK(B39),ISBLANK(C39),ISBLANK(D39)),\"0:00\",C39-(B39+D39)),IF(OR(ISBLANK(B39),ISBLANK(C39),ISBLANK(D39)),IF(VLOOKUP($E39,HolidayType,2,FALSE),IF(VLOOKUP($A39,Holidays,4,FALSE),VLOOKUP(WEEKDAY($A39,2),Holidays!$E$3:$H$9,4,FALSE),\"0:00\"),VLOOKUP(WEEKDAY($A39,2),Holidays!$E$3:$H$9,4,FALSE)),IF(C39-(B39+D39)>VLOOKUP(WEEKDAY($A39,2),Holidays!$E$3:$H$9,4,FALSE),C39-(B39+D39),IF(VLOOKUP($E39,HolidayType,2,FALSE),IF(VLOOKUP($A39,Holidays,4,FALSE),VLOOKUP(WEEKDAY($A39,2),Holidays!$E$3:$H$9,4,FALSE),C39-(B39+D39)),VLOOKUP(WEEKDAY($A39,2),Holidays!$E$3:$H$9,4,FALSE)))))","v":"0:00"},0,"0:00",0,"0:00",0]
["2025-03-23",null,null,null,"",2,{"$f":"IF(ISERROR(VLOOKUP($E40,HolidayType,2,FALSE)),IF(OR(ISBLANK(B40),ISBLANK(C40),ISBLANK(D40)),\"0:00\",C40-(B40+D40)),IF(OR(ISBLANK(B40),ISBLANK(C40),ISBLANK(D40)),IF(VLOOKUP($E40,HolidayType,2,FALSE),IF(VLOOKUP($A40,Holidays,4,FALSE),VLOOKUP(WEEKDAY($A40,2),Holidays!$E$3:$H$9,4,FALSE),\"0:00\"),VLOOKUP(WEEKDAY($A40,2),Holidays!$E$3:$H$9,4,FALSE)),IF(C40-(B40+D40)>VLOOKUP(WEEKDAY($A40,2),Holidays!$E$3:$H$9,4,FALSE),C40-(B40+D40),IF(VLOOKUP($E40,HolidayType,2,FALSE),IF(VLOOKUP($A40,Holidays,4,FALSE),VLOOKUP(WEEKDAY($A40,2),Holidays!$E$3:$H$9,4,FALSE),C40-(B40+D40)),VLOOKUP(WEEKDAY($A40,2),Holidays!$E$3:$H$9,4,FALSE)))))","v":"0:00"},0,"0:00",{"$f":"J39+H40","v":0},"0:00",0]
[null,null,null,null,null,null,null,null,null,null,null,{"$f":"SUM(L13:L40)","v":20}]
[null,null,null,null,"Total ordinary hours for accounting period",null,{"$f":"CONCATENATE(TRUNC(INT(ABS(J42))),\":\",TEXT(ABS(ABS(J42)-TRUNC(INT(ABS(J42))))*60,\"00\"))","v":"140:00"},null,null,{"$f":"J10*4","v":140}]
[null,null,null,null,"Total actual hours worked in accounting period",null,{"$f":"CONCATENATE(TRUNC(INT(ABS(J43))),\":\",TEXT(ABS(ABS(J43)-TRUNC(INT(ABS(J43))))*60,\"00\"))","v":"0:00"},null,null,{"$f":"J40","v":0}]
[null,null,null,null,"Difference",null,{"$f":"CONCATENATE(TRUNC(INT(ABS(J44))),\":\",TEXT(ABS(ABS(J44)-TRUNC(INT(ABS(J44))))*60,\"00\"))","v":"140:00"},null,{"$f":"IF(J44<0,\"Debit\",IF(J44=0,\"\",\"Credit\"))","v":"Debit"},{"$f":"ROUND(J43-J42,2)","v":-140}]
[null,null,null,null,"If applicable, carry over from previous period",null,"0:00",null,"Credit",{"$f":"IF(I45=\"Debit\",0-(LEFT(G45,FIND(\":\",G45)-1)+RIGHT(G45,2)/60),LEFT(G45,FIND(\":\",G45)-1)+RIGHT(G45,2)/60)","v":0}]
[null,null,null,null,"Carry over to following period",null,{"$f":"CONCATENATE(TRUNC(INT(ABS(J46))),\":\",TEXT(ABS(ABS(J46)-TRUNC(INT(ABS(J46))))*60,\"00\"))","v":"140:00"},null,{"$f":"IF(J46<0,\"Debit\",IF(J46=0,\"\",\"Credit\"))","v":"Debit"},{"$f":"ROUND(J44+J45,2)","v":-140}]
[]
[null,null,null,null,"Future flex leave bookings",null,"0:00",null,null,{"$f":"IF(I48=\"Debit\",0-(LEFT(G48,FIND(\":\",G48)-1)+RIGHT(G48,2)/60),LEFT(G48,FIND(\":\",G48)-1)+RIGHT(G48,2)/60)","v":0}]
[null,null,null,null,"Remaining",null,{"$f":"CONCATENATE(TRUNC(INT(ABS(J49))),\":\",TEXT(ABS(ABS(J49)-TRUNC(INT(ABS(J49))))*60,\"00\"))","v":"140:00"},null,{"$f":"IF(J49<0,\"Debit\",IF(J49=0,\"\",\"Credit\"))","v":"Debit"},{"$f":"J46-J48","v":-140}]
[]
[]
[]
["Signature",null,null,null,"Certified Correct"]
[null,"(Employee)",null,null,null,"(Supervisor)"]
[]
["Completed timesheets shall be authorised as correct by the supervisor and filed as an auditable document for 7yrs"]
[]
[]
["INSERT Comments/Leave below:"]
["Albury"]
["Annual Leave"]
["Carers Leave"]
["Concessional Half Day"]
["Dubbo"]
["Exam"]
["Flexi Day"]
["Goulburn"]
["Leave Without Pay"]
["Long Service Leave"]
["Maternity Leave"]
["Public Holiday"]
["Purchased Leave"]
["Sick Leave"]
["Special Leave"]
["Study Leave"]
["Training"]
["Wagga Wagga"]
["Working @ home"]

{"sheet":"Flexi Timesheet (4)","index":5,"n_rows":78,"n_cols":12,"rows_kept":78,"cut":false,"hidden":false,"merged":[[65,0,65,1],[7,2,7,4],[8,2,8,4],[52,1,52,2],[52,5,52,10],[53,1,53,2],[53,5,53,10],[59,0,59,1],[60,0,60,1],[62,0,62,1],[63,0,63,1],[64,0,64,1],[73,0,73,1],[77,0,77,1],[79,0,79,1],[66,0,66,1],[67,0,67,1],[68,0,68,1],[69,0,69,1],[70,0,70,1],[72,0,72,1]]}
[null,null,null,null,null,null,null,null,null,null,"Flexible Working Hours Scheme"]
[null,null,null,null,null,null,null,null,null,null,"2025 Flexi-Timesheet"]
[]
[]
[]
[]
[]
[null,"Name:"]
[null,"Team:",null,null,null,null,null,null,"Hours per Day",{"$f":"HOUR(K9)+MINUTE(K9)/60","v":7},"07:00:00","Don't override cell, click into cell and change time to equal your hours. i.e. 7 hours = 7:00am"]
[null,"Accounting Period:","2025-03-24",{"$f":"CONCATENATE(\" to \",TEXT(C10+27,\"dd-mmm-yyyy\"))","v":" to 20-Apr-2025"},null,null,null,null,"Days per Week",{"$f":"J9*K10","v":35},5]
[null,null,null,null,{"$f":"IF(ISERROR(VLOOKUP($A11,Holidays,2,FALSE)),\"\",VLOOKUP($A11,Holidays,2,0))","v":""},null,null,null,"Work Days",null,"Mo, Tu, We, Th, Fr"]
["Date","Start Time","Finish Time","Unpaid Breaks","Comments/Leave","Rate","Elapsed Time","Decimal Hours","Total Hours","Cum. Dec.","Cumulative Total"]
[{"$f":"C10","v":"2025-03-24"},null,null,null,null,1,{"$f":"IF(ISERROR(VLOOKUP($E13,HolidayType,2,FALSE)),IF(OR(ISBLANK(B13),ISBLANK(C13),ISBLANK(D13)),\"0:00\",C13-(B13+D13)),IF(OR(ISBLANK(B13),ISBLANK(C13),ISBLANK(D13)),IF(VLOOKUP($E13,HolidayType,2,FALSE),IF(VLOOKUP($A13,Holidays,4,FALSE),VLOOKUP(WEEKDAY($A13,2),Holidays!$E$3:$H$9,4,FALSE),\"0:00\"),VLOOKUP(WEEKDAY($A13,2),Holidays!$E$3:$H$9,4,FALSE)),IF(C13-(B13+D13)>VLOOKUP(WEEKDAY($A13,2),Holidays!$E$3:$H$9,4,FALSE),C13-(B13+D13),IF(VLOOKUP($E13,HolidayType,2,FALSE),IF(VLOOKUP($A13,Holidays,4,FALSE),VLOOKUP(WEEKDAY($A13,2),Holidays!$E$3:$H$9,4,FALSE),C13-(B13+D13)),VLOOKUP(WEEKDAY($A13,2),Holidays!$E$3:$H$9,4,FALSE)))))","v":"0:00"},{"$f":"((HOUR(G13)+MINUTE(G13)/60))*F13","v":0},{"$f":"CONCATENATE(TRUNC(INT(H13)),\":\",TEXT((H13-TRUNC(INT(H13)))*60,\"00\"))","v":"0:00"},{"$f":"H13","v":0},{"$f":"CONCATENATE(TRUNC(INT(J13)),\":\",TEXT((J13-TRUNC(INT(J13)))*60,\"00\"))","v":"0:00"},{"$f":"IF(WEEKDAY(A13,2)<6,IF(F13<>0,1,0),0)","v":1}]
[{"$f":"A13+1","v":"2025-03-25"},null,null,null,null,1,{"$f":"IF(ISERROR(VLOOKUP($E14,HolidayType,2,FALSE)),IF(OR(ISBLANK(B14),ISBLANK(C14),ISBLANK(D14)),\"0:00\",C14-(B14+D14)),IF(OR(ISBLANK(B14),ISBLANK(C14),ISBLANK(D14)),IF(VLOOKUP($E14,HolidayType,2,FALSE),IF(VLOOKUP($A14,Holidays,4,FALSE),VLOOKUP(WEEKDAY($A14,2),Holidays!$E$3:$H$9,4,FALSE),\"0:00\"),VLOOKUP(WEEKDAY($A14,2),Holidays!$E$3:$H$9,4,FALSE)),IF(C14-(B14+D14)>VLOOKUP(WEEKDAY($A14,2),Holidays!$E$3:$H$9,4,FALSE),C14-(B14+D14),IF(VLOOKUP($E14,HolidayType,2,FALSE),IF(VLOOKUP($A14,Holidays,4,FALSE),VLOOKUP(WEEKDAY($A14,2),Holidays!$E$3:$H$9,4,FALSE),C14-(B14+D14)),VLOOKUP(WEEKDAY($A14,2),Holidays!$E$3:$H$9,4,FALSE)))))","v":"0:00"},0,{"$f":"CONCATENATE(TRUNC(INT(H14)),\":\",TEXT((H14-TRUNC(INT(H14)))*60,\"00\"))","v":"0:00"},{"$f":"J13+H14","v":0},{"$f":"CONCATENATE(TRUNC(INT(J14)),\":\",TEXT((J14-TRUNC(INT(J14)))*60,\"00\"))","v":"0:00"},1]
["2025-03-26",null,null,null,null,1,{"$f":"IF(ISERROR(VLOOKUP($E15,HolidayType,2,FALSE)),IF(OR(ISBLANK(B15),ISBLANK(C15),ISBLANK(D15)),\"0:00\",C15-(B15+D15)),IF(OR(ISBLANK(B15),ISBLANK(C15),ISBLANK(D15)),IF(VLOOKUP($E15,HolidayType,2,FALSE),IF(VLOOKUP($A15,Holidays,4,FALSE),VLOOKUP(WEEKDAY($A15,2),Holidays!$E$3:$H$9,4,FALSE),\"0:00\"),VLOOKUP(WEEKDAY($A15,2),Holidays!$E$3:$H$9,4,FALSE)),IF(C15-(B15+D15)>VLOOKUP(WEEKDAY($A15,2),Holidays!$E$3:$H$9,4,FALSE),C15-(B15+D15),IF(VLOOKUP($E15,HolidayType,2,FALSE),IF(VLOOKUP($A15,Holidays,4,FALSE),VLOOKUP(WEEKDAY($A15,2),Holidays!$E$3:$H$9,4,FALSE),C15-(B15+D15)),VLOOKUP(WEEKDAY($A15,2),Holidays!$E$3:$H$9,4,FALSE)))))","v":"0:00"},0,"0:00",{"$f":"J14+H15","v":0},"0:00",1]
["2025-03-27",null,null,null,null,1,{"$f":"IF(ISERROR(VLOOKUP($E16,HolidayType,2,FALSE)),IF(OR(ISBLANK(B16),ISBLANK(C16),ISBLANK(D16)),\"0:00\",C16-(B16+D16)),IF(OR(ISBLANK(B16),ISBLANK(C16),ISBLANK(D16)),IF(VLOOKUP($E16,HolidayType,2,FALSE),IF(VLOOKUP($A16,Holidays,4,FALSE),VLOOKUP(WEEKDAY($A16,2),Holidays!$E$3:$H$9,4,FALSE),\"0:00\"),VLOOKUP(WEEKDAY($A16,2),Holidays!$E$3:$H$9,4,FALSE)),IF(C16-(B16+D16)>VLOOKUP(WEEKDAY($A16,2),Holidays!$E$3:$H$9,4,FALSE),C16-(B16+D16),IF(VLOOKUP($E16,HolidayType,2,FALSE),IF(VLOOKUP($A16,Holidays,4,FALSE),VLOOKUP(WEEKDAY($A16,2),Holidays!$E$3:$H$9,4,FALSE),C16-(B16+D16)),VLOOKUP(WEEKDAY($A16,2),Holidays!$E$3:$H$9,4,FALSE)))))","v":"0:00"},0,"0:00",0,"0:00",1]
["2025-03-28",null,null,null,null,1,{"$f":"IF(ISERROR(VLOOKUP($E17,HolidayType,2,FALSE)),IF(OR(ISBLANK(B17),ISBLANK(C17),ISBLANK(D17)),\"0:00\",C17-(B17+D17)),IF(OR(ISBLANK(B17),ISBLANK(C17),ISBLANK(D17)),IF(VLOOKUP($E17,HolidayType,2,FALSE),IF(VLOOKUP($A17,Holidays,4,FALSE),VLOOKUP(WEEKDAY($A17,2),Holidays!$E$3:$H$9,4,FALSE),\"0:00\"),VLOOKUP(WEEKDAY($A17,2),Holidays!$E$3:$H$9,4,FALSE)),IF(C17-(B17+D17)>VLOOKUP(WEEKDAY($A17,2),Holidays!$E$3:$H$9,4,FALSE),C17-(B17+D17),IF(VLOOKUP($E17,HolidayType,2,FALSE),IF(VLOOKUP($A17,Holidays,4,FALSE),VLOOKUP(WEEKDAY($A17,2),Holidays!$E$3:$H$9,4,FALSE),C17-(B17+D17)),VLOOKUP(WEEKDAY($A17,2),Holidays!$E$3:$H$9,4,FALSE)))))","v":"0:00"},0,"0:00",0,"0:00",1]
["2025-03-29",null,null,null,{"$f":"IF(ISERROR(VLOOKUP($A18,Holidays,2,FALSE)),\"\",VLOOKUP($A18,Holidays,2,0))","v":""},1.5,{"$f":"IF(ISERROR(VLOOKUP($E18,HolidayType,2,FALSE)),IF(OR(ISBLANK(B18),ISBLANK(C18),ISBLANK(D18)),\"0:00\",C18-(B18+D18)),IF(OR(ISBLANK(B18),ISBLANK(C18),ISBLANK(D18)),IF(VLOOKUP($E18,HolidayType,2,FALSE),IF(VLOOKUP($A18,Holidays,4,FALSE),VLOOKUP(WEEKDAY($A18,2),Holidays!$E$3:$H$9,4,FALSE),\"0:00\"),VLOOKUP(WEEKDAY($A18,2),Holidays!$E$3:$H$9,4,FALSE)),IF(C18-(B18+D18)>VLOOKUP(WEEKDAY($A18,2),Holidays!$E$3:$H$9,4,FALSE),C18-(B18+D18),IF(VLOOKUP($E18,HolidayType,2,FALSE),IF(VLOOKUP($A18,Holidays,4,FALSE),VLOOKUP(WEEKDAY($A18,2),Holidays!$E$3:$H$9,4,FALSE),C18-(B18+D18)),VLOOKUP(WEEKDAY($A18,2),Holidays!$E$3:$H$9,4,FALSE)))))","v":"0:00"},0,"0:00",0,"0:00",0]
["2025-03-30",null,null,null,{"$f":"IF(ISERROR(VLOOKUP($A19,Holidays,2,FALSE)),\"\",VLOOKUP($A19,Holidays,2,0))","v":""},2,{"$f":"IF(ISERROR(VLOOKUP($E19,HolidayType,2,FALSE)),IF(OR(ISBLANK(B19),ISBLANK(C19),ISBLANK(D19)),\"0:00\",C19-(B19+D19)),IF(OR(ISBLANK(B19),ISBLANK(C19),ISBLANK(D19)),IF(VLOOKUP($E19,HolidayType,2,FALSE),IF(VLOOKUP($A19,Holidays,4,FALSE),VLOOKUP(WEEKDAY($A19,2),Holidays!$E$3:$H$9,4,FALSE),\"0:00\"),VLOOKUP(WEEKDAY($A19,2),Holidays!$E$3:$H$9,4,FALSE)),IF(C19-(B19+D19)>VLOOKUP(WEEKDAY($A19,2),Holidays!$E$3:$H$9,4,FALSE),C19-(B19+D19),IF(VLOOKUP($E19,HolidayType,2,FALSE),IF(VLOOKUP($A19,Holidays,4,FALSE),VLOOKUP(WEEKDAY($A19,2),Holidays!$E$3:$H$9,4,FALSE),C19-(B19+D19)),VLOOKUP(WEEKDAY($A19,2),Holidays!$E$3:$H$9,4,FALSE)))))","v":"0:00"},0,"0:00",{"$f":"J18+H19","v":0},"0:00",0]
["2025-03-31",null,null,null,null,1,{"$f":"IF(ISERROR(VLOOKUP($E20,HolidayType,2,FALSE)),IF(OR(ISBLANK(B20),ISBLANK(C20),ISBLANK(D20)),\"0:00\",C20-(B20+D20)),IF(OR(ISBLANK(B20),ISBLANK(C20),ISBLANK(D20)),IF(VLOOKUP($E20,HolidayType,2,FALSE),IF(VLOOKUP($A20,Holidays,4,FALSE),VLOOKUP(WEEKDAY($A20,2),Holidays!$E$3:$H$9,4,FALSE),\"0:00\"),VLOOKUP(WEEKDAY($A20,2),Holidays!$E$3:$H$9,4,FALSE)),IF(C20-(B20+D20)>VLOOKUP(WEEKDAY($A20,2),Holidays!$E$3:$H$9,4,FALSE),C20-(B20+D20),IF(VLOOKUP($E20,HolidayType,2,FALSE),IF(VLOOKUP($A20,Holidays,4,FALSE),VLOOKUP(WEEKDAY($A20,2),Holidays!$E$3:$H$9,4,FALSE),C20-(B20+D20)),VLOOKUP(WEEKDAY($A20,2),Holidays!$E$3:$H$9,4,FALSE)))))","v":"0:00"},0,"0:00",{"$f":"J19+H20","v":0},"0:00",1]
["2025-04-01",null,null,null,null,1,{"$f":"IF(ISERROR(VLOOKUP($E21,HolidayType,2,FALSE)),IF(OR(ISBLANK(B21),ISBLANK(C21),ISBLANK(D21)),\"0:00\",C21-(B21+D21)),IF(OR(ISBLANK(B21),ISBLANK(C21),ISBLANK(D21)),IF(VLOOKUP($E21,HolidayType,2,FALSE),IF(VLOOKUP($A21,Holidays,4,FALSE),VLOOKUP(WEEKDAY($A21,2),Holidays!$E$3:$H$9,4,FALSE),\"0:00\"),VLOOKUP(WEEKDAY($A21,2),Holidays!$E$3:$H$9,4,FALSE)),IF(C21-(B21+D21)>VLOOKUP(WEEKDAY($A21,2),Holidays!$E$3:$H$9,4,FALSE),C21-(B21+D21),IF(VLOOKUP($E21,HolidayType,2,FALSE),IF(VLOOKUP($A21,Holidays,4,FALSE),VLOOKUP(WEEKDAY($A21,2),Holidays!$E$3:$H$9,4,FALSE),C21-(B21+D21)),VLOOKUP(WEEKDAY($A21,2),Holidays!$E$3:$H$9,4,FALSE)))))","v":"0:00"},0,"0:00",0,"0:00",1]
["2025-04-02",null,null,null,null,1,{"$f":"IF(ISERROR(VLOOKUP($E22,HolidayType,2,FALSE)),IF(OR(ISBLANK(B22),ISBLANK(C22),ISBLANK(D22)),\"0:00\",C22-(B22+D22)),IF(OR(ISBLANK(B22),ISBLANK(C22),ISBLANK(D22)),IF(VLOOKUP($E22,HolidayType,2,FALSE),IF(VLOOKUP($A22,Holidays,4,FALSE),VLOOKUP(WEEKDAY($A22,2),Holidays!$E$3:$H$9,4,FALSE),\"0:00\"),VLOOKUP(WEEKDAY($A22,2),Holidays!$E$3:$H$9,4,FALSE)),IF(C22-(B22+D22)>VLOOKUP(WEEKDAY($A22,2),Holidays!$E$3:$H$9,4,FALSE),C22-(B22+D22),IF(VLOOKUP($E22,HolidayType,2,FALSE),IF(VLOOKUP($A22,Holidays,4,FALSE),VLOOKUP(WEEKDAY($A22,2),Holidays!$E$3:$H$9,4,FALSE),C22-(B22+D22)),VLOOKUP(WEEKDAY($A22,2),Holidays!$E$3:$H$9,4,FALSE)))))","v":"0:00"},0,"0:00",0,"0:00",1]
["2025-04-03",null,null,null,null,1,{"$f":"IF(ISERROR(VLOOKUP($E23,HolidayType,2,FALSE)),IF(OR(ISBLANK(B23),ISBLANK(C23),ISBLANK(D23)),\"0:00\",C23-(B23+D23)),IF(OR(ISBLANK(B23),ISBLANK(C23),ISBLANK(D23)),IF(VLOOKUP($E23,HolidayType,2,FALSE),IF(VLOOKUP($A23,Holidays,4,FALSE),VLOOKUP(WEEKDAY($A23,2),Holidays!$E$3:$H$9,4,FALSE),\"0:00\"),VLOOKUP(WEEKDAY($A23,2),Holidays!$E$3:$H$9,4,FALSE)),IF(C23-(B23+D23)>VLOOKUP(WEEKDAY($A23,2),Holidays!$E$3:$H$9,4,FALSE),C23-(B23+D23),IF(VLOOKUP($E23,HolidayType,2,FALSE),IF(VLOOKUP($A23,Holidays,4,FALSE),VLOOKUP(WEEKDAY($A23,2),Holidays!$E$3:$H$9,4,FALSE),C23-(B23+D23)),VLOOKUP(WEEKDAY($A23,2),Holidays!$E$3:$H$9,4,FALSE)))))","v":"0:00"},0,"0:00",0,"0:00",1]
["2025-04-04",null,null,null,null,1,{"$f":"IF(ISERROR(VLOOKUP($E24,HolidayType,2,FALSE)),IF(OR(ISBLANK(B24),ISBLANK(C24),ISBLANK(D24)),\"0:00\",C24-(B24+D24)),IF(OR(ISBLANK(B24),ISBLANK(C24),ISBLANK(D24)),IF(VLOOKUP($E24,HolidayType,2,FALSE),IF(VLOOKUP($A24,Holidays,4,FALSE),VLOOKUP(WEEKDAY($A24,2),Holidays!$E$3:$H$9,4,FALSE),\"0:00\"),VLOOKUP(WEEKDAY($A24,2),Holidays!$E$3:$H$9,4,FALSE)),IF(C24-(B24+D24)>VLOOKUP(WEEKDAY($A24,2),Holidays!$E$3:$H$9,4,FALSE),C24-(B24+D24),IF(VLOOKUP($E24,HolidayType,2,FALSE),IF(VLOOKUP($A24,Holidays,4,FALSE),VLOOKUP(WEEKDAY($A24,2),Holidays!$E$3:$H$9,4,FALSE),C24-(B24+D24)),VLOOKUP(WEEKDAY($A24,2),Holidays!$E$3:$H$9,4,FALSE)))))","v":"0:00"},0,"0:00",0,"0:00",1]
["2025-04-05",null,null,null,null,1.5,{"$f":"IF(ISERROR(VLOOKUP($E25,HolidayType,2,FALSE)),IF(OR(ISBLANK(B25),ISBLANK(C25),ISBLANK(D25)),\"0:00\",C25-(B25+D25)),IF(OR(ISBLANK(B25),ISBLANK(C25),ISBLANK(D25)),IF(VLOOKUP($E25,HolidayType,2,FALSE),IF(VLOOKUP($A25,Holidays,4,FALSE),VLOOKUP(WEEKDAY($A25,2),Holidays!$E$3:$H$9,4,FALSE),\"0:00\"),VLOOKUP(WEEKDAY($A25,2),Holidays!$E$3:$H$9,4,FALSE)),IF(C25-(B25+D25)>VLOOKUP(WEEKDAY($A25,2),Holidays!$E$3:$H$9,4,FALSE),C25-(B25+D25),IF(VLOOKUP($E25,HolidayType,2,FALSE),IF(VLOOKUP($A25,Holidays,4,FALSE),VLOOKUP(WEEKDAY($A25,2),Holidays!$E$3:$H$9,4,FALSE),C25-(B25+D25)),VLOOKUP(WEEKDAY($A25,2),Holidays!$E$3:$H$9,4,FALSE)))))","v":"0:00"},0,"0:00",{"$f":"J24+H25","v":0},"0:00",0]
["2025-04-06",null,null,null,null,2,{"$f":"IF(ISERROR(VLOOKUP($E26,HolidayType,2,FALSE)),IF(OR(ISBLANK(B26),ISBLANK(C26),ISBLANK(D26)),\"0:00\",C26-(B26+D26)),IF(OR(ISBLANK(B26),ISBLANK(C26),ISBLANK(D26)),IF(VLOOKUP($E26,HolidayType,2,FALSE),IF(VLOOKUP($A26,Holidays,4,FALSE),VLOOKUP(WEEKDAY($A26,2),Holidays!$E$3:$H$9,4,FALSE),\"0:00\"),VLOOKUP(WEEKDAY($A26,2),Holidays!$E$3:$H$9,4,FALSE)),IF(C26-(B26+D26)>VLOOKUP(WEEKDAY($A26,2),Holidays!$E$3:$H$9,4,FALSE),C26-(B26+D26),IF(VLOOKUP($E26,HolidayType,2,FALSE),IF(VLOOKUP($A26,Holidays,4,FALSE),VLOOKUP(WEEKDAY($A26,2),Holidays!$E$3:$H$9,4,FALSE),C26-(B26+D26)),VLOOKUP(WEEKDAY($A26,2),Holidays!$E$3:$H$9,4,FALSE)))))","v":"0:00"},0,"0:00",{"$f":"J25+H26","v":0},"0:00",0]
["2025-04-07",null,null,null,null,1,{"$f":"IF(ISERROR(VLOOKUP($E27,HolidayType,2,FALSE)),IF(OR(ISBLANK(B27),ISBLANK(C27),ISBLANK(D27)),\"0:00\",C27-(B27+D27)),IF(OR(ISBLANK(B27),ISBLANK(C27),ISBLANK(D27)),IF(VLOOKUP($E27,HolidayType,2,FALSE),IF(VLOOKUP($A27,Holidays,4,FALSE),VLOOKUP(WEEKDAY($A27,2),Holidays!$E$3:$H$9,4,FALSE),\"0:00\"),VLOOKUP(WEEKDAY($A27,2),Holidays!$E$3:$H$9,4,FALSE)),IF(C27-(B27+D27)>VLOOKUP(WEEKDAY($A27,2),Holidays!$E$3:$H$9,4,FALSE),C27-(B27+D27),IF(VLOOKUP($E27,HolidayType,2,FALSE),IF(VLOOKUP($A27,Holidays,4,FALSE),VLOOKUP(WEEKDAY($A27,2),Holidays!$E$3:$H$9,4,FALSE),C27-(B27+D27)),VLOOKUP(WEEKDAY($A27,2),Holidays!$E$3:$H$9,4,FALSE)))))","v":"0:00"},0,"0:00",{"$f":"J26+H27","v":0},"0:00",1]
["2025-04-08",null,null,null,null,1,{"$f":"IF(ISERROR(VLOOKUP($E28,HolidayType,2,FALSE)),IF(OR(ISBLANK(B28),ISBLANK(C28),ISBLANK(D28)),\"0:00\",C28-(B28+D28)),IF(OR(ISBLANK(B28),ISBLANK(C28),ISBLANK(D28)),IF(VLOOKUP($E28,HolidayType,2,FALSE),IF(VLOOKUP($A28,Holidays,4,FALSE),VLOOKUP(WEEKDAY($A28,2),Holidays!$E$3:$H$9,4,FALSE),\"0:00\"),VLOOKUP(WEEKDAY($A28,2),Holidays!$E$3:$H$9,4,FALSE)),IF(C28-(B28+D28)>VLOOKUP(WEEKDAY($A28,2),Holidays!$E$3:$H$9,4,FALSE),C28-(B28+D28),IF(VLOOKUP($E28,HolidayType,2,FALSE),IF(VLOOKUP($A28,Holidays,4,FALSE),VLOOKUP(WEEKDAY($A28,2),Holidays!$E$3:$H$9,4,FALSE),C28-(B28+D28)),VLOOKUP(WEEKDAY($A28,2),Holidays!$E$3:$H$9,4,FALSE)))))","v":"0:00"},0,"0:00",0,"0:00",1]
["2025-04-09",null,null,null,null,1,{"$f":"IF(ISERROR(VLOOKUP($E29,HolidayType,2,FALSE)),IF(OR(ISBLANK(B29),ISBLANK(C29),ISBLANK(D29)),\"0:00\",C29-(B29+D29)),IF(OR(ISBLANK(B29),ISBLANK(C29),ISBLANK(D29)),IF(VLOOKUP($E29,HolidayType,2,FALSE),IF(VLOOKUP($A29,Holidays,4,FALSE),VLOOKUP(WEEKDAY($A29,2),Holidays!$E$3:$H$9,4,FALSE),\"0:00\"),VLOOKUP(WEEKDAY($A29,2),Holidays!$E$3:$H$9,4,FALSE)),IF(C29-(B29+D29)>VLOOKUP(WEEKDAY($A29,2),Holidays!$E$3:$H$9,4,FALSE),C29-(B29+D29),IF(VLOOKUP($E29,HolidayType,2,FALSE),IF(VLOOKUP($A29,Holidays,4,FALSE),VLOOKUP(WEEKDAY($A29,2),Holidays!$E$3:$H$9,4,FALSE),C29-(B29+D29)),VLOOKUP(WEEKDAY($A29,2),Holidays!$E$3:$H$9,4,FALSE)))))","v":"0:00"},0,"0:00",0,"0:00",1]
["2025-04-10",null,null,null,{"$f":"IF(ISERROR(VLOOKUP($A30,Holidays,2,FALSE)),\"\",VLOOKUP($A30,Holidays,2,0))","v":""},1,{"$f":"IF(ISERROR(VLOOKUP($E30,HolidayType,2,FALSE)),IF(OR(ISBLANK(B30),ISBLANK(C30),ISBLANK(D30)),\"0:00\",C30-(B30+D30)),IF(OR(ISBLANK(B30),ISBLANK(C30),ISBLANK(D30)),IF(VLOOKUP($E30,HolidayType,2,FALSE),IF(VLOOKUP($A30,Holidays,4,FALSE),VLOOKUP(WEEKDAY($A30,2),Holidays!$E$3:$H$9,4,FALSE),\"0:00\"),VLOOKUP(WEEKDAY($A30,2),Holidays!$E$3:$H$9,4,FALSE)),IF(C30-(B30+D30)>VLOOKUP(WEEKDAY($A30,2),Holidays!$E$3:$H$9,4,FALSE),C30-(B30+D30),IF(VLOOKUP($E30,HolidayType,2,FALSE),IF(VLOOKUP($A30,Holidays,4,FALSE),VLOOKUP(WEEKDAY($A30,2),Holidays!$E$3:$H$9,4,FALSE),C30-(B30+D30)),VLOOKUP(WEEKDAY($A30,2),Holidays!$E$3:$H$9,4,FALSE)))))","v":"0:00"},0,"0:00",0,"0:00",1]
["2025-04-11",null,null,null,"",1,{"$f":"IF(ISERROR(VLOOKUP($E31,HolidayType,2,FALSE)),IF(OR(ISBLANK(B31),ISBLANK(C31),ISBLANK(D31)),\"0:00\",C31-(B31+D31)),IF(OR(ISBLANK(B31),ISBLANK(C31),ISBLANK(D31)),IF(VLOOKUP($E31,HolidayType,2,FALSE),IF(VLOOKUP($A31,Holidays,4,FALSE),VLOOKUP(WEEKDAY($A31,2),Holidays!$E$3:$H$9,4,FALSE),\"0:00\"),VLOOKUP(WEEKDAY($A31,2),Holidays!$E$3:$H$9,4,FALSE)),IF(C31-(B31+D31)>VLOOKUP(WEEKDAY($A31,2),Holidays!$E$3:$H$9,4,FALSE),C31-(B31+D31),IF(VLOOKUP($E31,HolidayType,2,FALSE),IF(VLOOKUP($A31,Holidays,4,FALSE),VLOOKUP(WEEKDAY($A31,2),Holidays!$E$3:$H$9,4,FALSE),C31-(B31+D31)),VLOOKUP(WEEKDAY($A31,2),Holidays!$E$3:$H$9,4,FALSE)))))","v":"0:00"},0,"0:00",0,"0:00",1]
["2025-04-12",null,null,null,"",1.5,{"$f":"IF(ISERROR(VLOOKUP($E32,HolidayType,2,FALSE)),IF(OR(ISBLANK(B32),ISBLANK(C32),ISBLANK(D32)),\"0:00\",C32-(B32+D32)),IF(OR(ISBLANK(B32),ISBLANK(C32),ISBLANK(D32)),IF(VLOOKUP($E32,HolidayType,2,FALSE),IF(VLOOKUP($A32,Holidays,4,FALSE),VLOOKUP(WEEKDAY($A32,2),Holidays!$E$3:$H$9,4,FALSE),\"0:00\"),VLOOKUP(WEEKDAY($A32,2),Holidays!$E$3:$H$9,4,FALSE)),IF(C32-(B32+D32)>VLOOKUP(WEEKDAY($A32,2),Holidays!$E$3:$H$9,4,FALSE),C32-(B32+D32),IF(VLOOKUP($E32,HolidayType,2,FALSE),IF(VLOOKUP($A32,Holidays,4,FALSE),VLOOKUP(WEEKDAY($A32,2),Holidays!$E$3:$H$9,4,FALSE),C32-(B32+D32)),VLOOKUP(WEEKDAY($A32,2),Holidays!$E$3:$H$9,4,FALSE)))))","v":"0:00"},0,"0:00",{"$f":"J31+H32","v":0},"0:00",0]
["2025-04-13",null,null,null,"",2,{"$f":"IF(ISERROR(VLOOKUP($E33,HolidayType,2,FALSE)),IF(OR(ISBLANK(B33),ISBLANK(C33),ISBLANK(D33)),\"0:00\",C33-(B33+D33)),IF(OR(ISBLANK(B33),ISBLANK(C33),ISBLANK(D33)),IF(VLOOKUP($E33,HolidayType,2,FALSE),IF(VLOOKUP($A33,Holidays,4,FALSE),VLOOKUP(WEEKDAY($A33,2),Holidays!$E$3:$H$9,4,FALSE),\"0:00\"),VLOOKUP(WEEKDAY($A33,2),Holidays!$E$3:$H$9,4,FALSE)),IF(C33-(B33+D33)>VLOOKUP(WEEKDAY($A33,2),Holidays!$E$3:$H$9,4,FALSE),C33-(B33+D33),IF(VLOOKUP($E33,HolidayType,2,FALSE),IF(VLOOKUP($A33,Holidays,4,FALSE),VLOOKUP(WEEKDAY($A33,2),Holidays!$E$3:$H$9,4,FALSE),C33-(B33+D33)),VLOOKUP(WEEKDAY($A33,2),Holidays!$E$3:$H$9,4,FALSE)))))","v":"0:00"},0,"0:00",{"$f":"J32+H33","v":0},"0:00",0]
["2025-04-14",null,null,null,"",1,{"$f":"IF(ISERROR(VLOOKUP($E34,HolidayType,2,FALSE)),IF(OR(ISBLANK(B34),ISBLANK(C34),ISBLANK(D34)),\"0:00\",C34-(B34+D34)),IF(OR(ISBLANK(B34),ISBLANK(C34),ISBLANK(D34)),IF(VLOOKUP($E34,HolidayType,2,FALSE),IF(VLOOKUP($A34,Holidays,4,FALSE),VLOOKUP(WEEKDAY($A34,2),Holidays!$E$3:$H$9,4,FALSE),\"0:00\"),VLOOKUP(WEEKDAY($A34,2),Holidays!$E$3:$H$9,4,FALSE)),IF(C34-(B34+D34)>VLOOKUP(WEEKDAY($A34,2),Holidays!$E$3:$H$9,4,FALSE),C34-(B34+D34),IF(VLOOKUP($E34,HolidayType,2,FALSE),IF(VLOOKUP($A34,Holidays,4,FALSE),VLOOKUP(WEEKDAY($A34,2),Holidays!$E$3:$H$9,4,FALSE),C34-(B34+D34)),VLOOKUP(WEEKDAY($A34,2),Holidays!$E$3:$H$9,4,FALSE)))))","v":"0:00"},0,"0:00",{"$f":"J31+H34","v":0},"0:00",1]
["2025-04-15",null,null,null,"",1,{"$f":"IF(ISERROR(VLOOKUP($E35,HolidayType,2,FALSE)),IF(OR(ISBLANK(B35),ISBLANK(C35),ISBLANK(D35)),\"0:00\",C35-(B35+D35)),IF(OR(ISBLANK(B35),ISBLANK(C35),ISBLANK(D35)),IF(VLOOKUP($E35,HolidayType,2,FALSE),IF(VLOOKUP($A35,Holidays,4,FALSE),VLOOKUP(WEEKDAY($A35,2),Holidays!$E$3:$H$9,4,FALSE),\"0:00\"),VLOOKUP(WEEKDAY($A35,2),Holidays!$E$3:$H$9,4,FALSE)),IF(C35-(B35+D35)>VLOOKUP(WEEKDAY($A35,2),Holidays!$E$3:$H$9,4,FALSE),C35-(B35+D35),IF(VLOOKUP($E35,HolidayType,2,FALSE),IF(VLOOKUP($A35,Holidays,4,FALSE),VLOOKUP(WEEKDAY($A35,2),Holidays!$E$3:$H$9,4,FALSE),C35-(B35+D35)),VLOOKUP(WEEKDAY($A35,2),Holidays!$E$3:$H$9,4,FALSE)))))","v":"0:00"},0,"0:00",0,"0:00",1]
["2025-04-16",null,null,null,"",1,{"$f":"IF(ISERROR(VLOOKUP($E36,HolidayType,2,FALSE)),IF(OR(ISBLANK(B36),ISBLANK(C36),ISBLANK(D36)),\"0:00\",C36-(B36+D36)),IF(OR(ISBLANK(B36),ISBLANK(C36),ISBLANK(D36)),IF(VLOOKUP($E36,HolidayType,2,FALSE),IF(VLOOKUP($A36,Holidays,4,FALSE),VLOOKUP(WEEKDAY($A36,2),Holidays!$E$3:$H$9,4,FALSE),\"0:00\"),VLOOKUP(WEEKDAY($A36,2),Holidays!$E$3:$H$9,4,FALSE)),IF(C36-(B36+D36)>VLOOKUP(WEEKDAY($A36,2),Holidays!$E$3:$H$9,4,FALSE),C36-(B36+D36),IF(VLOOKUP($E36,HolidayType,2,FALSE),IF(VLOOKUP($A36,Holidays,4,FALSE),VLOOKUP(WEEKDAY($A36,2),Holidays!$E$3:$H$9,4,FALSE),C36-(B36+D36)),VLOOKUP(WEEKDAY($A36,2),Holidays!$E$3:$H$9,4,FALSE)))))","v":"0:00"},0,"0:00",0,"0:00",1]
["2025-04-17",null,null,null,"",1,{"$f":"IF(ISERROR(VLOOKUP($E37,HolidayType,2,FALSE)),IF(OR(ISBLANK(B37),ISBLANK(C37),ISBLANK(D37)),\"0:00\",C37-(B37+D37)),IF(OR(ISBLANK(B37),ISBLANK(C37),ISBLANK(D37)),IF(VLOOKUP($E37,HolidayType,2,FALSE),IF(VLOOKUP($A37,Holidays,4,FALSE),VLOOKUP(WEEKDAY($A37,2),Holidays!$E$3:$H$9,4,FALSE),\"0:00\"),VLOOKUP(WEEKDAY($A37,2),Holidays!$E$3:$H$9,4,FALSE)),IF(C37-(B37+D37)>VLOOKUP(WEEKDAY($A37,2),Holidays!$E$3:$H$9,4,FALSE),C37-(B37+D37),IF(VLOOKUP($E37,HolidayType,2,FALSE),IF(VLOOKUP($A37,Holidays,4,FALSE),VLOOKUP(WEEKDAY($A37,2),Holidays!$E$3:$H$9,4,FALSE),C37-(B37+D37)),VLOOKUP(WEEKDAY($A37,2),Holidays!$E$3:$H$9,4,FALSE)))))","v":"0:00"},0,"0:00",0,"0:00",1]
["2025-04-18",null,null,null,"Public Holiday",1,{"$f":"IF(ISERROR(VLOOKUP($E38,HolidayType,2,FALSE)),IF(OR(ISBLANK(B38),ISBLANK(C38),ISBLANK(D38)),\"0:00\",C38-(B38+D38)),IF(OR(ISBLANK(B38),ISBLANK(C38),ISBLANK(D38)),IF(VLOOKUP($E38,HolidayType,2,FALSE),IF(VLOOKUP($A38,Holidays,4,FALSE),VLOOKUP(WEEKDAY($A38,2),Holidays!$E$3:$H$9,4,FALSE),\"0:00\"),VLOOKUP(WEEKDAY($A38,2),Holidays!$E$3:$H$9,4,FALSE)),IF(C38-(B38+D38)>VLOOKUP(WEEKDAY($A38,2),Holidays!$E$3:$H$9,4,FALSE),C38-(B38+D38),IF(VLOOKUP($E38,HolidayType,2,FALSE),IF(VLOOKUP($A38,Holidays,4,FALSE),VLOOKUP(WEEKDAY($A38,2),Holidays!$E$3:$H$9,4,FALSE),C38-(B38+D38)),VLOOKUP(WEEKDAY($A38,2),Holidays!$E$3:$H$9,4,FALSE)))))","v":"07:00:00"},7,"7:00",7,"7:00",1]
["2025-04-19",null,null,null,"Public Holiday",1.5,{"$f":"IF(ISERROR(VLOOKUP($E39,HolidayType,2,FALSE)),IF(OR(ISBLANK(B39),ISBLANK(C39),ISBLANK(D39)),\"0:00\",C39-(B39+D39)),IF(OR(ISBLANK(B39),ISBLANK(C39),ISBLANK(D39)),IF(VLOOKUP($E39,HolidayType,2,FALSE),IF(VLOOKUP($A39,Holidays,4,FALSE),VLOOKUP(WEEKDAY($A39,2),Holidays!$E$3:$H$9,4,FALSE),\"0:00\"),VLOOKUP(WEEKDAY($A39,2),Holidays!$E$3:$H$9,4,FALSE)),IF(C39-(B39+D39)>VLOOKUP(WEEKDAY($A39,2),Holidays!$E$3:$H$9,4,FALSE),C39-(B39+D39),IF(VLOOKUP($E39,HolidayType,2,FALSE),IF(VLOOKUP($A39,Holidays,4,FALSE),VLOOKUP(WEEKDAY($A39,2),Holidays!$E$3:$H$9,4,FALSE),C39-(B39+D39)),VLOOKUP(WEEKDAY($A39,2),Holidays!$E$3:$H$9,4,FALSE)))))","v":"00:00:00"},0,"0:00",7,"7:00",0]
["2025-04-20",null,null,null,"Public Holiday",2,{"$f":"IF(ISERROR(VLOOKUP($E40,HolidayType,2,FALSE)),IF(OR(ISBLANK(B40),ISBLANK(C40),ISBLANK(D40)),\"0:00\",C40-(B40+D40)),IF(OR(ISBLANK(B40),ISBLANK(C40),ISBLANK(D40)),IF(VLOOKUP($E40,HolidayType,2,FALSE),IF(VLOOKUP($A40,Holidays,4,FALSE),VLOOKUP(WEEKDAY($A40,2),Holidays!$E$3:$H$9,4,FALSE),\"0:00\"),VLOOKUP(WEEKDAY($A40,2),Holidays!$E$3:$H$9,4,FALSE)),IF(C40-(B40+D40)>VLOOKUP(WEEKDAY($A40,2),Holidays!$E$3:$H$9,4,FALSE),C40-(B40+D40),IF(VLOOKUP($E40,HolidayType,2,FALSE),IF(VLOOKUP($A40,Holidays,4,FALSE),VLOOKUP(WEEKDAY($A40,2),Holidays!$E$3:$H$9,4,FALSE),C40-(B40+D40)),VLOOKUP(WEEKDAY($A40,2),Holidays!$E$3:$H$9,4,FALSE)))))","v":"00:00:00"},0,"0:00",{"$f":"J39+H40","v":7},"7:00",0]
[null,null,null,null,null,null,null,null,null,null,null,{"$f":"SUM(L13:L40)","v":20}]
[null,null,null,null,"Total ordinary hours for accounting period",null,{"$f":"CONCATENATE(TRUNC(INT(ABS(J42))),\":\",TEXT(ABS(ABS(J42)-TRUNC(INT(ABS(J42))))*60,\"00\"))","v":"140:00"},null,null,{"$f":"J10*4","v":140}]
[null,null,null,null,"Total actual hours worked in accounting period",null,{"$f":"CONCATENATE(TRUNC(INT(ABS(J43))),\":\",TEXT(ABS(ABS(J43)-TRUNC(INT(ABS(J43))))*60,\"00\"))","v":"7:00"},null,null,{"$f":"J40","v":7}]
[null,null,null,null,"Difference",null,{"$f":"CONCATENATE(TRUNC(INT(ABS(J44))),\":\",TEXT(ABS(ABS(J44)-TRUNC(INT(ABS(J44))))*60,\"00\"))","v":"133:00"},null,{"$f":"IF(J44<0,\"Debit\",IF(J44=0,\"\",\"Credit\"))","v":"Debit"},{"$f":"ROUND(J43-J42,2)","v":-133}]
[null,null,null,null,"If applicable, carry over from previous period",null,"0:00",null,"Credit",{"$f":"IF(I45=\"Debit\",0-(LEFT(G45,FIND(\":\",G45)-1)+RIGHT(G45,2)/60),LEFT(G45,FIND(\":\",G45)-1)+RIGHT(G45,2)/60)","v":0}]
[null,null,null,null,"Carry over to following period",null,{"$f":"CONCATENATE(TRUNC(INT(ABS(J46))),\":\",TEXT(ABS(ABS(J46)-TRUNC(INT(ABS(J46))))*60,\"00\"))","v":"133:00"},null,{"$f":"IF(J46<0,\"Debit\",IF(J46=0,\"\",\"Credit\"))","v":"Debit"},{"$f":"ROUND(J44+J45,2)","v":-133}]
[]
[null,null,null,null,"Future flex leave bookings",null,"0:00",null,null,{"$f":"IF(I48=\"Debit\",0-(LEFT(G48,FIND(\":\",G48)-1)+RIGHT(G48,2)/60),LEFT(G48,FIND(\":\",G48)-1)+RIGHT(G48,2)/60)","v":0}]
[null,null,null,null,"Remaining",null,{"$f":"CONCATENATE(TRUNC(INT(ABS(J49))),\":\",TEXT(ABS(ABS(J49)-TRUNC(INT(ABS(J49))))*60,\"00\"))","v":"133:00"},null,{"$f":"IF(J49<0,\"Debit\",IF(J49=0,\"\",\"Credit\"))","v":"Debit"},{"$f":"J46-J48","v":-133}]
[]
[]
[]
["Signature",null,null,null,"Certified Correct"]
[null,"(Employee)",null,null,null,"(Supervisor)"]
[]
["Completed timesheets shall be authorised as correct by the supervisor and filed as an auditable document for 7yrs"]
[]
[]
["INSERT Comments/Leave below:"]
["Albury"]
["Annual Leave"]
["Carers Leave"]
["Concessional Half Day"]
["Dubbo"]
["Exam"]
["Flexi Day"]
["Goulburn"]
["Leave Without Pay"]
["Long Service Leave"]
["Maternity Leave"]
["Public Holiday"]
["Purchased Leave"]
["Sick Leave"]
["Special Leave"]
["Study Leave"]
["Training"]
["Wagga Wagga"]
["Working @ home"]

{"sheet":"Flexi Timesheet (5)","index":6,"n_rows":78,"n_cols":12,"rows_kept":78,"cut":false,"hidden":false,"merged":[[65,0,65,1],[7,2,7,4],[8,2,8,4],[52,1,52,2],[52,5,52,10],[53,1,53,2],[53,5,53,10],[59,0,59,1],[60,0,60,1],[62,0,62,1],[63,0,63,1],[64,0,64,1],[73,0,73,1],[77,0,77,1],[79,0,79,1],[66,0,66,1],[67,0,67,1],[68,0,68,1],[69,0,69,1],[70,0,70,1],[72,0,72,1]]}
[null,null,null,null,null,null,null,null,null,null,"Flexible Working Hours Scheme"]
[null,null,null,null,null,null,null,null,null,null,"2025 Flexi-Timesheet"]
[]
[]
[]
[]
[]
[null,"Name:"]
[null,"Team:",null,null,null,null,null,null,"Hours per Day",{"$f":"HOUR(K9)+MINUTE(K9)/60","v":7},"07:00:00","Don't override cell, click into cell and change time to equal your hours. i.e. 7 hours = 7:00am"]
[null,"Accounting Period:","2025-04-21",{"$f":"CONCATENATE(\" to \",TEXT(C10+27,\"dd-mmm-yyyy\"))","v":" to 18-May-2025"},null,null,null,null,"Days per Week",{"$f":"J9*K10","v":35},5]
[null,null,null,null,{"$f":"IF(ISERROR(VLOOKUP($A11,Holidays,2,FALSE)),\"\",VLOOKUP($A11,Holidays,2,0))","v":""},null,null,null,"Work Days",null,"Mo, Tu, We, Th, Fr"]
["Date","Start Time","Finish Time","Unpaid Breaks","Comments/Leave","Rate","Elapsed Time","Decimal Hours","Total Hours","Cum. Dec.","Cumulative Total"]
[{"$f":"C10","v":"2025-04-21"},null,null,null,"Public Holiday",1,{"$f":"IF(ISERROR(VLOOKUP($E13,HolidayType,2,FALSE)),IF(OR(ISBLANK(B13),ISBLANK(C13),ISBLANK(D13)),\"0:00\",C13-(B13+D13)),IF(OR(ISBLANK(B13),ISBLANK(C13),ISBLANK(D13)),IF(VLOOKUP($E13,HolidayType,2,FALSE),IF(VLOOKUP($A13,Holidays,4,FALSE),VLOOKUP(WEEKDAY($A13,2),Holidays!$E$3:$H$9,4,FALSE),\"0:00\"),VLOOKUP(WEEKDAY($A13,2),Holidays!$E$3:$H$9,4,FALSE)),IF(C13-(B13+D13)>VLOOKUP(WEEKDAY($A13,2),Holidays!$E$3:$H$9,4,FALSE),C13-(B13+D13),IF(VLOOKUP($E13,HolidayType,2,FALSE),IF(VLOOKUP($A13,Holidays,4,FALSE),VLOOKUP(WEEKDAY($A13,2),Holidays!$E$3:$H$9,4,FALSE),C13-(B13+D13)),VLOOKUP(WEEKDAY($A13,2),Holidays!$E$3:$H$9,4,FALSE)))))","v":"07:00:00"},{"$f":"((HOUR(G13)+MINUTE(G13)/60))*F13","v":7},{"$f":"CONCATENATE(TRUNC(INT(H13)),\":\",TEXT((H13-TRUNC(INT(H13)))*60,\"00\"))","v":"7:00"},{"$f":"H13","v":7},{"$f":"CONCATENATE(TRUNC(INT(J13)),\":\",TEXT((J13-TRUNC(INT(J13)))*60,\"00\"))","v":"7:00"},{"$f":"IF(WEEKDAY(A13,2)<6,IF(F13<>0,1,0),0)","v":1}]
[{"$f":"A13+1","v":"2025-04-22"},null,null,null,null,1,{"$f":"IF(ISERROR(VLOOKUP($E14,HolidayType,2,FALSE)),IF(OR(ISBLANK(B14),ISBLANK(C14),ISBLANK(D14)),\"0:00\",C14-(B14+D14)),IF(OR(ISBLANK(B14),ISBLANK(C14),ISBLANK(D14)),IF(VLOOKUP($E14,HolidayType,2,FALSE),IF(VLOOKUP($A14,Holidays,4,FALSE),VLOOKUP(WEEKDAY($A14,2),Holidays!$E$3:$H$9,4,FALSE),\"0:00\"),VLOOKUP(WEEKDAY($A14,2),Holidays!$E$3:$H$9,4,FALSE)),IF(C14-(B14+D14)>VLOOKUP(WEEKDAY($A14,2),Holidays!$E$3:$H$9,4,FALSE),C14-(B14+D14),IF(VLOOKUP($E14,HolidayType,2,FALSE),IF(VLOOKUP($A14,Holidays,4,FALSE),VLOOKUP(WEEKDAY($A14,2),Holidays!$E$3:$H$9,4,FALSE),C14-(B14+D14)),VLOOKUP(WEEKDAY($A14,2),Holidays!$E$3:$H$9,4,FALSE)))))","v":"0:00"},0,{"$f":"CONCATENATE(TRUNC(INT(H14)),\":\",TEXT((H14-TRUNC(INT(H14)))*60,\"00\"))","v":"0:00"},{"$f":"J13+H14","v":7},{"$f":"CONCATENATE(TRUNC(INT(J14)),\":\",TEXT((J14-TRUNC(INT(J14)))*60,\"00\"))","v":"7:00"},1]
["2025-04-23",null,null,null,null,1,{"$f":"IF(ISERROR(VLOOKUP($E15,HolidayType,2,FALSE)),IF(OR(ISBLANK(B15),ISBLANK(C15),ISBLANK(D15)),\"0:00\",C15-(B15+D15)),IF(OR(ISBLANK(B15),ISBLANK(C15),ISBLANK(D15)),IF(VLOOKUP($E15,HolidayType,2,FALSE),IF(VLOOKUP($A15,Holidays,4,FALSE),VLOOKUP(WEEKDAY($A15,2),Holidays!$E$3:$H$9,4,FALSE),\"0:00\"),VLOOKUP(WEEKDAY($A15,2),Holidays!$E$3:$H$9,4,FALSE)),IF(C15-(B15+D15)>VLOOKUP(WEEKDAY($A15,2),Holidays!$E$3:$H$9,4,FALSE),C15-(B15+D15),IF(VLOOKUP($E15,HolidayType,2,FALSE),IF(VLOOKUP($A15,Holidays,4,FALSE),VLOOKUP(WEEKDAY($A15,2),Holidays!$E$3:$H$9,4,FALSE),C15-(B15+D15)),VLOOKUP(WEEKDAY($A15,2),Holidays!$E$3:$H$9,4,FALSE)))))","v":"0:00"},0,"0:00",{"$f":"J14+H15","v":7},"7:00",1]
["2025-04-24",null,null,null,null,1,{"$f":"IF(ISERROR(VLOOKUP($E16,HolidayType,2,FALSE)),IF(OR(ISBLANK(B16),ISBLANK(C16),ISBLANK(D16)),\"0:00\",C16-(B16+D16)),IF(OR(ISBLANK(B16),ISBLANK(C16),ISBLANK(D16)),IF(VLOOKUP($E16,HolidayType,2,FALSE),IF(VLOOKUP($A16,Holidays,4,FALSE),VLOOKUP(WEEKDAY($A16,2),Holidays!$E$3:$H$9,4,FALSE),\"0:00\"),VLOOKUP(WEEKDAY($A16,2),Holidays!$E$3:$H$9,4,FALSE)),IF(C16-(B16+D16)>VLOOKUP(WEEKDAY($A16,2),Holidays!$E$3:$H$9,4,FALSE),C16-(B16+D16),IF(VLOOKUP($E16,HolidayType,2,FALSE),IF(VLOOKUP($A16,Holidays,4,FALSE),VLOOKUP(WEEKDAY($A16,2),Holidays!$E$3:$H$9,4,FALSE),C16-(B16+D16)),VLOOKUP(WEEKDAY($A16,2),Holidays!$E$3:$H$9,4,FALSE)))))","v":"0:00"},0,"0:00",7,"7:00",1]
["2025-04-25",null,null,null,"Public Holiday",1,{"$f":"IF(ISERROR(VLOOKUP($E17,HolidayType,2,FALSE)),IF(OR(ISBLANK(B17),ISBLANK(C17),ISBLANK(D17)),\"0:00\",C17-(B17+D17)),IF(OR(ISBLANK(B17),ISBLANK(C17),ISBLANK(D17)),IF(VLOOKUP($E17,HolidayType,2,FALSE),IF(VLOOKUP($A17,Holidays,4,FALSE),VLOOKUP(WEEKDAY($A17,2),Holidays!$E$3:$H$9,4,FALSE),\"0:00\"),VLOOKUP(WEEKDAY($A17,2),Holidays!$E$3:$H$9,4,FALSE)),IF(C17-(B17+D17)>VLOOKUP(WEEKDAY($A17,2),Holidays!$E$3:$H$9,4,FALSE),C17-(B17+D17),IF(VLOOKUP($E17,HolidayType,2,FALSE),IF(VLOOKUP($A17,Holidays,4,FALSE),VLOOKUP(WEEKDAY($A17,2),Holidays!$E$3:$H$9,4,FALSE),C17-(B17+D17)),VLOOKUP(WEEKDAY($A17,2),Holidays!$E$3:$H$9,4,FALSE)))))","v":"07:00:00"},7,"7:00",14,"14:00",1]
["2025-04-26",null,null,null,{"$f":"IF(ISERROR(VLOOKUP($A18,Holidays,2,FALSE)),\"\",VLOOKUP($A18,Holidays,2,0))","v":""},1.5,{"$f":"IF(ISERROR(VLOOKUP($E18,HolidayType,2,FALSE)),IF(OR(ISBLANK(B18),ISBLANK(C18),ISBLANK(D18)),\"0:00\",C18-(B18+D18)),IF(OR(ISBLANK(B18),ISBLANK(C18),ISBLANK(D18)),IF(VLOOKUP($E18,HolidayType,2,FALSE),IF(VLOOKUP($A18,Holidays,4,FALSE),VLOOKUP(WEEKDAY($A18,2),Holidays!$E$3:$H$9,4,FALSE),\"0:00\"),VLOOKUP(WEEKDAY($A18,2),Holidays!$E$3:$H$9,4,FALSE)),IF(C18-(B18+D18)>VLOOKUP(WEEKDAY($A18,2),Holidays!$E$3:$H$9,4,FALSE),C18-(B18+D18),IF(VLOOKUP($E18,HolidayType,2,FALSE),IF(VLOOKUP($A18,Holidays,4,FALSE),VLOOKUP(WEEKDAY($A18,2),Holidays!$E$3:$H$9,4,FALSE),C18-(B18+D18)),VLOOKUP(WEEKDAY($A18,2),Holidays!$E$3:$H$9,4,FALSE)))))","v":"0:00"},0,"0:00",14,"14:00",0]
["2025-04-27",null,null,null,{"$f":"IF(ISERROR(VLOOKUP($A19,Holidays,2,FALSE)),\"\",VLOOKUP($A19,Holidays,2,0))","v":""},2,{"$f":"IF(ISERROR(VLOOKUP($E19,HolidayType,2,FALSE)),IF(OR(ISBLANK(B19),ISBLANK(C19),ISBLANK(D19)),\"0:00\",C19-(B19+D19)),IF(OR(ISBLANK(B19),ISBLANK(C19),ISBLANK(D19)),IF(VLOOKUP($E19,HolidayType,2,FALSE),IF(VLOOKUP($A19,Holidays,4,FALSE),VLOOKUP(WEEKDAY($A19,2),Holidays!$E$3:$H$9,4,FALSE),\"0:00\"),VLOOKUP(WEEKDAY($A19,2),Holidays!$E$3:$H$9,4,FALSE)),IF(C19-(B19+D19)>VLOOKUP(WEEKDAY($A19,2),Holidays!$E$3:$H$9,4,FALSE),C19-(B19+D19),IF(VLOOKUP($E19,HolidayType,2,FALSE),IF(VLOOKUP($A19,Holidays,4,FALSE),VLOOKUP(WEEKDAY($A19,2),Holidays!$E$3:$H$9,4,FALSE),C19-(B19+D19)),VLOOKUP(WEEKDAY($A19,2),Holidays!$E$3:$H$9,4,FALSE)))))","v":"0:00"},0,"0:00",{"$f":"J18+H19","v":14},"14:00",0]
["2025-04-28",null,null,null,null,1,{"$f":"IF(ISERROR(VLOOKUP($E20,HolidayType,2,FALSE)),IF(OR(ISBLANK(B20),ISBLANK(C20),ISBLANK(D20)),\"0:00\",C20-(B20+D20)),IF(OR(ISBLANK(B20),ISBLANK(C20),ISBLANK(D20)),IF(VLOOKUP($E20,HolidayType,2,FALSE),IF(VLOOKUP($A20,Holidays,4,FALSE),VLOOKUP(WEEKDAY($A20,2),Holidays!$E$3:$H$9,4,FALSE),\"0:00\"),VLOOKUP(WEEKDAY($A20,2),Holidays!$E$3:$H$9,4,FALSE)),IF(C20-(B20+D20)>VLOOKUP(WEEKDAY($A20,2),Holidays!$E$3:$H$9,4,FALSE),C20-(B20+D20),IF(VLOOKUP($E20,HolidayType,2,FALSE),IF(VLOOKUP($A20,Holidays,4,FALSE),VLOOKUP(WEEKDAY($A20,2),Holidays!$E$3:$H$9,4,FALSE),C20-(B20+D20)),VLOOKUP(WEEKDAY($A20,2),Holidays!$E$3:$H$9,4,FALSE)))))","v":"0:00"},0,"0:00",{"$f":"J19+H20","v":14},"14:00",1]
["2025-04-29",null,null,null,null,1,{"$f":"IF(ISERROR(VLOOKUP($E21,HolidayType,2,FALSE)),IF(OR(ISBLANK(B21),ISBLANK(C21),ISBLANK(D21)),\"0:00\",C21-(B21+D21)),IF(OR(ISBLANK(B21),ISBLANK(C21),ISBLANK(D21)),IF(VLOOKUP($E21,HolidayType,2,FALSE),IF(VLOOKUP($A21,Holidays,4,FALSE),VLOOKUP(WEEKDAY($A21,2),Holidays!$E$3:$H$9,4,FALSE),\"0:00\"),VLOOKUP(WEEKDAY($A21,2),Holidays!$E$3:$H$9,4,FALSE)),IF(C21-(B21+D21)>VLOOKUP(WEEKDAY($A21,2),Holidays!$E$3:$H$9,4,FALSE),C21-(B21+D21),IF(VLOOKUP($E21,HolidayType,2,FALSE),IF(VLOOKUP($A21,Holidays,4,FALSE),VLOOKUP(WEEKDAY($A21,2),Holidays!$E$3:$H$9,4,FALSE),C21-(B21+D21)),VLOOKUP(WEEKDAY($A21,2),Holidays!$E$3:$H$9,4,FALSE)))))","v":"0:00"},0,"0:00",14,"14:00",1]
["2025-04-30",null,null,null,null,1,{"$f":"IF(ISERROR(VLOOKUP($E22,HolidayType,2,FALSE)),IF(OR(ISBLANK(B22),ISBLANK(C22),ISBLANK(D22)),\"0:00\",C22-(B22+D22)),IF(OR(ISBLANK(B22),ISBLANK(C22),ISBLANK(D22)),IF(VLOOKUP($E22,HolidayType,2,FALSE),IF(VLOOKUP($A22,Holidays,4,FALSE),VLOOKUP(WEEKDAY($A22,2),Holidays!$E$3:$H$9,4,FALSE),\"0:00\"),VLOOKUP(WEEKDAY($A22,2),Holidays!$E$3:$H$9,4,FALSE)),IF(C22-(B22+D22)>VLOOKUP(WEEKDAY($A22,2),Holidays!$E$3:$H$9,4,FALSE),C22-(B22+D22),IF(VLOOKUP($E22,HolidayType,2,FALSE),IF(VLOOKUP($A22,Holidays,4,FALSE),VLOOKUP(WEEKDAY($A22,2),Holidays!$E$3:$H$9,4,FALSE),C22-(B22+D22)),VLOOKUP(WEEKDAY($A22,2),Holidays!$E$3:$H$9,4,FALSE)))))","v":"0:00"},0,"0:00",14,"14:00",1]
["2025-05-01",null,null,null,null,1,{"$f":"IF(ISERROR(VLOOKUP($E23,HolidayType,2,FALSE)),IF(OR(ISBLANK(B23),ISBLANK(C23),ISBLANK(D23)),\"0:00\",C23-(B23+D23)),IF(OR(ISBLANK(B23),ISBLANK(C23),ISBLANK(D23)),IF(VLOOKUP($E23,HolidayType,2,FALSE),IF(VLOOKUP($A23,Holidays,4,FALSE),VLOOKUP(WEEKDAY($A23,2),Holidays!$E$3:$H$9,4,FALSE),\"0:00\"),VLOOKUP(WEEKDAY($A23,2),Holidays!$E$3:$H$9,4,FALSE)),IF(C23-(B23+D23)>VLOOKUP(WEEKDAY($A23,2),Holidays!$E$3:$H$9,4,FALSE),C23-(B23+D23),IF(VLOOKUP($E23,HolidayType,2,FALSE),IF(VLOOKUP($A23,Holidays,4,FALSE),VLOOKUP(WEEKDAY($A23,2),Holidays!$E$3:$H$9,4,FALSE),C23-(B23+D23)),VLOOKUP(WEEKDAY($A23,2),Holidays!$E$3:$H$9,4,FALSE)))))","v":"0:00"},0,"0:00",14,"14:00",1]
["2025-05-02",null,null,null,null,1,{"$f":"IF(ISERROR(VLOOKUP($E24,HolidayType,2,FALSE)),IF(OR(ISBLANK(B24),ISBLANK(C24),ISBLANK(D24)),\"0:00\",C24-(B24+D24)),IF(OR(ISBLANK(B24),ISBLANK(C24),ISBLANK(D24)),IF(VLOOKUP($E24,HolidayType,2,FALSE),IF(VLOOKUP($A24,Holidays,4,FALSE),VLOOKUP(WEEKDAY($A24,2),Holidays!$E$3:$H$9,4,FALSE),\"0:00\"),VLOOKUP(WEEKDAY($A24,2),Holidays!$E$3:$H$9,4,FALSE)),IF(C24-(B24+D24)>VLOOKUP(WEEKDAY($A24,2),Holidays!$E$3:$H$9,4,FALSE),C24-(B24+D24),IF(VLOOKUP($E24,HolidayType,2,FALSE),IF(VLOOKUP($A24,Holidays,4,FALSE),VLOOKUP(WEEKDAY($A24,2),Holidays!$E$3:$H$9,4,FALSE),C24-(B24+D24)),VLOOKUP(WEEKDAY($A24,2),Holidays!$E$3:$H$9,4,FALSE)))))","v":"0:00"},0,"0:00",14,"14:00",1]
["2025-05-03",null,null,null,null,1.5,{"$f":"IF(ISERROR(VLOOKUP($E25,HolidayType,2,FALSE)),IF(OR(ISBLANK(B25),ISBLANK(C25),ISBLANK(D25)),\"0:00\",C25-(B25+D25)),IF(OR(ISBLANK(B25),ISBLANK(C25),ISBLANK(D25)),IF(VLOOKUP($E25,HolidayType,2,FALSE),IF(VLOOKUP($A25,Holidays,4,FALSE),VLOOKUP(WEEKDAY($A25,2),Holidays!$E$3:$H$9,4,FALSE),\"0:00\"),VLOOKUP(WEEKDAY($A25,2),Holidays!$E$3:$H$9,4,FALSE)),IF(C25-(B25+D25)>VLOOKUP(WEEKDAY($A25,2),Holidays!$E$3:$H$9,4,FALSE),C25-(B25+D25),IF(VLOOKUP($E25,HolidayType,2,FALSE),IF(VLOOKUP($A25,Holidays,4,FALSE),VLOOKUP(WEEKDAY($A25,2),Holidays!$E$3:$H$9,4,FALSE),C25-(B25+D25)),VLOOKUP(WEEKDAY($A25,2),Holidays!$E$3:$H$9,4,FALSE)))))","v":"0:00"},0,"0:00",{"$f":"J24+H25","v":14},"14:00",0]
["2025-05-04",null,null,null,null,2,{"$f":"IF(ISERROR(VLOOKUP($E26,HolidayType,2,FALSE)),IF(OR(ISBLANK(B26),ISBLANK(C26),ISBLANK(D26)),\"0:00\",C26-(B26+D26)),IF(OR(ISBLANK(B26),ISBLANK(C26),ISBLANK(D26)),IF(VLOOKUP($E26,HolidayType,2,FALSE),IF(VLOOKUP($A26,Holidays,4,FALSE),VLOOKUP(WEEKDAY($A26,2),Holidays!$E$3:$H$9,4,FALSE),\"0:00\"),VLOOKUP(WEEKDAY($A26,2),Holidays!$E$3:$H$9,4,FALSE)),IF(C26-(B26+D26)>VLOOKUP(WEEKDAY($A26,2),Holidays!$E$3:$H$9,4,FALSE),C26-(B26+D26),IF(VLOOKUP($E26,HolidayType,2,FALSE),IF(VLOOKUP($A26,Holidays,4,FALSE),VLOOKUP(WEEKDAY($A26,2),Holidays!$E$3:$H$9,4,FALSE),C26-(B26+D26)),VLOOKUP(WEEKDAY($A26,2),Holidays!$E$3:$H$9,4,FALSE)))))","v":"0:00"},0,"0:00",{"$f":"J25+H26","v":14},"14:00",0]
["2025-05-05",null,null,null,null,1,{"$f":"IF(ISERROR(VLOOKUP($E27,HolidayType,2,FALSE)),IF(OR(ISBLANK(B27),ISBLANK(C27),ISBLANK(D27)),\"0:00\",C27-(B27+D27)),IF(OR(ISBLANK(B27),ISBLANK(C27),ISBLANK(D27)),IF(VLOOKUP($E27,HolidayType,2,FALSE),IF(VLOOKUP($A27,Holidays,4,FALSE),VLOOKUP(WEEKDAY($A27,2),Holidays!$E$3:$H$9,4,FALSE),\"0:00\"),VLOOKUP(WEEKDAY($A27,2),Holidays!$E$3:$H$9,4,FALSE)),IF(C27-(B27+D27)>VLOOKUP(WEEKDAY($A27,2),Holidays!$E$3:$H$9,4,FALSE),C27-(B27+D27),IF(VLOOKUP($E27,HolidayType,2,FALSE),IF(VLOOKUP($A27,Holidays,4,FALSE),VLOOKUP(WEEKDAY($A27,2),Holidays!$E$3:$H$9,4,FALSE),C27-(B27+D27)),VLOOKUP(WEEKDAY($A27,2),Holidays!$E$3:$H$9,4,FALSE)))))","v":"0:00"},0,"0:00",{"$f":"J26+H27","v":14},"14:00",1]
["2025-05-06",null,null,null,null,1,{"$f":"IF(ISERROR(VLOOKUP($E28,HolidayType,2,FALSE)),IF(OR(ISBLANK(B28),ISBLANK(C28),ISBLANK(D28)),\"0:00\",C28-(B28+D28)),IF(OR(ISBLANK(B28),ISBLANK(C28),ISBLANK(D28)),IF(VLOOKUP($E28,HolidayType,2,FALSE),IF(VLOOKUP($A28,Holidays,4,FALSE),VLOOKUP(WEEKDAY($A28,2),Holidays!$E$3:$H$9,4,FALSE),\"0:00\"),VLOOKUP(WEEKDAY($A28,2),Holidays!$E$3:$H$9,4,FALSE)),IF(C28-(B28+D28)>VLOOKUP(WEEKDAY($A28,2),Holidays!$E$3:$H$9,4,FALSE),C28-(B28+D28),IF(VLOOKUP($E28,HolidayType,2,FALSE),IF(VLOOKUP($A28,Holidays,4,FALSE),VLOOKUP(WEEKDAY($A28,2),Holidays!$E$3:$H$9,4,FALSE),C28-(B28+D28)),VLOOKUP(WEEKDAY($A28,2),Holidays!$E$3:$H$9,4,FALSE)))))","v":"0:00"},0,"0:00",14,"14:00",1]
["2025-05-07",null,null,null,null,1,{"$f":"IF(ISERROR(VLOOKUP($E29,HolidayType,2,FALSE)),IF(OR(ISBLANK(B29),ISBLANK(C29),ISBLANK(D29)),\"0:00\",C29-(B29+D29)),IF(OR(ISBLANK(B29),ISBLANK(C29),ISBLANK(D29)),IF(VLOOKUP($E29,HolidayType,2,FALSE),IF(VLOOKUP($A29,Holidays,4,FALSE),VLOOKUP(WEEKDAY($A29,2),Holidays!$E$3:$H$9,4,FALSE),\"0:00\"),VLOOKUP(WEEKDAY($A29,2),Holidays!$E$3:$H$9,4,FALSE)),IF(C29-(B29+D29)>VLOOKUP(WEEKDAY($A29,2),Holidays!$E$3:$H$9,4,FALSE),C29-(B29+D29),IF(VLOOKUP($E29,HolidayType,2,FALSE),IF(VLOOKUP($A29,Holidays,4,FALSE),VLOOKUP(WEEKDAY($A29,2),Holidays!$E$3:$H$9,4,FALSE),C29-(B29+D29)),VLOOKUP(WEEKDAY($A29,2),Holidays!$E$3:$H$9,4,FALSE)))))","v":"0:00"},0,"0:00",14,"14:00",1]
["2025-05-08",null,null,null,{"$f":"IF(ISERROR(VLOOKUP($A30,Holidays,2,FALSE)),\"\",VLOOKUP($A30,Holidays,2,0))","v":""},1,{"$f":"IF(ISERROR(VLOOKUP($E30,HolidayType,2,FALSE)),IF(OR(ISBLANK(B30),ISBLANK(C30),ISBLANK(D30)),\"0:00\",C30-(B30+D30)),IF(OR(ISBLANK(B30),ISBLANK(C30),ISBLANK(D30)),IF(VLOOKUP($E30,HolidayType,2,FALSE),IF(VLOOKUP($A30,Holidays,4,FALSE),VLOOKUP(WEEKDAY($A30,2),Holidays!$E$3:$H$9,4,FALSE),\"0:00\"),VLOOKUP(WEEKDAY($A30,2),Holidays!$E$3:$H$9,4,FALSE)),IF(C30-(B30+D30)>VLOOKUP(WEEKDAY($A30,2),Holidays!$E$3:$H$9,4,FALSE),C30-(B30+D30),IF(VLOOKUP($E30,HolidayType,2,FALSE),IF(VLOOKUP($A30,Holidays,4,FALSE),VLOOKUP(WEEKDAY($A30,2),Holidays!$E$3:$H$9,4,FALSE),C30-(B30+D30)),VLOOKUP(WEEKDAY($A30,2),Holidays!$E$3:$H$9,4,FALSE)))))","v":"0:00"},0,"0:00",14,"14:00",1]
["2025-05-09",null,null,null,"",1,{"$f":"IF(ISERROR(VLOOKUP($E31,HolidayType,2,FALSE)),IF(OR(ISBLANK(B31),ISBLANK(C31),ISBLANK(D31)),\"0:00\",C31-(B31+D31)),IF(OR(ISBLANK(B31),ISBLANK(C31),ISBLANK(D31)),IF(VLOOKUP($E31,HolidayType,2,FALSE),IF(VLOOKUP($A31,Holidays,4,FALSE),VLOOKUP(WEEKDAY($A31,2),Holidays!$E$3:$H$9,4,FALSE),\"0:00\"),VLOOKUP(WEEKDAY($A31,2),Holidays!$E$3:$H$9,4,FALSE)),IF(C31-(B31+D31)>VLOOKUP(WEEKDAY($A31,2),Holidays!$E$3:$H$9,4,FALSE),C31-(B31+D31),IF(VLOOKUP($E31,HolidayType,2,FALSE),IF(VLOOKUP($A31,Holidays,4,FALSE),VLOOKUP(WEEKDAY($A31,2),Holidays!$E$3:$H$9,4,FALSE),C31-(B31+D31)),VLOOKUP(WEEKDAY($A31,2),Holidays!$E$3:$H$9,4,FALSE)))))","v":"0:00"},0,"0:00",14,"14:00",1]
["2025-05-10",null,null,null,"",1.5,{"$f":"IF(ISERROR(VLOOKUP($E32,HolidayType,2,FALSE)),IF(OR(ISBLANK(B32),ISBLANK(C32),ISBLANK(D32)),\"0:00\",C32-(B32+D32)),IF(OR(ISBLANK(B32),ISBLANK(C32),ISBLANK(D32)),IF(VLOOKUP($E32,HolidayType,2,FALSE),IF(VLOOKUP($A32,Holidays,4,FALSE),VLOOKUP(WEEKDAY($A32,2),Holidays!$E$3:$H$9,4,FALSE),\"0:00\"),VLOOKUP(WEEKDAY($A32,2),Holidays!$E$3:$H$9,4,FALSE)),IF(C32-(B32+D32)>VLOOKUP(WEEKDAY($A32,2),Holidays!$E$3:$H$9,4,FALSE),C32-(B32+D32),IF(VLOOKUP($E32,HolidayType,2,FALSE),IF(VLOOKUP($A32,Holidays,4,FALSE),VLOOKUP(WEEKDAY($A32,2),Holidays!$E$3:$H$9,4,FALSE),C32-(B32+D32)),VLOOKUP(WEEKDAY($A32,2),Holidays!$E$3:$H$9,4,FALSE)))))","v":"0:00"},0,"0:00",{"$f":"J31+H32","v":14},"14:00",0]
["2025-05-11",null,null,null,"",2,{"$f":"IF(ISERROR(VLOOKUP($E33,HolidayType,2,FALSE)),IF(OR(ISBLANK(B33),ISBLANK(C33),ISBLANK(D33)),\"0:00\",C33-(B33+D33)),IF(OR(ISBLANK(B33),ISBLANK(C33),ISBLANK(D33)),IF(VLOOKUP($E33,HolidayType,2,FALSE),IF(VLOOKUP($A33,Holidays,4,FALSE),VLOOKUP(WEEKDAY($A33,2),Holidays!$E$3:$H$9,4,FALSE),\"0:00\"),VLOOKUP(WEEKDAY($A33,2),Holidays!$E$3:$H$9,4,FALSE)),IF(C33-(B33+D33)>VLOOKUP(WEEKDAY($A33,2),Holidays!$E$3:$H$9,4,FALSE),C33-(B33+D33),IF(VLOOKUP($E33,HolidayType,2,FALSE),IF(VLOOKUP($A33,Holidays,4,FALSE),VLOOKUP(WEEKDAY($A33,2),Holidays!$E$3:$H$9,4,FALSE),C33-(B33+D33)),VLOOKUP(WEEKDAY($A33,2),Holidays!$E$3:$H$9,4,FALSE)))))","v":"0:00"},0,"0:00",{"$f":"J32+H33","v":14},"14:00",0]
["2025-05-12",null,null,null,"",1,{"$f":"IF(ISERROR(VLOOKUP($E34,HolidayType,2,FALSE)),IF(OR(ISBLANK(B34),ISBLANK(C34),ISBLANK(D34)),\"0:00\",C34-(B34+D34)),IF(OR(ISBLANK(B34),ISBLANK(C34),ISBLANK(D34)),IF(VLOOKUP($E34,HolidayType,2,FALSE),IF(VLOOKUP($A34,Holidays,4,FALSE),VLOOKUP(WEEKDAY($A34,2),Holidays!$E$3:$H$9,4,FALSE),\"0:00\"),VLOOKUP(WEEKDAY($A34,2),Holidays!$E$3:$H$9,4,FALSE)),IF(C34-(B34+D34)>VLOOKUP(WEEKDAY($A34,2),Holidays!$E$3:$H$9,4,FALSE),C34-(B34+D34),IF(VLOOKUP($E34,HolidayType,2,FALSE),IF(VLOOKUP($A34,Holidays,4,FALSE),VLOOKUP(WEEKDAY($A34,2),Holidays!$E$3:$H$9,4,FALSE),C34-(B34+D34)),VLOOKUP(WEEKDAY($A34,2),Holidays!$E$3:$H$9,4,FALSE)))))","v":"0:00"},0,"0:00",{"$f":"J31+H34","v":14},"14:00",1]
["2025-05-13",null,null,null,"",1,{"$f":"IF(ISERROR(VLOOKUP($E35,HolidayType,2,FALSE)),IF(OR(ISBLANK(B35),ISBLANK(C35),ISBLANK(D35)),\"0:00\",C35-(B35+D35)),IF(OR(ISBLANK(B35),ISBLANK(C35),ISBLANK(D35)),IF(VLOOKUP($E35,HolidayType,2,FALSE),IF(VLOOKUP($A35,Holidays,4,FALSE),VLOOKUP(WEEKDAY($A35,2),Holidays!$E$3:$H$9,4,FALSE),\"0:00\"),VLOOKUP(WEEKDAY($A35,2),Holidays!$E$3:$H$9,4,FALSE)),IF(C35-(B35+D35)>VLOOKUP(WEEKDAY($A35,2),Holidays!$E$3:$H$9,4,FALSE),C35-(B35+D35),IF(VLOOKUP($E35,HolidayType,2,FALSE),IF(VLOOKUP($A35,Holidays,4,FALSE),VLOOKUP(WEEKDAY($A35,2),Holidays!$E$3:$H$9,4,FALSE),C35-(B35+D35)),VLOOKUP(WEEKDAY($A35,2),Holidays!$E$3:$H$9,4,FALSE)))))","v":"0:00"},0,"0:00",14,"14:00",1]
["2025-05-14",null,null,null,"",1,{"$f":"IF(ISERROR(VLOOKUP($E36,HolidayType,2,FALSE)),IF(OR(ISBLANK(B36),ISBLANK(C36),ISBLANK(D36)),\"0:00\",C36-(B36+D36)),IF(OR(ISBLANK(B36),ISBLANK(C36),ISBLANK(D36)),IF(VLOOKUP($E36,HolidayType,2,FALSE),IF(VLOOKUP($A36,Holidays,4,FALSE),VLOOKUP(WEEKDAY($A36,2),Holidays!$E$3:$H$9,4,FALSE),\"0:00\"),VLOOKUP(WEEKDAY($A36,2),Holidays!$E$3:$H$9,4,FALSE)),IF(C36-(B36+D36)>VLOOKUP(WEEKDAY($A36,2),Holidays!$E$3:$H$9,4,FALSE),C36-(B36+D36),IF(VLOOKUP($E36,HolidayType,2,FALSE),IF(VLOOKUP($A36,Holidays,4,FALSE),VLOOKUP(WEEKDAY($A36,2),Holidays!$E$3:$H$9,4,FALSE),C36-(B36+D36)),VLOOKUP(WEEKDAY($A36,2),Holidays!$E$3:$H$9,4,FALSE)))))","v":"0:00"},0,"0:00",14,"14:00",1]
["2025-05-15",null,null,null,"",1,{"$f":"IF(ISERROR(VLOOKUP($E37,HolidayType,2,FALSE)),IF(OR(ISBLANK(B37),ISBLANK(C37),ISBLANK(D37)),\"0:00\",C37-(B37+D37)),IF(OR(ISBLANK(B37),ISBLANK(C37),ISBLANK(D37)),IF(VLOOKUP($E37,HolidayType,2,FALSE),IF(VLOOKUP($A37,Holidays,4,FALSE),VLOOKUP(WEEKDAY($A37,2),Holidays!$E$3:$H$9,4,FALSE),\"0:00\"),VLOOKUP(WEEKDAY($A37,2),Holidays!$E$3:$H$9,4,FALSE)),IF(C37-(B37+D37)>VLOOKUP(WEEKDAY($A37,2),Holidays!$E$3:$H$9,4,FALSE),C37-(B37+D37),IF(VLOOKUP($E37,HolidayType,2,FALSE),IF(VLOOKUP($A37,Holidays,4,FALSE),VLOOKUP(WEEKDAY($A37,2),Holidays!$E$3:$H$9,4,FALSE),C37-(B37+D37)),VLOOKUP(WEEKDAY($A37,2),Holidays!$E$3:$H$9,4,FALSE)))))","v":"0:00"},0,"0:00",14,"14:00",1]
["2025-05-16",null,null,null,"",1,{"$f":"IF(ISERROR(VLOOKUP($E38,HolidayType,2,FALSE)),IF(OR(ISBLANK(B38),ISBLANK(C38),ISBLANK(D38)),\"0:00\",C38-(B38+D38)),IF(OR(ISBLANK(B38),ISBLANK(C38),ISBLANK(D38)),IF(VLOOKUP($E38,HolidayType,2,FALSE),IF(VLOOKUP($A38,Holidays,4,FALSE),VLOOKUP(WEEKDAY($A38,2),Holidays!$E$3:$H$9,4,FALSE),\"0:00\"),VLOOKUP(WEEKDAY($A38,2),Holidays!$E$3:$H$9,4,FALSE)),IF(C38-(B38+D38)>VLOOKUP(WEEKDAY($A38,2),Holidays!$E$3:$H$9,4,FALSE),C38-(B38+D38),IF(VLOOKUP($E38,HolidayType,2,FALSE),IF(VLOOKUP($A38,Holidays,4,FALSE),VLOOKUP(WEEKDAY($A38,2),Holidays!$E$3:$H$9,4,FALSE),C38-(B38+D38)),VLOOKUP(WEEKDAY($A38,2),Holidays!$E$3:$H$9,4,FALSE)))))","v":"0:00"},0,"0:00",14,"14:00",1]
["2025-05-17",null,null,null,"",1.5,{"$f":"IF(ISERROR(VLOOKUP($E39,HolidayType,2,FALSE)),IF(OR(ISBLANK(B39),ISBLANK(C39),ISBLANK(D39)),\"0:00\",C39-(B39+D39)),IF(OR(ISBLANK(B39),ISBLANK(C39),ISBLANK(D39)),IF(VLOOKUP($E39,HolidayType,2,FALSE),IF(VLOOKUP($A39,Holidays,4,FALSE),VLOOKUP(WEEKDAY($A39,2),Holidays!$E$3:$H$9,4,FALSE),\"0:00\"),VLOOKUP(WEEKDAY($A39,2),Holidays!$E$3:$H$9,4,FALSE)),IF(C39-(B39+D39)>VLOOKUP(WEEKDAY($A39,2),Holidays!$E$3:$H$9,4,FALSE),C39-(B39+D39),IF(VLOOKUP($E39,HolidayType,2,FALSE),IF(VLOOKUP($A39,Holidays,4,FALSE),VLOOKUP(WEEKDAY($A39,2),Holidays!$E$3:$H$9,4,FALSE),C39-(B39+D39)),VLOOKUP(WEEKDAY($A39,2),Holidays!$E$3:$H$9,4,FALSE)))))","v":"0:00"},0,"0:00",14,"14:00",0]
["2025-05-18",null,null,null,"",2,{"$f":"IF(ISERROR(VLOOKUP($E40,HolidayType,2,FALSE)),IF(OR(ISBLANK(B40),ISBLANK(C40),ISBLANK(D40)),\"0:00\",C40-(B40+D40)),IF(OR(ISBLANK(B40),ISBLANK(C40),ISBLANK(D40)),IF(VLOOKUP($E40,HolidayType,2,FALSE),IF(VLOOKUP($A40,Holidays,4,FALSE),VLOOKUP(WEEKDAY($A40,2),Holidays!$E$3:$H$9,4,FALSE),\"0:00\"),VLOOKUP(WEEKDAY($A40,2),Holidays!$E$3:$H$9,4,FALSE)),IF(C40-(B40+D40)>VLOOKUP(WEEKDAY($A40,2),Holidays!$E$3:$H$9,4,FALSE),C40-(B40+D40),IF(VLOOKUP($E40,HolidayType,2,FALSE),IF(VLOOKUP($A40,Holidays,4,FALSE),VLOOKUP(WEEKDAY($A40,2),Holidays!$E$3:$H$9,4,FALSE),C40-(B40+D40)),VLOOKUP(WEEKDAY($A40,2),Holidays!$E$3:$H$9,4,FALSE)))))","v":"0:00"},0,"0:00",{"$f":"J39+H40","v":14},"14:00",0]
[null,null,null,null,null,null,null,null,null,null,null,{"$f":"SUM(L13:L40)","v":20}]
[null,null,null,null,"Total ordinary hours for accounting period",null,{"$f":"CONCATENATE(TRUNC(INT(ABS(J42))),\":\",TEXT(ABS(ABS(J42)-TRUNC(INT(ABS(J42))))*60,\"00\"))","v":"140:00"},null,null,{"$f":"J10*4","v":140}]
[null,null,null,null,"Total actual hours worked in accounting period",null,{"$f":"CONCATENATE(TRUNC(INT(ABS(J43))),\":\",TEXT(ABS(ABS(J43)-TRUNC(INT(ABS(J43))))*60,\"00\"))","v":"14:00"},null,null,{"$f":"J40","v":14}]
[null,null,null,null,"Difference",null,{"$f":"CONCATENATE(TRUNC(INT(ABS(J44))),\":\",TEXT(ABS(ABS(J44)-TRUNC(INT(ABS(J44))))*60,\"00\"))","v":"126:00"},null,{"$f":"IF(J44<0,\"Debit\",IF(J44=0,\"\",\"Credit\"))","v":"Debit"},{"$f":"ROUND(J43-J42,2)","v":-126}]
[null,null,null,null,"If applicable, carry over from previous period",null,"0:00",null,"Credit",{"$f":"IF(I45=\"Debit\",0-(LEFT(G45,FIND(\":\",G45)-1)+RIGHT(G45,2)/60),LEFT(G45,FIND(\":\",G45)-1)+RIGHT(G45,2)/60)","v":0}]
[null,null,null,null,"Carry over to following period",null,{"$f":"CONCATENATE(TRUNC(INT(ABS(J46))),\":\",TEXT(ABS(ABS(J46)-TRUNC(INT(ABS(J46))))*60,\"00\"))","v":"126:00"},null,{"$f":"IF(J46<0,\"Debit\",IF(J46=0,\"\",\"Credit\"))","v":"Debit"},{"$f":"ROUND(J44+J45,2)","v":-126}]
[]
[null,null,null,null,"Future flex leave bookings",null,"0:00",null,null,{"$f":"IF(I48=\"Debit\",0-(LEFT(G48,FIND(\":\",G48)-1)+RIGHT(G48,2)/60),LEFT(G48,FIND(\":\",G48)-1)+RIGHT(G48,2)/60)","v":0}]
[null,null,null,null,"Remaining",null,{"$f":"CONCATENATE(TRUNC(INT(ABS(J49))),\":\",TEXT(ABS(ABS(J49)-TRUNC(INT(ABS(J49))))*60,\"00\"))","v":"126:00"},null,{"$f":"IF(J49<0,\"Debit\",IF(J49=0,\"\",\"Credit\"))","v":"Debit"},{"$f":"J46-J48","v":-126}]
[]
[]
[]
["Signature",null,null,null,"Certified Correct"]
[null,"(Employee)",null,null,null,"(Supervisor)"]
[]
["Completed timesheets shall be authorised as correct by the supervisor and filed as an auditable document for 7yrs"]
[]
[]
["INSERT Comments/Leave below:"]
["Albury"]
["Annual Leave"]
["Carers Leave"]
["Concessional Half Day"]
["Dubbo"]
["Exam"]
["Flexi Day"]
["Goulburn"]
["Leave Without Pay"]
["Long Service Leave"]
["Maternity Leave"]
["Public Holiday"]
["Purchased Leave"]
["Sick Leave"]
["Special Leave"]
["Study Leave"]
["Training"]
["Wagga Wagga"]
["Working @ home"]

{"sheet":"Flexi Timesheet (6)","index":7,"n_rows":78,"n_cols":12,"rows_kept":78,"cut":false,"hidden":false,"merged":[[65,0,65,1],[7,2,7,4],[8,2,8,4],[52,1,52,2],[52,5,52,10],[53,1,53,2],[53,5,53,10],[59,0,59,1],[60,0,60,1],[62,0,62,1],[63,0,63,1],[64,0,64,1],[73,0,73,1],[77,0,77,1],[79,0,79,1],[66,0,66,1],[67,0,67,1],[68,0,68,1],[69,0,69,1],[70,0,70,1],[72,0,72,1]]}
[null,null,null,null,null,null,null,null,null,null,"Flexible Working Hours Scheme"]
[null,null,null,null,null,null,null,null,null,null,"2025 Flexi-Timesheet"]
[]
[]
[]
[]
[]
[null,"Name:"]
[null,"Team:",null,null,null,null,null,null,"Hours per Day",{"$f":"HOUR(K9)+MINUTE(K9)/60","v":7},"07:00:00","Don't override cell, click into cell and change time to equal your hours. i.e. 7 hours = 7:00am"]
[null,"Accounting Period:","2025-05-19",{"$f":"CONCATENATE(\" to \",TEXT(C10+27,\"dd-mmm-yyyy\"))","v":" to 15-Jun-2025"},null,null,null,null,"Days per Week",{"$f":"J9*K10","v":35},5]
[null,null,null,null,{"$f":"IF(ISERROR(VLOOKUP($A11,Holidays,2,FALSE)),\"\",VLOOKUP($A11,Holidays,2,0))","v":""},null,null,null,"Work Days",null,"Mo, Tu, We, Th, Fr"]
["Date","Start Time","Finish Time","Unpaid Breaks","Comments/Leave","Rate","Elapsed Time","Decimal Hours","Total Hours","Cum. Dec.","Cumulative Total"]
[{"$f":"C10","v":"2025-05-19"},null,null,null,null,1,{"$f":"IF(ISERROR(VLOOKUP($E13,HolidayType,2,FALSE)),IF(OR(ISBLANK(B13),ISBLANK(C13),ISBLANK(D13)),\"0:00\",C13-(B13+D13)),IF(OR(ISBLANK(B13),ISBLANK(C13),ISBLANK(D13)),IF(VLOOKUP($E13,HolidayType,2,FALSE),IF(VLOOKUP($A13,Holidays,4,FALSE),VLOOKUP(WEEKDAY($A13,2),Holidays!$E$3:$H$9,4,FALSE),\"0:00\"),VLOOKUP(WEEKDAY($A13,2),Holidays!$E$3:$H$9,4,FALSE)),IF(C13-(B13+D13)>VLOOKUP(WEEKDAY($A13,2),Holidays!$E$3:$H$9,4,FALSE),C13-(B13+D13),IF(VLOOKUP($E13,HolidayType,2,FALSE),IF(VLOOKUP($A13,Holidays,4,FALSE),VLOOKUP(WEEKDAY($A13,2),Holidays!$E$3:$H$9,4,FALSE),C13-(B13+D13)),VLOOKUP(WEEKDAY($A13,2),Holidays!$E$3:$H$9,4,FALSE)))))","v":"0:00"},{"$f":"((HOUR(G13)+MINUTE(G13)/60))*F13","v":0},{"$f":"CONCATENATE(TRUNC(INT(H13)),\":\",TEXT((H13-TRUNC(INT(H13)))*60,\"00\"))","v":"0:00"},{"$f":"H13","v":0},{"$f":"CONCATENATE(TRUNC(INT(J13)),\":\",TEXT((J13-TRUNC(INT(J13)))*60,\"00\"))","v":"0:00"},{"$f":"IF(WEEKDAY(A13,2)<6,IF(F13<>0,1,0),0)","v":1}]
[{"$f":"A13+1","v":"2025-05-20"},null,null,null,null,1,{"$f":"IF(ISERROR(VLOOKUP($E14,HolidayType,2,FALSE)),IF(OR(ISBLANK(B14),ISBLANK(C14),ISBLANK(D14)),\"0:00\",C14-(B14+D14)),IF(OR(ISBLANK(B14),ISBLANK(C14),ISBLANK(D14)),IF(VLOOKUP($E14,HolidayType,2,FALSE),IF(VLOOKUP($A14,Holidays,4,FALSE),VLOOKUP(WEEKDAY($A14,2),Holidays!$E$3:$H$9,4,FALSE),\"0:00\"),VLOOKUP(WEEKDAY($A14,2),Holidays!$E$3:$H$9,4,FALSE)),IF(C14-(B14+D14)>VLOOKUP(WEEKDAY($A14,2),Holidays!$E$3:$H$9,4,FALSE),C14-(B14+D14),IF(VLOOKUP($E14,HolidayType,2,FALSE),IF(VLOOKUP($A14,Holidays,4,FALSE),VLOOKUP(WEEKDAY($A14,2),Holidays!$E$3:$H$9,4,FALSE),C14-(B14+D14)),VLOOKUP(WEEKDAY($A14,2),Holidays!$E$3:$H$9,4,FALSE)))))","v":"0:00"},0,{"$f":"CONCATENATE(TRUNC(INT(H14)),\":\",TEXT((H14-TRUNC(INT(H14)))*60,\"00\"))","v":"0:00"},{"$f":"J13+H14","v":0},{"$f":"CONCATENATE(TRUNC(INT(J14)),\":\",TEXT((J14-TRUNC(INT(J14)))*60,\"00\"))","v":"0:00"},1]
["2025-05-21",null,null,null,null,1,{"$f":"IF(ISERROR(VLOOKUP($E15,HolidayType,2,FALSE)),IF(OR(ISBLANK(B15),ISBLANK(C15),ISBLANK(D15)),\"0:00\",C15-(B15+D15)),IF(OR(ISBLANK(B15),ISBLANK(C15),ISBLANK(D15)),IF(VLOOKUP($E15,HolidayType,2,FALSE),IF(VLOOKUP($A15,Holidays,4,FALSE),VLOOKUP(WEEKDAY($A15,2),Holidays!$E$3:$H$9,4,FALSE),\"0:00\"),VLOOKUP(WEEKDAY($A15,2),Holidays!$E$3:$H$9,4,FALSE)),IF(C15-(B15+D15)>VLOOKUP(WEEKDAY($A15,2),Holidays!$E$3:$H$9,4,FALSE),C15-(B15+D15),IF(VLOOKUP($E15,HolidayType,2,FALSE),IF(VLOOKUP($A15,Holidays,4,FALSE),VLOOKUP(WEEKDAY($A15,2),Holidays!$E$3:$H$9,4,FALSE),C15-(B15+D15)),VLOOKUP(WEEKDAY($A15,2),Holidays!$E$3:$H$9,4,FALSE)))))","v":"0:00"},0,"0:00",{"$f":"J14+H15","v":0},"0:00",1]
["2025-05-22",null,null,null,null,1,{"$f":"IF(ISERROR(VLOOKUP($E16,HolidayType,2,FALSE)),IF(OR(ISBLANK(B16),ISBLANK(C16),ISBLANK(D16)),\"0:00\",C16-(B16+D16)),IF(OR(ISBLANK(B16),ISBLANK(C16),ISBLANK(D16)),IF(VLOOKUP($E16,HolidayType,2,FALSE),IF(VLOOKUP($A16,Holidays,4,FALSE),VLOOKUP(WEEKDAY($A16,2),Holidays!$E$3:$H$9,4,FALSE),\"0:00\"),VLOOKUP(WEEKDAY($A16,2),Holidays!$E$3:$H$9,4,FALSE)),IF(C16-(B16+D16)>VLOOKUP(WEEKDAY($A16,2),Holidays!$E$3:$H$9,4,FALSE),C16-(B16+D16),IF(VLOOKUP($E16,HolidayType,2,FALSE),IF(VLOOKUP($A16,Holidays,4,FALSE),VLOOKUP(WEEKDAY($A16,2),Holidays!$E$3:$H$9,4,FALSE),C16-(B16+D16)),VLOOKUP(WEEKDAY($A16,2),Holidays!$E$3:$H$9,4,FALSE)))))","v":"0:00"},0,"0:00",0,"0:00",1]
["2025-05-23",null,null,null,null,1,{"$f":"IF(ISERROR(VLOOKUP($E17,HolidayType,2,FALSE)),IF(OR(ISBLANK(B17),ISBLANK(C17),ISBLANK(D17)),\"0:00\",C17-(B17+D17)),IF(OR(ISBLANK(B17),ISBLANK(C17),ISBLANK(D17)),IF(VLOOKUP($E17,HolidayType,2,FALSE),IF(VLOOKUP($A17,Holidays,4,FALSE),VLOOKUP(WEEKDAY($A17,2),Holidays!$E$3:$H$9,4,FALSE),\"0:00\"),VLOOKUP(WEEKDAY($A17,2),Holidays!$E$3:$H$9,4,FALSE)),IF(C17-(B17+D17)>VLOOKUP(WEEKDAY($A17,2),Holidays!$E$3:$H$9,4,FALSE),C17-(B17+D17),IF(VLOOKUP($E17,HolidayType,2,FALSE),IF(VLOOKUP($A17,Holidays,4,FALSE),VLOOKUP(WEEKDAY($A17,2),Holidays!$E$3:$H$9,4,FALSE),C17-(B17+D17)),VLOOKUP(WEEKDAY($A17,2),Holidays!$E$3:$H$9,4,FALSE)))))","v":"0:00"},0,"0:00",0,"0:00",1]
["2025-05-24",null,null,null,{"$f":"IF(ISERROR(VLOOKUP($A18,Holidays,2,FALSE)),\"\",VLOOKUP($A18,Holidays,2,0))","v":""},1.5,{"$f":"IF(ISERROR(VLOOKUP($E18,HolidayType,2,FALSE)),IF(OR(ISBLANK(B18),ISBLANK(C18),ISBLANK(D18)),\"0:00\",C18-(B18+D18)),IF(OR(ISBLANK(B18),ISBLANK(C18),ISBLANK(D18)),IF(VLOOKUP($E18,HolidayType,2,FALSE),IF(VLOOKUP($A18,Holidays,4,FALSE),VLOOKUP(WEEKDAY($A18,2),Holidays!$E$3:$H$9,4,FALSE),\"0:00\"),VLOOKUP(WEEKDAY($A18,2),Holidays!$E$3:$H$9,4,FALSE)),IF(C18-(B18+D18)>VLOOKUP(WEEKDAY($A18,2),Holidays!$E$3:$H$9,4,FALSE),C18-(B18+D18),IF(VLOOKUP($E18,HolidayType,2,FALSE),IF(VLOOKUP($A18,Holidays,4,FALSE),VLOOKUP(WEEKDAY($A18,2),Holidays!$E$3:$H$9,4,FALSE),C18-(B18+D18)),VLOOKUP(WEEKDAY($A18,2),Holidays!$E$3:$H$9,4,FALSE)))))","v":"0:00"},0,"0:00",0,"0:00",0]
["2025-05-25",null,null,null,{"$f":"IF(ISERROR(VLOOKUP($A19,Holidays,2,FALSE)),\"\",VLOOKUP($A19,Holidays,2,0))","v":""},2,{"$f":"IF(ISERROR(VLOOKUP($E19,HolidayType,2,FALSE)),IF(OR(ISBLANK(B19),ISBLANK(C19),ISBLANK(D19)),\"0:00\",C19-(B19+D19)),IF(OR(ISBLANK(B19),ISBLANK(C19),ISBLANK(D19)),IF(VLOOKUP($E19,HolidayType,2,FALSE),IF(VLOOKUP($A19,Holidays,4,FALSE),VLOOKUP(WEEKDAY($A19,2),Holidays!$E$3:$H$9,4,FALSE),\"0:00\"),VLOOKUP(WEEKDAY($A19,2),Holidays!$E$3:$H$9,4,FALSE)),IF(C19-(B19+D19)>VLOOKUP(WEEKDAY($A19,2),Holidays!$E$3:$H$9,4,FALSE),C19-(B19+D19),IF(VLOOKUP($E19,HolidayType,2,FALSE),IF(VLOOKUP($A19,Holidays,4,FALSE),VLOOKUP(WEEKDAY($A19,2),Holidays!$E$3:$H$9,4,FALSE),C19-(B19+D19)),VLOOKUP(WEEKDAY($A19,2),Holidays!$E$3:$H$9,4,FALSE)))))","v":"0:00"},0,"0:00",{"$f":"J18+H19","v":0},"0:00",0]
["2025-05-26",null,null,null,null,1,{"$f":"IF(ISERROR(VLOOKUP($E20,HolidayType,2,FALSE)),IF(OR(ISBLANK(B20),ISBLANK(C20),ISBLANK(D20)),\"0:00\",C20-(B20+D20)),IF(OR(ISBLANK(B20),ISBLANK(C20),ISBLANK(D20)),IF(VLOOKUP($E20,HolidayType,2,FALSE),IF(VLOOKUP($A20,Holidays,4,FALSE),VLOOKUP(WEEKDAY($A20,2),Holidays!$E$3:$H$9,4,FALSE),\"0:00\"),VLOOKUP(WEEKDAY($A20,2),Holidays!$E$3:$H$9,4,FALSE)),IF(C20-(B20+D20)>VLOOKUP(WEEKDAY($A20,2),Holidays!$E$3:$H$9,4,FALSE),C20-(B20+D20),IF(VLOOKUP($E20,HolidayType,2,FALSE),IF(VLOOKUP($A20,Holidays,4,FALSE),VLOOKUP(WEEKDAY($A20,2),Holidays!$E$3:$H$9,4,FALSE),C20-(B20+D20)),VLOOKUP(WEEKDAY($A20,2),Holidays!$E$3:$H$9,4,FALSE)))))","v":"0:00"},0,"0:00",{"$f":"J19+H20","v":0},"0:00",1]
["2025-05-27",null,null,null,null,1,{"$f":"IF(ISERROR(VLOOKUP($E21,HolidayType,2,FALSE)),IF(OR(ISBLANK(B21),ISBLANK(C21),ISBLANK(D21)),\"0:00\",C21-(B21+D21)),IF(OR(ISBLANK(B21),ISBLANK(C21),ISBLANK(D21)),IF(VLOOKUP($E21,HolidayType,2,FALSE),IF(VLOOKUP($A21,Holidays,4,FALSE),VLOOKUP(WEEKDAY($A21,2),Holidays!$E$3:$H$9,4,FALSE),\"0:00\"),VLOOKUP(WEEKDAY($A21,2),Holidays!$E$3:$H$9,4,FALSE)),IF(C21-(B21+D21)>VLOOKUP(WEEKDAY($A21,2),Holidays!$E$3:$H$9,4,FALSE),C21-(B21+D21),IF(VLOOKUP($E21,HolidayType,2,FALSE),IF(VLOOKUP($A21,Holidays,4,FALSE),VLOOKUP(WEEKDAY($A21,2),Holidays!$E$3:$H$9,4,FALSE),C21-(B21+D21)),VLOOKUP(WEEKDAY($A21,2),Holidays!$E$3:$H$9,4,FALSE)))))","v":"0:00"},0,"0:00",0,"0:00",1]
["2025-05-28",null,null,null,null,1,{"$f":"IF(ISERROR(VLOOKUP($E22,HolidayType,2,FALSE)),IF(OR(ISBLANK(B22),ISBLANK(C22),ISBLANK(D22)),\"0:00\",C22-(B22+D22)),IF(OR(ISBLANK(B22),ISBLANK(C22),ISBLANK(D22)),IF(VLOOKUP($E22,HolidayType,2,FALSE),IF(VLOOKUP($A22,Holidays,4,FALSE),VLOOKUP(WEEKDAY($A22,2),Holidays!$E$3:$H$9,4,FALSE),\"0:00\"),VLOOKUP(WEEKDAY($A22,2),Holidays!$E$3:$H$9,4,FALSE)),IF(C22-(B22+D22)>VLOOKUP(WEEKDAY($A22,2),Holidays!$E$3:$H$9,4,FALSE),C22-(B22+D22),IF(VLOOKUP($E22,HolidayType,2,FALSE),IF(VLOOKUP($A22,Holidays,4,FALSE),VLOOKUP(WEEKDAY($A22,2),Holidays!$E$3:$H$9,4,FALSE),C22-(B22+D22)),VLOOKUP(WEEKDAY($A22,2),Holidays!$E$3:$H$9,4,FALSE)))))","v":"0:00"},0,"0:00",0,"0:00",1]
["2025-05-29",null,null,null,null,1,{"$f":"IF(ISERROR(VLOOKUP($E23,HolidayType,2,FALSE)),IF(OR(ISBLANK(B23),ISBLANK(C23),ISBLANK(D23)),\"0:00\",C23-(B23+D23)),IF(OR(ISBLANK(B23),ISBLANK(C23),ISBLANK(D23)),IF(VLOOKUP($E23,HolidayType,2,FALSE),IF(VLOOKUP($A23,Holidays,4,FALSE),VLOOKUP(WEEKDAY($A23,2),Holidays!$E$3:$H$9,4,FALSE),\"0:00\"),VLOOKUP(WEEKDAY($A23,2),Holidays!$E$3:$H$9,4,FALSE)),IF(C23-(B23+D23)>VLOOKUP(WEEKDAY($A23,2),Holidays!$E$3:$H$9,4,FALSE),C23-(B23+D23),IF(VLOOKUP($E23,HolidayType,2,FALSE),IF(VLOOKUP($A23,Holidays,4,FALSE),VLOOKUP(WEEKDAY($A23,2),Holidays!$E$3:$H$9,4,FALSE),C23-(B23+D23)),VLOOKUP(WEEKDAY($A23,2),Holidays!$E$3:$H$9,4,FALSE)))))","v":"0:00"},0,"0:00",0,"0:00",1]
["2025-05-30",null,null,null,null,1,{"$f":"IF(ISERROR(VLOOKUP($E24,HolidayType,2,FALSE)),IF(OR(ISBLANK(B24),ISBLANK(C24),ISBLANK(D24)),\"0:00\",C24-(B24+D24)),IF(OR(ISBLANK(B24),ISBLANK(C24),ISBLANK(D24)),IF(VLOOKUP($E24,HolidayType,2,FALSE),IF(VLOOKUP($A24,Holidays,4,FALSE),VLOOKUP(WEEKDAY($A24,2),Holidays!$E$3:$H$9,4,FALSE),\"0:00\"),VLOOKUP(WEEKDAY($A24,2),Holidays!$E$3:$H$9,4,FALSE)),IF(C24-(B24+D24)>VLOOKUP(WEEKDAY($A24,2),Holidays!$E$3:$H$9,4,FALSE),C24-(B24+D24),IF(VLOOKUP($E24,HolidayType,2,FALSE),IF(VLOOKUP($A24,Holidays,4,FALSE),VLOOKUP(WEEKDAY($A24,2),Holidays!$E$3:$H$9,4,FALSE),C24-(B24+D24)),VLOOKUP(WEEKDAY($A24,2),Holidays!$E$3:$H$9,4,FALSE)))))","v":"0:00"},0,"0:00",0,"0:00",1]
["2025-05-31",null,null,null,null,1.5,{"$f":"IF(ISERROR(VLOOKUP($E25,HolidayType,2,FALSE)),IF(OR(ISBLANK(B25),ISBLANK(C25),ISBLANK(D25)),\"0:00\",C25-(B25+D25)),IF(OR(ISBLANK(B25),ISBLANK(C25),ISBLANK(D25)),IF(VLOOKUP($E25,HolidayType,2,FALSE),IF(VLOOKUP($A25,Holidays,4,FALSE),VLOOKUP(WEEKDAY($A25,2),Holidays!$E$3:$H$9,4,FALSE),\"0:00\"),VLOOKUP(WEEKDAY($A25,2),Holidays!$E$3:$H$9,4,FALSE)),IF(C25-(B25+D25)>VLOOKUP(WEEKDAY($A25,2),Holidays!$E$3:$H$9,4,FALSE),C25-(B25+D25),IF(VLOOKUP($E25,HolidayType,2,FALSE),IF(VLOOKUP($A25,Holidays,4,FALSE),VLOOKUP(WEEKDAY($A25,2),Holidays!$E$3:$H$9,4,FALSE),C25-(B25+D25)),VLOOKUP(WEEKDAY($A25,2),Holidays!$E$3:$H$9,4,FALSE)))))","v":"0:00"},0,"0:00",{"$f":"J24+H25","v":0},"0:00",0]
["2025-06-01",null,null,null,null,2,{"$f":"IF(ISERROR(VLOOKUP($E26,HolidayType,2,FALSE)),IF(OR(ISBLANK(B26),ISBLANK(C26),ISBLANK(D26)),\"0:00\",C26-(B26+D26)),IF(OR(ISBLANK(B26),ISBLANK(C26),ISBLANK(D26)),IF(VLOOKUP($E26,HolidayType,2,FALSE),IF(VLOOKUP($A26,Holidays,4,FALSE),VLOOKUP(WEEKDAY($A26,2),Holidays!$E$3:$H$9,4,FALSE),\"0:00\"),VLOOKUP(WEEKDAY($A26,2),Holidays!$E$3:$H$9,4,FALSE)),IF(C26-(B26+D26)>VLOOKUP(WEEKDAY($A26,2),Holidays!$E$3:$H$9,4,FALSE),C26-(B26+D26),IF(VLOOKUP($E26,HolidayType,2,FALSE),IF(VLOOKUP($A26,Holidays,4,FALSE),VLOOKUP(WEEKDAY($A26,2),Holidays!$E$3:$H$9,4,FALSE),C26-(B26+D26)),VLOOKUP(WEEKDAY($A26,2),Holidays!$E$3:$H$9,4,FALSE)))))","v":"0:00"},0,"0:00",{"$f":"J25+H26","v":0},"0:00",0]
["2025-06-02",null,null,null,null,1,{"$f":"IF(ISERROR(VLOOKUP($E27,HolidayType,2,FALSE)),IF(OR(ISBLANK(B27),ISBLANK(C27),ISBLANK(D27)),\"0:00\",C27-(B27+D27)),IF(OR(ISBLANK(B27),ISBLANK(C27),ISBLANK(D27)),IF(VLOOKUP($E27,HolidayType,2,FALSE),IF(VLOOKUP($A27,Holidays,4,FALSE),VLOOKUP(WEEKDAY($A27,2),Holidays!$E$3:$H$9,4,FALSE),\"0:00\"),VLOOKUP(WEEKDAY($A27,2),Holidays!$E$3:$H$9,4,FALSE)),IF(C27-(B27+D27)>VLOOKUP(WEEKDAY($A27,2),Holidays!$E$3:$H$9,4,FALSE),C27-(B27+D27),IF(VLOOKUP($E27,HolidayType,2,FALSE),IF(VLOOKUP($A27,Holidays,4,FALSE),VLOOKUP(WEEKDAY($A27,2),Holidays!$E$3:$H$9,4,FALSE),C27-(B27+D27)),VLOOKUP(WEEKDAY($A27,2),Holidays!$E$3:$H$9,4,FALSE)))))","v":"0:00"},0,"0:00",{"$f":"J26+H27","v":0},"0:00",1]
["2025-06-03",null,null,null,null,1,{"$f":"IF(ISERROR(VLOOKUP($E28,HolidayType,2,FALSE)),IF(OR(ISBLANK(B28),ISBLANK(C28),ISBLANK(D28)),\"0:00\",C28-(B28+D28)),IF(OR(ISBLANK(B28),ISBLANK(C28),ISBLANK(D28)),IF(VLOOKUP($E28,HolidayType,2,FALSE),IF(VLOOKUP($A28,Holidays,4,FALSE),VLOOKUP(WEEKDAY($A28,2),Holidays!$E$3:$H$9,4,FALSE),\"0:00\"),VLOOKUP(WEEKDAY($A28,2),Holidays!$E$3:$H$9,4,FALSE)),IF(C28-(B28+D28)>VLOOKUP(WEEKDAY($A28,2),Holidays!$E$3:$H$9,4,FALSE),C28-(B28+D28),IF(VLOOKUP($E28,HolidayType,2,FALSE),IF(VLOOKUP($A28,Holidays,4,FALSE),VLOOKUP(WEEKDAY($A28,2),Holidays!$E$3:$H$9,4,FALSE),C28-(B28+D28)),VLOOKUP(WEEKDAY($A28,2),Holidays!$E$3:$H$9,4,FALSE)))))","v":"0:00"},0,"0:00",0,"0:00",1]
["2025-06-04",null,null,null,null,1,{"$f":"IF(ISERROR(VLOOKUP($E29,HolidayType,2,FALSE)),IF(OR(ISBLANK(B29),ISBLANK(C29),ISBLANK(D29)),\"0:00\",C29-(B29+D29)),IF(OR(ISBLANK(B29),ISBLANK(C29),ISBLANK(D29)),IF(VLOOKUP($E29,HolidayType,2,FALSE),IF(VLOOKUP($A29,Holidays,4,FALSE),VLOOKUP(WEEKDAY($A29,2),Holidays!$E$3:$H$9,4,FALSE),\"0:00\"),VLOOKUP(WEEKDAY($A29,2),Holidays!$E$3:$H$9,4,FALSE)),IF(C29-(B29+D29)>VLOOKUP(WEEKDAY($A29,2),Holidays!$E$3:$H$9,4,FALSE),C29-(B29+D29),IF(VLOOKUP($E29,HolidayType,2,FALSE),IF(VLOOKUP($A29,Holidays,4,FALSE),VLOOKUP(WEEKDAY($A29,2),Holidays!$E$3:$H$9,4,FALSE),C29-(B29+D29)),VLOOKUP(WEEKDAY($A29,2),Holidays!$E$3:$H$9,4,FALSE)))))","v":"0:00"},0,"0:00",0,"0:00",1]
["2025-06-05",null,null,null,{"$f":"IF(ISERROR(VLOOKUP($A30,Holidays,2,FALSE)),\"\",VLOOKUP($A30,Holidays,2,0))","v":""},1,{"$f":"IF(ISERROR(VLOOKUP($E30,HolidayType,2,FALSE)),IF(OR(ISBLANK(B30),ISBLANK(C30),ISBLANK(D30)),\"0:00\",C30-(B30+D30)),IF(OR(ISBLANK(B30),ISBLANK(C30),ISBLANK(D30)),IF(VLOOKUP($E30,HolidayType,2,FALSE),IF(VLOOKUP($A30,Holidays,4,FALSE),VLOOKUP(WEEKDAY($A30,2),Holidays!$E$3:$H$9,4,FALSE),\"0:00\"),VLOOKUP(WEEKDAY($A30,2),Holidays!$E$3:$H$9,4,FALSE)),IF(C30-(B30+D30)>VLOOKUP(WEEKDAY($A30,2),Holidays!$E$3:$H$9,4,FALSE),C30-(B30+D30),IF(VLOOKUP($E30,HolidayType,2,FALSE),IF(VLOOKUP($A30,Holidays,4,FALSE),VLOOKUP(WEEKDAY($A30,2),Holidays!$E$3:$H$9,4,FALSE),C30-(B30+D30)),VLOOKUP(WEEKDAY($A30,2),Holidays!$E$3:$H$9,4,FALSE)))))","v":"0:00"},0,"0:00",0,"0:00",1]
["2025-06-06",null,null,null,"",1,{"$f":"IF(ISERROR(VLOOKUP($E31,HolidayType,2,FALSE)),IF(OR(ISBLANK(B31),ISBLANK(C31),ISBLANK(D31)),\"0:00\",C31-(B31+D31)),IF(OR(ISBLANK(B31),ISBLANK(C31),ISBLANK(D31)),IF(VLOOKUP($E31,HolidayType,2,FALSE),IF(VLOOKUP($A31,Holidays,4,FALSE),VLOOKUP(WEEKDAY($A31,2),Holidays!$E$3:$H$9,4,FALSE),\"0:00\"),VLOOKUP(WEEKDAY($A31,2),Holidays!$E$3:$H$9,4,FALSE)),IF(C31-(B31+D31)>VLOOKUP(WEEKDAY($A31,2),Holidays!$E$3:$H$9,4,FALSE),C31-(B31+D31),IF(VLOOKUP($E31,HolidayType,2,FALSE),IF(VLOOKUP($A31,Holidays,4,FALSE),VLOOKUP(WEEKDAY($A31,2),Holidays!$E$3:$H$9,4,FALSE),C31-(B31+D31)),VLOOKUP(WEEKDAY($A31,2),Holidays!$E$3:$H$9,4,FALSE)))))","v":"0:00"},0,"0:00",0,"0:00",1]
["2025-06-07",null,null,null,"",1.5,{"$f":"IF(ISERROR(VLOOKUP($E32,HolidayType,2,FALSE)),IF(OR(ISBLANK(B32),ISBLANK(C32),ISBLANK(D32)),\"0:00\",C32-(B32+D32)),IF(OR(ISBLANK(B32),ISBLANK(C32),ISBLANK(D32)),IF(VLOOKUP($E32,HolidayType,2,FALSE),IF(VLOOKUP($A32,Holidays,4,FALSE),VLOOKUP(WEEKDAY($A32,2),Holidays!$E$3:$H$9,4,FALSE),\"0:00\"),VLOOKUP(WEEKDAY($A32,2),Holidays!$E$3:$H$9,4,FALSE)),IF(C32-(B32+D32)>VLOOKUP(WEEKDAY($A32,2),Holidays!$E$3:$H$9,4,FALSE),C32-(B32+D32),IF(VLOOKUP($E32,HolidayType,2,FALSE),IF(VLOOKUP($A32,Holidays,4,FALSE),VLOOKUP(WEEKDAY($A32,2),Holidays!$E$3:$H$9,4,FALSE),C32-(B32+D32)),VLOOKUP(WEEKDAY($A32,2),Holidays!$E$3:$H$9,4,FALSE)))))","v":"0:00"},0,"0:00",{"$f":"J31+H32","v":0},"0:00",0]
["2025-06-08",null,null,null,"",2,{"$f":"IF(ISERROR(VLOOKUP($E33,HolidayType,2,FALSE)),IF(OR(ISBLANK(B33),ISBLANK(C33),ISBLANK(D33)),\"0:00\",C33-(B33+D33)),IF(OR(ISBLANK(B33),ISBLANK(C33),ISBLANK(D33)),IF(VLOOKUP($E33,HolidayType,2,FALSE),IF(VLOOKUP($A33,Holidays,4,FALSE),VLOOKUP(WEEKDAY($A33,2),Holidays!$E$3:$H$9,4,FALSE),\"0:00\"),VLOOKUP(WEEKDAY($A33,2),Holidays!$E$3:$H$9,4,FALSE)),IF(C33-(B33+D33)>VLOOKUP(WEEKDAY($A33,2),Holidays!$E$3:$H$9,4,FALSE),C33-(B33+D33),IF(VLOOKUP($E33,HolidayType,2,FALSE),IF(VLOOKUP($A33,Holidays,4,FALSE),VLOOKUP(WEEKDAY($A33,2),Holidays!$E$3:$H$9,4,FALSE),C33-(B33+D33)),VLOOKUP(WEEKDAY($A33,2),Holidays!$E$3:$H$9,4,FALSE)))))","v":"0:00"},0,"0:00",{"$f":"J32+H33","v":0},"0:00",0]
["2025-06-09",null,null,null,"Public Holiday",1,{"$f":"IF(ISERROR(VLOOKUP($E34,HolidayType,2,FALSE)),IF(OR(ISBLANK(B34),ISBLANK(C34),ISBLANK(D34)),\"0:00\",C34-(B34+D34)),IF(OR(ISBLANK(B34),ISBLANK(C34),ISBLANK(D34)),IF(VLOOKUP($E34,HolidayType,2,FALSE),IF(VLOOKUP($A34,Holidays,4,FALSE),VLOOKUP(WEEKDAY($A34,2),Holidays!$E$3:$H$9,4,FALSE),\"0:00\"),VLOOKUP(WEEKDAY($A34,2),Holidays!$E$3:$H$9,4,FALSE)),IF(C34-(B34+D34)>VLOOKUP(WEEKDAY($A34,2),Holidays!$E$3:$H$9,4,FALSE),C34-(B34+D34),IF(VLOOKUP($E34,HolidayType,2,FALSE),IF(VLOOKUP($A34,Holidays,4,FALSE),VLOOKUP(WEEKDAY($A34,2),Holidays!$E$3:$H$9,4,FALSE),C34-(B34+D34)),VLOOKUP(WEEKDAY($A34,2),Holidays!$E$3:$H$9,4,FALSE)))))","v":"07:00:00"},7,"7:00",{"$f":"J31+H34","v":7},"7:00",1]
["2025-06-10",null,null,null,"",1,{"$f":"IF(ISERROR(VLOOKUP($E35,HolidayType,2,FALSE)),IF(OR(ISBLANK(B35),ISBLANK(C35),ISBLANK(D35)),\"0:00\",C35-(B35+D35)),IF(OR(ISBLANK(B35),ISBLANK(C35),ISBLANK(D35)),IF(VLOOKUP($E35,HolidayType,2,FALSE),IF(VLOOKUP($A35,Holidays,4,FALSE),VLOOKUP(WEEKDAY($A35,2),Holidays!$E$3:$H$9,4,FALSE),\"0:00\"),VLOOKUP(WEEKDAY($A35,2),Holidays!$E$3:$H$9,4,FALSE)),IF(C35-(B35+D35)>VLOOKUP(WEEKDAY($A35,2),Holidays!$E$3:$H$9,4,FALSE),C35-(B35+D35),IF(VLOOKUP($E35,HolidayType,2,FALSE),IF(VLOOKUP($A35,Holidays,4,FALSE),VLOOKUP(WEEKDAY($A35,2),Holidays!$E$3:$H$9,4,FALSE),C35-(B35+D35)),VLOOKUP(WEEKDAY($A35,2),Holidays!$E$3:$H$9,4,FALSE)))))","v":"0:00"},0,"0:00",7,"7:00",1]
["2025-06-11",null,null,null,"",1,{"$f":"IF(ISERROR(VLOOKUP($E36,HolidayType,2,FALSE)),IF(OR(ISBLANK(B36),ISBLANK(C36),ISBLANK(D36)),\"0:00\",C36-(B36+D36)),IF(OR(ISBLANK(B36),ISBLANK(C36),ISBLANK(D36)),IF(VLOOKUP($E36,HolidayType,2,FALSE),IF(VLOOKUP($A36,Holidays,4,FALSE),VLOOKUP(WEEKDAY($A36,2),Holidays!$E$3:$H$9,4,FALSE),\"0:00\"),VLOOKUP(WEEKDAY($A36,2),Holidays!$E$3:$H$9,4,FALSE)),IF(C36-(B36+D36)>VLOOKUP(WEEKDAY($A36,2),Holidays!$E$3:$H$9,4,FALSE),C36-(B36+D36),IF(VLOOKUP($E36,HolidayType,2,FALSE),IF(VLOOKUP($A36,Holidays,4,FALSE),VLOOKUP(WEEKDAY($A36,2),Holidays!$E$3:$H$9,4,FALSE),C36-(B36+D36)),VLOOKUP(WEEKDAY($A36,2),Holidays!$E$3:$H$9,4,FALSE)))))","v":"0:00"},0,"0:00",7,"7:00",1]
["2025-06-12",null,null,null,"",1,{"$f":"IF(ISERROR(VLOOKUP($E37,HolidayType,2,FALSE)),IF(OR(ISBLANK(B37),ISBLANK(C37),ISBLANK(D37)),\"0:00\",C37-(B37+D37)),IF(OR(ISBLANK(B37),ISBLANK(C37),ISBLANK(D37)),IF(VLOOKUP($E37,HolidayType,2,FALSE),IF(VLOOKUP($A37,Holidays,4,FALSE),VLOOKUP(WEEKDAY($A37,2),Holidays!$E$3:$H$9,4,FALSE),\"0:00\"),VLOOKUP(WEEKDAY($A37,2),Holidays!$E$3:$H$9,4,FALSE)),IF(C37-(B37+D37)>VLOOKUP(WEEKDAY($A37,2),Holidays!$E$3:$H$9,4,FALSE),C37-(B37+D37),IF(VLOOKUP($E37,HolidayType,2,FALSE),IF(VLOOKUP($A37,Holidays,4,FALSE),VLOOKUP(WEEKDAY($A37,2),Holidays!$E$3:$H$9,4,FALSE),C37-(B37+D37)),VLOOKUP(WEEKDAY($A37,2),Holidays!$E$3:$H$9,4,FALSE)))))","v":"0:00"},0,"0:00",7,"7:00",1]
["2025-06-13",null,null,null,"",1,{"$f":"IF(ISERROR(VLOOKUP($E38,HolidayType,2,FALSE)),IF(OR(ISBLANK(B38),ISBLANK(C38),ISBLANK(D38)),\"0:00\",C38-(B38+D38)),IF(OR(ISBLANK(B38),ISBLANK(C38),ISBLANK(D38)),IF(VLOOKUP($E38,HolidayType,2,FALSE),IF(VLOOKUP($A38,Holidays,4,FALSE),VLOOKUP(WEEKDAY($A38,2),Holidays!$E$3:$H$9,4,FALSE),\"0:00\"),VLOOKUP(WEEKDAY($A38,2),Holidays!$E$3:$H$9,4,FALSE)),IF(C38-(B38+D38)>VLOOKUP(WEEKDAY($A38,2),Holidays!$E$3:$H$9,4,FALSE),C38-(B38+D38),IF(VLOOKUP($E38,HolidayType,2,FALSE),IF(VLOOKUP($A38,Holidays,4,FALSE),VLOOKUP(WEEKDAY($A38,2),Holidays!$E$3:$H$9,4,FALSE),C38-(B38+D38)),VLOOKUP(WEEKDAY($A38,2),Holidays!$E$3:$H$9,4,FALSE)))))","v":"0:00"},0,"0:00",7,"7:00",1]
["2025-06-14",null,null,null,"",1.5,{"$f":"IF(ISERROR(VLOOKUP($E39,HolidayType,2,FALSE)),IF(OR(ISBLANK(B39),ISBLANK(C39),ISBLANK(D39)),\"0:00\",C39-(B39+D39)),IF(OR(ISBLANK(B39),ISBLANK(C39),ISBLANK(D39)),IF(VLOOKUP($E39,HolidayType,2,FALSE),IF(VLOOKUP($A39,Holidays,4,FALSE),VLOOKUP(WEEKDAY($A39,2),Holidays!$E$3:$H$9,4,FALSE),\"0:00\"),VLOOKUP(WEEKDAY($A39,2),Holidays!$E$3:$H$9,4,FALSE)),IF(C39-(B39+D39)>VLOOKUP(WEEKDAY($A39,2),Holidays!$E$3:$H$9,4,FALSE),C39-(B39+D39),IF(VLOOKUP($E39,HolidayType,2,FALSE),IF(VLOOKUP($A39,Holidays,4,FALSE),VLOOKUP(WEEKDAY($A39,2),Holidays!$E$3:$H$9,4,FALSE),C39-(B39+D39)),VLOOKUP(WEEKDAY($A39,2),Holidays!$E$3:$H$9,4,FALSE)))))","v":"0:00"},0,"0:00",7,"7:00",0]
["2025-06-15",null,null,null,"",2,{"$f":"IF(ISERROR(VLOOKUP($E40,HolidayType,2,FALSE)),IF(OR(ISBLANK(B40),ISBLANK(C40),ISBLANK(D40)),\"0:00\",C40-(B40+D40)),IF(OR(ISBLANK(B40),ISBLANK(C40),ISBLANK(D40)),IF(VLOOKUP($E40,HolidayType,2,FALSE),IF(VLOOKUP($A40,Holidays,4,FALSE),VLOOKUP(WEEKDAY($A40,2),Holidays!$E$3:$H$9,4,FALSE),\"0:00\"),VLOOKUP(WEEKDAY($A40,2),Holidays!$E$3:$H$9,4,FALSE)),IF(C40-(B40+D40)>VLOOKUP(WEEKDAY($A40,2),Holidays!$E$3:$H$9,4,FALSE),C40-(B40+D40),IF(VLOOKUP($E40,HolidayType,2,FALSE),IF(VLOOKUP($A40,Holidays,4,FALSE),VLOOKUP(WEEKDAY($A40,2),Holidays!$E$3:$H$9,4,FALSE),C40-(B40+D40)),VLOOKUP(WEEKDAY($A40,2),Holidays!$E$3:$H$9,4,FALSE)))))","v":"0:00"},0,"0:00",{"$f":"J39+H40","v":7},"7:00",0]
[null,null,null,null,null,null,null,null,null,null,null,{"$f":"SUM(L13:L40)","v":20}]
[null,null,null,null,"Total ordinary hours for accounting period",null,{"$f":"CONCATENATE(TRUNC(INT(ABS(J42))),\":\",TEXT(ABS(ABS(J42)-TRUNC(INT(ABS(J42))))*60,\"00\"))","v":"140:00"},null,null,{"$f":"J10*4","v":140}]
[null,null,null,null,"Total actual hours worked in accounting period",null,{"$f":"CONCATENATE(TRUNC(INT(ABS(J43))),\":\",TEXT(ABS(ABS(J43)-TRUNC(INT(ABS(J43))))*60,\"00\"))","v":"7:00"},null,null,{"$f":"J40","v":7}]
[null,null,null,null,"Difference",null,{"$f":"CONCATENATE(TRUNC(INT(ABS(J44))),\":\",TEXT(ABS(ABS(J44)-TRUNC(INT(ABS(J44))))*60,\"00\"))","v":"133:00"},null,{"$f":"IF(J44<0,\"Debit\",IF(J44=0,\"\",\"Credit\"))","v":"Debit"},{"$f":"ROUND(J43-J42,2)","v":-133}]
[null,null,null,null,"If applicable, carry over from previous period",null,"0:00",null,"Credit",{"$f":"IF(I45=\"Debit\",0-(LEFT(G45,FIND(\":\",G45)-1)+RIGHT(G45,2)/60),LEFT(G45,FIND(\":\",G45)-1)+RIGHT(G45,2)/60)","v":0}]
[null,null,null,null,"Carry over to following period",null,{"$f":"CONCATENATE(TRUNC(INT(ABS(J46))),\":\",TEXT(ABS(ABS(J46)-TRUNC(INT(ABS(J46))))*60,\"00\"))","v":"133:00"},null,{"$f":"IF(J46<0,\"Debit\",IF(J46=0,\"\",\"Credit\"))","v":"Debit"},{"$f":"ROUND(J44+J45,2)","v":-133}]
[]
[null,null,null,null,"Future flex leave bookings",null,"0:00",null,null,{"$f":"IF(I48=\"Debit\",0-(LEFT(G48,FIND(\":\",G48)-1)+RIGHT(G48,2)/60),LEFT(G48,FIND(\":\",G48)-1)+RIGHT(G48,2)/60)","v":0}]
[null,null,null,null,"Remaining",null,{"$f":"CONCATENATE(TRUNC(INT(ABS(J49))),\":\",TEXT(ABS(ABS(J49)-TRUNC(INT(ABS(J49))))*60,\"00\"))","v":"133:00"},null,{"$f":"IF(J49<0,\"Debit\",IF(J49=0,\"\",\"Credit\"))","v":"Debit"},{"$f":"J46-J48","v":-133}]
[]
[]
[]
["Signature",null,null,null,"Certified Correct"]
[null,"(Employee)",null,null,null,"(Supervisor)"]
[]
["Completed timesheets shall be authorised as correct by the supervisor and filed as an auditable document for 7yrs"]
[]
[]
["INSERT Comments/Leave below:"]
["Albury"]
["Annual Leave"]
["Carers Leave"]
["Concessional Half Day"]
["Dubbo"]
["Exam"]
["Flexi Day"]
["Goulburn"]
["Leave Without Pay"]
["Long Service Leave"]
["Maternity Leave"]
["Public Holiday"]
["Purchased Leave"]
["Sick Leave"]
["Special Leave"]
["Study Leave"]
["Training"]
["Wagga Wagga"]
["Working @ home"]

{"sheet":"Flexi Timesheet (7)","index":8,"n_rows":78,"n_cols":12,"rows_kept":78,"cut":false,"hidden":false,"merged":[[65,0,65,1],[7,2,7,4],[8,2,8,4],[52,1,52,2],[52,5,52,10],[53,1,53,2],[53,5,53,10],[59,0,59,1],[60,0,60,1],[62,0,62,1],[63,0,63,1],[64,0,64,1],[73,0,73,1],[77,0,77,1],[79,0,79,1],[66,0,66,1],[67,0,67,1],[68,0,68,1],[69,0,69,1],[70,0,70,1],[72,0,72,1]]}
[null,null,null,null,null,null,null,null,null,null,"Flexible Working Hours Scheme"]
[null,null,null,null,null,null,null,null,null,null,"2025 Flexi-Timesheet"]
[]
[]
[]
[]
[]
[null,"Name:"]
[null,"Team:",null,null,null,null,null,null,"Hours per Day",{"$f":"HOUR(K9)+MINUTE(K9)/60","v":7},"07:00:00","Don't override cell, click into cell and change time to equal your hours. i.e. 7 hours = 7:00am"]
[null,"Accounting Period:","2025-06-16",{"$f":"CONCATENATE(\" to \",TEXT(C10+27,\"dd-mmm-yyyy\"))","v":" to 13-Jul-2025"},null,null,null,null,"Days per Week",{"$f":"J9*K10","v":35},5]
[null,null,null,null,{"$f":"IF(ISERROR(VLOOKUP($A11,Holidays,2,FALSE)),\"\",VLOOKUP($A11,Holidays,2,0))","v":""},null,null,null,"Work Days",null,"Mo, Tu, We, Th, Fr"]
["Date","Start Time","Finish Time","Unpaid Breaks","Comments/Leave","Rate","Elapsed Time","Decimal Hours","Total Hours","Cum. Dec.","Cumulative Total"]
[{"$f":"C10","v":"2025-06-16"},null,null,null,null,1,{"$f":"IF(ISERROR(VLOOKUP($E13,HolidayType,2,FALSE)),IF(OR(ISBLANK(B13),ISBLANK(C13),ISBLANK(D13)),\"0:00\",C13-(B13+D13)),IF(OR(ISBLANK(B13),ISBLANK(C13),ISBLANK(D13)),IF(VLOOKUP($E13,HolidayType,2,FALSE),IF(VLOOKUP($A13,Holidays,4,FALSE),VLOOKUP(WEEKDAY($A13,2),Holidays!$E$3:$H$9,4,FALSE),\"0:00\"),VLOOKUP(WEEKDAY($A13,2),Holidays!$E$3:$H$9,4,FALSE)),IF(C13-(B13+D13)>VLOOKUP(WEEKDAY($A13,2),Holidays!$E$3:$H$9,4,FALSE),C13-(B13+D13),IF(VLOOKUP($E13,HolidayType,2,FALSE),IF(VLOOKUP($A13,Holidays,4,FALSE),VLOOKUP(WEEKDAY($A13,2),Holidays!$E$3:$H$9,4,FALSE),C13-(B13+D13)),VLOOKUP(WEEKDAY($A13,2),Holidays!$E$3:$H$9,4,FALSE)))))","v":"0:00"},{"$f":"((HOUR(G13)+MINUTE(G13)/60))*F13","v":0},{"$f":"CONCATENATE(TRUNC(INT(H13)),\":\",TEXT((H13-TRUNC(INT(H13)))*60,\"00\"))","v":"0:00"},{"$f":"H13","v":0},{"$f":"CONCATENATE(TRUNC(INT(J13)),\":\",TEXT((J13-TRUNC(INT(J13)))*60,\"00\"))","v":"0:00"},{"$f":"IF(WEEKDAY(A13,2)<6,IF(F13<>0,1,0),0)","v":1}]
[{"$f":"A13+1","v":"2025-06-17"},null,null,null,null,1,{"$f":"IF(ISERROR(VLOOKUP($E14,HolidayType,2,FALSE)),IF(OR(ISBLANK(B14),ISBLANK(C14),ISBLANK(D14)),\"0:00\",C14-(B14+D14)),IF(OR(ISBLANK(B14),ISBLANK(C14),ISBLANK(D14)),IF(VLOOKUP($E14,HolidayType,2,FALSE),IF(VLOOKUP($A14,Holidays,4,FALSE),VLOOKUP(WEEKDAY($A14,2),Holidays!$E$3:$H$9,4,FALSE),\"0:00\"),VLOOKUP(WEEKDAY($A14,2),Holidays!$E$3:$H$9,4,FALSE)),IF(C14-(B14+D14)>VLOOKUP(WEEKDAY($A14,2),Holidays!$E$3:$H$9,4,FALSE),C14-(B14+D14),IF(VLOOKUP($E14,HolidayType,2,FALSE),IF(VLOOKUP($A14,Holidays,4,FALSE),VLOOKUP(WEEKDAY($A14,2),Holidays!$E$3:$H$9,4,FALSE),C14-(B14+D14)),VLOOKUP(WEEKDAY($A14,2),Holidays!$E$3:$H$9,4,FALSE)))))","v":"0:00"},0,{"$f":"CONCATENATE(TRUNC(INT(H14)),\":\",TEXT((H14-TRUNC(INT(H14)))*60,\"00\"))","v":"0:00"},{"$f":"J13+H14","v":0},{"$f":"CONCATENATE(TRUNC(INT(J14)),\":\",TEXT((J14-TRUNC(INT(J14)))*60,\"00\"))","v":"0:00"},1]
["2025-06-18",null,null,null,null,1,{"$f":"IF(ISERROR(VLOOKUP($E15,HolidayType,2,FALSE)),IF(OR(ISBLANK(B15),ISBLANK(C15),ISBLANK(D15)),\"0:00\",C15-(B15+D15)),IF(OR(ISBLANK(B15),ISBLANK(C15),ISBLANK(D15)),IF(VLOOKUP($E15,HolidayType,2,FALSE),IF(VLOOKUP($A15,Holidays,4,FALSE),VLOOKUP(WEEKDAY($A15,2),Holidays!$E$3:$H$9,4,FALSE),\"0:00\"),VLOOKUP(WEEKDAY($A15,2),Holidays!$E$3:$H$9,4,FALSE)),IF(C15-(B15+D15)>VLOOKUP(WEEKDAY($A15,2),Holidays!$E$3:$H$9,4,FALSE),C15-(B15+D15),IF(VLOOKUP($E15,HolidayType,2,FALSE),IF(VLOOKUP($A15,Holidays,4,FALSE),VLOOKUP(WEEKDAY($A15,2),Holidays!$E$3:$H$9,4,FALSE),C15-(B15+D15)),VLOOKUP(WEEKDAY($A15,2),Holidays!$E$3:$H$9,4,FALSE)))))","v":"0:00"},0,"0:00",{"$f":"J14+H15","v":0},"0:00",1]
["2025-06-19",null,null,null,null,1,{"$f":"IF(ISERROR(VLOOKUP($E16,HolidayType,2,FALSE)),IF(OR(ISBLANK(B16),ISBLANK(C16),ISBLANK(D16)),\"0:00\",C16-(B16+D16)),IF(OR(ISBLANK(B16),ISBLANK(C16),ISBLANK(D16)),IF(VLOOKUP($E16,HolidayType,2,FALSE),IF(VLOOKUP($A16,Holidays,4,FALSE),VLOOKUP(WEEKDAY($A16,2),Holidays!$E$3:$H$9,4,FALSE),\"0:00\"),VLOOKUP(WEEKDAY($A16,2),Holidays!$E$3:$H$9,4,FALSE)),IF(C16-(B16+D16)>VLOOKUP(WEEKDAY($A16,2),Holidays!$E$3:$H$9,4,FALSE),C16-(B16+D16),IF(VLOOKUP($E16,HolidayType,2,FALSE),IF(VLOOKUP($A16,Holidays,4,FALSE),VLOOKUP(WEEKDAY($A16,2),Holidays!$E$3:$H$9,4,FALSE),C16-(B16+D16)),VLOOKUP(WEEKDAY($A16,2),Holidays!$E$3:$H$9,4,FALSE)))))","v":"0:00"},0,"0:00",0,"0:00",1]
["2025-06-20",null,null,null,null,1,{"$f":"IF(ISERROR(VLOOKUP($E17,HolidayType,2,FALSE)),IF(OR(ISBLANK(B17),ISBLANK(C17),ISBLANK(D17)),\"0:00\",C17-(B17+D17)),IF(OR(ISBLANK(B17),ISBLANK(C17),ISBLANK(D17)),IF(VLOOKUP($E17,HolidayType,2,FALSE),IF(VLOOKUP($A17,Holidays,4,FALSE),VLOOKUP(WEEKDAY($A17,2),Holidays!$E$3:$H$9,4,FALSE),\"0:00\"),VLOOKUP(WEEKDAY($A17,2),Holidays!$E$3:$H$9,4,FALSE)),IF(C17-(B17+D17)>VLOOKUP(WEEKDAY($A17,2),Holidays!$E$3:$H$9,4,FALSE),C17-(B17+D17),IF(VLOOKUP($E17,HolidayType,2,FALSE),IF(VLOOKUP($A17,Holidays,4,FALSE),VLOOKUP(WEEKDAY($A17,2),Holidays!$E$3:$H$9,4,FALSE),C17-(B17+D17)),VLOOKUP(WEEKDAY($A17,2),Holidays!$E$3:$H$9,4,FALSE)))))","v":"0:00"},0,"0:00",0,"0:00",1]
["2025-06-21",null,null,null,{"$f":"IF(ISERROR(VLOOKUP($A18,Holidays,2,FALSE)),\"\",VLOOKUP($A18,Holidays,2,0))","v":""},1.5,{"$f":"IF(ISERROR(VLOOKUP($E18,HolidayType,2,FALSE)),IF(OR(ISBLANK(B18),ISBLANK(C18),ISBLANK(D18)),\"0:00\",C18-(B18+D18)),IF(OR(ISBLANK(B18),ISBLANK(C18),ISBLANK(D18)),IF(VLOOKUP($E18,HolidayType,2,FALSE),IF(VLOOKUP($A18,Holidays,4,FALSE),VLOOKUP(WEEKDAY($A18,2),Holidays!$E$3:$H$9,4,FALSE),\"0:00\"),VLOOKUP(WEEKDAY($A18,2),Holidays!$E$3:$H$9,4,FALSE)),IF(C18-(B18+D18)>VLOOKUP(WEEKDAY($A18,2),Holidays!$E$3:$H$9,4,FALSE),C18-(B18+D18),IF(VLOOKUP($E18,HolidayType,2,FALSE),IF(VLOOKUP($A18,Holidays,4,FALSE),VLOOKUP(WEEKDAY($A18,2),Holidays!$E$3:$H$9,4,FALSE),C18-(B18+D18)),VLOOKUP(WEEKDAY($A18,2),Holidays!$E$3:$H$9,4,FALSE)))))","v":"0:00"},0,"0:00",0,"0:00",0]
["2025-06-22",null,null,null,{"$f":"IF(ISERROR(VLOOKUP($A19,Holidays,2,FALSE)),\"\",VLOOKUP($A19,Holidays,2,0))","v":""},2,{"$f":"IF(ISERROR(VLOOKUP($E19,HolidayType,2,FALSE)),IF(OR(ISBLANK(B19),ISBLANK(C19),ISBLANK(D19)),\"0:00\",C19-(B19+D19)),IF(OR(ISBLANK(B19),ISBLANK(C19),ISBLANK(D19)),IF(VLOOKUP($E19,HolidayType,2,FALSE),IF(VLOOKUP($A19,Holidays,4,FALSE),VLOOKUP(WEEKDAY($A19,2),Holidays!$E$3:$H$9,4,FALSE),\"0:00\"),VLOOKUP(WEEKDAY($A19,2),Holidays!$E$3:$H$9,4,FALSE)),IF(C19-(B19+D19)>VLOOKUP(WEEKDAY($A19,2),Holidays!$E$3:$H$9,4,FALSE),C19-(B19+D19),IF(VLOOKUP($E19,HolidayType,2,FALSE),IF(VLOOKUP($A19,Holidays,4,FALSE),VLOOKUP(WEEKDAY($A19,2),Holidays!$E$3:$H$9,4,FALSE),C19-(B19+D19)),VLOOKUP(WEEKDAY($A19,2),Holidays!$E$3:$H$9,4,FALSE)))))","v":"0:00"},0,"0:00",{"$f":"J18+H19","v":0},"0:00",0]
["2025-06-23",null,null,null,null,1,{"$f":"IF(ISERROR(VLOOKUP($E20,HolidayType,2,FALSE)),IF(OR(ISBLANK(B20),ISBLANK(C20),ISBLANK(D20)),\"0:00\",C20-(B20+D20)),IF(OR(ISBLANK(B20),ISBLANK(C20),ISBLANK(D20)),IF(VLOOKUP($E20,HolidayType,2,FALSE),IF(VLOOKUP($A20,Holidays,4,FALSE),VLOOKUP(WEEKDAY($A20,2),Holidays!$E$3:$H$9,4,FALSE),\"0:00\"),VLOOKUP(WEEKDAY($A20,2),Holidays!$E$3:$H$9,4,FALSE)),IF(C20-(B20+D20)>VLOOKUP(WEEKDAY($A20,2),Holidays!$E$3:$H$9,4,FALSE),C20-(B20+D20),IF(VLOOKUP($E20,HolidayType,2,FALSE),IF(VLOOKUP($A20,Holidays,4,FALSE),VLOOKUP(WEEKDAY($A20,2),Holidays!$E$3:$H$9,4,FALSE),C20-(B20+D20)),VLOOKUP(WEEKDAY($A20,2),Holidays!$E$3:$H$9,4,FALSE)))))","v":"0:00"},0,"0:00",{"$f":"J19+H20","v":0},"0:00",1]
["2025-06-24",null,null,null,null,1,{"$f":"IF(ISERROR(VLOOKUP($E21,HolidayType,2,FALSE)),IF(OR(ISBLANK(B21),ISBLANK(C21),ISBLANK(D21)),\"0:00\",C21-(B21+D21)),IF(OR(ISBLANK(B21),ISBLANK(C21),ISBLANK(D21)),IF(VLOOKUP($E21,HolidayType,2,FALSE),IF(VLOOKUP($A21,Holidays,4,FALSE),VLOOKUP(WEEKDAY($A21,2),Holidays!$E$3:$H$9,4,FALSE),\"0:00\"),VLOOKUP(WEEKDAY($A21,2),Holidays!$E$3:$H$9,4,FALSE)),IF(C21-(B21+D21)>VLOOKUP(WEEKDAY($A21,2),Holidays!$E$3:$H$9,4,FALSE),C21-(B21+D21),IF(VLOOKUP($E21,HolidayType,2,FALSE),IF(VLOOKUP($A21,Holidays,4,FALSE),VLOOKUP(WEEKDAY($A21,2),Holidays!$E$3:$H$9,4,FALSE),C21-(B21+D21)),VLOOKUP(WEEKDAY($A21,2),Holidays!$E$3:$H$9,4,FALSE)))))","v":"0:00"},0,"0:00",0,"0:00",1]
["2025-06-25",null,null,null,null,1,{"$f":"IF(ISERROR(VLOOKUP($E22,HolidayType,2,FALSE)),IF(OR(ISBLANK(B22),ISBLANK(C22),ISBLANK(D22)),\"0:00\",C22-(B22+D22)),IF(OR(ISBLANK(B22),ISBLANK(C22),ISBLANK(D22)),IF(VLOOKUP($E22,HolidayType,2,FALSE),IF(VLOOKUP($A22,Holidays,4,FALSE),VLOOKUP(WEEKDAY($A22,2),Holidays!$E$3:$H$9,4,FALSE),\"0:00\"),VLOOKUP(WEEKDAY($A22,2),Holidays!$E$3:$H$9,4,FALSE)),IF(C22-(B22+D22)>VLOOKUP(WEEKDAY($A22,2),Holidays!$E$3:$H$9,4,FALSE),C22-(B22+D22),IF(VLOOKUP($E22,HolidayType,2,FALSE),IF(VLOOKUP($A22,Holidays,4,FALSE),VLOOKUP(WEEKDAY($A22,2),Holidays!$E$3:$H$9,4,FALSE),C22-(B22+D22)),VLOOKUP(WEEKDAY($A22,2),Holidays!$E$3:$H$9,4,FALSE)))))","v":"0:00"},0,"0:00",0,"0:00",1]
["2025-06-26",null,null,null,null,1,{"$f":"IF(ISERROR(VLOOKUP($E23,HolidayType,2,FALSE)),IF(OR(ISBLANK(B23),ISBLANK(C23),ISBLANK(D23)),\"0:00\",C23-(B23+D23)),IF(OR(ISBLANK(B23),ISBLANK(C23),ISBLANK(D23)),IF(VLOOKUP($E23,HolidayType,2,FALSE),IF(VLOOKUP($A23,Holidays,4,FALSE),VLOOKUP(WEEKDAY($A23,2),Holidays!$E$3:$H$9,4,FALSE),\"0:00\"),VLOOKUP(WEEKDAY($A23,2),Holidays!$E$3:$H$9,4,FALSE)),IF(C23-(B23+D23)>VLOOKUP(WEEKDAY($A23,2),Holidays!$E$3:$H$9,4,FALSE),C23-(B23+D23),IF(VLOOKUP($E23,HolidayType,2,FALSE),IF(VLOOKUP($A23,Holidays,4,FALSE),VLOOKUP(WEEKDAY($A23,2),Holidays!$E$3:$H$9,4,FALSE),C23-(B23+D23)),VLOOKUP(WEEKDAY($A23,2),Holidays!$E$3:$H$9,4,FALSE)))))","v":"0:00"},0,"0:00",0,"0:00",1]
["2025-06-27",null,null,null,null,1,{"$f":"IF(ISERROR(VLOOKUP($E24,HolidayType,2,FALSE)),IF(OR(ISBLANK(B24),ISBLANK(C24),ISBLANK(D24)),\"0:00\",C24-(B24+D24)),IF(OR(ISBLANK(B24),ISBLANK(C24),ISBLANK(D24)),IF(VLOOKUP($E24,HolidayType,2,FALSE),IF(VLOOKUP($A24,Holidays,4,FALSE),VLOOKUP(WEEKDAY($A24,2),Holidays!$E$3:$H$9,4,FALSE),\"0:00\"),VLOOKUP(WEEKDAY($A24,2),Holidays!$E$3:$H$9,4,FALSE)),IF(C24-(B24+D24)>VLOOKUP(WEEKDAY($A24,2),Holidays!$E$3:$H$9,4,FALSE),C24-(B24+D24),IF(VLOOKUP($E24,HolidayType,2,FALSE),IF(VLOOKUP($A24,Holidays,4,FALSE),VLOOKUP(WEEKDAY($A24,2),Holidays!$E$3:$H$9,4,FALSE),C24-(B24+D24)),VLOOKUP(WEEKDAY($A24,2),Holidays!$E$3:$H$9,4,FALSE)))))","v":"0:00"},0,"0:00",0,"0:00",1]
["2025-06-28",null,null,null,null,1.5,{"$f":"IF(ISERROR(VLOOKUP($E25,HolidayType,2,FALSE)),IF(OR(ISBLANK(B25),ISBLANK(C25),ISBLANK(D25)),\"0:00\",C25-(B25+D25)),IF(OR(ISBLANK(B25),ISBLANK(C25),ISBLANK(D25)),IF(VLOOKUP($E25,HolidayType,2,FALSE),IF(VLOOKUP($A25,Holidays,4,FALSE),VLOOKUP(WEEKDAY($A25,2),Holidays!$E$3:$H$9,4,FALSE),\"0:00\"),VLOOKUP(WEEKDAY($A25,2),Holidays!$E$3:$H$9,4,FALSE)),IF(C25-(B25+D25)>VLOOKUP(WEEKDAY($A25,2),Holidays!$E$3:$H$9,4,FALSE),C25-(B25+D25),IF(VLOOKUP($E25,HolidayType,2,FALSE),IF(VLOOKUP($A25,Holidays,4,FALSE),VLOOKUP(WEEKDAY($A25,2),Holidays!$E$3:$H$9,4,FALSE),C25-(B25+D25)),VLOOKUP(WEEKDAY($A25,2),Holidays!$E$3:$H$9,4,FALSE)))))","v":"0:00"},0,"0:00",{"$f":"J24+H25","v":0},"0:00",0]
["2025-06-29",null,null,null,null,2,{"$f":"IF(ISERROR(VLOOKUP($E26,HolidayType,2,FALSE)),IF(OR(ISBLANK(B26),ISBLANK(C26),ISBLANK(D26)),\"0:00\",C26-(B26+D26)),IF(OR(ISBLANK(B26),ISBLANK(C26),ISBLANK(D26)),IF(VLOOKUP($E26,HolidayType,2,FALSE),IF(VLOOKUP($A26,Holidays,4,FALSE),VLOOKUP(WEEKDAY($A26,2),Holidays!$E$3:$H$9,4,FALSE),\"0:00\"),VLOOKUP(WEEKDAY($A26,2),Holidays!$E$3:$H$9,4,FALSE)),IF(C26-(B26+D26)>VLOOKUP(WEEKDAY($A26,2),Holidays!$E$3:$H$9,4,FALSE),C26-(B26+D26),IF(VLOOKUP($E26,HolidayType,2,FALSE),IF(VLOOKUP($A26,Holidays,4,FALSE),VLOOKUP(WEEKDAY($A26,2),Holidays!$E$3:$H$9,4,FALSE),C26-(B26+D26)),VLOOKUP(WEEKDAY($A26,2),Holidays!$E$3:$H$9,4,FALSE)))))","v":"0:00"},0,"0:00",{"$f":"J25+H26","v":0},"0:00",0]
["2025-06-30",null,null,null,null,1,{"$f":"IF(ISERROR(VLOOKUP($E27,HolidayType,2,FALSE)),IF(OR(ISBLANK(B27),ISBLANK(C27),ISBLANK(D27)),\"0:00\",C27-(B27+D27)),IF(OR(ISBLANK(B27),ISBLANK(C27),ISBLANK(D27)),IF(VLOOKUP($E27,HolidayType,2,FALSE),IF(VLOOKUP($A27,Holidays,4,FALSE),VLOOKUP(WEEKDAY($A27,2),Holidays!$E$3:$H$9,4,FALSE),\"0:00\"),VLOOKUP(WEEKDAY($A27,2),Holidays!$E$3:$H$9,4,FALSE)),IF(C27-(B27+D27)>VLOOKUP(WEEKDAY($A27,2),Holidays!$E$3:$H$9,4,FALSE),C27-(B27+D27),IF(VLOOKUP($E27,HolidayType,2,FALSE),IF(VLOOKUP($A27,Holidays,4,FALSE),VLOOKUP(WEEKDAY($A27,2),Holidays!$E$3:$H$9,4,FALSE),C27-(B27+D27)),VLOOKUP(WEEKDAY($A27,2),Holidays!$E$3:$H$9,4,FALSE)))))","v":"0:00"},0,"0:00",{"$f":"J26+H27","v":0},"0:00",1]
["2025-07-01",null,null,null,null,1,{"$f":"IF(ISERROR(VLOOKUP($E28,HolidayType,2,FALSE)),IF(OR(ISBLANK(B28),ISBLANK(C28),ISBLANK(D28)),\"0:00\",C28-(B28+D28)),IF(OR(ISBLANK(B28),ISBLANK(C28),ISBLANK(D28)),IF(VLOOKUP($E28,HolidayType,2,FALSE),IF(VLOOKUP($A28,Holidays,4,FALSE),VLOOKUP(WEEKDAY($A28,2),Holidays!$E$3:$H$9,4,FALSE),\"0:00\"),VLOOKUP(WEEKDAY($A28,2),Holidays!$E$3:$H$9,4,FALSE)),IF(C28-(B28+D28)>VLOOKUP(WEEKDAY($A28,2),Holidays!$E$3:$H$9,4,FALSE),C28-(B28+D28),IF(VLOOKUP($E28,HolidayType,2,FALSE),IF(VLOOKUP($A28,Holidays,4,FALSE),VLOOKUP(WEEKDAY($A28,2),Holidays!$E$3:$H$9,4,FALSE),C28-(B28+D28)),VLOOKUP(WEEKDAY($A28,2),Holidays!$E$3:$H$9,4,FALSE)))))","v":"0:00"},0,"0:00",0,"0:00",1]
["2025-07-02",null,null,null,null,1,{"$f":"IF(ISERROR(VLOOKUP($E29,HolidayType,2,FALSE)),IF(OR(ISBLANK(B29),ISBLANK(C29),ISBLANK(D29)),\"0:00\",C29-(B29+D29)),IF(OR(ISBLANK(B29),ISBLANK(C29),ISBLANK(D29)),IF(VLOOKUP($E29,HolidayType,2,FALSE),IF(VLOOKUP($A29,Holidays,4,FALSE),VLOOKUP(WEEKDAY($A29,2),Holidays!$E$3:$H$9,4,FALSE),\"0:00\"),VLOOKUP(WEEKDAY($A29,2),Holidays!$E$3:$H$9,4,FALSE)),IF(C29-(B29+D29)>VLOOKUP(WEEKDAY($A29,2),Holidays!$E$3:$H$9,4,FALSE),C29-(B29+D29),IF(VLOOKUP($E29,HolidayType,2,FALSE),IF(VLOOKUP($A29,Holidays,4,FALSE),VLOOKUP(WEEKDAY($A29,2),Holidays!$E$3:$H$9,4,FALSE),C29-(B29+D29)),VLOOKUP(WEEKDAY($A29,2),Holidays!$E$3:$H$9,4,FALSE)))))","v":"0:00"},0,"0:00",0,"0:00",1]
["2025-07-03",null,null,null,{"$f":"IF(ISERROR(VLOOKUP($A30,Holidays,2,FALSE)),\"\",VLOOKUP($A30,Holidays,2,0))","v":""},1,{"$f":"IF(ISERROR(VLOOKUP($E30,HolidayType,2,FALSE)),IF(OR(ISBLANK(B30),ISBLANK(C30),ISBLANK(D30)),\"0:00\",C30-(B30+D30)),IF(OR(ISBLANK(B30),ISBLANK(C30),ISBLANK(D30)),IF(VLOOKUP($E30,HolidayType,2,FALSE),IF(VLOOKUP($A30,Holidays,4,FALSE),VLOOKUP(WEEKDAY($A30,2),Holidays!$E$3:$H$9,4,FALSE),\"0:00\"),VLOOKUP(WEEKDAY($A30,2),Holidays!$E$3:$H$9,4,FALSE)),IF(C30-(B30+D30)>VLOOKUP(WEEKDAY($A30,2),Holidays!$E$3:$H$9,4,FALSE),C30-(B30+D30),IF(VLOOKUP($E30,HolidayType,2,FALSE),IF(VLOOKUP($A30,Holidays,4,FALSE),VLOOKUP(WEEKDAY($A30,2),Holidays!$E$3:$H$9,4,FALSE),C30-(B30+D30)),VLOOKUP(WEEKDAY($A30,2),Holidays!$E$3:$H$9,4,FALSE)))))","v":"0:00"},0,"0:00",0,"0:00",1]
["2025-07-04",null,null,null,"",1,{"$f":"IF(ISERROR(VLOOKUP($E31,HolidayType,2,FALSE)),IF(OR(ISBLANK(B31),ISBLANK(C31),ISBLANK(D31)),\"0:00\",C31-(B31+D31)),IF(OR(ISBLANK(B31),ISBLANK(C31),ISBLANK(D31)),IF(VLOOKUP($E31,HolidayType,2,FALSE),IF(VLOOKUP($A31,Holidays,4,FALSE),VLOOKUP(WEEKDAY($A31,2),Holidays!$E$3:$H$9,4,FALSE),\"0:00\"),VLOOKUP(WEEKDAY($A31,2),Holidays!$E$3:$H$9,4,FALSE)),IF(C31-(B31+D31)>VLOOKUP(WEEKDAY($A31,2),Holidays!$E$3:$H$9,4,FALSE),C31-(B31+D31),IF(VLOOKUP($E31,HolidayType,2,FALSE),IF(VLOOKUP($A31,Holidays,4,FALSE),VLOOKUP(WEEKDAY($A31,2),Holidays!$E$3:$H$9,4,FALSE),C31-(B31+D31)),VLOOKUP(WEEKDAY($A31,2),Holidays!$E$3:$H$9,4,FALSE)))))","v":"0:00"},0,"0:00",0,"0:00",1]
["2025-07-05",null,null,null,"",1.5,{"$f":"IF(ISERROR(VLOOKUP($E32,HolidayType,2,FALSE)),IF(OR(ISBLANK(B32),ISBLANK(C32),ISBLANK(D32)),\"0:00\",C32-(B32+D32)),IF(OR(ISBLANK(B32),ISBLANK(C32),ISBLANK(D32)),IF(VLOOKUP($E32,HolidayType,2,FALSE),IF(VLOOKUP($A32,Holidays,4,FALSE),VLOOKUP(WEEKDAY($A32,2),Holidays!$E$3:$H$9,4,FALSE),\"0:00\"),VLOOKUP(WEEKDAY($A32,2),Holidays!$E$3:$H$9,4,FALSE)),IF(C32-(B32+D32)>VLOOKUP(WEEKDAY($A32,2),Holidays!$E$3:$H$9,4,FALSE),C32-(B32+D32),IF(VLOOKUP($E32,HolidayType,2,FALSE),IF(VLOOKUP($A32,Holidays,4,FALSE),VLOOKUP(WEEKDAY($A32,2),Holidays!$E$3:$H$9,4,FALSE),C32-(B32+D32)),VLOOKUP(WEEKDAY($A32,2),Holidays!$E$3:$H$9,4,FALSE)))))","v":"0:00"},0,"0:00",{"$f":"J31+H32","v":0},"0:00",0]
["2025-07-06",null,null,null,"",2,{"$f":"IF(ISERROR(VLOOKUP($E33,HolidayType,2,FALSE)),IF(OR(ISBLANK(B33),ISBLANK(C33),ISBLANK(D33)),\"0:00\",C33-(B33+D33)),IF(OR(ISBLANK(B33),ISBLANK(C33),ISBLANK(D33)),IF(VLOOKUP($E33,HolidayType,2,FALSE),IF(VLOOKUP($A33,Holidays,4,FALSE),VLOOKUP(WEEKDAY($A33,2),Holidays!$E$3:$H$9,4,FALSE),\"0:00\"),VLOOKUP(WEEKDAY($A33,2),Holidays!$E$3:$H$9,4,FALSE)),IF(C33-(B33+D33)>VLOOKUP(WEEKDAY($A33,2),Holidays!$E$3:$H$9,4,FALSE),C33-(B33+D33),IF(VLOOKUP($E33,HolidayType,2,FALSE),IF(VLOOKUP($A33,Holidays,4,FALSE),VLOOKUP(WEEKDAY($A33,2),Holidays!$E$3:$H$9,4,FALSE),C33-(B33+D33)),VLOOKUP(WEEKDAY($A33,2),Holidays!$E$3:$H$9,4,FALSE)))))","v":"0:00"},0,"0:00",{"$f":"J32+H33","v":0},"0:00",0]
["2025-07-07",null,null,null,"",1,{"$f":"IF(ISERROR(VLOOKUP($E34,HolidayType,2,FALSE)),IF(OR(ISBLANK(B34),ISBLANK(C34),ISBLANK(D34)),\"0:00\",C34-(B34+D34)),IF(OR(ISBLANK(B34),ISBLANK(C34),ISBLANK(D34)),IF(VLOOKUP($E34,HolidayType,2,FALSE),IF(VLOOKUP($A34,Holidays,4,FALSE),VLOOKUP(WEEKDAY($A34,2),Holidays!$E$3:$H$9,4,FALSE),\"0:00\"),VLOOKUP(WEEKDAY($A34,2),Holidays!$E$3:$H$9,4,FALSE)),IF(C34-(B34+D34)>VLOOKUP(WEEKDAY($A34,2),Holidays!$E$3:$H$9,4,FALSE),C34-(B34+D34),IF(VLOOKUP($E34,HolidayType,2,FALSE),IF(VLOOKUP($A34,Holidays,4,FALSE),VLOOKUP(WEEKDAY($A34,2),Holidays!$E$3:$H$9,4,FALSE),C34-(B34+D34)),VLOOKUP(WEEKDAY($A34,2),Holidays!$E$3:$H$9,4,FALSE)))))","v":"0:00"},0,"0:00",{"$f":"J31+H34","v":0},"0:00",1]
["2025-07-08",null,null,null,"",1,{"$f":"IF(ISERROR(VLOOKUP($E35,HolidayType,2,FALSE)),IF(OR(ISBLANK(B35),ISBLANK(C35),ISBLANK(D35)),\"0:00\",C35-(B35+D35)),IF(OR(ISBLANK(B35),ISBLANK(C35),ISBLANK(D35)),IF(VLOOKUP($E35,HolidayType,2,FALSE),IF(VLOOKUP($A35,Holidays,4,FALSE),VLOOKUP(WEEKDAY($A35,2),Holidays!$E$3:$H$9,4,FALSE),\"0:00\"),VLOOKUP(WEEKDAY($A35,2),Holidays!$E$3:$H$9,4,FALSE)),IF(C35-(B35+D35)>VLOOKUP(WEEKDAY($A35,2),Holidays!$E$3:$H$9,4,FALSE),C35-(B35+D35),IF(VLOOKUP($E35,HolidayType,2,FALSE),IF(VLOOKUP($A35,Holidays,4,FALSE),VLOOKUP(WEEKDAY($A35,2),Holidays!$E$3:$H$9,4,FALSE),C35-(B35+D35)),VLOOKUP(WEEKDAY($A35,2),Holidays!$E$3:$H$9,4,FALSE)))))","v":"0:00"},0,"0:00",0,"0:00",1]
["2025-07-09",null,null,null,"",1,{"$f":"IF(ISERROR(VLOOKUP($E36,HolidayType,2,FALSE)),IF(OR(ISBLANK(B36),ISBLANK(C36),ISBLANK(D36)),\"0:00\",C36-(B36+D36)),IF(OR(ISBLANK(B36),ISBLANK(C36),ISBLANK(D36)),IF(VLOOKUP($E36,HolidayType,2,FALSE),IF(VLOOKUP($A36,Holidays,4,FALSE),VLOOKUP(WEEKDAY($A36,2),Holidays!$E$3:$H$9,4,FALSE),\"0:00\"),VLOOKUP(WEEKDAY($A36,2),Holidays!$E$3:$H$9,4,FALSE)),IF(C36-(B36+D36)>VLOOKUP(WEEKDAY($A36,2),Holidays!$E$3:$H$9,4,FALSE),C36-(B36+D36),IF(VLOOKUP($E36,HolidayType,2,FALSE),IF(VLOOKUP($A36,Holidays,4,FALSE),VLOOKUP(WEEKDAY($A36,2),Holidays!$E$3:$H$9,4,FALSE),C36-(B36+D36)),VLOOKUP(WEEKDAY($A36,2),Holidays!$E$3:$H$9,4,FALSE)))))","v":"0:00"},0,"0:00",0,"0:00",1]
["2025-07-10",null,null,null,"",1,{"$f":"IF(ISERROR(VLOOKUP($E37,HolidayType,2,FALSE)),IF(OR(ISBLANK(B37),ISBLANK(C37),ISBLANK(D37)),\"0:00\",C37-(B37+D37)),IF(OR(ISBLANK(B37),ISBLANK(C37),ISBLANK(D37)),IF(VLOOKUP($E37,HolidayType,2,FALSE),IF(VLOOKUP($A37,Holidays,4,FALSE),VLOOKUP(WEEKDAY($A37,2),Holidays!$E$3:$H$9,4,FALSE),\"0:00\"),VLOOKUP(WEEKDAY($A37,2),Holidays!$E$3:$H$9,4,FALSE)),IF(C37-(B37+D37)>VLOOKUP(WEEKDAY($A37,2),Holidays!$E$3:$H$9,4,FALSE),C37-(B37+D37),IF(VLOOKUP($E37,HolidayType,2,FALSE),IF(VLOOKUP($A37,Holidays,4,FALSE),VLOOKUP(WEEKDAY($A37,2),Holidays!$E$3:$H$9,4,FALSE),C37-(B37+D37)),VLOOKUP(WEEKDAY($A37,2),Holidays!$E$3:$H$9,4,FALSE)))))","v":"0:00"},0,"0:00",0,"0:00",1]
["2025-07-11",null,null,null,"",1,{"$f":"IF(ISERROR(VLOOKUP($E38,HolidayType,2,FALSE)),IF(OR(ISBLANK(B38),ISBLANK(C38),ISBLANK(D38)),\"0:00\",C38-(B38+D38)),IF(OR(ISBLANK(B38),ISBLANK(C38),ISBLANK(D38)),IF(VLOOKUP($E38,HolidayType,2,FALSE),IF(VLOOKUP($A38,Holidays,4,FALSE),VLOOKUP(WEEKDAY($A38,2),Holidays!$E$3:$H$9,4,FALSE),\"0:00\"),VLOOKUP(WEEKDAY($A38,2),Holidays!$E$3:$H$9,4,FALSE)),IF(C38-(B38+D38)>VLOOKUP(WEEKDAY($A38,2),Holidays!$E$3:$H$9,4,FALSE),C38-(B38+D38),IF(VLOOKUP($E38,HolidayType,2,FALSE),IF(VLOOKUP($A38,Holidays,4,FALSE),VLOOKUP(WEEKDAY($A38,2),Holidays!$E$3:$H$9,4,FALSE),C38-(B38+D38)),VLOOKUP(WEEKDAY($A38,2),Holidays!$E$3:$H$9,4,FALSE)))))","v":"0:00"},0,"0:00",0,"0:00",1]
["2025-07-12",null,null,null,"",1.5,{"$f":"IF(ISERROR(VLOOKUP($E39,HolidayType,2,FALSE)),IF(OR(ISBLANK(B39),ISBLANK(C39),ISBLANK(D39)),\"0:00\",C39-(B39+D39)),IF(OR(ISBLANK(B39),ISBLANK(C39),ISBLANK(D39)),IF(VLOOKUP($E39,HolidayType,2,FALSE),IF(VLOOKUP($A39,Holidays,4,FALSE),VLOOKUP(WEEKDAY($A39,2),Holidays!$E$3:$H$9,4,FALSE),\"0:00\"),VLOOKUP(WEEKDAY($A39,2),Holidays!$E$3:$H$9,4,FALSE)),IF(C39-(B39+D39)>VLOOKUP(WEEKDAY($A39,2),Holidays!$E$3:$H$9,4,FALSE),C39-(B39+D39),IF(VLOOKUP($E39,HolidayType,2,FALSE),IF(VLOOKUP($A39,Holidays,4,FALSE),VLOOKUP(WEEKDAY($A39,2),Holidays!$E$3:$H$9,4,FALSE),C39-(B39+D39)),VLOOKUP(WEEKDAY($A39,2),Holidays!$E$3:$H$9,4,FALSE)))))","v":"0:00"},0,"0:00",0,"0:00",0]
["2025-07-13",null,null,null,"",2,{"$f":"IF(ISERROR(VLOOKUP($E40,HolidayType,2,FALSE)),IF(OR(ISBLANK(B40),ISBLANK(C40),ISBLANK(D40)),\"0:00\",C40-(B40+D40)),IF(OR(ISBLANK(B40),ISBLANK(C40),ISBLANK(D40)),IF(VLOOKUP($E40,HolidayType,2,FALSE),IF(VLOOKUP($A40,Holidays,4,FALSE),VLOOKUP(WEEKDAY($A40,2),Holidays!$E$3:$H$9,4,FALSE),\"0:00\"),VLOOKUP(WEEKDAY($A40,2),Holidays!$E$3:$H$9,4,FALSE)),IF(C40-(B40+D40)>VLOOKUP(WEEKDAY($A40,2),Holidays!$E$3:$H$9,4,FALSE),C40-(B40+D40),IF(VLOOKUP($E40,HolidayType,2,FALSE),IF(VLOOKUP($A40,Holidays,4,FALSE),VLOOKUP(WEEKDAY($A40,2),Holidays!$E$3:$H$9,4,FALSE),C40-(B40+D40)),VLOOKUP(WEEKDAY($A40,2),Holidays!$E$3:$H$9,4,FALSE)))))","v":"0:00"},0,"0:00",{"$f":"J39+H40","v":0},"0:00",0]
[null,null,null,null,null,null,null,null,null,null,null,{"$f":"SUM(L13:L40)","v":20}]
[null,null,null,null,"Total ordinary hours for accounting period",null,{"$f":"CONCATENATE(TRUNC(INT(ABS(J42))),\":\",TEXT(ABS(ABS(J42)-TRUNC(INT(ABS(J42))))*60,\"00\"))","v":"140:00"},null,null,{"$f":"J10*4","v":140}]
[null,null,null,null,"Total actual hours worked in accounting period",null,{"$f":"CONCATENATE(TRUNC(INT(ABS(J43))),\":\",TEXT(ABS(ABS(J43)-TRUNC(INT(ABS(J43))))*60,\"00\"))","v":"0:00"},null,null,{"$f":"J40","v":0}]
[null,null,null,null,"Difference",null,{"$f":"CONCATENATE(TRUNC(INT(ABS(J44))),\":\",TEXT(ABS(ABS(J44)-TRUNC(INT(ABS(J44))))*60,\"00\"))","v":"140:00"},null,{"$f":"IF(J44<0,\"Debit\",IF(J44=0,\"\",\"Credit\"))","v":"Debit"},{"$f":"ROUND(J43-J42,2)","v":-140}]
[null,null,null,null,"If applicable, carry over from previous period",null,"0:00",null,"Credit",{"$f":"IF(I45=\"Debit\",0-(LEFT(G45,FIND(\":\",G45)-1)+RIGHT(G45,2)/60),LEFT(G45,FIND(\":\",G45)-1)+RIGHT(G45,2)/60)","v":0}]
[null,null,null,null,"Carry over to following period",null,{"$f":"CONCATENATE(TRUNC(INT(ABS(J46))),\":\",TEXT(ABS(ABS(J46)-TRUNC(INT(ABS(J46))))*60,\"00\"))","v":"140:00"},null,{"$f":"IF(J46<0,\"Debit\",IF(J46=0,\"\",\"Credit\"))","v":"Debit"},{"$f":"ROUND(J44+J45,2)","v":-140}]
[]
[null,null,null,null,"Future flex leave bookings",null,"0:00",null,null,{"$f":"IF(I48=\"Debit\",0-(LEFT(G48,FIND(\":\",G48)-1)+RIGHT(G48,2)/60),LEFT(G48,FIND(\":\",G48)-1)+RIGHT(G48,2)/60)","v":0}]
[null,null,null,null,"Remaining",null,{"$f":"CONCATENATE(TRUNC(INT(ABS(J49))),\":\",TEXT(ABS(ABS(J49)-TRUNC(INT(ABS(J49))))*60,\"00\"))","v":"140:00"},null,{"$f":"IF(J49<0,\"Debit\",IF(J49=0,\"\",\"Credit\"))","v":"Debit"},{"$f":"J46-J48","v":-140}]
[]
[]
[]
["Signature",null,null,null,"Certified Correct"]
[null,"(Employee)",null,null,null,"(Supervisor)"]
[]
["Completed timesheets shall be authorised as correct by the supervisor and filed as an auditable document for 7yrs"]
[]
[]
["INSERT Comments/Leave below:"]
["Albury"]
["Annual Leave"]
["Carers Leave"]
["Concessional Half Day"]
["Dubbo"]
["Exam"]
["Flexi Day"]
["Goulburn"]
["Leave Without Pay"]
["Long Service Leave"]
["Maternity Leave"]
["Public Holiday"]
["Purchased Leave"]
["Sick Leave"]
["Special Leave"]
["Study Leave"]
["Training"]
["Wagga Wagga"]
["Working @ home"]

{"sheet":"Flexi Timesheet (8)","index":9,"n_rows":78,"n_cols":12,"rows_kept":78,"cut":false,"hidden":false,"merged":[[65,0,65,1],[7,2,7,4],[8,2,8,4],[52,1,52,2],[52,5,52,10],[53,1,53,2],[53,5,53,10],[59,0,59,1],[60,0,60,1],[62,0,62,1],[63,0,63,1],[64,0,64,1],[73,0,73,1],[77,0,77,1],[79,0,79,1],[66,0,66,1],[67,0,67,1],[68,0,68,1],[69,0,69,1],[70,0,70,1],[72,0,72,1]]}
[null,null,null,null,null,null,null,null,null,null,"Flexible Working Hours Scheme"]
[null,null,null,null,null,null,null,null,null,null,"2025 Flexi-Timesheet"]
[]
[]
[]
[]
[]
[null,"Name:"]
[null,"Team:",null,null,null,null,null,null,"Hours per Day",{"$f":"HOUR(K9)+MINUTE(K9)/60","v":7},"07:00:00","Don't override cell, click into cell and change time to equal your hours. i.e. 7 hours = 7:00am"]
[null,"Accounting Period:","2025-07-14",{"$f":"CONCATENATE(\" to \",TEXT(C10+27,\"dd-mmm-yyyy\"))","v":" to 10-Aug-2025"},null,null,null,null,"Days per Week",{"$f":"J9*K10","v":35},5]
[null,null,null,null,{"$f":"IF(ISERROR(VLOOKUP($A11,Holidays,2,FALSE)),\"\",VLOOKUP($A11,Holidays,2,0))","v":""},null,null,null,"Work Days",null,"Mo, Tu, We, Th, Fr"]
["Date","Start Time","Finish Time","Unpaid Breaks","Comments/Leave","Rate","Elapsed Time","Decimal Hours","Total Hours","Cum. Dec.","Cumulative Total"]
[{"$f":"C10","v":"2025-07-14"},null,null,null,null,1,{"$f":"IF(ISERROR(VLOOKUP($E13,HolidayType,2,FALSE)),IF(OR(ISBLANK(B13),ISBLANK(C13),ISBLANK(D13)),\"0:00\",C13-(B13+D13)),IF(OR(ISBLANK(B13),ISBLANK(C13),ISBLANK(D13)),IF(VLOOKUP($E13,HolidayType,2,FALSE),IF(VLOOKUP($A13,Holidays,4,FALSE),VLOOKUP(WEEKDAY($A13,2),Holidays!$E$3:$H$9,4,FALSE),\"0:00\"),VLOOKUP(WEEKDAY($A13,2),Holidays!$E$3:$H$9,4,FALSE)),IF(C13-(B13+D13)>VLOOKUP(WEEKDAY($A13,2),Holidays!$E$3:$H$9,4,FALSE),C13-(B13+D13),IF(VLOOKUP($E13,HolidayType,2,FALSE),IF(VLOOKUP($A13,Holidays,4,FALSE),VLOOKUP(WEEKDAY($A13,2),Holidays!$E$3:$H$9,4,FALSE),C13-(B13+D13)),VLOOKUP(WEEKDAY($A13,2),Holidays!$E$3:$H$9,4,FALSE)))))","v":"0:00"},{"$f":"((HOUR(G13)+MINUTE(G13)/60))*F13","v":0},{"$f":"CONCATENATE(TRUNC(INT(H13)),\":\",TEXT((H13-TRUNC(INT(H13)))*60,\"00\"))","v":"0:00"},{"$f":"H13","v":0},{"$f":"CONCATENATE(TRUNC(INT(J13)),\":\",TEXT((J13-TRUNC(INT(J13)))*60,\"00\"))","v":"0:00"},{"$f":"IF(WEEKDAY(A13,2)<6,IF(F13<>0,1,0),0)","v":1}]
[{"$f":"A13+1","v":"2025-07-15"},null,null,null,null,1,{"$f":"IF(ISERROR(VLOOKUP($E14,HolidayType,2,FALSE)),IF(OR(ISBLANK(B14),ISBLANK(C14),ISBLANK(D14)),\"0:00\",C14-(B14+D14)),IF(OR(ISBLANK(B14),ISBLANK(C14),ISBLANK(D14)),IF(VLOOKUP($E14,HolidayType,2,FALSE),IF(VLOOKUP($A14,Holidays,4,FALSE),VLOOKUP(WEEKDAY($A14,2),Holidays!$E$3:$H$9,4,FALSE),\"0:00\"),VLOOKUP(WEEKDAY($A14,2),Holidays!$E$3:$H$9,4,FALSE)),IF(C14-(B14+D14)>VLOOKUP(WEEKDAY($A14,2),Holidays!$E$3:$H$9,4,FALSE),C14-(B14+D14),IF(VLOOKUP($E14,HolidayType,2,FALSE),IF(VLOOKUP($A14,Holidays,4,FALSE),VLOOKUP(WEEKDAY($A14,2),Holidays!$E$3:$H$9,4,FALSE),C14-(B14+D14)),VLOOKUP(WEEKDAY($A14,2),Holidays!$E$3:$H$9,4,FALSE)))))","v":"0:00"},0,{"$f":"CONCATENATE(TRUNC(INT(H14)),\":\",TEXT((H14-TRUNC(INT(H14)))*60,\"00\"))","v":"0:00"},{"$f":"J13+H14","v":0},{"$f":"CONCATENATE(TRUNC(INT(J14)),\":\",TEXT((J14-TRUNC(INT(J14)))*60,\"00\"))","v":"0:00"},1]
["2025-07-16",null,null,null,null,1,{"$f":"IF(ISERROR(VLOOKUP($E15,HolidayType,2,FALSE)),IF(OR(ISBLANK(B15),ISBLANK(C15),ISBLANK(D15)),\"0:00\",C15-(B15+D15)),IF(OR(ISBLANK(B15),ISBLANK(C15),ISBLANK(D15)),IF(VLOOKUP($E15,HolidayType,2,FALSE),IF(VLOOKUP($A15,Holidays,4,FALSE),VLOOKUP(WEEKDAY($A15,2),Holidays!$E$3:$H$9,4,FALSE),\"0:00\"),VLOOKUP(WEEKDAY($A15,2),Holidays!$E$3:$H$9,4,FALSE)),IF(C15-(B15+D15)>VLOOKUP(WEEKDAY($A15,2),Holidays!$E$3:$H$9,4,FALSE),C15-(B15+D15),IF(VLOOKUP($E15,HolidayType,2,FALSE),IF(VLOOKUP($A15,Holidays,4,FALSE),VLOOKUP(WEEKDAY($A15,2),Holidays!$E$3:$H$9,4,FALSE),C15-(B15+D15)),VLOOKUP(WEEKDAY($A15,2),Holidays!$E$3:$H$9,4,FALSE)))))","v":"0:00"},0,"0:00",{"$f":"J14+H15","v":0},"0:00",1]
["2025-07-17",null,null,null,null,1,{"$f":"IF(ISERROR(VLOOKUP($E16,HolidayType,2,FALSE)),IF(OR(ISBLANK(B16),ISBLANK(C16),ISBLANK(D16)),\"0:00\",C16-(B16+D16)),IF(OR(ISBLANK(B16),ISBLANK(C16),ISBLANK(D16)),IF(VLOOKUP($E16,HolidayType,2,FALSE),IF(VLOOKUP($A16,Holidays,4,FALSE),VLOOKUP(WEEKDAY($A16,2),Holidays!$E$3:$H$9,4,FALSE),\"0:00\"),VLOOKUP(WEEKDAY($A16,2),Holidays!$E$3:$H$9,4,FALSE)),IF(C16-(B16+D16)>VLOOKUP(WEEKDAY($A16,2),Holidays!$E$3:$H$9,4,FALSE),C16-(B16+D16),IF(VLOOKUP($E16,HolidayType,2,FALSE),IF(VLOOKUP($A16,Holidays,4,FALSE),VLOOKUP(WEEKDAY($A16,2),Holidays!$E$3:$H$9,4,FALSE),C16-(B16+D16)),VLOOKUP(WEEKDAY($A16,2),Holidays!$E$3:$H$9,4,FALSE)))))","v":"0:00"},0,"0:00",0,"0:00",1]
["2025-07-18",null,null,null,null,1,{"$f":"IF(ISERROR(VLOOKUP($E17,HolidayType,2,FALSE)),IF(OR(ISBLANK(B17),ISBLANK(C17),ISBLANK(D17)),\"0:00\",C17-(B17+D17)),IF(OR(ISBLANK(B17),ISBLANK(C17),ISBLANK(D17)),IF(VLOOKUP($E17,HolidayType,2,FALSE),IF(VLOOKUP($A17,Holidays,4,FALSE),VLOOKUP(WEEKDAY($A17,2),Holidays!$E$3:$H$9,4,FALSE),\"0:00\"),VLOOKUP(WEEKDAY($A17,2),Holidays!$E$3:$H$9,4,FALSE)),IF(C17-(B17+D17)>VLOOKUP(WEEKDAY($A17,2),Holidays!$E$3:$H$9,4,FALSE),C17-(B17+D17),IF(VLOOKUP($E17,HolidayType,2,FALSE),IF(VLOOKUP($A17,Holidays,4,FALSE),VLOOKUP(WEEKDAY($A17,2),Holidays!$E$3:$H$9,4,FALSE),C17-(B17+D17)),VLOOKUP(WEEKDAY($A17,2),Holidays!$E$3:$H$9,4,FALSE)))))","v":"0:00"},0,"0:00",0,"0:00",1]
["2025-07-19",null,null,null,{"$f":"IF(ISERROR(VLOOKUP($A18,Holidays,2,FALSE)),\"\",VLOOKUP($A18,Holidays,2,0))","v":""},1.5,{"$f":"IF(ISERROR(VLOOKUP($E18,HolidayType,2,FALSE)),IF(OR(ISBLANK(B18),ISBLANK(C18),ISBLANK(D18)),\"0:00\",C18-(B18+D18)),IF(OR(ISBLANK(B18),ISBLANK(C18),ISBLANK(D18)),IF(VLOOKUP($E18,HolidayType,2,FALSE),IF(VLOOKUP($A18,Holidays,4,FALSE),VLOOKUP(WEEKDAY($A18,2),Holidays!$E$3:$H$9,4,FALSE),\"0:00\"),VLOOKUP(WEEKDAY($A18,2),Holidays!$E$3:$H$9,4,FALSE)),IF(C18-(B18+D18)>VLOOKUP(WEEKDAY($A18,2),Holidays!$E$3:$H$9,4,FALSE),C18-(B18+D18),IF(VLOOKUP($E18,HolidayType,2,FALSE),IF(VLOOKUP($A18,Holidays,4,FALSE),VLOOKUP(WEEKDAY($A18,2),Holidays!$E$3:$H$9,4,FALSE),C18-(B18+D18)),VLOOKUP(WEEKDAY($A18,2),Holidays!$E$3:$H$9,4,FALSE)))))","v":"0:00"},0,"0:00",0,"0:00",0]
["2025-07-20",null,null,null,{"$f":"IF(ISERROR(VLOOKUP($A19,Holidays,2,FALSE)),\"\",VLOOKUP($A19,Holidays,2,0))","v":""},2,{"$f":"IF(ISERROR(VLOOKUP($E19,HolidayType,2,FALSE)),IF(OR(ISBLANK(B19),ISBLANK(C19),ISBLANK(D19)),\"0:00\",C19-(B19+D19)),IF(OR(ISBLANK(B19),ISBLANK(C19),ISBLANK(D19)),IF(VLOOKUP($E19,HolidayType,2,FALSE),IF(VLOOKUP($A19,Holidays,4,FALSE),VLOOKUP(WEEKDAY($A19,2),Holidays!$E$3:$H$9,4,FALSE),\"0:00\"),VLOOKUP(WEEKDAY($A19,2),Holidays!$E$3:$H$9,4,FALSE)),IF(C19-(B19+D19)>VLOOKUP(WEEKDAY($A19,2),Holidays!$E$3:$H$9,4,FALSE),C19-(B19+D19),IF(VLOOKUP($E19,HolidayType,2,FALSE),IF(VLOOKUP($A19,Holidays,4,FALSE),VLOOKUP(WEEKDAY($A19,2),Holidays!$E$3:$H$9,4,FALSE),C19-(B19+D19)),VLOOKUP(WEEKDAY($A19,2),Holidays!$E$3:$H$9,4,FALSE)))))","v":"0:00"},0,"0:00",{"$f":"J18+H19","v":0},"0:00",0]
["2025-07-21",null,null,null,null,1,{"$f":"IF(ISERROR(VLOOKUP($E20,HolidayType,2,FALSE)),IF(OR(ISBLANK(B20),ISBLANK(C20),ISBLANK(D20)),\"0:00\",C20-(B20+D20)),IF(OR(ISBLANK(B20),ISBLANK(C20),ISBLANK(D20)),IF(VLOOKUP($E20,HolidayType,2,FALSE),IF(VLOOKUP($A20,Holidays,4,FALSE),VLOOKUP(WEEKDAY($A20,2),Holidays!$E$3:$H$9,4,FALSE),\"0:00\"),VLOOKUP(WEEKDAY($A20,2),Holidays!$E$3:$H$9,4,FALSE)),IF(C20-(B20+D20)>VLOOKUP(WEEKDAY($A20,2),Holidays!$E$3:$H$9,4,FALSE),C20-(B20+D20),IF(VLOOKUP($E20,HolidayType,2,FALSE),IF(VLOOKUP($A20,Holidays,4,FALSE),VLOOKUP(WEEKDAY($A20,2),Holidays!$E$3:$H$9,4,FALSE),C20-(B20+D20)),VLOOKUP(WEEKDAY($A20,2),Holidays!$E$3:$H$9,4,FALSE)))))","v":"0:00"},0,"0:00",{"$f":"J19+H20","v":0},"0:00",1]
["2025-07-22",null,null,null,null,1,{"$f":"IF(ISERROR(VLOOKUP($E21,HolidayType,2,FALSE)),IF(OR(ISBLANK(B21),ISBLANK(C21),ISBLANK(D21)),\"0:00\",C21-(B21+D21)),IF(OR(ISBLANK(B21),ISBLANK(C21),ISBLANK(D21)),IF(VLOOKUP($E21,HolidayType,2,FALSE),IF(VLOOKUP($A21,Holidays,4,FALSE),VLOOKUP(WEEKDAY($A21,2),Holidays!$E$3:$H$9,4,FALSE),\"0:00\"),VLOOKUP(WEEKDAY($A21,2),Holidays!$E$3:$H$9,4,FALSE)),IF(C21-(B21+D21)>VLOOKUP(WEEKDAY($A21,2),Holidays!$E$3:$H$9,4,FALSE),C21-(B21+D21),IF(VLOOKUP($E21,HolidayType,2,FALSE),IF(VLOOKUP($A21,Holidays,4,FALSE),VLOOKUP(WEEKDAY($A21,2),Holidays!$E$3:$H$9,4,FALSE),C21-(B21+D21)),VLOOKUP(WEEKDAY($A21,2),Holidays!$E$3:$H$9,4,FALSE)))))","v":"0:00"},0,"0:00",0,"0:00",1]
["2025-07-23",null,null,null,null,1,{"$f":"IF(ISERROR(VLOOKUP($E22,HolidayType,2,FALSE)),IF(OR(ISBLANK(B22),ISBLANK(C22),ISBLANK(D22)),\"0:00\",C22-(B22+D22)),IF(OR(ISBLANK(B22),ISBLANK(C22),ISBLANK(D22)),IF(VLOOKUP($E22,HolidayType,2,FALSE),IF(VLOOKUP($A22,Holidays,4,FALSE),VLOOKUP(WEEKDAY($A22,2),Holidays!$E$3:$H$9,4,FALSE),\"0:00\"),VLOOKUP(WEEKDAY($A22,2),Holidays!$E$3:$H$9,4,FALSE)),IF(C22-(B22+D22)>VLOOKUP(WEEKDAY($A22,2),Holidays!$E$3:$H$9,4,FALSE),C22-(B22+D22),IF(VLOOKUP($E22,HolidayType,2,FALSE),IF(VLOOKUP($A22,Holidays,4,FALSE),VLOOKUP(WEEKDAY($A22,2),Holidays!$E$3:$H$9,4,FALSE),C22-(B22+D22)),VLOOKUP(WEEKDAY($A22,2),Holidays!$E$3:$H$9,4,FALSE)))))","v":"0:00"},0,"0:00",0,"0:00",1]
["2025-07-24",null,null,null,null,1,{"$f":"IF(ISERROR(VLOOKUP($E23,HolidayType,2,FALSE)),IF(OR(ISBLANK(B23),ISBLANK(C23),ISBLANK(D23)),\"0:00\",C23-(B23+D23)),IF(OR(ISBLANK(B23),ISBLANK(C23),ISBLANK(D23)),IF(VLOOKUP($E23,HolidayType,2,FALSE),IF(VLOOKUP($A23,Holidays,4,FALSE),VLOOKUP(WEEKDAY($A23,2),Holidays!$E$3:$H$9,4,FALSE),\"0:00\"),VLOOKUP(WEEKDAY($A23,2),Holidays!$E$3:$H$9,4,FALSE)),IF(C23-(B23+D23)>VLOOKUP(WEEKDAY($A23,2),Holidays!$E$3:$H$9,4,FALSE),C23-(B23+D23),IF(VLOOKUP($E23,HolidayType,2,FALSE),IF(VLOOKUP($A23,Holidays,4,FALSE),VLOOKUP(WEEKDAY($A23,2),Holidays!$E$3:$H$9,4,FALSE),C23-(B23+D23)),VLOOKUP(WEEKDAY($A23,2),Holidays!$E$3:$H$9,4,FALSE)))))","v":"0:00"},0,"0:00",0,"0:00",1]
["2025-07-25",null,null,null,null,1,{"$f":"IF(ISERROR(VLOOKUP($E24,HolidayType,2,FALSE)),IF(OR(ISBLANK(B24),ISBLANK(C24),ISBLANK(D24)),\"0:00\",C24-(B24+D24)),IF(OR(ISBLANK(B24),ISBLANK(C24),ISBLANK(D24)),IF(VLOOKUP($E24,HolidayType,2,FALSE),IF(VLOOKUP($A24,Holidays,4,FALSE),VLOOKUP(WEEKDAY($A24,2),Holidays!$E$3:$H$9,4,FALSE),\"0:00\"),VLOOKUP(WEEKDAY($A24,2),Holidays!$E$3:$H$9,4,FALSE)),IF(C24-(B24+D24)>VLOOKUP(WEEKDAY($A24,2),Holidays!$E$3:$H$9,4,FALSE),C24-(B24+D24),IF(VLOOKUP($E24,HolidayType,2,FALSE),IF(VLOOKUP($A24,Holidays,4,FALSE),VLOOKUP(WEEKDAY($A24,2),Holidays!$E$3:$H$9,4,FALSE),C24-(B24+D24)),VLOOKUP(WEEKDAY($A24,2),Holidays!$E$3:$H$9,4,FALSE)))))","v":"0:00"},0,"0:00",0,"0:00",1]
["2025-07-26",null,null,null,null,1.5,{"$f":"IF(ISERROR(VLOOKUP($E25,HolidayType,2,FALSE)),IF(OR(ISBLANK(B25),ISBLANK(C25),ISBLANK(D25)),\"0:00\",C25-(B25+D25)),IF(OR(ISBLANK(B25),ISBLANK(C25),ISBLANK(D25)),IF(VLOOKUP($E25,HolidayType,2,FALSE),IF(VLOOKUP($A25,Holidays,4,FALSE),VLOOKUP(WEEKDAY($A25,2),Holidays!$E$3:$H$9,4,FALSE),\"0:00\"),VLOOKUP(WEEKDAY($A25,2),Holidays!$E$3:$H$9,4,FALSE)),IF(C25-(B25+D25)>VLOOKUP(WEEKDAY($A25,2),Holidays!$E$3:$H$9,4,FALSE),C25-(B25+D25),IF(VLOOKUP($E25,HolidayType,2,FALSE),IF(VLOOKUP($A25,Holidays,4,FALSE),VLOOKUP(WEEKDAY($A25,2),Holidays!$E$3:$H$9,4,FALSE),C25-(B25+D25)),VLOOKUP(WEEKDAY($A25,2),Holidays!$E$3:$H$9,4,FALSE)))))","v":"0:00"},0,"0:00",{"$f":"J24+H25","v":0},"0:00",0]
["2025-07-27",null,null,null,null,2,{"$f":"IF(ISERROR(VLOOKUP($E26,HolidayType,2,FALSE)),IF(OR(ISBLANK(B26),ISBLANK(C26),ISBLANK(D26)),\"0:00\",C26-(B26+D26)),IF(OR(ISBLANK(B26),ISBLANK(C26),ISBLANK(D26)),IF(VLOOKUP($E26,HolidayType,2,FALSE),IF(VLOOKUP($A26,Holidays,4,FALSE),VLOOKUP(WEEKDAY($A26,2),Holidays!$E$3:$H$9,4,FALSE),\"0:00\"),VLOOKUP(WEEKDAY($A26,2),Holidays!$E$3:$H$9,4,FALSE)),IF(C26-(B26+D26)>VLOOKUP(WEEKDAY($A26,2),Holidays!$E$3:$H$9,4,FALSE),C26-(B26+D26),IF(VLOOKUP($E26,HolidayType,2,FALSE),IF(VLOOKUP($A26,Holidays,4,FALSE),VLOOKUP(WEEKDAY($A26,2),Holidays!$E$3:$H$9,4,FALSE),C26-(B26+D26)),VLOOKUP(WEEKDAY($A26,2),Holidays!$E$3:$H$9,4,FALSE)))))","v":"0:00"},0,"0:00",{"$f":"J25+H26","v":0},"0:00",0]
["2025-07-28",null,null,null,null,1,{"$f":"IF(ISERROR(VLOOKUP($E27,HolidayType,2,FALSE)),IF(OR(ISBLANK(B27),ISBLANK(C27),ISBLANK(D27)),\"0:00\",C27-(B27+D27)),IF(OR(ISBLANK(B27),ISBLANK(C27),ISBLANK(D27)),IF(VLOOKUP($E27,HolidayType,2,FALSE),IF(VLOOKUP($A27,Holidays,4,FALSE),VLOOKUP(WEEKDAY($A27,2),Holidays!$E$3:$H$9,4,FALSE),\"0:00\"),VLOOKUP(WEEKDAY($A27,2),Holidays!$E$3:$H$9,4,FALSE)),IF(C27-(B27+D27)>VLOOKUP(WEEKDAY($A27,2),Holidays!$E$3:$H$9,4,FALSE),C27-(B27+D27),IF(VLOOKUP($E27,HolidayType,2,FALSE),IF(VLOOKUP($A27,Holidays,4,FALSE),VLOOKUP(WEEKDAY($A27,2),Holidays!$E$3:$H$9,4,FALSE),C27-(B27+D27)),VLOOKUP(WEEKDAY($A27,2),Holidays!$E$3:$H$9,4,FALSE)))))","v":"0:00"},0,"0:00",{"$f":"J26+H27","v":0},"0:00",1]
["2025-07-29",null,null,null,null,1,{"$f":"IF(ISERROR(VLOOKUP($E28,HolidayType,2,FALSE)),IF(OR(ISBLANK(B28),ISBLANK(C28),ISBLANK(D28)),\"0:00\",C28-(B28+D28)),IF(OR(ISBLANK(B28),ISBLANK(C28),ISBLANK(D28)),IF(VLOOKUP($E28,HolidayType,2,FALSE),IF(VLOOKUP($A28,Holidays,4,FALSE),VLOOKUP(WEEKDAY($A28,2),Holidays!$E$3:$H$9,4,FALSE),\"0:00\"),VLOOKUP(WEEKDAY($A28,2),Holidays!$E$3:$H$9,4,FALSE)),IF(C28-(B28+D28)>VLOOKUP(WEEKDAY($A28,2),Holidays!$E$3:$H$9,4,FALSE),C28-(B28+D28),IF(VLOOKUP($E28,HolidayType,2,FALSE),IF(VLOOKUP($A28,Holidays,4,FALSE),VLOOKUP(WEEKDAY($A28,2),Holidays!$E$3:$H$9,4,FALSE),C28-(B28+D28)),VLOOKUP(WEEKDAY($A28,2),Holidays!$E$3:$H$9,4,FALSE)))))","v":"0:00"},0,"0:00",0,"0:00",1]
["2025-07-30",null,null,null,null,1,{"$f":"IF(ISERROR(VLOOKUP($E29,HolidayType,2,FALSE)),IF(OR(ISBLANK(B29),ISBLANK(C29),ISBLANK(D29)),\"0:00\",C29-(B29+D29)),IF(OR(ISBLANK(B29),ISBLANK(C29),ISBLANK(D29)),IF(VLOOKUP($E29,HolidayType,2,FALSE),IF(VLOOKUP($A29,Holidays,4,FALSE),VLOOKUP(WEEKDAY($A29,2),Holidays!$E$3:$H$9,4,FALSE),\"0:00\"),VLOOKUP(WEEKDAY($A29,2),Holidays!$E$3:$H$9,4,FALSE)),IF(C29-(B29+D29)>VLOOKUP(WEEKDAY($A29,2),Holidays!$E$3:$H$9,4,FALSE),C29-(B29+D29),IF(VLOOKUP($E29,HolidayType,2,FALSE),IF(VLOOKUP($A29,Holidays,4,FALSE),VLOOKUP(WEEKDAY($A29,2),Holidays!$E$3:$H$9,4,FALSE),C29-(B29+D29)),VLOOKUP(WEEKDAY($A29,2),Holidays!$E$3:$H$9,4,FALSE)))))","v":"0:00"},0,"0:00",0,"0:00",1]
["2025-07-31",null,null,null,{"$f":"IF(ISERROR(VLOOKUP($A30,Holidays,2,FALSE)),\"\",VLOOKUP($A30,Holidays,2,0))","v":""},1,{"$f":"IF(ISERROR(VLOOKUP($E30,HolidayType,2,FALSE)),IF(OR(ISBLANK(B30),ISBLANK(C30),ISBLANK(D30)),\"0:00\",C30-(B30+D30)),IF(OR(ISBLANK(B30),ISBLANK(C30),ISBLANK(D30)),IF(VLOOKUP($E30,HolidayType,2,FALSE),IF(VLOOKUP($A30,Holidays,4,FALSE),VLOOKUP(WEEKDAY($A30,2),Holidays!$E$3:$H$9,4,FALSE),\"0:00\"),VLOOKUP(WEEKDAY($A30,2),Holidays!$E$3:$H$9,4,FALSE)),IF(C30-(B30+D30)>VLOOKUP(WEEKDAY($A30,2),Holidays!$E$3:$H$9,4,FALSE),C30-(B30+D30),IF(VLOOKUP($E30,HolidayType,2,FALSE),IF(VLOOKUP($A30,Holidays,4,FALSE),VLOOKUP(WEEKDAY($A30,2),Holidays!$E$3:$H$9,4,FALSE),C30-(B30+D30)),VLOOKUP(WEEKDAY($A30,2),Holidays!$E$3:$H$9,4,FALSE)))))","v":"0:00"},0,"0:00",0,"0:00",1]
["2025-08-01",null,null,null,"",1,{"$f":"IF(ISERROR(VLOOKUP($E31,HolidayType,2,FALSE)),IF(OR(ISBLANK(B31),ISBLANK(C31),ISBLANK(D31)),\"0:00\",C31-(B31+D31)),IF(OR(ISBLANK(B31),ISBLANK(C31),ISBLANK(D31)),IF(VLOOKUP($E31,HolidayType,2,FALSE),IF(VLOOKUP($A31,Holidays,4,FALSE),VLOOKUP(WEEKDAY($A31,2),Holidays!$E$3:$H$9,4,FALSE),\"0:00\"),VLOOKUP(WEEKDAY($A31,2),Holidays!$E$3:$H$9,4,FALSE)),IF(C31-(B31+D31)>VLOOKUP(WEEKDAY($A31,2),Holidays!$E$3:$H$9,4,FALSE),C31-(B31+D31),IF(VLOOKUP($E31,HolidayType,2,FALSE),IF(VLOOKUP($A31,Holidays,4,FALSE),VLOOKUP(WEEKDAY($A31,2),Holidays!$E$3:$H$9,4,FALSE),C31-(B31+D31)),VLOOKUP(WEEKDAY($A31,2),Holidays!$E$3:$H$9,4,FALSE)))))","v":"0:00"},0,"0:00",0,"0:00",1]
["2025-08-02",null,null,null,"",1.5,{"$f":"IF(ISERROR(VLOOKUP($E32,HolidayType,2,FALSE)),IF(OR(ISBLANK(B32),ISBLANK(C32),ISBLANK(D32)),\"0:00\",C32-(B32+D32)),IF(OR(ISBLANK(B32),ISBLANK(C32),ISBLANK(D32)),IF(VLOOKUP($E32,HolidayType,2,FALSE),IF(VLOOKUP($A32,Holidays,4,FALSE),VLOOKUP(WEEKDAY($A32,2),Holidays!$E$3:$H$9,4,FALSE),\"0:00\"),VLOOKUP(WEEKDAY($A32,2),Holidays!$E$3:$H$9,4,FALSE)),IF(C32-(B32+D32)>VLOOKUP(WEEKDAY($A32,2),Holidays!$E$3:$H$9,4,FALSE),C32-(B32+D32),IF(VLOOKUP($E32,HolidayType,2,FALSE),IF(VLOOKUP($A32,Holidays,4,FALSE),VLOOKUP(WEEKDAY($A32,2),Holidays!$E$3:$H$9,4,FALSE),C32-(B32+D32)),VLOOKUP(WEEKDAY($A32,2),Holidays!$E$3:$H$9,4,FALSE)))))","v":"0:00"},0,"0:00",{"$f":"J31+H32","v":0},"0:00",0]
["2025-08-03",null,null,null,"",2,{"$f":"IF(ISERROR(VLOOKUP($E33,HolidayType,2,FALSE)),IF(OR(ISBLANK(B33),ISBLANK(C33),ISBLANK(D33)),\"0:00\",C33-(B33+D33)),IF(OR(ISBLANK(B33),ISBLANK(C33),ISBLANK(D33)),IF(VLOOKUP($E33,HolidayType,2,FALSE),IF(VLOOKUP($A33,Holidays,4,FALSE),VLOOKUP(WEEKDAY($A33,2),Holidays!$E$3:$H$9,4,FALSE),\"0:00\"),VLOOKUP(WEEKDAY($A33,2),Holidays!$E$3:$H$9,4,FALSE)),IF(C33-(B33+D33)>VLOOKUP(WEEKDAY($A33,2),Holidays!$E$3:$H$9,4,FALSE),C33-(B33+D33),IF(VLOOKUP($E33,HolidayType,2,FALSE),IF(VLOOKUP($A33,Holidays,4,FALSE),VLOOKUP(WEEKDAY($A33,2),Holidays!$E$3:$H$9,4,FALSE),C33-(B33+D33)),VLOOKUP(WEEKDAY($A33,2),Holidays!$E$3:$H$9,4,FALSE)))))","v":"0:00"},0,"0:00",{"$f":"J32+H33","v":0},"0:00",0]
["2025-08-04",null,null,null,"",1,{"$f":"IF(ISERROR(VLOOKUP($E34,HolidayType,2,FALSE)),IF(OR(ISBLANK(B34),ISBLANK(C34),ISBLANK(D34)),\"0:00\",C34-(B34+D34)),IF(OR(ISBLANK(B34),ISBLANK(C34),ISBLANK(D34)),IF(VLOOKUP($E34,HolidayType,2,FALSE),IF(VLOOKUP($A34,Holidays,4,FALSE),VLOOKUP(WEEKDAY($A34,2),Holidays!$E$3:$H$9,4,FALSE),\"0:00\"),VLOOKUP(WEEKDAY($A34,2),Holidays!$E$3:$H$9,4,FALSE)),IF(C34-(B34+D34)>VLOOKUP(WEEKDAY($A34,2),Holidays!$E$3:$H$9,4,FALSE),C34-(B34+D34),IF(VLOOKUP($E34,HolidayType,2,FALSE),IF(VLOOKUP($A34,Holidays,4,FALSE),VLOOKUP(WEEKDAY($A34,2),Holidays!$E$3:$H$9,4,FALSE),C34-(B34+D34)),VLOOKUP(WEEKDAY($A34,2),Holidays!$E$3:$H$9,4,FALSE)))))","v":"0:00"},0,"0:00",{"$f":"J31+H34","v":0},"0:00",1]
["2025-08-05",null,null,null,"",1,{"$f":"IF(ISERROR(VLOOKUP($E35,HolidayType,2,FALSE)),IF(OR(ISBLANK(B35),ISBLANK(C35),ISBLANK(D35)),\"0:00\",C35-(B35+D35)),IF(OR(ISBLANK(B35),ISBLANK(C35),ISBLANK(D35)),IF(VLOOKUP($E35,HolidayType,2,FALSE),IF(VLOOKUP($A35,Holidays,4,FALSE),VLOOKUP(WEEKDAY($A35,2),Holidays!$E$3:$H$9,4,FALSE),\"0:00\"),VLOOKUP(WEEKDAY($A35,2),Holidays!$E$3:$H$9,4,FALSE)),IF(C35-(B35+D35)>VLOOKUP(WEEKDAY($A35,2),Holidays!$E$3:$H$9,4,FALSE),C35-(B35+D35),IF(VLOOKUP($E35,HolidayType,2,FALSE),IF(VLOOKUP($A35,Holidays,4,FALSE),VLOOKUP(WEEKDAY($A35,2),Holidays!$E$3:$H$9,4,FALSE),C35-(B35+D35)),VLOOKUP(WEEKDAY($A35,2),Holidays!$E$3:$H$9,4,FALSE)))))","v":"0:00"},0,"0:00",0,"0:00",1]
["2025-08-06",null,null,null,"",1,{"$f":"IF(ISERROR(VLOOKUP($E36,HolidayType,2,FALSE)),IF(OR(ISBLANK(B36),ISBLANK(C36),ISBLANK(D36)),\"0:00\",C36-(B36+D36)),IF(OR(ISBLANK(B36),ISBLANK(C36),ISBLANK(D36)),IF(VLOOKUP($E36,HolidayType,2,FALSE),IF(VLOOKUP($A36,Holidays,4,FALSE),VLOOKUP(WEEKDAY($A36,2),Holidays!$E$3:$H$9,4,FALSE),\"0:00\"),VLOOKUP(WEEKDAY($A36,2),Holidays!$E$3:$H$9,4,FALSE)),IF(C36-(B36+D36)>VLOOKUP(WEEKDAY($A36,2),Holidays!$E$3:$H$9,4,FALSE),C36-(B36+D36),IF(VLOOKUP($E36,HolidayType,2,FALSE),IF(VLOOKUP($A36,Holidays,4,FALSE),VLOOKUP(WEEKDAY($A36,2),Holidays!$E$3:$H$9,4,FALSE),C36-(B36+D36)),VLOOKUP(WEEKDAY($A36,2),Holidays!$E$3:$H$9,4,FALSE)))))","v":"0:00"},0,"0:00",0,"0:00",1]
["2025-08-07",null,null,null,"",1,{"$f":"IF(ISERROR(VLOOKUP($E37,HolidayType,2,FALSE)),IF(OR(ISBLANK(B37),ISBLANK(C37),ISBLANK(D37)),\"0:00\",C37-(B37+D37)),IF(OR(ISBLANK(B37),ISBLANK(C37),ISBLANK(D37)),IF(VLOOKUP($E37,HolidayType,2,FALSE),IF(VLOOKUP($A37,Holidays,4,FALSE),VLOOKUP(WEEKDAY($A37,2),Holidays!$E$3:$H$9,4,FALSE),\"0:00\"),VLOOKUP(WEEKDAY($A37,2),Holidays!$E$3:$H$9,4,FALSE)),IF(C37-(B37+D37)>VLOOKUP(WEEKDAY($A37,2),Holidays!$E$3:$H$9,4,FALSE),C37-(B37+D37),IF(VLOOKUP($E37,HolidayType,2,FALSE),IF(VLOOKUP($A37,Holidays,4,FALSE),VLOOKUP(WEEKDAY($A37,2),Holidays!$E$3:$H$9,4,FALSE),C37-(B37+D37)),VLOOKUP(WEEKDAY($A37,2),Holidays!$E$3:$H$9,4,FALSE)))))","v":"0:00"},0,"0:00",0,"0:00",1]
["2025-08-08",null,null,null,"",1,{"$f":"IF(ISERROR(VLOOKUP($E38,HolidayType,2,FALSE)),IF(OR(ISBLANK(B38),ISBLANK(C38),ISBLANK(D38)),\"0:00\",C38-(B38+D38)),IF(OR(ISBLANK(B38),ISBLANK(C38),ISBLANK(D38)),IF(VLOOKUP($E38,HolidayType,2,FALSE),IF(VLOOKUP($A38,Holidays,4,FALSE),VLOOKUP(WEEKDAY($A38,2),Holidays!$E$3:$H$9,4,FALSE),\"0:00\"),VLOOKUP(WEEKDAY($A38,2),Holidays!$E$3:$H$9,4,FALSE)),IF(C38-(B38+D38)>VLOOKUP(WEEKDAY($A38,2),Holidays!$E$3:$H$9,4,FALSE),C38-(B38+D38),IF(VLOOKUP($E38,HolidayType,2,FALSE),IF(VLOOKUP($A38,Holidays,4,FALSE),VLOOKUP(WEEKDAY($A38,2),Holidays!$E$3:$H$9,4,FALSE),C38-(B38+D38)),VLOOKUP(WEEKDAY($A38,2),Holidays!$E$3:$H$9,4,FALSE)))))","v":"0:00"},0,"0:00",0,"0:00",1]
["2025-08-09",null,null,null,"",1.5,{"$f":"IF(ISERROR(VLOOKUP($E39,HolidayType,2,FALSE)),IF(OR(ISBLANK(B39),ISBLANK(C39),ISBLANK(D39)),\"0:00\",C39-(B39+D39)),IF(OR(ISBLANK(B39),ISBLANK(C39),ISBLANK(D39)),IF(VLOOKUP($E39,HolidayType,2,FALSE),IF(VLOOKUP($A39,Holidays,4,FALSE),VLOOKUP(WEEKDAY($A39,2),Holidays!$E$3:$H$9,4,FALSE),\"0:00\"),VLOOKUP(WEEKDAY($A39,2),Holidays!$E$3:$H$9,4,FALSE)),IF(C39-(B39+D39)>VLOOKUP(WEEKDAY($A39,2),Holidays!$E$3:$H$9,4,FALSE),C39-(B39+D39),IF(VLOOKUP($E39,HolidayType,2,FALSE),IF(VLOOKUP($A39,Holidays,4,FALSE),VLOOKUP(WEEKDAY($A39,2),Holidays!$E$3:$H$9,4,FALSE),C39-(B39+D39)),VLOOKUP(WEEKDAY($A39,2),Holidays!$E$3:$H$9,4,FALSE)))))","v":"0:00"},0,"0:00",0,"0:00",0]
["2025-08-10",null,null,null,"",2,{"$f":"IF(ISERROR(VLOOKUP($E40,HolidayType,2,FALSE)),IF(OR(ISBLANK(B40),ISBLANK(C40),ISBLANK(D40)),\"0:00\",C40-(B40+D40)),IF(OR(ISBLANK(B40),ISBLANK(C40),ISBLANK(D40)),IF(VLOOKUP($E40,HolidayType,2,FALSE),IF(VLOOKUP($A40,Holidays,4,FALSE),VLOOKUP(WEEKDAY($A40,2),Holidays!$E$3:$H$9,4,FALSE),\"0:00\"),VLOOKUP(WEEKDAY($A40,2),Holidays!$E$3:$H$9,4,FALSE)),IF(C40-(B40+D40)>VLOOKUP(WEEKDAY($A40,2),Holidays!$E$3:$H$9,4,FALSE),C40-(B40+D40),IF(VLOOKUP($E40,HolidayType,2,FALSE),IF(VLOOKUP($A40,Holidays,4,FALSE),VLOOKUP(WEEKDAY($A40,2),Holidays!$E$3:$H$9,4,FALSE),C40-(B40+D40)),VLOOKUP(WEEKDAY($A40,2),Holidays!$E$3:$H$9,4,FALSE)))))","v":"0:00"},0,"0:00",{"$f":"J39+H40","v":0},"0:00",0]
[null,null,null,null,null,null,null,null,null,null,null,{"$f":"SUM(L13:L40)","v":20}]
[null,null,null,null,"Total ordinary hours for accounting period",null,{"$f":"CONCATENATE(TRUNC(INT(ABS(J42))),\":\",TEXT(ABS(ABS(J42)-TRUNC(INT(ABS(J42))))*60,\"00\"))","v":"140:00"},null,null,{"$f":"J10*4","v":140}]
[null,null,null,null,"Total actual hours worked in accounting period",null,{"$f":"CONCATENATE(TRUNC(INT(ABS(J43))),\":\",TEXT(ABS(ABS(J43)-TRUNC(INT(ABS(J43))))*60,\"00\"))","v":"0:00"},null,null,{"$f":"J40","v":0}]
[null,null,null,null,"Difference",null,{"$f":"CONCATENATE(TRUNC(INT(ABS(J44))),\":\",TEXT(ABS(ABS(J44)-TRUNC(INT(ABS(J44))))*60,\"00\"))","v":"140:00"},null,{"$f":"IF(J44<0,\"Debit\",IF(J44=0,\"\",\"Credit\"))","v":"Debit"},{"$f":"ROUND(J43-J42,2)","v":-140}]
[null,null,null,null,"If applicable, carry over from previous period",null,"0:00",null,"Credit",{"$f":"IF(I45=\"Debit\",0-(LEFT(G45,FIND(\":\",G45)-1)+RIGHT(G45,2)/60),LEFT(G45,FIND(\":\",G45)-1)+RIGHT(G45,2)/60)","v":0}]
[null,null,null,null,"Carry over to following period",null,{"$f":"CONCATENATE(TRUNC(INT(ABS(J46))),\":\",TEXT(ABS(ABS(J46)-TRUNC(INT(ABS(J46))))*60,\"00\"))","v":"140:00"},null,{"$f":"IF(J46<0,\"Debit\",IF(J46=0,\"\",\"Credit\"))","v":"Debit"},{"$f":"ROUND(J44+J45,2)","v":-140}]
[]
[null,null,null,null,"Future flex leave bookings",null,"0:00",null,null,{"$f":"IF(I48=\"Debit\",0-(LEFT(G48,FIND(\":\",G48)-1)+RIGHT(G48,2)/60),LEFT(G48,FIND(\":\",G48)-1)+RIGHT(G48,2)/60)","v":0}]
[null,null,null,null,"Remaining",null,{"$f":"CONCATENATE(TRUNC(INT(ABS(J49))),\":\",TEXT(ABS(ABS(J49)-TRUNC(INT(ABS(J49))))*60,\"00\"))","v":"140:00"},null,{"$f":"IF(J49<0,\"Debit\",IF(J49=0,\"\",\"Credit\"))","v":"Debit"},{"$f":"J46-J48","v":-140}]
[]
[]
[]
["Signature",null,null,null,"Certified Correct"]
[null,"(Employee)",null,null,null,"(Supervisor)"]
[]
["Completed timesheets shall be authorised as correct by the supervisor and filed as an auditable document for 7yrs"]
[]
[]
["INSERT Comments/Leave below:"]
["Albury"]
["Annual Leave"]
["Carers Leave"]
["Concessional Half Day"]
["Dubbo"]
["Exam"]
["Flexi Day"]
["Goulburn"]
["Leave Without Pay"]
["Long Service Leave"]
["Maternity Leave"]
["Public Holiday"]
["Purchased Leave"]
["Sick Leave"]
["Special Leave"]
["Study Leave"]
["Training"]
["Wagga Wagga"]
["Working @ home"]

{"sheet":"Flexi Timesheet (9)","index":10,"n_rows":78,"n_cols":12,"rows_kept":78,"cut":false,"hidden":false,"merged":[[65,0,65,1],[7,2,7,4],[8,2,8,4],[52,1,52,2],[52,5,52,10],[53,1,53,2],[53,5,53,10],[59,0,59,1],[60,0,60,1],[62,0,62,1],[63,0,63,1],[64,0,64,1],[73,0,73,1],[77,0,77,1],[79,0,79,1],[66,0,66,1],[67,0,67,1],[68,0,68,1],[69,0,69,1],[70,0,70,1],[72,0,72,1]]}
[null,null,null,null,null,null,null,null,null,null,"Flexible Working Hours Scheme"]
[null,null,null,null,null,null,null,null,null,null,"2025 Flexi-Timesheet"]
[]
[]
[]
[]
[]
[null,"Name:"]
[null,"Team:",null,null,null,null,null,null,"Hours per Day",{"$f":"HOUR(K9)+MINUTE(K9)/60","v":7},"07:00:00","Don't override cell, click into cell and change time to equal your hours. i.e. 7 hours = 7:00am"]
[null,"Accounting Period:","2025-08-11",{"$f":"CONCATENATE(\" to \",TEXT(C10+27,\"dd-mmm-yyyy\"))","v":" to 07-Sep-2025"},null,null,null,null,"Days per Week",{"$f":"J9*K10","v":35},5]
[null,null,null,null,{"$f":"IF(ISERROR(VLOOKUP($A11,Holidays,2,FALSE)),\"\",VLOOKUP($A11,Holidays,2,0))","v":""},null,null,null,"Work Days",null,"Mo, Tu, We, Th, Fr"]
["Date","Start Time","Finish Time","Unpaid Breaks","Comments/Leave","Rate","Elapsed Time","Decimal Hours","Total Hours","Cum. Dec.","Cumulative Total"]
[{"$f":"C10","v":"2025-08-11"},null,null,null,null,1,{"$f":"IF(ISERROR(VLOOKUP($E13,HolidayType,2,FALSE)),IF(OR(ISBLANK(B13),ISBLANK(C13),ISBLANK(D13)),\"0:00\",C13-(B13+D13)),IF(OR(ISBLANK(B13),ISBLANK(C13),ISBLANK(D13)),IF(VLOOKUP($E13,HolidayType,2,FALSE),IF(VLOOKUP($A13,Holidays,4,FALSE),VLOOKUP(WEEKDAY($A13,2),Holidays!$E$3:$H$9,4,FALSE),\"0:00\"),VLOOKUP(WEEKDAY($A13,2),Holidays!$E$3:$H$9,4,FALSE)),IF(C13-(B13+D13)>VLOOKUP(WEEKDAY($A13,2),Holidays!$E$3:$H$9,4,FALSE),C13-(B13+D13),IF(VLOOKUP($E13,HolidayType,2,FALSE),IF(VLOOKUP($A13,Holidays,4,FALSE),VLOOKUP(WEEKDAY($A13,2),Holidays!$E$3:$H$9,4,FALSE),C13-(B13+D13)),VLOOKUP(WEEKDAY($A13,2),Holidays!$E$3:$H$9,4,FALSE)))))","v":"0:00"},{"$f":"((HOUR(G13)+MINUTE(G13)/60))*F13","v":0},{"$f":"CONCATENATE(TRUNC(INT(H13)),\":\",TEXT((H13-TRUNC(INT(H13)))*60,\"00\"))","v":"0:00"},{"$f":"H13","v":0},{"$f":"CONCATENATE(TRUNC(INT(J13)),\":\",TEXT((J13-TRUNC(INT(J13)))*60,\"00\"))","v":"0:00"},{"$f":"IF(WEEKDAY(A13,2)<6,IF(F13<>0,1,0),0)","v":1}]
[{"$f":"A13+1","v":"2025-08-12"},null,null,null,null,1,{"$f":"IF(ISERROR(VLOOKUP($E14,HolidayType,2,FALSE)),IF(OR(ISBLANK(B14),ISBLANK(C14),ISBLANK(D14)),\"0:00\",C14-(B14+D14)),IF(OR(ISBLANK(B14),ISBLANK(C14),ISBLANK(D14)),IF(VLOOKUP($E14,HolidayType,2,FALSE),IF(VLOOKUP($A14,Holidays,4,FALSE),VLOOKUP(WEEKDAY($A14,2),Holidays!$E$3:$H$9,4,FALSE),\"0:00\"),VLOOKUP(WEEKDAY($A14,2),Holidays!$E$3:$H$9,4,FALSE)),IF(C14-(B14+D14)>VLOOKUP(WEEKDAY($A14,2),Holidays!$E$3:$H$9,4,FALSE),C14-(B14+D14),IF(VLOOKUP($E14,HolidayType,2,FALSE),IF(VLOOKUP($A14,Holidays,4,FALSE),VLOOKUP(WEEKDAY($A14,2),Holidays!$E$3:$H$9,4,FALSE),C14-(B14+D14)),VLOOKUP(WEEKDAY($A14,2),Holidays!$E$3:$H$9,4,FALSE)))))","v":"0:00"},0,{"$f":"CONCATENATE(TRUNC(INT(H14)),\":\",TEXT((H14-TRUNC(INT(H14)))*60,\"00\"))","v":"0:00"},{"$f":"J13+H14","v":0},{"$f":"CONCATENATE(TRUNC(INT(J14)),\":\",TEXT((J14-TRUNC(INT(J14)))*60,\"00\"))","v":"0:00"},1]
["2025-08-13",null,null,null,null,1,{"$f":"IF(ISERROR(VLOOKUP($E15,HolidayType,2,FALSE)),IF(OR(ISBLANK(B15),ISBLANK(C15),ISBLANK(D15)),\"0:00\",C15-(B15+D15)),IF(OR(ISBLANK(B15),ISBLANK(C15),ISBLANK(D15)),IF(VLOOKUP($E15,HolidayType,2,FALSE),IF(VLOOKUP($A15,Holidays,4,FALSE),VLOOKUP(WEEKDAY($A15,2),Holidays!$E$3:$H$9,4,FALSE),\"0:00\"),VLOOKUP(WEEKDAY($A15,2),Holidays!$E$3:$H$9,4,FALSE)),IF(C15-(B15+D15)>VLOOKUP(WEEKDAY($A15,2),Holidays!$E$3:$H$9,4,FALSE),C15-(B15+D15),IF(VLOOKUP($E15,HolidayType,2,FALSE),IF(VLOOKUP($A15,Holidays,4,FALSE),VLOOKUP(WEEKDAY($A15,2),Holidays!$E$3:$H$9,4,FALSE),C15-(B15+D15)),VLOOKUP(WEEKDAY($A15,2),Holidays!$E$3:$H$9,4,FALSE)))))","v":"0:00"},0,"0:00",{"$f":"J14+H15","v":0},"0:00",1]
["2025-08-14",null,null,null,null,1,{"$f":"IF(ISERROR(VLOOKUP($E16,HolidayType,2,FALSE)),IF(OR(ISBLANK(B16),ISBLANK(C16),ISBLANK(D16)),\"0:00\",C16-(B16+D16)),IF(OR(ISBLANK(B16),ISBLANK(C16),ISBLANK(D16)),IF(VLOOKUP($E16,HolidayType,2,FALSE),IF(VLOOKUP($A16,Holidays,4,FALSE),VLOOKUP(WEEKDAY($A16,2),Holidays!$E$3:$H$9,4,FALSE),\"0:00\"),VLOOKUP(WEEKDAY($A16,2),Holidays!$E$3:$H$9,4,FALSE)),IF(C16-(B16+D16)>VLOOKUP(WEEKDAY($A16,2),Holidays!$E$3:$H$9,4,FALSE),C16-(B16+D16),IF(VLOOKUP($E16,HolidayType,2,FALSE),IF(VLOOKUP($A16,Holidays,4,FALSE),VLOOKUP(WEEKDAY($A16,2),Holidays!$E$3:$H$9,4,FALSE),C16-(B16+D16)),VLOOKUP(WEEKDAY($A16,2),Holidays!$E$3:$H$9,4,FALSE)))))","v":"0:00"},0,"0:00",0,"0:00",1]
["2025-08-15",null,null,null,null,1,{"$f":"IF(ISERROR(VLOOKUP($E17,HolidayType,2,FALSE)),IF(OR(ISBLANK(B17),ISBLANK(C17),ISBLANK(D17)),\"0:00\",C17-(B17+D17)),IF(OR(ISBLANK(B17),ISBLANK(C17),ISBLANK(D17)),IF(VLOOKUP($E17,HolidayType,2,FALSE),IF(VLOOKUP($A17,Holidays,4,FALSE),VLOOKUP(WEEKDAY($A17,2),Holidays!$E$3:$H$9,4,FALSE),\"0:00\"),VLOOKUP(WEEKDAY($A17,2),Holidays!$E$3:$H$9,4,FALSE)),IF(C17-(B17+D17)>VLOOKUP(WEEKDAY($A17,2),Holidays!$E$3:$H$9,4,FALSE),C17-(B17+D17),IF(VLOOKUP($E17,HolidayType,2,FALSE),IF(VLOOKUP($A17,Holidays,4,FALSE),VLOOKUP(WEEKDAY($A17,2),Holidays!$E$3:$H$9,4,FALSE),C17-(B17+D17)),VLOOKUP(WEEKDAY($A17,2),Holidays!$E$3:$H$9,4,FALSE)))))","v":"0:00"},0,"0:00",0,"0:00",1]
["2025-08-16",null,null,null,{"$f":"IF(ISERROR(VLOOKUP($A18,Holidays,2,FALSE)),\"\",VLOOKUP($A18,Holidays,2,0))","v":""},1.5,{"$f":"IF(ISERROR(VLOOKUP($E18,HolidayType,2,FALSE)),IF(OR(ISBLANK(B18),ISBLANK(C18),ISBLANK(D18)),\"0:00\",C18-(B18+D18)),IF(OR(ISBLANK(B18),ISBLANK(C18),ISBLANK(D18)),IF(VLOOKUP($E18,HolidayType,2,FALSE),IF(VLOOKUP($A18,Holidays,4,FALSE),VLOOKUP(WEEKDAY($A18,2),Holidays!$E$3:$H$9,4,FALSE),\"0:00\"),VLOOKUP(WEEKDAY($A18,2),Holidays!$E$3:$H$9,4,FALSE)),IF(C18-(B18+D18)>VLOOKUP(WEEKDAY($A18,2),Holidays!$E$3:$H$9,4,FALSE),C18-(B18+D18),IF(VLOOKUP($E18,HolidayType,2,FALSE),IF(VLOOKUP($A18,Holidays,4,FALSE),VLOOKUP(WEEKDAY($A18,2),Holidays!$E$3:$H$9,4,FALSE),C18-(B18+D18)),VLOOKUP(WEEKDAY($A18,2),Holidays!$E$3:$H$9,4,FALSE)))))","v":"0:00"},0,"0:00",0,"0:00",0]
["2025-08-17",null,null,null,{"$f":"IF(ISERROR(VLOOKUP($A19,Holidays,2,FALSE)),\"\",VLOOKUP($A19,Holidays,2,0))","v":""},2,{"$f":"IF(ISERROR(VLOOKUP($E19,HolidayType,2,FALSE)),IF(OR(ISBLANK(B19),ISBLANK(C19),ISBLANK(D19)),\"0:00\",C19-(B19+D19)),IF(OR(ISBLANK(B19),ISBLANK(C19),ISBLANK(D19)),IF(VLOOKUP($E19,HolidayType,2,FALSE),IF(VLOOKUP($A19,Holidays,4,FALSE),VLOOKUP(WEEKDAY($A19,2),Holidays!$E$3:$H$9,4,FALSE),\"0:00\"),VLOOKUP(WEEKDAY($A19,2),Holidays!$E$3:$H$9,4,FALSE)),IF(C19-(B19+D19)>VLOOKUP(WEEKDAY($A19,2),Holidays!$E$3:$H$9,4,FALSE),C19-(B19+D19),IF(VLOOKUP($E19,HolidayType,2,FALSE),IF(VLOOKUP($A19,Holidays,4,FALSE),VLOOKUP(WEEKDAY($A19,2),Holidays!$E$3:$H$9,4,FALSE),C19-(B19+D19)),VLOOKUP(WEEKDAY($A19,2),Holidays!$E$3:$H$9,4,FALSE)))))","v":"0:00"},0,"0:00",{"$f":"J18+H19","v":0},"0:00",0]
["2025-08-18",null,null,null,null,1,{"$f":"IF(ISERROR(VLOOKUP($E20,HolidayType,2,FALSE)),IF(OR(ISBLANK(B20),ISBLANK(C20),ISBLANK(D20)),\"0:00\",C20-(B20+D20)),IF(OR(ISBLANK(B20),ISBLANK(C20),ISBLANK(D20)),IF(VLOOKUP($E20,HolidayType,2,FALSE),IF(VLOOKUP($A20,Holidays,4,FALSE),VLOOKUP(WEEKDAY($A20,2),Holidays!$E$3:$H$9,4,FALSE),\"0:00\"),VLOOKUP(WEEKDAY($A20,2),Holidays!$E$3:$H$9,4,FALSE)),IF(C20-(B20+D20)>VLOOKUP(WEEKDAY($A20,2),Holidays!$E$3:$H$9,4,FALSE),C20-(B20+D20),IF(VLOOKUP($E20,HolidayType,2,FALSE),IF(VLOOKUP($A20,Holidays,4,FALSE),VLOOKUP(WEEKDAY($A20,2),Holidays!$E$3:$H$9,4,FALSE),C20-(B20+D20)),VLOOKUP(WEEKDAY($A20,2),Holidays!$E$3:$H$9,4,FALSE)))))","v":"0:00"},0,"0:00",{"$f":"J19+H20","v":0},"0:00",1]
["2025-08-19",null,null,null,null,1,{"$f":"IF(ISERROR(VLOOKUP($E21,HolidayType,2,FALSE)),IF(OR(ISBLANK(B21),ISBLANK(C21),ISBLANK(D21)),\"0:00\",C21-(B21+D21)),IF(OR(ISBLANK(B21),ISBLANK(C21),ISBLANK(D21)),IF(VLOOKUP($E21,HolidayType,2,FALSE),IF(VLOOKUP($A21,Holidays,4,FALSE),VLOOKUP(WEEKDAY($A21,2),Holidays!$E$3:$H$9,4,FALSE),\"0:00\"),VLOOKUP(WEEKDAY($A21,2),Holidays!$E$3:$H$9,4,FALSE)),IF(C21-(B21+D21)>VLOOKUP(WEEKDAY($A21,2),Holidays!$E$3:$H$9,4,FALSE),C21-(B21+D21),IF(VLOOKUP($E21,HolidayType,2,FALSE),IF(VLOOKUP($A21,Holidays,4,FALSE),VLOOKUP(WEEKDAY($A21,2),Holidays!$E$3:$H$9,4,FALSE),C21-(B21+D21)),VLOOKUP(WEEKDAY($A21,2),Holidays!$E$3:$H$9,4,FALSE)))))","v":"0:00"},0,"0:00",0,"0:00",1]
["2025-08-20",null,null,null,null,1,{"$f":"IF(ISERROR(VLOOKUP($E22,HolidayType,2,FALSE)),IF(OR(ISBLANK(B22),ISBLANK(C22),ISBLANK(D22)),\"0:00\",C22-(B22+D22)),IF(OR(ISBLANK(B22),ISBLANK(C22),ISBLANK(D22)),IF(VLOOKUP($E22,HolidayType,2,FALSE),IF(VLOOKUP($A22,Holidays,4,FALSE),VLOOKUP(WEEKDAY($A22,2),Holidays!$E$3:$H$9,4,FALSE),\"0:00\"),VLOOKUP(WEEKDAY($A22,2),Holidays!$E$3:$H$9,4,FALSE)),IF(C22-(B22+D22)>VLOOKUP(WEEKDAY($A22,2),Holidays!$E$3:$H$9,4,FALSE),C22-(B22+D22),IF(VLOOKUP($E22,HolidayType,2,FALSE),IF(VLOOKUP($A22,Holidays,4,FALSE),VLOOKUP(WEEKDAY($A22,2),Holidays!$E$3:$H$9,4,FALSE),C22-(B22+D22)),VLOOKUP(WEEKDAY($A22,2),Holidays!$E$3:$H$9,4,FALSE)))))","v":"0:00"},0,"0:00",0,"0:00",1]
["2025-08-21",null,null,null,null,1,{"$f":"IF(ISERROR(VLOOKUP($E23,HolidayType,2,FALSE)),IF(OR(ISBLANK(B23),ISBLANK(C23),ISBLANK(D23)),\"0:00\",C23-(B23+D23)),IF(OR(ISBLANK(B23),ISBLANK(C23),ISBLANK(D23)),IF(VLOOKUP($E23,HolidayType,2,FALSE),IF(VLOOKUP($A23,Holidays,4,FALSE),VLOOKUP(WEEKDAY($A23,2),Holidays!$E$3:$H$9,4,FALSE),\"0:00\"),VLOOKUP(WEEKDAY($A23,2),Holidays!$E$3:$H$9,4,FALSE)),IF(C23-(B23+D23)>VLOOKUP(WEEKDAY($A23,2),Holidays!$E$3:$H$9,4,FALSE),C23-(B23+D23),IF(VLOOKUP($E23,HolidayType,2,FALSE),IF(VLOOKUP($A23,Holidays,4,FALSE),VLOOKUP(WEEKDAY($A23,2),Holidays!$E$3:$H$9,4,FALSE),C23-(B23+D23)),VLOOKUP(WEEKDAY($A23,2),Holidays!$E$3:$H$9,4,FALSE)))))","v":"0:00"},0,"0:00",0,"0:00",1]
["2025-08-22",null,null,null,null,1,{"$f":"IF(ISERROR(VLOOKUP($E24,HolidayType,2,FALSE)),IF(OR(ISBLANK(B24),ISBLANK(C24),ISBLANK(D24)),\"0:00\",C24-(B24+D24)),IF(OR(ISBLANK(B24),ISBLANK(C24),ISBLANK(D24)),IF(VLOOKUP($E24,HolidayType,2,FALSE),IF(VLOOKUP($A24,Holidays,4,FALSE),VLOOKUP(WEEKDAY($A24,2),Holidays!$E$3:$H$9,4,FALSE),\"0:00\"),VLOOKUP(WEEKDAY($A24,2),Holidays!$E$3:$H$9,4,FALSE)),IF(C24-(B24+D24)>VLOOKUP(WEEKDAY($A24,2),Holidays!$E$3:$H$9,4,FALSE),C24-(B24+D24),IF(VLOOKUP($E24,HolidayType,2,FALSE),IF(VLOOKUP($A24,Holidays,4,FALSE),VLOOKUP(WEEKDAY($A24,2),Holidays!$E$3:$H$9,4,FALSE),C24-(B24+D24)),VLOOKUP(WEEKDAY($A24,2),Holidays!$E$3:$H$9,4,FALSE)))))","v":"0:00"},0,"0:00",0,"0:00",1]
["2025-08-23",null,null,null,null,1.5,{"$f":"IF(ISERROR(VLOOKUP($E25,HolidayType,2,FALSE)),IF(OR(ISBLANK(B25),ISBLANK(C25),ISBLANK(D25)),\"0:00\",C25-(B25+D25)),IF(OR(ISBLANK(B25),ISBLANK(C25),ISBLANK(D25)),IF(VLOOKUP($E25,HolidayType,2,FALSE),IF(VLOOKUP($A25,Holidays,4,FALSE),VLOOKUP(WEEKDAY($A25,2),Holidays!$E$3:$H$9,4,FALSE),\"0:00\"),VLOOKUP(WEEKDAY($A25,2),Holidays!$E$3:$H$9,4,FALSE)),IF(C25-(B25+D25)>VLOOKUP(WEEKDAY($A25,2),Holidays!$E$3:$H$9,4,FALSE),C25-(B25+D25),IF(VLOOKUP($E25,HolidayType,2,FALSE),IF(VLOOKUP($A25,Holidays,4,FALSE),VLOOKUP(WEEKDAY($A25,2),Holidays!$E$3:$H$9,4,FALSE),C25-(B25+D25)),VLOOKUP(WEEKDAY($A25,2),Holidays!$E$3:$H$9,4,FALSE)))))","v":"0:00"},0,"0:00",{"$f":"J24+H25","v":0},"0:00",0]
["2025-08-24",null,null,null,null,2,{"$f":"IF(ISERROR(VLOOKUP($E26,HolidayType,2,FALSE)),IF(OR(ISBLANK(B26),ISBLANK(C26),ISBLANK(D26)),\"0:00\",C26-(B26+D26)),IF(OR(ISBLANK(B26),ISBLANK(C26),ISBLANK(D26)),IF(VLOOKUP($E26,HolidayType,2,FALSE),IF(VLOOKUP($A26,Holidays,4,FALSE),VLOOKUP(WEEKDAY($A26,2),Holidays!$E$3:$H$9,4,FALSE),\"0:00\"),VLOOKUP(WEEKDAY($A26,2),Holidays!$E$3:$H$9,4,FALSE)),IF(C26-(B26+D26)>VLOOKUP(WEEKDAY($A26,2),Holidays!$E$3:$H$9,4,FALSE),C26-(B26+D26),IF(VLOOKUP($E26,HolidayType,2,FALSE),IF(VLOOKUP($A26,Holidays,4,FALSE),VLOOKUP(WEEKDAY($A26,2),Holidays!$E$3:$H$9,4,FALSE),C26-(B26+D26)),VLOOKUP(WEEKDAY($A26,2),Holidays!$E$3:$H$9,4,FALSE)))))","v":"0:00"},0,"0:00",{"$f":"J25+H26","v":0},"0:00",0]
["2025-08-25",null,null,null,null,1,{"$f":"IF(ISERROR(VLOOKUP($E27,HolidayType,2,FALSE)),IF(OR(ISBLANK(B27),ISBLANK(C27),ISBLANK(D27)),\"0:00\",C27-(B27+D27)),IF(OR(ISBLANK(B27),ISBLANK(C27),ISBLANK(D27)),IF(VLOOKUP($E27,HolidayType,2,FALSE),IF(VLOOKUP($A27,Holidays,4,FALSE),VLOOKUP(WEEKDAY($A27,2),Holidays!$E$3:$H$9,4,FALSE),\"0:00\"),VLOOKUP(WEEKDAY($A27,2),Holidays!$E$3:$H$9,4,FALSE)),IF(C27-(B27+D27)>VLOOKUP(WEEKDAY($A27,2),Holidays!$E$3:$H$9,4,FALSE),C27-(B27+D27),IF(VLOOKUP($E27,HolidayType,2,FALSE),IF(VLOOKUP($A27,Holidays,4,FALSE),VLOOKUP(WEEKDAY($A27,2),Holidays!$E$3:$H$9,4,FALSE),C27-(B27+D27)),VLOOKUP(WEEKDAY($A27,2),Holidays!$E$3:$H$9,4,FALSE)))))","v":"0:00"},0,"0:00",{"$f":"J26+H27","v":0},"0:00",1]
["2025-08-26",null,null,null,null,1,{"$f":"IF(ISERROR(VLOOKUP($E28,HolidayType,2,FALSE)),IF(OR(ISBLANK(B28),ISBLANK(C28),ISBLANK(D28)),\"0:00\",C28-(B28+D28)),IF(OR(ISBLANK(B28),ISBLANK(C28),ISBLANK(D28)),IF(VLOOKUP($E28,HolidayType,2,FALSE),IF(VLOOKUP($A28,Holidays,4,FALSE),VLOOKUP(WEEKDAY($A28,2),Holidays!$E$3:$H$9,4,FALSE),\"0:00\"),VLOOKUP(WEEKDAY($A28,2),Holidays!$E$3:$H$9,4,FALSE)),IF(C28-(B28+D28)>VLOOKUP(WEEKDAY($A28,2),Holidays!$E$3:$H$9,4,FALSE),C28-(B28+D28),IF(VLOOKUP($E28,HolidayType,2,FALSE),IF(VLOOKUP($A28,Holidays,4,FALSE),VLOOKUP(WEEKDAY($A28,2),Holidays!$E$3:$H$9,4,FALSE),C28-(B28+D28)),VLOOKUP(WEEKDAY($A28,2),Holidays!$E$3:$H$9,4,FALSE)))))","v":"0:00"},0,"0:00",0,"0:00",1]
["2025-08-27",null,null,null,null,1,{"$f":"IF(ISERROR(VLOOKUP($E29,HolidayType,2,FALSE)),IF(OR(ISBLANK(B29),ISBLANK(C29),ISBLANK(D29)),\"0:00\",C29-(B29+D29)),IF(OR(ISBLANK(B29),ISBLANK(C29),ISBLANK(D29)),IF(VLOOKUP($E29,HolidayType,2,FALSE),IF(VLOOKUP($A29,Holidays,4,FALSE),VLOOKUP(WEEKDAY($A29,2),Holidays!$E$3:$H$9,4,FALSE),\"0:00\"),VLOOKUP(WEEKDAY($A29,2),Holidays!$E$3:$H$9,4,FALSE)),IF(C29-(B29+D29)>VLOOKUP(WEEKDAY($A29,2),Holidays!$E$3:$H$9,4,FALSE),C29-(B29+D29),IF(VLOOKUP($E29,HolidayType,2,FALSE),IF(VLOOKUP($A29,Holidays,4,FALSE),VLOOKUP(WEEKDAY($A29,2),Holidays!$E$3:$H$9,4,FALSE),C29-(B29+D29)),VLOOKUP(WEEKDAY($A29,2),Holidays!$E$3:$H$9,4,FALSE)))))","v":"0:00"},0,"0:00",0,"0:00",1]
["2025-08-28",null,null,null,{"$f":"IF(ISERROR(VLOOKUP($A30,Holidays,2,FALSE)),\"\",VLOOKUP($A30,Holidays,2,0))","v":""},1,{"$f":"IF(ISERROR(VLOOKUP($E30,HolidayType,2,FALSE)),IF(OR(ISBLANK(B30),ISBLANK(C30),ISBLANK(D30)),\"0:00\",C30-(B30+D30)),IF(OR(ISBLANK(B30),ISBLANK(C30),ISBLANK(D30)),IF(VLOOKUP($E30,HolidayType,2,FALSE),IF(VLOOKUP($A30,Holidays,4,FALSE),VLOOKUP(WEEKDAY($A30,2),Holidays!$E$3:$H$9,4,FALSE),\"0:00\"),VLOOKUP(WEEKDAY($A30,2),Holidays!$E$3:$H$9,4,FALSE)),IF(C30-(B30+D30)>VLOOKUP(WEEKDAY($A30,2),Holidays!$E$3:$H$9,4,FALSE),C30-(B30+D30),IF(VLOOKUP($E30,HolidayType,2,FALSE),IF(VLOOKUP($A30,Holidays,4,FALSE),VLOOKUP(WEEKDAY($A30,2),Holidays!$E$3:$H$9,4,FALSE),C30-(B30+D30)),VLOOKUP(WEEKDAY($A30,2),Holidays!$E$3:$H$9,4,FALSE)))))","v":"0:00"},0,"0:00",0,"0:00",1]
["2025-08-29",null,null,null,"",1,{"$f":"IF(ISERROR(VLOOKUP($E31,HolidayType,2,FALSE)),IF(OR(ISBLANK(B31),ISBLANK(C31),ISBLANK(D31)),\"0:00\",C31-(B31+D31)),IF(OR(ISBLANK(B31),ISBLANK(C31),ISBLANK(D31)),IF(VLOOKUP($E31,HolidayType,2,FALSE),IF(VLOOKUP($A31,Holidays,4,FALSE),VLOOKUP(WEEKDAY($A31,2),Holidays!$E$3:$H$9,4,FALSE),\"0:00\"),VLOOKUP(WEEKDAY($A31,2),Holidays!$E$3:$H$9,4,FALSE)),IF(C31-(B31+D31)>VLOOKUP(WEEKDAY($A31,2),Holidays!$E$3:$H$9,4,FALSE),C31-(B31+D31),IF(VLOOKUP($E31,HolidayType,2,FALSE),IF(VLOOKUP($A31,Holidays,4,FALSE),VLOOKUP(WEEKDAY($A31,2),Holidays!$E$3:$H$9,4,FALSE),C31-(B31+D31)),VLOOKUP(WEEKDAY($A31,2),Holidays!$E$3:$H$9,4,FALSE)))))","v":"0:00"},0,"0:00",0,"0:00",1]
["2025-08-30",null,null,null,"",1.5,{"$f":"IF(ISERROR(VLOOKUP($E32,HolidayType,2,FALSE)),IF(OR(ISBLANK(B32),ISBLANK(C32),ISBLANK(D32)),\"0:00\",C32-(B32+D32)),IF(OR(ISBLANK(B32),ISBLANK(C32),ISBLANK(D32)),IF(VLOOKUP($E32,HolidayType,2,FALSE),IF(VLOOKUP($A32,Holidays,4,FALSE),VLOOKUP(WEEKDAY($A32,2),Holidays!$E$3:$H$9,4,FALSE),\"0:00\"),VLOOKUP(WEEKDAY($A32,2),Holidays!$E$3:$H$9,4,FALSE)),IF(C32-(B32+D32)>VLOOKUP(WEEKDAY($A32,2),Holidays!$E$3:$H$9,4,FALSE),C32-(B32+D32),IF(VLOOKUP($E32,HolidayType,2,FALSE),IF(VLOOKUP($A32,Holidays,4,FALSE),VLOOKUP(WEEKDAY($A32,2),Holidays!$E$3:$H$9,4,FALSE),C32-(B32+D32)),VLOOKUP(WEEKDAY($A32,2),Holidays!$E$3:$H$9,4,FALSE)))))","v":"0:00"},0,"0:00",{"$f":"J31+H32","v":0},"0:00",0]
["2025-08-31",null,null,null,"",2,{"$f":"IF(ISERROR(VLOOKUP($E33,HolidayType,2,FALSE)),IF(OR(ISBLANK(B33),ISBLANK(C33),ISBLANK(D33)),\"0:00\",C33-(B33+D33)),IF(OR(ISBLANK(B33),ISBLANK(C33),ISBLANK(D33)),IF(VLOOKUP($E33,HolidayType,2,FALSE),IF(VLOOKUP($A33,Holidays,4,FALSE),VLOOKUP(WEEKDAY($A33,2),Holidays!$E$3:$H$9,4,FALSE),\"0:00\"),VLOOKUP(WEEKDAY($A33,2),Holidays!$E$3:$H$9,4,FALSE)),IF(C33-(B33+D33)>VLOOKUP(WEEKDAY($A33,2),Holidays!$E$3:$H$9,4,FALSE),C33-(B33+D33),IF(VLOOKUP($E33,HolidayType,2,FALSE),IF(VLOOKUP($A33,Holidays,4,FALSE),VLOOKUP(WEEKDAY($A33,2),Holidays!$E$3:$H$9,4,FALSE),C33-(B33+D33)),VLOOKUP(WEEKDAY($A33,2),Holidays!$E$3:$H$9,4,FALSE)))))","v":"0:00"},0,"0:00",{"$f":"J32+H33","v":0},"0:00",0]
["2025-09-01",null,null,null,"",1,{"$f":"IF(ISERROR(VLOOKUP($E34,HolidayType,2,FALSE)),IF(OR(ISBLANK(B34),ISBLANK(C34),ISBLANK(D34)),\"0:00\",C34-(B34+D34)),IF(OR(ISBLANK(B34),ISBLANK(C34),ISBLANK(D34)),IF(VLOOKUP($E34,HolidayType,2,FALSE),IF(VLOOKUP($A34,Holidays,4,FALSE),VLOOKUP(WEEKDAY($A34,2),Holidays!$E$3:$H$9,4,FALSE),\"0:00\"),VLOOKUP(WEEKDAY($A34,2),Holidays!$E$3:$H$9,4,FALSE)),IF(C34-(B34+D34)>VLOOKUP(WEEKDAY($A34,2),Holidays!$E$3:$H$9,4,FALSE),C34-(B34+D34),IF(VLOOKUP($E34,HolidayType,2,FALSE),IF(VLOOKUP($A34,Holidays,4,FALSE),VLOOKUP(WEEKDAY($A34,2),Holidays!$E$3:$H$9,4,FALSE),C34-(B34+D34)),VLOOKUP(WEEKDAY($A34,2),Holidays!$E$3:$H$9,4,FALSE)))))","v":"0:00"},0,"0:00",{"$f":"J31+H34","v":0},"0:00",1]
["2025-09-02",null,null,null,"",1,{"$f":"IF(ISERROR(VLOOKUP($E35,HolidayType,2,FALSE)),IF(OR(ISBLANK(B35),ISBLANK(C35),ISBLANK(D35)),\"0:00\",C35-(B35+D35)),IF(OR(ISBLANK(B35),ISBLANK(C35),ISBLANK(D35)),IF(VLOOKUP($E35,HolidayType,2,FALSE),IF(VLOOKUP($A35,Holidays,4,FALSE),VLOOKUP(WEEKDAY($A35,2),Holidays!$E$3:$H$9,4,FALSE),\"0:00\"),VLOOKUP(WEEKDAY($A35,2),Holidays!$E$3:$H$9,4,FALSE)),IF(C35-(B35+D35)>VLOOKUP(WEEKDAY($A35,2),Holidays!$E$3:$H$9,4,FALSE),C35-(B35+D35),IF(VLOOKUP($E35,HolidayType,2,FALSE),IF(VLOOKUP($A35,Holidays,4,FALSE),VLOOKUP(WEEKDAY($A35,2),Holidays!$E$3:$H$9,4,FALSE),C35-(B35+D35)),VLOOKUP(WEEKDAY($A35,2),Holidays!$E$3:$H$9,4,FALSE)))))","v":"0:00"},0,"0:00",0,"0:00",1]
["2025-09-03",null,null,null,"",1,{"$f":"IF(ISERROR(VLOOKUP($E36,HolidayType,2,FALSE)),IF(OR(ISBLANK(B36),ISBLANK(C36),ISBLANK(D36)),\"0:00\",C36-(B36+D36)),IF(OR(ISBLANK(B36),ISBLANK(C36),ISBLANK(D36)),IF(VLOOKUP($E36,HolidayType,2,FALSE),IF(VLOOKUP($A36,Holidays,4,FALSE),VLOOKUP(WEEKDAY($A36,2),Holidays!$E$3:$H$9,4,FALSE),\"0:00\"),VLOOKUP(WEEKDAY($A36,2),Holidays!$E$3:$H$9,4,FALSE)),IF(C36-(B36+D36)>VLOOKUP(WEEKDAY($A36,2),Holidays!$E$3:$H$9,4,FALSE),C36-(B36+D36),IF(VLOOKUP($E36,HolidayType,2,FALSE),IF(VLOOKUP($A36,Holidays,4,FALSE),VLOOKUP(WEEKDAY($A36,2),Holidays!$E$3:$H$9,4,FALSE),C36-(B36+D36)),VLOOKUP(WEEKDAY($A36,2),Holidays!$E$3:$H$9,4,FALSE)))))","v":"0:00"},0,"0:00",0,"0:00",1]
["2025-09-04",null,null,null,"",1,{"$f":"IF(ISERROR(VLOOKUP($E37,HolidayType,2,FALSE)),IF(OR(ISBLANK(B37),ISBLANK(C37),ISBLANK(D37)),\"0:00\",C37-(B37+D37)),IF(OR(ISBLANK(B37),ISBLANK(C37),ISBLANK(D37)),IF(VLOOKUP($E37,HolidayType,2,FALSE),IF(VLOOKUP($A37,Holidays,4,FALSE),VLOOKUP(WEEKDAY($A37,2),Holidays!$E$3:$H$9,4,FALSE),\"0:00\"),VLOOKUP(WEEKDAY($A37,2),Holidays!$E$3:$H$9,4,FALSE)),IF(C37-(B37+D37)>VLOOKUP(WEEKDAY($A37,2),Holidays!$E$3:$H$9,4,FALSE),C37-(B37+D37),IF(VLOOKUP($E37,HolidayType,2,FALSE),IF(VLOOKUP($A37,Holidays,4,FALSE),VLOOKUP(WEEKDAY($A37,2),Holidays!$E$3:$H$9,4,FALSE),C37-(B37+D37)),VLOOKUP(WEEKDAY($A37,2),Holidays!$E$3:$H$9,4,FALSE)))))","v":"0:00"},0,"0:00",0,"0:00",1]
["2025-09-05",null,null,null,"",1,{"$f":"IF(ISERROR(VLOOKUP($E38,HolidayType,2,FALSE)),IF(OR(ISBLANK(B38),ISBLANK(C38),ISBLANK(D38)),\"0:00\",C38-(B38+D38)),IF(OR(ISBLANK(B38),ISBLANK(C38),ISBLANK(D38)),IF(VLOOKUP($E38,HolidayType,2,FALSE),IF(VLOOKUP($A38,Holidays,4,FALSE),VLOOKUP(WEEKDAY($A38,2),Holidays!$E$3:$H$9,4,FALSE),\"0:00\"),VLOOKUP(WEEKDAY($A38,2),Holidays!$E$3:$H$9,4,FALSE)),IF(C38-(B38+D38)>VLOOKUP(WEEKDAY($A38,2),Holidays!$E$3:$H$9,4,FALSE),C38-(B38+D38),IF(VLOOKUP($E38,HolidayType,2,FALSE),IF(VLOOKUP($A38,Holidays,4,FALSE),VLOOKUP(WEEKDAY($A38,2),Holidays!$E$3:$H$9,4,FALSE),C38-(B38+D38)),VLOOKUP(WEEKDAY($A38,2),Holidays!$E$3:$H$9,4,FALSE)))))","v":"0:00"},0,"0:00",0,"0:00",1]
["2025-09-06",null,null,null,"",1.5,{"$f":"IF(ISERROR(VLOOKUP($E39,HolidayType,2,FALSE)),IF(OR(ISBLANK(B39),ISBLANK(C39),ISBLANK(D39)),\"0:00\",C39-(B39+D39)),IF(OR(ISBLANK(B39),ISBLANK(C39),ISBLANK(D39)),IF(VLOOKUP($E39,HolidayType,2,FALSE),IF(VLOOKUP($A39,Holidays,4,FALSE),VLOOKUP(WEEKDAY($A39,2),Holidays!$E$3:$H$9,4,FALSE),\"0:00\"),VLOOKUP(WEEKDAY($A39,2),Holidays!$E$3:$H$9,4,FALSE)),IF(C39-(B39+D39)>VLOOKUP(WEEKDAY($A39,2),Holidays!$E$3:$H$9,4,FALSE),C39-(B39+D39),IF(VLOOKUP($E39,HolidayType,2,FALSE),IF(VLOOKUP($A39,Holidays,4,FALSE),VLOOKUP(WEEKDAY($A39,2),Holidays!$E$3:$H$9,4,FALSE),C39-(B39+D39)),VLOOKUP(WEEKDAY($A39,2),Holidays!$E$3:$H$9,4,FALSE)))))","v":"0:00"},0,"0:00",0,"0:00",0]
["2025-09-07",null,null,null,"",2,{"$f":"IF(ISERROR(VLOOKUP($E40,HolidayType,2,FALSE)),IF(OR(ISBLANK(B40),ISBLANK(C40),ISBLANK(D40)),\"0:00\",C40-(B40+D40)),IF(OR(ISBLANK(B40),ISBLANK(C40),ISBLANK(D40)),IF(VLOOKUP($E40,HolidayType,2,FALSE),IF(VLOOKUP($A40,Holidays,4,FALSE),VLOOKUP(WEEKDAY($A40,2),Holidays!$E$3:$H$9,4,FALSE),\"0:00\"),VLOOKUP(WEEKDAY($A40,2),Holidays!$E$3:$H$9,4,FALSE)),IF(C40-(B40+D40)>VLOOKUP(WEEKDAY($A40,2),Holidays!$E$3:$H$9,4,FALSE),C40-(B40+D40),IF(VLOOKUP($E40,HolidayType,2,FALSE),IF(VLOOKUP($A40,Holidays,4,FALSE),VLOOKUP(WEEKDAY($A40,2),Holidays!$E$3:$H$9,4,FALSE),C40-(B40+D40)),VLOOKUP(WEEKDAY($A40,2),Holidays!$E$3:$H$9,4,FALSE)))))","v":"0:00"},0,"0:00",{"$f":"J39+H40","v":0},"0:00",0]
[null,null,null,null,null,null,null,null,null,null,null,{"$f":"SUM(L13:L40)","v":20}]
[null,null,null,null,"Total ordinary hours for accounting period",null,{"$f":"CONCATENATE(TRUNC(INT(ABS(J42))),\":\",TEXT(ABS(ABS(J42)-TRUNC(INT(ABS(J42))))*60,\"00\"))","v":"140:00"},null,null,{"$f":"J10*4","v":140}]
[null,null,null,null,"Total actual hours worked in accounting period",null,{"$f":"CONCATENATE(TRUNC(INT(ABS(J43))),\":\",TEXT(ABS(ABS(J43)-TRUNC(INT(ABS(J43))))*60,\"00\"))","v":"0:00"},null,null,{"$f":"J40","v":0}]
[null,null,null,null,"Difference",null,{"$f":"CONCATENATE(TRUNC(INT(ABS(J44))),\":\",TEXT(ABS(ABS(J44)-TRUNC(INT(ABS(J44))))*60,\"00\"))","v":"140:00"},null,{"$f":"IF(J44<0,\"Debit\",IF(J44=0,\"\",\"Credit\"))","v":"Debit"},{"$f":"ROUND(J43-J42,2)","v":-140}]
[null,null,null,null,"If applicable, carry over from previous period",null,"0:00",null,"Credit",{"$f":"IF(I45=\"Debit\",0-(LEFT(G45,FIND(\":\",G45)-1)+RIGHT(G45,2)/60),LEFT(G45,FIND(\":\",G45)-1)+RIGHT(G45,2)/60)","v":0}]
[null,null,null,null,"Carry over to following period",null,{"$f":"CONCATENATE(TRUNC(INT(ABS(J46))),\":\",TEXT(ABS(ABS(J46)-TRUNC(INT(ABS(J46))))*60,\"00\"))","v":"140:00"},null,{"$f":"IF(J46<0,\"Debit\",IF(J46=0,\"\",\"Credit\"))","v":"Debit"},{"$f":"ROUND(J44+J45,2)","v":-140}]
[]
[null,null,null,null,"Future flex leave bookings",null,"0:00",null,null,{"$f":"IF(I48=\"Debit\",0-(LEFT(G48,FIND(\":\",G48)-1)+RIGHT(G48,2)/60),LEFT(G48,FIND(\":\",G48)-1)+RIGHT(G48,2)/60)","v":0}]
[null,null,null,null,"Remaining",null,{"$f":"CONCATENATE(TRUNC(INT(ABS(J49))),\":\",TEXT(ABS(ABS(J49)-TRUNC(INT(ABS(J49))))*60,\"00\"))","v":"140:00"},null,{"$f":"IF(J49<0,\"Debit\",IF(J49=0,\"\",\"Credit\"))","v":"Debit"},{"$f":"J46-J48","v":-140}]
[]
[]
[]
["Signature",null,null,null,"Certified Correct"]
[null,"(Employee)",null,null,null,"(Supervisor)"]
[]
["Completed timesheets shall be authorised as correct by the supervisor and filed as an auditable document for 7yrs"]
[]
[]
["INSERT Comments/Leave below:"]
["Albury"]
["Annual Leave"]
["Carers Leave"]
["Concessional Half Day"]
["Dubbo"]
["Exam"]
["Flexi Day"]
["Goulburn"]
["Leave Without Pay"]
["Long Service Leave"]
["Maternity Leave"]
["Public Holiday"]
["Purchased Leave"]
["Sick Leave"]
["Special Leave"]
["Study Leave"]
["Training"]
["Wagga Wagga"]
["Working @ home"]

{"sheet":"Flexi Timesheet (10)","index":11,"n_rows":78,"n_cols":12,"rows_kept":78,"cut":false,"hidden":false,"merged":[[65,0,65,1],[7,2,7,4],[8,2,8,4],[52,1,52,2],[52,5,52,10],[53,1,53,2],[53,5,53,10],[59,0,59,1],[60,0,60,1],[62,0,62,1],[63,0,63,1],[64,0,64,1],[73,0,73,1],[77,0,77,1],[79,0,79,1],[66,0,66,1],[67,0,67,1],[68,0,68,1],[69,0,69,1],[70,0,70,1],[72,0,72,1]]}
[null,null,null,null,null,null,null,null,null,null,"Flexible Working Hours Scheme"]
[null,null,null,null,null,null,null,null,null,null,"2025 Flexi-Timesheet"]
[]
[]
[]
[]
[]
[null,"Name:"]
[null,"Team:",null,null,null,null,null,null,"Hours per Day",{"$f":"HOUR(K9)+MINUTE(K9)/60","v":7},"07:00:00","Don't override cell, click into cell and change time to equal your hours. i.e. 7 hours = 7:00am"]
[null,"Accounting Period:","2025-09-08",{"$f":"CONCATENATE(\" to \",TEXT(C10+27,\"dd-mmm-yyyy\"))","v":" to 05-Oct-2025"},null,null,null,null,"Days per Week",{"$f":"J9*K10","v":35},5]
[null,null,null,null,{"$f":"IF(ISERROR(VLOOKUP($A11,Holidays,2,FALSE)),\"\",VLOOKUP($A11,Holidays,2,0))","v":""},null,null,null,"Work Days",null,"Mo, Tu, We, Th, Fr"]
["Date","Start Time","Finish Time","Unpaid Breaks","Comments/Leave","Rate","Elapsed Time","Decimal Hours","Total Hours","Cum. Dec.","Cumulative Total"]
[{"$f":"C10","v":"2025-09-08"},null,null,null,null,1,{"$f":"IF(ISERROR(VLOOKUP($E13,HolidayType,2,FALSE)),IF(OR(ISBLANK(B13),ISBLANK(C13),ISBLANK(D13)),\"0:00\",C13-(B13+D13)),IF(OR(ISBLANK(B13),ISBLANK(C13),ISBLANK(D13)),IF(VLOOKUP($E13,HolidayType,2,FALSE),IF(VLOOKUP($A13,Holidays,4,FALSE),VLOOKUP(WEEKDAY($A13,2),Holidays!$E$3:$H$9,4,FALSE),\"0:00\"),VLOOKUP(WEEKDAY($A13,2),Holidays!$E$3:$H$9,4,FALSE)),IF(C13-(B13+D13)>VLOOKUP(WEEKDAY($A13,2),Holidays!$E$3:$H$9,4,FALSE),C13-(B13+D13),IF(VLOOKUP($E13,HolidayType,2,FALSE),IF(VLOOKUP($A13,Holidays,4,FALSE),VLOOKUP(WEEKDAY($A13,2),Holidays!$E$3:$H$9,4,FALSE),C13-(B13+D13)),VLOOKUP(WEEKDAY($A13,2),Holidays!$E$3:$H$9,4,FALSE)))))","v":"0:00"},{"$f":"((HOUR(G13)+MINUTE(G13)/60))*F13","v":0},{"$f":"CONCATENATE(TRUNC(INT(H13)),\":\",TEXT((H13-TRUNC(INT(H13)))*60,\"00\"))","v":"0:00"},{"$f":"H13","v":0},{"$f":"CONCATENATE(TRUNC(INT(J13)),\":\",TEXT((J13-TRUNC(INT(J13)))*60,\"00\"))","v":"0:00"},{"$f":"IF(WEEKDAY(A13,2)<6,IF(F13<>0,1,0),0)","v":1}]
[{"$f":"A13+1","v":"2025-09-09"},null,null,null,null,1,{"$f":"IF(ISERROR(VLOOKUP($E14,HolidayType,2,FALSE)),IF(OR(ISBLANK(B14),ISBLANK(C14),ISBLANK(D14)),\"0:00\",C14-(B14+D14)),IF(OR(ISBLANK(B14),ISBLANK(C14),ISBLANK(D14)),IF(VLOOKUP($E14,HolidayType,2,FALSE),IF(VLOOKUP($A14,Holidays,4,FALSE),VLOOKUP(WEEKDAY($A14,2),Holidays!$E$3:$H$9,4,FALSE),\"0:00\"),VLOOKUP(WEEKDAY($A14,2),Holidays!$E$3:$H$9,4,FALSE)),IF(C14-(B14+D14)>VLOOKUP(WEEKDAY($A14,2),Holidays!$E$3:$H$9,4,FALSE),C14-(B14+D14),IF(VLOOKUP($E14,HolidayType,2,FALSE),IF(VLOOKUP($A14,Holidays,4,FALSE),VLOOKUP(WEEKDAY($A14,2),Holidays!$E$3:$H$9,4,FALSE),C14-(B14+D14)),VLOOKUP(WEEKDAY($A14,2),Holidays!$E$3:$H$9,4,FALSE)))))","v":"0:00"},0,{"$f":"CONCATENATE(TRUNC(INT(H14)),\":\",TEXT((H14-TRUNC(INT(H14)))*60,\"00\"))","v":"0:00"},{"$f":"J13+H14","v":0},{"$f":"CONCATENATE(TRUNC(INT(J14)),\":\",TEXT((J14-TRUNC(INT(J14)))*60,\"00\"))","v":"0:00"},1]
["2025-09-10",null,null,null,null,1,{"$f":"IF(ISERROR(VLOOKUP($E15,HolidayType,2,FALSE)),IF(OR(ISBLANK(B15),ISBLANK(C15),ISBLANK(D15)),\"0:00\",C15-(B15+D15)),IF(OR(ISBLANK(B15),ISBLANK(C15),ISBLANK(D15)),IF(VLOOKUP($E15,HolidayType,2,FALSE),IF(VLOOKUP($A15,Holidays,4,FALSE),VLOOKUP(WEEKDAY($A15,2),Holidays!$E$3:$H$9,4,FALSE),\"0:00\"),VLOOKUP(WEEKDAY($A15,2),Holidays!$E$3:$H$9,4,FALSE)),IF(C15-(B15+D15)>VLOOKUP(WEEKDAY($A15,2),Holidays!$E$3:$H$9,4,FALSE),C15-(B15+D15),IF(VLOOKUP($E15,HolidayType,2,FALSE),IF(VLOOKUP($A15,Holidays,4,FALSE),VLOOKUP(WEEKDAY($A15,2),Holidays!$E$3:$H$9,4,FALSE),C15-(B15+D15)),VLOOKUP(WEEKDAY($A15,2),Holidays!$E$3:$H$9,4,FALSE)))))","v":"0:00"},0,"0:00",{"$f":"J14+H15","v":0},"0:00",1]
["2025-09-11",null,null,null,null,1,{"$f":"IF(ISERROR(VLOOKUP($E16,HolidayType,2,FALSE)),IF(OR(ISBLANK(B16),ISBLANK(C16),ISBLANK(D16)),\"0:00\",C16-(B16+D16)),IF(OR(ISBLANK(B16),ISBLANK(C16),ISBLANK(D16)),IF(VLOOKUP($E16,HolidayType,2,FALSE),IF(VLOOKUP($A16,Holidays,4,FALSE),VLOOKUP(WEEKDAY($A16,2),Holidays!$E$3:$H$9,4,FALSE),\"0:00\"),VLOOKUP(WEEKDAY($A16,2),Holidays!$E$3:$H$9,4,FALSE)),IF(C16-(B16+D16)>VLOOKUP(WEEKDAY($A16,2),Holidays!$E$3:$H$9,4,FALSE),C16-(B16+D16),IF(VLOOKUP($E16,HolidayType,2,FALSE),IF(VLOOKUP($A16,Holidays,4,FALSE),VLOOKUP(WEEKDAY($A16,2),Holidays!$E$3:$H$9,4,FALSE),C16-(B16+D16)),VLOOKUP(WEEKDAY($A16,2),Holidays!$E$3:$H$9,4,FALSE)))))","v":"0:00"},0,"0:00",0,"0:00",1]
["2025-09-12",null,null,null,null,1,{"$f":"IF(ISERROR(VLOOKUP($E17,HolidayType,2,FALSE)),IF(OR(ISBLANK(B17),ISBLANK(C17),ISBLANK(D17)),\"0:00\",C17-(B17+D17)),IF(OR(ISBLANK(B17),ISBLANK(C17),ISBLANK(D17)),IF(VLOOKUP($E17,HolidayType,2,FALSE),IF(VLOOKUP($A17,Holidays,4,FALSE),VLOOKUP(WEEKDAY($A17,2),Holidays!$E$3:$H$9,4,FALSE),\"0:00\"),VLOOKUP(WEEKDAY($A17,2),Holidays!$E$3:$H$9,4,FALSE)),IF(C17-(B17+D17)>VLOOKUP(WEEKDAY($A17,2),Holidays!$E$3:$H$9,4,FALSE),C17-(B17+D17),IF(VLOOKUP($E17,HolidayType,2,FALSE),IF(VLOOKUP($A17,Holidays,4,FALSE),VLOOKUP(WEEKDAY($A17,2),Holidays!$E$3:$H$9,4,FALSE),C17-(B17+D17)),VLOOKUP(WEEKDAY($A17,2),Holidays!$E$3:$H$9,4,FALSE)))))","v":"0:00"},0,"0:00",0,"0:00",1]
["2025-09-13",null,null,null,{"$f":"IF(ISERROR(VLOOKUP($A18,Holidays,2,FALSE)),\"\",VLOOKUP($A18,Holidays,2,0))","v":""},1.5,{"$f":"IF(ISERROR(VLOOKUP($E18,HolidayType,2,FALSE)),IF(OR(ISBLANK(B18),ISBLANK(C18),ISBLANK(D18)),\"0:00\",C18-(B18+D18)),IF(OR(ISBLANK(B18),ISBLANK(C18),ISBLANK(D18)),IF(VLOOKUP($E18,HolidayType,2,FALSE),IF(VLOOKUP($A18,Holidays,4,FALSE),VLOOKUP(WEEKDAY($A18,2),Holidays!$E$3:$H$9,4,FALSE),\"0:00\"),VLOOKUP(WEEKDAY($A18,2),Holidays!$E$3:$H$9,4,FALSE)),IF(C18-(B18+D18)>VLOOKUP(WEEKDAY($A18,2),Holidays!$E$3:$H$9,4,FALSE),C18-(B18+D18),IF(VLOOKUP($E18,HolidayType,2,FALSE),IF(VLOOKUP($A18,Holidays,4,FALSE),VLOOKUP(WEEKDAY($A18,2),Holidays!$E$3:$H$9,4,FALSE),C18-(B18+D18)),VLOOKUP(WEEKDAY($A18,2),Holidays!$E$3:$H$9,4,FALSE)))))","v":"0:00"},0,"0:00",0,"0:00",0]
["2025-09-14",null,null,null,{"$f":"IF(ISERROR(VLOOKUP($A19,Holidays,2,FALSE)),\"\",VLOOKUP($A19,Holidays,2,0))","v":""},2,{"$f":"IF(ISERROR(VLOOKUP($E19,HolidayType,2,FALSE)),IF(OR(ISBLANK(B19),ISBLANK(C19),ISBLANK(D19)),\"0:00\",C19-(B19+D19)),IF(OR(ISBLANK(B19),ISBLANK(C19),ISBLANK(D19)),IF(VLOOKUP($E19,HolidayType,2,FALSE),IF(VLOOKUP($A19,Holidays,4,FALSE),VLOOKUP(WEEKDAY($A19,2),Holidays!$E$3:$H$9,4,FALSE),\"0:00\"),VLOOKUP(WEEKDAY($A19,2),Holidays!$E$3:$H$9,4,FALSE)),IF(C19-(B19+D19)>VLOOKUP(WEEKDAY($A19,2),Holidays!$E$3:$H$9,4,FALSE),C19-(B19+D19),IF(VLOOKUP($E19,HolidayType,2,FALSE),IF(VLOOKUP($A19,Holidays,4,FALSE),VLOOKUP(WEEKDAY($A19,2),Holidays!$E$3:$H$9,4,FALSE),C19-(B19+D19)),VLOOKUP(WEEKDAY($A19,2),Holidays!$E$3:$H$9,4,FALSE)))))","v":"0:00"},0,"0:00",{"$f":"J18+H19","v":0},"0:00",0]
["2025-09-15",null,null,null,null,1,{"$f":"IF(ISERROR(VLOOKUP($E20,HolidayType,2,FALSE)),IF(OR(ISBLANK(B20),ISBLANK(C20),ISBLANK(D20)),\"0:00\",C20-(B20+D20)),IF(OR(ISBLANK(B20),ISBLANK(C20),ISBLANK(D20)),IF(VLOOKUP($E20,HolidayType,2,FALSE),IF(VLOOKUP($A20,Holidays,4,FALSE),VLOOKUP(WEEKDAY($A20,2),Holidays!$E$3:$H$9,4,FALSE),\"0:00\"),VLOOKUP(WEEKDAY($A20,2),Holidays!$E$3:$H$9,4,FALSE)),IF(C20-(B20+D20)>VLOOKUP(WEEKDAY($A20,2),Holidays!$E$3:$H$9,4,FALSE),C20-(B20+D20),IF(VLOOKUP($E20,HolidayType,2,FALSE),IF(VLOOKUP($A20,Holidays,4,FALSE),VLOOKUP(WEEKDAY($A20,2),Holidays!$E$3:$H$9,4,FALSE),C20-(B20+D20)),VLOOKUP(WEEKDAY($A20,2),Holidays!$E$3:$H$9,4,FALSE)))))","v":"0:00"},0,"0:00",{"$f":"J19+H20","v":0},"0:00",1]
["2025-09-16",null,null,null,null,1,{"$f":"IF(ISERROR(VLOOKUP($E21,HolidayType,2,FALSE)),IF(OR(ISBLANK(B21),ISBLANK(C21),ISBLANK(D21)),\"0:00\",C21-(B21+D21)),IF(OR(ISBLANK(B21),ISBLANK(C21),ISBLANK(D21)),IF(VLOOKUP($E21,HolidayType,2,FALSE),IF(VLOOKUP($A21,Holidays,4,FALSE),VLOOKUP(WEEKDAY($A21,2),Holidays!$E$3:$H$9,4,FALSE),\"0:00\"),VLOOKUP(WEEKDAY($A21,2),Holidays!$E$3:$H$9,4,FALSE)),IF(C21-(B21+D21)>VLOOKUP(WEEKDAY($A21,2),Holidays!$E$3:$H$9,4,FALSE),C21-(B21+D21),IF(VLOOKUP($E21,HolidayType,2,FALSE),IF(VLOOKUP($A21,Holidays,4,FALSE),VLOOKUP(WEEKDAY($A21,2),Holidays!$E$3:$H$9,4,FALSE),C21-(B21+D21)),VLOOKUP(WEEKDAY($A21,2),Holidays!$E$3:$H$9,4,FALSE)))))","v":"0:00"},0,"0:00",0,"0:00",1]
["2025-09-17",null,null,null,null,1,{"$f":"IF(ISERROR(VLOOKUP($E22,HolidayType,2,FALSE)),IF(OR(ISBLANK(B22),ISBLANK(C22),ISBLANK(D22)),\"0:00\",C22-(B22+D22)),IF(OR(ISBLANK(B22),ISBLANK(C22),ISBLANK(D22)),IF(VLOOKUP($E22,HolidayType,2,FALSE),IF(VLOOKUP($A22,Holidays,4,FALSE),VLOOKUP(WEEKDAY($A22,2),Holidays!$E$3:$H$9,4,FALSE),\"0:00\"),VLOOKUP(WEEKDAY($A22,2),Holidays!$E$3:$H$9,4,FALSE)),IF(C22-(B22+D22)>VLOOKUP(WEEKDAY($A22,2),Holidays!$E$3:$H$9,4,FALSE),C22-(B22+D22),IF(VLOOKUP($E22,HolidayType,2,FALSE),IF(VLOOKUP($A22,Holidays,4,FALSE),VLOOKUP(WEEKDAY($A22,2),Holidays!$E$3:$H$9,4,FALSE),C22-(B22+D22)),VLOOKUP(WEEKDAY($A22,2),Holidays!$E$3:$H$9,4,FALSE)))))","v":"0:00"},0,"0:00",0,"0:00",1]
["2025-09-18",null,null,null,null,1,{"$f":"IF(ISERROR(VLOOKUP($E23,HolidayType,2,FALSE)),IF(OR(ISBLANK(B23),ISBLANK(C23),ISBLANK(D23)),\"0:00\",C23-(B23+D23)),IF(OR(ISBLANK(B23),ISBLANK(C23),ISBLANK(D23)),IF(VLOOKUP($E23,HolidayType,2,FALSE),IF(VLOOKUP($A23,Holidays,4,FALSE),VLOOKUP(WEEKDAY($A23,2),Holidays!$E$3:$H$9,4,FALSE),\"0:00\"),VLOOKUP(WEEKDAY($A23,2),Holidays!$E$3:$H$9,4,FALSE)),IF(C23-(B23+D23)>VLOOKUP(WEEKDAY($A23,2),Holidays!$E$3:$H$9,4,FALSE),C23-(B23+D23),IF(VLOOKUP($E23,HolidayType,2,FALSE),IF(VLOOKUP($A23,Holidays,4,FALSE),VLOOKUP(WEEKDAY($A23,2),Holidays!$E$3:$H$9,4,FALSE),C23-(B23+D23)),VLOOKUP(WEEKDAY($A23,2),Holidays!$E$3:$H$9,4,FALSE)))))","v":"0:00"},0,"0:00",0,"0:00",1]
["2025-09-19",null,null,null,null,1,{"$f":"IF(ISERROR(VLOOKUP($E24,HolidayType,2,FALSE)),IF(OR(ISBLANK(B24),ISBLANK(C24),ISBLANK(D24)),\"0:00\",C24-(B24+D24)),IF(OR(ISBLANK(B24),ISBLANK(C24),ISBLANK(D24)),IF(VLOOKUP($E24,HolidayType,2,FALSE),IF(VLOOKUP($A24,Holidays,4,FALSE),VLOOKUP(WEEKDAY($A24,2),Holidays!$E$3:$H$9,4,FALSE),\"0:00\"),VLOOKUP(WEEKDAY($A24,2),Holidays!$E$3:$H$9,4,FALSE)),IF(C24-(B24+D24)>VLOOKUP(WEEKDAY($A24,2),Holidays!$E$3:$H$9,4,FALSE),C24-(B24+D24),IF(VLOOKUP($E24,HolidayType,2,FALSE),IF(VLOOKUP($A24,Holidays,4,FALSE),VLOOKUP(WEEKDAY($A24,2),Holidays!$E$3:$H$9,4,FALSE),C24-(B24+D24)),VLOOKUP(WEEKDAY($A24,2),Holidays!$E$3:$H$9,4,FALSE)))))","v":"0:00"},0,"0:00",0,"0:00",1]
["2025-09-20",null,null,null,null,1.5,{"$f":"IF(ISERROR(VLOOKUP($E25,HolidayType,2,FALSE)),IF(OR(ISBLANK(B25),ISBLANK(C25),ISBLANK(D25)),\"0:00\",C25-(B25+D25)),IF(OR(ISBLANK(B25),ISBLANK(C25),ISBLANK(D25)),IF(VLOOKUP($E25,HolidayType,2,FALSE),IF(VLOOKUP($A25,Holidays,4,FALSE),VLOOKUP(WEEKDAY($A25,2),Holidays!$E$3:$H$9,4,FALSE),\"0:00\"),VLOOKUP(WEEKDAY($A25,2),Holidays!$E$3:$H$9,4,FALSE)),IF(C25-(B25+D25)>VLOOKUP(WEEKDAY($A25,2),Holidays!$E$3:$H$9,4,FALSE),C25-(B25+D25),IF(VLOOKUP($E25,HolidayType,2,FALSE),IF(VLOOKUP($A25,Holidays,4,FALSE),VLOOKUP(WEEKDAY($A25,2),Holidays!$E$3:$H$9,4,FALSE),C25-(B25+D25)),VLOOKUP(WEEKDAY($A25,2),Holidays!$E$3:$H$9,4,FALSE)))))","v":"0:00"},0,"0:00",{"$f":"J24+H25","v":0},"0:00",0]
["2025-09-21",null,null,null,null,2,{"$f":"IF(ISERROR(VLOOKUP($E26,HolidayType,2,FALSE)),IF(OR(ISBLANK(B26),ISBLANK(C26),ISBLANK(D26)),\"0:00\",C26-(B26+D26)),IF(OR(ISBLANK(B26),ISBLANK(C26),ISBLANK(D26)),IF(VLOOKUP($E26,HolidayType,2,FALSE),IF(VLOOKUP($A26,Holidays,4,FALSE),VLOOKUP(WEEKDAY($A26,2),Holidays!$E$3:$H$9,4,FALSE),\"0:00\"),VLOOKUP(WEEKDAY($A26,2),Holidays!$E$3:$H$9,4,FALSE)),IF(C26-(B26+D26)>VLOOKUP(WEEKDAY($A26,2),Holidays!$E$3:$H$9,4,FALSE),C26-(B26+D26),IF(VLOOKUP($E26,HolidayType,2,FALSE),IF(VLOOKUP($A26,Holidays,4,FALSE),VLOOKUP(WEEKDAY($A26,2),Holidays!$E$3:$H$9,4,FALSE),C26-(B26+D26)),VLOOKUP(WEEKDAY($A26,2),Holidays!$E$3:$H$9,4,FALSE)))))","v":"0:00"},0,"0:00",{"$f":"J25+H26","v":0},"0:00",0]
["2025-09-22",null,null,null,null,1,{"$f":"IF(ISERROR(VLOOKUP($E27,HolidayType,2,FALSE)),IF(OR(ISBLANK(B27),ISBLANK(C27),ISBLANK(D27)),\"0:00\",C27-(B27+D27)),IF(OR(ISBLANK(B27),ISBLANK(C27),ISBLANK(D27)),IF(VLOOKUP($E27,HolidayType,2,FALSE),IF(VLOOKUP($A27,Holidays,4,FALSE),VLOOKUP(WEEKDAY($A27,2),Holidays!$E$3:$H$9,4,FALSE),\"0:00\"),VLOOKUP(WEEKDAY($A27,2),Holidays!$E$3:$H$9,4,FALSE)),IF(C27-(B27+D27)>VLOOKUP(WEEKDAY($A27,2),Holidays!$E$3:$H$9,4,FALSE),C27-(B27+D27),IF(VLOOKUP($E27,HolidayType,2,FALSE),IF(VLOOKUP($A27,Holidays,4,FALSE),VLOOKUP(WEEKDAY($A27,2),Holidays!$E$3:$H$9,4,FALSE),C27-(B27+D27)),VLOOKUP(WEEKDAY($A27,2),Holidays!$E$3:$H$9,4,FALSE)))))","v":"0:00"},0,"0:00",{"$f":"J26+H27","v":0},"0:00",1]
["2025-09-23",null,null,null,null,1,{"$f":"IF(ISERROR(VLOOKUP($E28,HolidayType,2,FALSE)),IF(OR(ISBLANK(B28),ISBLANK(C28),ISBLANK(D28)),\"0:00\",C28-(B28+D28)),IF(OR(ISBLANK(B28),ISBLANK(C28),ISBLANK(D28)),IF(VLOOKUP($E28,HolidayType,2,FALSE),IF(VLOOKUP($A28,Holidays,4,FALSE),VLOOKUP(WEEKDAY($A28,2),Holidays!$E$3:$H$9,4,FALSE),\"0:00\"),VLOOKUP(WEEKDAY($A28,2),Holidays!$E$3:$H$9,4,FALSE)),IF(C28-(B28+D28)>VLOOKUP(WEEKDAY($A28,2),Holidays!$E$3:$H$9,4,FALSE),C28-(B28+D28),IF(VLOOKUP($E28,HolidayType,2,FALSE),IF(VLOOKUP($A28,Holidays,4,FALSE),VLOOKUP(WEEKDAY($A28,2),Holidays!$E$3:$H$9,4,FALSE),C28-(B28+D28)),VLOOKUP(WEEKDAY($A28,2),Holidays!$E$3:$H$9,4,FALSE)))))","v":"0:00"},0,"0:00",0,"0:00",1]
["2025-09-24",null,null,null,null,1,{"$f":"IF(ISERROR(VLOOKUP($E29,HolidayType,2,FALSE)),IF(OR(ISBLANK(B29),ISBLANK(C29),ISBLANK(D29)),\"0:00\",C29-(B29+D29)),IF(OR(ISBLANK(B29),ISBLANK(C29),ISBLANK(D29)),IF(VLOOKUP($E29,HolidayType,2,FALSE),IF(VLOOKUP($A29,Holidays,4,FALSE),VLOOKUP(WEEKDAY($A29,2),Holidays!$E$3:$H$9,4,FALSE),\"0:00\"),VLOOKUP(WEEKDAY($A29,2),Holidays!$E$3:$H$9,4,FALSE)),IF(C29-(B29+D29)>VLOOKUP(WEEKDAY($A29,2),Holidays!$E$3:$H$9,4,FALSE),C29-(B29+D29),IF(VLOOKUP($E29,HolidayType,2,FALSE),IF(VLOOKUP($A29,Holidays,4,FALSE),VLOOKUP(WEEKDAY($A29,2),Holidays!$E$3:$H$9,4,FALSE),C29-(B29+D29)),VLOOKUP(WEEKDAY($A29,2),Holidays!$E$3:$H$9,4,FALSE)))))","v":"0:00"},0,"0:00",0,"0:00",1]
["2025-09-25",null,null,null,{"$f":"IF(ISERROR(VLOOKUP($A30,Holidays,2,FALSE)),\"\",VLOOKUP($A30,Holidays,2,0))","v":""},1,{"$f":"IF(ISERROR(VLOOKUP($E30,HolidayType,2,FALSE)),IF(OR(ISBLANK(B30),ISBLANK(C30),ISBLANK(D30)),\"0:00\",C30-(B30+D30)),IF(OR(ISBLANK(B30),ISBLANK(C30),ISBLANK(D30)),IF(VLOOKUP($E30,HolidayType,2,FALSE),IF(VLOOKUP($A30,Holidays,4,FALSE),VLOOKUP(WEEKDAY($A30,2),Holidays!$E$3:$H$9,4,FALSE),\"0:00\"),VLOOKUP(WEEKDAY($A30,2),Holidays!$E$3:$H$9,4,FALSE)),IF(C30-(B30+D30)>VLOOKUP(WEEKDAY($A30,2),Holidays!$E$3:$H$9,4,FALSE),C30-(B30+D30),IF(VLOOKUP($E30,HolidayType,2,FALSE),IF(VLOOKUP($A30,Holidays,4,FALSE),VLOOKUP(WEEKDAY($A30,2),Holidays!$E$3:$H$9,4,FALSE),C30-(B30+D30)),VLOOKUP(WEEKDAY($A30,2),Holidays!$E$3:$H$9,4,FALSE)))))","v":"0:00"},0,"0:00",0,"0:00",1]
["2025-09-26",null,null,null,"",1,{"$f":"IF(ISERROR(VLOOKUP($E31,HolidayType,2,FALSE)),IF(OR(ISBLANK(B31),ISBLANK(C31),ISBLANK(D31)),\"0:00\",C31-(B31+D31)),IF(OR(ISBLANK(B31),ISBLANK(C31),ISBLANK(D31)),IF(VLOOKUP($E31,HolidayType,2,FALSE),IF(VLOOKUP($A31,Holidays,4,FALSE),VLOOKUP(WEEKDAY($A31,2),Holidays!$E$3:$H$9,4,FALSE),\"0:00\"),VLOOKUP(WEEKDAY($A31,2),Holidays!$E$3:$H$9,4,FALSE)),IF(C31-(B31+D31)>VLOOKUP(WEEKDAY($A31,2),Holidays!$E$3:$H$9,4,FALSE),C31-(B31+D31),IF(VLOOKUP($E31,HolidayType,2,FALSE),IF(VLOOKUP($A31,Holidays,4,FALSE),VLOOKUP(WEEKDAY($A31,2),Holidays!$E$3:$H$9,4,FALSE),C31-(B31+D31)),VLOOKUP(WEEKDAY($A31,2),Holidays!$E$3:$H$9,4,FALSE)))))","v":"0:00"},0,"0:00",0,"0:00",1]
["2025-09-27",null,null,null,"",1.5,{"$f":"IF(ISERROR(VLOOKUP($E32,HolidayType,2,FALSE)),IF(OR(ISBLANK(B32),ISBLANK(C32),ISBLANK(D32)),\"0:00\",C32-(B32+D32)),IF(OR(ISBLANK(B32),ISBLANK(C32),ISBLANK(D32)),IF(VLOOKUP($E32,HolidayType,2,FALSE),IF(VLOOKUP($A32,Holidays,4,FALSE),VLOOKUP(WEEKDAY($A32,2),Holidays!$E$3:$H$9,4,FALSE),\"0:00\"),VLOOKUP(WEEKDAY($A32,2),Holidays!$E$3:$H$9,4,FALSE)),IF(C32-(B32+D32)>VLOOKUP(WEEKDAY($A32,2),Holidays!$E$3:$H$9,4,FALSE),C32-(B32+D32),IF(VLOOKUP($E32,HolidayType,2,FALSE),IF(VLOOKUP($A32,Holidays,4,FALSE),VLOOKUP(WEEKDAY($A32,2),Holidays!$E$3:$H$9,4,FALSE),C32-(B32+D32)),VLOOKUP(WEEKDAY($A32,2),Holidays!$E$3:$H$9,4,FALSE)))))","v":"0:00"},0,"0:00",{"$f":"J31+H32","v":0},"0:00",0]
["2025-09-28",null,null,null,"",2,{"$f":"IF(ISERROR(VLOOKUP($E33,HolidayType,2,FALSE)),IF(OR(ISBLANK(B33),ISBLANK(C33),ISBLANK(D33)),\"0:00\",C33-(B33+D33)),IF(OR(ISBLANK(B33),ISBLANK(C33),ISBLANK(D33)),IF(VLOOKUP($E33,HolidayType,2,FALSE),IF(VLOOKUP($A33,Holidays,4,FALSE),VLOOKUP(WEEKDAY($A33,2),Holidays!$E$3:$H$9,4,FALSE),\"0:00\"),VLOOKUP(WEEKDAY($A33,2),Holidays!$E$3:$H$9,4,FALSE)),IF(C33-(B33+D33)>VLOOKUP(WEEKDAY($A33,2),Holidays!$E$3:$H$9,4,FALSE),C33-(B33+D33),IF(VLOOKUP($E33,HolidayType,2,FALSE),IF(VLOOKUP($A33,Holidays,4,FALSE),VLOOKUP(WEEKDAY($A33,2),Holidays!$E$3:$H$9,4,FALSE),C33-(B33+D33)),VLOOKUP(WEEKDAY($A33,2),Holidays!$E$3:$H$9,4,FALSE)))))","v":"0:00"},0,"0:00",{"$f":"J32+H33","v":0},"0:00",0]
["2025-09-29",null,null,null,"",1,{"$f":"IF(ISERROR(VLOOKUP($E34,HolidayType,2,FALSE)),IF(OR(ISBLANK(B34),ISBLANK(C34),ISBLANK(D34)),\"0:00\",C34-(B34+D34)),IF(OR(ISBLANK(B34),ISBLANK(C34),ISBLANK(D34)),IF(VLOOKUP($E34,HolidayType,2,FALSE),IF(VLOOKUP($A34,Holidays,4,FALSE),VLOOKUP(WEEKDAY($A34,2),Holidays!$E$3:$H$9,4,FALSE),\"0:00\"),VLOOKUP(WEEKDAY($A34,2),Holidays!$E$3:$H$9,4,FALSE)),IF(C34-(B34+D34)>VLOOKUP(WEEKDAY($A34,2),Holidays!$E$3:$H$9,4,FALSE),C34-(B34+D34),IF(VLOOKUP($E34,HolidayType,2,FALSE),IF(VLOOKUP($A34,Holidays,4,FALSE),VLOOKUP(WEEKDAY($A34,2),Holidays!$E$3:$H$9,4,FALSE),C34-(B34+D34)),VLOOKUP(WEEKDAY($A34,2),Holidays!$E$3:$H$9,4,FALSE)))))","v":"0:00"},0,"0:00",{"$f":"J31+H34","v":0},"0:00",1]
["2025-09-30",null,null,null,"",1,{"$f":"IF(ISERROR(VLOOKUP($E35,HolidayType,2,FALSE)),IF(OR(ISBLANK(B35),ISBLANK(C35),ISBLANK(D35)),\"0:00\",C35-(B35+D35)),IF(OR(ISBLANK(B35),ISBLANK(C35),ISBLANK(D35)),IF(VLOOKUP($E35,HolidayType,2,FALSE),IF(VLOOKUP($A35,Holidays,4,FALSE),VLOOKUP(WEEKDAY($A35,2),Holidays!$E$3:$H$9,4,FALSE),\"0:00\"),VLOOKUP(WEEKDAY($A35,2),Holidays!$E$3:$H$9,4,FALSE)),IF(C35-(B35+D35)>VLOOKUP(WEEKDAY($A35,2),Holidays!$E$3:$H$9,4,FALSE),C35-(B35+D35),IF(VLOOKUP($E35,HolidayType,2,FALSE),IF(VLOOKUP($A35,Holidays,4,FALSE),VLOOKUP(WEEKDAY($A35,2),Holidays!$E$3:$H$9,4,FALSE),C35-(B35+D35)),VLOOKUP(WEEKDAY($A35,2),Holidays!$E$3:$H$9,4,FALSE)))))","v":"0:00"},0,"0:00",0,"0:00",1]
["2025-10-01",null,null,null,"",1,{"$f":"IF(ISERROR(VLOOKUP($E36,HolidayType,2,FALSE)),IF(OR(ISBLANK(B36),ISBLANK(C36),ISBLANK(D36)),\"0:00\",C36-(B36+D36)),IF(OR(ISBLANK(B36),ISBLANK(C36),ISBLANK(D36)),IF(VLOOKUP($E36,HolidayType,2,FALSE),IF(VLOOKUP($A36,Holidays,4,FALSE),VLOOKUP(WEEKDAY($A36,2),Holidays!$E$3:$H$9,4,FALSE),\"0:00\"),VLOOKUP(WEEKDAY($A36,2),Holidays!$E$3:$H$9,4,FALSE)),IF(C36-(B36+D36)>VLOOKUP(WEEKDAY($A36,2),Holidays!$E$3:$H$9,4,FALSE),C36-(B36+D36),IF(VLOOKUP($E36,HolidayType,2,FALSE),IF(VLOOKUP($A36,Holidays,4,FALSE),VLOOKUP(WEEKDAY($A36,2),Holidays!$E$3:$H$9,4,FALSE),C36-(B36+D36)),VLOOKUP(WEEKDAY($A36,2),Holidays!$E$3:$H$9,4,FALSE)))))","v":"0:00"},0,"0:00",0,"0:00",1]
["2025-10-02",null,null,null,"",1,{"$f":"IF(ISERROR(VLOOKUP($E37,HolidayType,2,FALSE)),IF(OR(ISBLANK(B37),ISBLANK(C37),ISBLANK(D37)),\"0:00\",C37-(B37+D37)),IF(OR(ISBLANK(B37),ISBLANK(C37),ISBLANK(D37)),IF(VLOOKUP($E37,HolidayType,2,FALSE),IF(VLOOKUP($A37,Holidays,4,FALSE),VLOOKUP(WEEKDAY($A37,2),Holidays!$E$3:$H$9,4,FALSE),\"0:00\"),VLOOKUP(WEEKDAY($A37,2),Holidays!$E$3:$H$9,4,FALSE)),IF(C37-(B37+D37)>VLOOKUP(WEEKDAY($A37,2),Holidays!$E$3:$H$9,4,FALSE),C37-(B37+D37),IF(VLOOKUP($E37,HolidayType,2,FALSE),IF(VLOOKUP($A37,Holidays,4,FALSE),VLOOKUP(WEEKDAY($A37,2),Holidays!$E$3:$H$9,4,FALSE),C37-(B37+D37)),VLOOKUP(WEEKDAY($A37,2),Holidays!$E$3:$H$9,4,FALSE)))))","v":"0:00"},0,"0:00",0,"0:00",1]
["2025-10-03",null,null,null,"",1,{"$f":"IF(ISERROR(VLOOKUP($E38,HolidayType,2,FALSE)),IF(OR(ISBLANK(B38),ISBLANK(C38),ISBLANK(D38)),\"0:00\",C38-(B38+D38)),IF(OR(ISBLANK(B38),ISBLANK(C38),ISBLANK(D38)),IF(VLOOKUP($E38,HolidayType,2,FALSE),IF(VLOOKUP($A38,Holidays,4,FALSE),VLOOKUP(WEEKDAY($A38,2),Holidays!$E$3:$H$9,4,FALSE),\"0:00\"),VLOOKUP(WEEKDAY($A38,2),Holidays!$E$3:$H$9,4,FALSE)),IF(C38-(B38+D38)>VLOOKUP(WEEKDAY($A38,2),Holidays!$E$3:$H$9,4,FALSE),C38-(B38+D38),IF(VLOOKUP($E38,HolidayType,2,FALSE),IF(VLOOKUP($A38,Holidays,4,FALSE),VLOOKUP(WEEKDAY($A38,2),Holidays!$E$3:$H$9,4,FALSE),C38-(B38+D38)),VLOOKUP(WEEKDAY($A38,2),Holidays!$E$3:$H$9,4,FALSE)))))","v":"0:00"},0,"0:00",0,"0:00",1]
["2025-10-04",null,null,null,"",1.5,{"$f":"IF(ISERROR(VLOOKUP($E39,HolidayType,2,FALSE)),IF(OR(ISBLANK(B39),ISBLANK(C39),ISBLANK(D39)),\"0:00\",C39-(B39+D39)),IF(OR(ISBLANK(B39),ISBLANK(C39),ISBLANK(D39)),IF(VLOOKUP($E39,HolidayType,2,FALSE),IF(VLOOKUP($A39,Holidays,4,FALSE),VLOOKUP(WEEKDAY($A39,2),Holidays!$E$3:$H$9,4,FALSE),\"0:00\"),VLOOKUP(WEEKDAY($A39,2),Holidays!$E$3:$H$9,4,FALSE)),IF(C39-(B39+D39)>VLOOKUP(WEEKDAY($A39,2),Holidays!$E$3:$H$9,4,FALSE),C39-(B39+D39),IF(VLOOKUP($E39,HolidayType,2,FALSE),IF(VLOOKUP($A39,Holidays,4,FALSE),VLOOKUP(WEEKDAY($A39,2),Holidays!$E$3:$H$9,4,FALSE),C39-(B39+D39)),VLOOKUP(WEEKDAY($A39,2),Holidays!$E$3:$H$9,4,FALSE)))))","v":"0:00"},0,"0:00",0,"0:00",0]
["2025-10-05",null,null,null,"",2,{"$f":"IF(ISERROR(VLOOKUP($E40,HolidayType,2,FALSE)),IF(OR(ISBLANK(B40),ISBLANK(C40),ISBLANK(D40)),\"0:00\",C40-(B40+D40)),IF(OR(ISBLANK(B40),ISBLANK(C40),ISBLANK(D40)),IF(VLOOKUP($E40,HolidayType,2,FALSE),IF(VLOOKUP($A40,Holidays,4,FALSE),VLOOKUP(WEEKDAY($A40,2),Holidays!$E$3:$H$9,4,FALSE),\"0:00\"),VLOOKUP(WEEKDAY($A40,2),Holidays!$E$3:$H$9,4,FALSE)),IF(C40-(B40+D40)>VLOOKUP(WEEKDAY($A40,2),Holidays!$E$3:$H$9,4,FALSE),C40-(B40+D40),IF(VLOOKUP($E40,HolidayType,2,FALSE),IF(VLOOKUP($A40,Holidays,4,FALSE),VLOOKUP(WEEKDAY($A40,2),Holidays!$E$3:$H$9,4,FALSE),C40-(B40+D40)),VLOOKUP(WEEKDAY($A40,2),Holidays!$E$3:$H$9,4,FALSE)))))","v":"0:00"},0,"0:00",{"$f":"J39+H40","v":0},"0:00",0]
[null,null,null,null,null,null,null,null,null,null,null,{"$f":"SUM(L13:L40)","v":20}]
[null,null,null,null,"Total ordinary hours for accounting period",null,{"$f":"CONCATENATE(TRUNC(INT(ABS(J42))),\":\",TEXT(ABS(ABS(J42)-TRUNC(INT(ABS(J42))))*60,\"00\"))","v":"140:00"},null,null,{"$f":"J10*4","v":140}]
[null,null,null,null,"Total actual hours worked in accounting period",null,{"$f":"CONCATENATE(TRUNC(INT(ABS(J43))),\":\",TEXT(ABS(ABS(J43)-TRUNC(INT(ABS(J43))))*60,\"00\"))","v":"0:00"},null,null,{"$f":"J40","v":0}]
[null,null,null,null,"Difference",null,{"$f":"CONCATENATE(TRUNC(INT(ABS(J44))),\":\",TEXT(ABS(ABS(J44)-TRUNC(INT(ABS(J44))))*60,\"00\"))","v":"140:00"},null,{"$f":"IF(J44<0,\"Debit\",IF(J44=0,\"\",\"Credit\"))","v":"Debit"},{"$f":"ROUND(J43-J42,2)","v":-140}]
[null,null,null,null,"If applicable, carry over from previous period",null,"0:00",null,"Credit",{"$f":"IF(I45=\"Debit\",0-(LEFT(G45,FIND(\":\",G45)-1)+RIGHT(G45,2)/60),LEFT(G45,FIND(\":\",G45)-1)+RIGHT(G45,2)/60)","v":0}]
[null,null,null,null,"Carry over to following period",null,{"$f":"CONCATENATE(TRUNC(INT(ABS(J46))),\":\",TEXT(ABS(ABS(J46)-TRUNC(INT(ABS(J46))))*60,\"00\"))","v":"140:00"},null,{"$f":"IF(J46<0,\"Debit\",IF(J46=0,\"\",\"Credit\"))","v":"Debit"},{"$f":"ROUND(J44+J45,2)","v":-140}]
[]
[null,null,null,null,"Future flex leave bookings",null,"0:00",null,null,{"$f":"IF(I48=\"Debit\",0-(LEFT(G48,FIND(\":\",G48)-1)+RIGHT(G48,2)/60),LEFT(G48,FIND(\":\",G48)-1)+RIGHT(G48,2)/60)","v":0}]
[null,null,null,null,"Remaining",null,{"$f":"CONCATENATE(TRUNC(INT(ABS(J49))),\":\",TEXT(ABS(ABS(J49)-TRUNC(INT(ABS(J49))))*60,\"00\"))","v":"140:00"},null,{"$f":"IF(J49<0,\"Debit\",IF(J49=0,\"\",\"Credit\"))","v":"Debit"},{"$f":"J46-J48","v":-140}]
[]
[]
[]
["Signature",null,null,null,"Certified Correct"]
[null,"(Employee)",null,null,null,"(Supervisor)"]
[]
["Completed timesheets shall be authorised as correct by the supervisor and filed as an auditable document for 7yrs"]
[]
[]
["INSERT Comments/Leave below:"]
["Albury"]
["Annual Leave"]
["Carers Leave"]
["Concessional Half Day"]
["Dubbo"]
["Exam"]
["Flexi Day"]
["Goulburn"]
["Leave Without Pay"]
["Long Service Leave"]
["Maternity Leave"]
["Public Holiday"]
["Purchased Leave"]
["Sick Leave"]
["Special Leave"]
["Study Leave"]
["Training"]
["Wagga Wagga"]
["Working @ home"]

{"sheet":"Flexi Timesheet (11)","index":12,"n_rows":78,"n_cols":12,"rows_kept":78,"cut":false,"hidden":false,"merged":[[65,0,65,1],[7,2,7,4],[8,2,8,4],[52,1,52,2],[52,5,52,10],[53,1,53,2],[53,5,53,10],[59,0,59,1],[60,0,60,1],[62,0,62,1],[63,0,63,1],[64,0,64,1],[73,0,73,1],[77,0,77,1],[79,0,79,1],[66,0,66,1],[67,0,67,1],[68,0,68,1],[69,0,69,1],[70,0,70,1],[72,0,72,1]]}
[null,null,null,null,null,null,null,null,null,null,"Flexible Working Hours Scheme"]
[null,null,null,null,null,null,null,null,null,null,"2025 Flexi-Timesheet"]
[]
[]
[]
[]
[]
[null,"Name:"]
[null,"Team:",null,null,null,null,null,null,"Hours per Day",{"$f":"HOUR(K9)+MINUTE(K9)/60","v":7},"07:00:00","Don't override cell, click into cell and change time to equal your hours. i.e. 7 hours = 7:00am"]
[null,"Accounting Period:","2025-10-06",{"$f":"CONCATENATE(\" to \",TEXT(C10+27,\"dd-mmm-yyyy\"))","v":" to 02-Nov-2025"},null,null,null,null,"Days per Week",{"$f":"J9*K10","v":35},5]
[null,null,null,null,{"$f":"IF(ISERROR(VLOOKUP($A11,Holidays,2,FALSE)),\"\",VLOOKUP($A11,Holidays,2,0))","v":""},null,null,null,"Work Days",null,"Mo, Tu, We, Th, Fr"]
["Date","Start Time","Finish Time","Unpaid Breaks","Comments/Leave","Rate","Elapsed Time","Decimal Hours","Total Hours","Cum. Dec.","Cumulative Total"]
[{"$f":"C10","v":"2025-10-06"},null,null,null,"Public Holiday",1,{"$f":"IF(ISERROR(VLOOKUP($E13,HolidayType,2,FALSE)),IF(OR(ISBLANK(B13),ISBLANK(C13),ISBLANK(D13)),\"0:00\",C13-(B13+D13)),IF(OR(ISBLANK(B13),ISBLANK(C13),ISBLANK(D13)),IF(VLOOKUP($E13,HolidayType,2,FALSE),IF(VLOOKUP($A13,Holidays,4,FALSE),VLOOKUP(WEEKDAY($A13,2),Holidays!$E$3:$H$9,4,FALSE),\"0:00\"),VLOOKUP(WEEKDAY($A13,2),Holidays!$E$3:$H$9,4,FALSE)),IF(C13-(B13+D13)>VLOOKUP(WEEKDAY($A13,2),Holidays!$E$3:$H$9,4,FALSE),C13-(B13+D13),IF(VLOOKUP($E13,HolidayType,2,FALSE),IF(VLOOKUP($A13,Holidays,4,FALSE),VLOOKUP(WEEKDAY($A13,2),Holidays!$E$3:$H$9,4,FALSE),C13-(B13+D13)),VLOOKUP(WEEKDAY($A13,2),Holidays!$E$3:$H$9,4,FALSE)))))","v":"07:00:00"},{"$f":"((HOUR(G13)+MINUTE(G13)/60))*F13","v":7},{"$f":"CONCATENATE(TRUNC(INT(H13)),\":\",TEXT((H13-TRUNC(INT(H13)))*60,\"00\"))","v":"7:00"},{"$f":"H13","v":7},{"$f":"CONCATENATE(TRUNC(INT(J13)),\":\",TEXT((J13-TRUNC(INT(J13)))*60,\"00\"))","v":"7:00"},{"$f":"IF(WEEKDAY(A13,2)<6,IF(F13<>0,1,0),0)","v":1}]
[{"$f":"A13+1","v":"2025-10-07"},null,null,null,null,1,{"$f":"IF(ISERROR(VLOOKUP($E14,HolidayType,2,FALSE)),IF(OR(ISBLANK(B14),ISBLANK(C14),ISBLANK(D14)),\"0:00\",C14-(B14+D14)),IF(OR(ISBLANK(B14),ISBLANK(C14),ISBLANK(D14)),IF(VLOOKUP($E14,HolidayType,2,FALSE),IF(VLOOKUP($A14,Holidays,4,FALSE),VLOOKUP(WEEKDAY($A14,2),Holidays!$E$3:$H$9,4,FALSE),\"0:00\"),VLOOKUP(WEEKDAY($A14,2),Holidays!$E$3:$H$9,4,FALSE)),IF(C14-(B14+D14)>VLOOKUP(WEEKDAY($A14,2),Holidays!$E$3:$H$9,4,FALSE),C14-(B14+D14),IF(VLOOKUP($E14,HolidayType,2,FALSE),IF(VLOOKUP($A14,Holidays,4,FALSE),VLOOKUP(WEEKDAY($A14,2),Holidays!$E$3:$H$9,4,FALSE),C14-(B14+D14)),VLOOKUP(WEEKDAY($A14,2),Holidays!$E$3:$H$9,4,FALSE)))))","v":"0:00"},0,{"$f":"CONCATENATE(TRUNC(INT(H14)),\":\",TEXT((H14-TRUNC(INT(H14)))*60,\"00\"))","v":"0:00"},{"$f":"J13+H14","v":7},{"$f":"CONCATENATE(TRUNC(INT(J14)),\":\",TEXT((J14-TRUNC(INT(J14)))*60,\"00\"))","v":"7:00"},1]
["2025-10-08",null,null,null,null,1,{"$f":"IF(ISERROR(VLOOKUP($E15,HolidayType,2,FALSE)),IF(OR(ISBLANK(B15),ISBLANK(C15),ISBLANK(D15)),\"0:00\",C15-(B15+D15)),IF(OR(ISBLANK(B15),ISBLANK(C15),ISBLANK(D15)),IF(VLOOKUP($E15,HolidayType,2,FALSE),IF(VLOOKUP($A15,Holidays,4,FALSE),VLOOKUP(WEEKDAY($A15,2),Holidays!$E$3:$H$9,4,FALSE),\"0:00\"),VLOOKUP(WEEKDAY($A15,2),Holidays!$E$3:$H$9,4,FALSE)),IF(C15-(B15+D15)>VLOOKUP(WEEKDAY($A15,2),Holidays!$E$3:$H$9,4,FALSE),C15-(B15+D15),IF(VLOOKUP($E15,HolidayType,2,FALSE),IF(VLOOKUP($A15,Holidays,4,FALSE),VLOOKUP(WEEKDAY($A15,2),Holidays!$E$3:$H$9,4,FALSE),C15-(B15+D15)),VLOOKUP(WEEKDAY($A15,2),Holidays!$E$3:$H$9,4,FALSE)))))","v":"0:00"},0,"0:00",{"$f":"J14+H15","v":7},"7:00",1]
["2025-10-09",null,null,null,null,1,{"$f":"IF(ISERROR(VLOOKUP($E16,HolidayType,2,FALSE)),IF(OR(ISBLANK(B16),ISBLANK(C16),ISBLANK(D16)),\"0:00\",C16-(B16+D16)),IF(OR(ISBLANK(B16),ISBLANK(C16),ISBLANK(D16)),IF(VLOOKUP($E16,HolidayType,2,FALSE),IF(VLOOKUP($A16,Holidays,4,FALSE),VLOOKUP(WEEKDAY($A16,2),Holidays!$E$3:$H$9,4,FALSE),\"0:00\"),VLOOKUP(WEEKDAY($A16,2),Holidays!$E$3:$H$9,4,FALSE)),IF(C16-(B16+D16)>VLOOKUP(WEEKDAY($A16,2),Holidays!$E$3:$H$9,4,FALSE),C16-(B16+D16),IF(VLOOKUP($E16,HolidayType,2,FALSE),IF(VLOOKUP($A16,Holidays,4,FALSE),VLOOKUP(WEEKDAY($A16,2),Holidays!$E$3:$H$9,4,FALSE),C16-(B16+D16)),VLOOKUP(WEEKDAY($A16,2),Holidays!$E$3:$H$9,4,FALSE)))))","v":"0:00"},0,"0:00",7,"7:00",1]
["2025-10-10",null,null,null,null,1,{"$f":"IF(ISERROR(VLOOKUP($E17,HolidayType,2,FALSE)),IF(OR(ISBLANK(B17),ISBLANK(C17),ISBLANK(D17)),\"0:00\",C17-(B17+D17)),IF(OR(ISBLANK(B17),ISBLANK(C17),ISBLANK(D17)),IF(VLOOKUP($E17,HolidayType,2,FALSE),IF(VLOOKUP($A17,Holidays,4,FALSE),VLOOKUP(WEEKDAY($A17,2),Holidays!$E$3:$H$9,4,FALSE),\"0:00\"),VLOOKUP(WEEKDAY($A17,2),Holidays!$E$3:$H$9,4,FALSE)),IF(C17-(B17+D17)>VLOOKUP(WEEKDAY($A17,2),Holidays!$E$3:$H$9,4,FALSE),C17-(B17+D17),IF(VLOOKUP($E17,HolidayType,2,FALSE),IF(VLOOKUP($A17,Holidays,4,FALSE),VLOOKUP(WEEKDAY($A17,2),Holidays!$E$3:$H$9,4,FALSE),C17-(B17+D17)),VLOOKUP(WEEKDAY($A17,2),Holidays!$E$3:$H$9,4,FALSE)))))","v":"0:00"},0,"0:00",7,"7:00",1]
["2025-10-11",null,null,null,{"$f":"IF(ISERROR(VLOOKUP($A18,Holidays,2,FALSE)),\"\",VLOOKUP($A18,Holidays,2,0))","v":""},1.5,{"$f":"IF(ISERROR(VLOOKUP($E18,HolidayType,2,FALSE)),IF(OR(ISBLANK(B18),ISBLANK(C18),ISBLANK(D18)),\"0:00\",C18-(B18+D18)),IF(OR(ISBLANK(B18),ISBLANK(C18),ISBLANK(D18)),IF(VLOOKUP($E18,HolidayType,2,FALSE),IF(VLOOKUP($A18,Holidays,4,FALSE),VLOOKUP(WEEKDAY($A18,2),Holidays!$E$3:$H$9,4,FALSE),\"0:00\"),VLOOKUP(WEEKDAY($A18,2),Holidays!$E$3:$H$9,4,FALSE)),IF(C18-(B18+D18)>VLOOKUP(WEEKDAY($A18,2),Holidays!$E$3:$H$9,4,FALSE),C18-(B18+D18),IF(VLOOKUP($E18,HolidayType,2,FALSE),IF(VLOOKUP($A18,Holidays,4,FALSE),VLOOKUP(WEEKDAY($A18,2),Holidays!$E$3:$H$9,4,FALSE),C18-(B18+D18)),VLOOKUP(WEEKDAY($A18,2),Holidays!$E$3:$H$9,4,FALSE)))))","v":"0:00"},0,"0:00",7,"7:00",0]
["2025-10-12",null,null,null,{"$f":"IF(ISERROR(VLOOKUP($A19,Holidays,2,FALSE)),\"\",VLOOKUP($A19,Holidays,2,0))","v":""},2,{"$f":"IF(ISERROR(VLOOKUP($E19,HolidayType,2,FALSE)),IF(OR(ISBLANK(B19),ISBLANK(C19),ISBLANK(D19)),\"0:00\",C19-(B19+D19)),IF(OR(ISBLANK(B19),ISBLANK(C19),ISBLANK(D19)),IF(VLOOKUP($E19,HolidayType,2,FALSE),IF(VLOOKUP($A19,Holidays,4,FALSE),VLOOKUP(WEEKDAY($A19,2),Holidays!$E$3:$H$9,4,FALSE),\"0:00\"),VLOOKUP(WEEKDAY($A19,2),Holidays!$E$3:$H$9,4,FALSE)),IF(C19-(B19+D19)>VLOOKUP(WEEKDAY($A19,2),Holidays!$E$3:$H$9,4,FALSE),C19-(B19+D19),IF(VLOOKUP($E19,HolidayType,2,FALSE),IF(VLOOKUP($A19,Holidays,4,FALSE),VLOOKUP(WEEKDAY($A19,2),Holidays!$E$3:$H$9,4,FALSE),C19-(B19+D19)),VLOOKUP(WEEKDAY($A19,2),Holidays!$E$3:$H$9,4,FALSE)))))","v":"0:00"},0,"0:00",{"$f":"J18+H19","v":7},"7:00",0]
["2025-10-13",null,null,null,null,1,{"$f":"IF(ISERROR(VLOOKUP($E20,HolidayType,2,FALSE)),IF(OR(ISBLANK(B20),ISBLANK(C20),ISBLANK(D20)),\"0:00\",C20-(B20+D20)),IF(OR(ISBLANK(B20),ISBLANK(C20),ISBLANK(D20)),IF(VLOOKUP($E20,HolidayType,2,FALSE),IF(VLOOKUP($A20,Holidays,4,FALSE),VLOOKUP(WEEKDAY($A20,2),Holidays!$E$3:$H$9,4,FALSE),\"0:00\"),VLOOKUP(WEEKDAY($A20,2),Holidays!$E$3:$H$9,4,FALSE)),IF(C20-(B20+D20)>VLOOKUP(WEEKDAY($A20,2),Holidays!$E$3:$H$9,4,FALSE),C20-(B20+D20),IF(VLOOKUP($E20,HolidayType,2,FALSE),IF(VLOOKUP($A20,Holidays,4,FALSE),VLOOKUP(WEEKDAY($A20,2),Holidays!$E$3:$H$9,4,FALSE),C20-(B20+D20)),VLOOKUP(WEEKDAY($A20,2),Holidays!$E$3:$H$9,4,FALSE)))))","v":"0:00"},0,"0:00",{"$f":"J19+H20","v":7},"7:00",1]
["2025-10-14",null,null,null,null,1,{"$f":"IF(ISERROR(VLOOKUP($E21,HolidayType,2,FALSE)),IF(OR(ISBLANK(B21),ISBLANK(C21),ISBLANK(D21)),\"0:00\",C21-(B21+D21)),IF(OR(ISBLANK(B21),ISBLANK(C21),ISBLANK(D21)),IF(VLOOKUP($E21,HolidayType,2,FALSE),IF(VLOOKUP($A21,Holidays,4,FALSE),VLOOKUP(WEEKDAY($A21,2),Holidays!$E$3:$H$9,4,FALSE),\"0:00\"),VLOOKUP(WEEKDAY($A21,2),Holidays!$E$3:$H$9,4,FALSE)),IF(C21-(B21+D21)>VLOOKUP(WEEKDAY($A21,2),Holidays!$E$3:$H$9,4,FALSE),C21-(B21+D21),IF(VLOOKUP($E21,HolidayType,2,FALSE),IF(VLOOKUP($A21,Holidays,4,FALSE),VLOOKUP(WEEKDAY($A21,2),Holidays!$E$3:$H$9,4,FALSE),C21-(B21+D21)),VLOOKUP(WEEKDAY($A21,2),Holidays!$E$3:$H$9,4,FALSE)))))","v":"0:00"},0,"0:00",7,"7:00",1]
["2025-10-15",null,null,null,null,1,{"$f":"IF(ISERROR(VLOOKUP($E22,HolidayType,2,FALSE)),IF(OR(ISBLANK(B22),ISBLANK(C22),ISBLANK(D22)),\"0:00\",C22-(B22+D22)),IF(OR(ISBLANK(B22),ISBLANK(C22),ISBLANK(D22)),IF(VLOOKUP($E22,HolidayType,2,FALSE),IF(VLOOKUP($A22,Holidays,4,FALSE),VLOOKUP(WEEKDAY($A22,2),Holidays!$E$3:$H$9,4,FALSE),\"0:00\"),VLOOKUP(WEEKDAY($A22,2),Holidays!$E$3:$H$9,4,FALSE)),IF(C22-(B22+D22)>VLOOKUP(WEEKDAY($A22,2),Holidays!$E$3:$H$9,4,FALSE),C22-(B22+D22),IF(VLOOKUP($E22,HolidayType,2,FALSE),IF(VLOOKUP($A22,Holidays,4,FALSE),VLOOKUP(WEEKDAY($A22,2),Holidays!$E$3:$H$9,4,FALSE),C22-(B22+D22)),VLOOKUP(WEEKDAY($A22,2),Holidays!$E$3:$H$9,4,FALSE)))))","v":"0:00"},0,"0:00",7,"7:00",1]
["2025-10-16",null,null,null,null,1,{"$f":"IF(ISERROR(VLOOKUP($E23,HolidayType,2,FALSE)),IF(OR(ISBLANK(B23),ISBLANK(C23),ISBLANK(D23)),\"0:00\",C23-(B23+D23)),IF(OR(ISBLANK(B23),ISBLANK(C23),ISBLANK(D23)),IF(VLOOKUP($E23,HolidayType,2,FALSE),IF(VLOOKUP($A23,Holidays,4,FALSE),VLOOKUP(WEEKDAY($A23,2),Holidays!$E$3:$H$9,4,FALSE),\"0:00\"),VLOOKUP(WEEKDAY($A23,2),Holidays!$E$3:$H$9,4,FALSE)),IF(C23-(B23+D23)>VLOOKUP(WEEKDAY($A23,2),Holidays!$E$3:$H$9,4,FALSE),C23-(B23+D23),IF(VLOOKUP($E23,HolidayType,2,FALSE),IF(VLOOKUP($A23,Holidays,4,FALSE),VLOOKUP(WEEKDAY($A23,2),Holidays!$E$3:$H$9,4,FALSE),C23-(B23+D23)),VLOOKUP(WEEKDAY($A23,2),Holidays!$E$3:$H$9,4,FALSE)))))","v":"0:00"},0,"0:00",7,"7:00",1]
["2025-10-17",null,null,null,null,1,{"$f":"IF(ISERROR(VLOOKUP($E24,HolidayType,2,FALSE)),IF(OR(ISBLANK(B24),ISBLANK(C24),ISBLANK(D24)),\"0:00\",C24-(B24+D24)),IF(OR(ISBLANK(B24),ISBLANK(C24),ISBLANK(D24)),IF(VLOOKUP($E24,HolidayType,2,FALSE),IF(VLOOKUP($A24,Holidays,4,FALSE),VLOOKUP(WEEKDAY($A24,2),Holidays!$E$3:$H$9,4,FALSE),\"0:00\"),VLOOKUP(WEEKDAY($A24,2),Holidays!$E$3:$H$9,4,FALSE)),IF(C24-(B24+D24)>VLOOKUP(WEEKDAY($A24,2),Holidays!$E$3:$H$9,4,FALSE),C24-(B24+D24),IF(VLOOKUP($E24,HolidayType,2,FALSE),IF(VLOOKUP($A24,Holidays,4,FALSE),VLOOKUP(WEEKDAY($A24,2),Holidays!$E$3:$H$9,4,FALSE),C24-(B24+D24)),VLOOKUP(WEEKDAY($A24,2),Holidays!$E$3:$H$9,4,FALSE)))))","v":"0:00"},0,"0:00",7,"7:00",1]
["2025-10-18",null,null,null,null,1.5,{"$f":"IF(ISERROR(VLOOKUP($E25,HolidayType,2,FALSE)),IF(OR(ISBLANK(B25),ISBLANK(C25),ISBLANK(D25)),\"0:00\",C25-(B25+D25)),IF(OR(ISBLANK(B25),ISBLANK(C25),ISBLANK(D25)),IF(VLOOKUP($E25,HolidayType,2,FALSE),IF(VLOOKUP($A25,Holidays,4,FALSE),VLOOKUP(WEEKDAY($A25,2),Holidays!$E$3:$H$9,4,FALSE),\"0:00\"),VLOOKUP(WEEKDAY($A25,2),Holidays!$E$3:$H$9,4,FALSE)),IF(C25-(B25+D25)>VLOOKUP(WEEKDAY($A25,2),Holidays!$E$3:$H$9,4,FALSE),C25-(B25+D25),IF(VLOOKUP($E25,HolidayType,2,FALSE),IF(VLOOKUP($A25,Holidays,4,FALSE),VLOOKUP(WEEKDAY($A25,2),Holidays!$E$3:$H$9,4,FALSE),C25-(B25+D25)),VLOOKUP(WEEKDAY($A25,2),Holidays!$E$3:$H$9,4,FALSE)))))","v":"0:00"},0,"0:00",{"$f":"J24+H25","v":7},"7:00",0]
["2025-10-19",null,null,null,null,2,{"$f":"IF(ISERROR(VLOOKUP($E26,HolidayType,2,FALSE)),IF(OR(ISBLANK(B26),ISBLANK(C26),ISBLANK(D26)),\"0:00\",C26-(B26+D26)),IF(OR(ISBLANK(B26),ISBLANK(C26),ISBLANK(D26)),IF(VLOOKUP($E26,HolidayType,2,FALSE),IF(VLOOKUP($A26,Holidays,4,FALSE),VLOOKUP(WEEKDAY($A26,2),Holidays!$E$3:$H$9,4,FALSE),\"0:00\"),VLOOKUP(WEEKDAY($A26,2),Holidays!$E$3:$H$9,4,FALSE)),IF(C26-(B26+D26)>VLOOKUP(WEEKDAY($A26,2),Holidays!$E$3:$H$9,4,FALSE),C26-(B26+D26),IF(VLOOKUP($E26,HolidayType,2,FALSE),IF(VLOOKUP($A26,Holidays,4,FALSE),VLOOKUP(WEEKDAY($A26,2),Holidays!$E$3:$H$9,4,FALSE),C26-(B26+D26)),VLOOKUP(WEEKDAY($A26,2),Holidays!$E$3:$H$9,4,FALSE)))))","v":"0:00"},0,"0:00",{"$f":"J25+H26","v":7},"7:00",0]
["2025-10-20",null,null,null,null,1,{"$f":"IF(ISERROR(VLOOKUP($E27,HolidayType,2,FALSE)),IF(OR(ISBLANK(B27),ISBLANK(C27),ISBLANK(D27)),\"0:00\",C27-(B27+D27)),IF(OR(ISBLANK(B27),ISBLANK(C27),ISBLANK(D27)),IF(VLOOKUP($E27,HolidayType,2,FALSE),IF(VLOOKUP($A27,Holidays,4,FALSE),VLOOKUP(WEEKDAY($A27,2),Holidays!$E$3:$H$9,4,FALSE),\"0:00\"),VLOOKUP(WEEKDAY($A27,2),Holidays!$E$3:$H$9,4,FALSE)),IF(C27-(B27+D27)>VLOOKUP(WEEKDAY($A27,2),Holidays!$E$3:$H$9,4,FALSE),C27-(B27+D27),IF(VLOOKUP($E27,HolidayType,2,FALSE),IF(VLOOKUP($A27,Holidays,4,FALSE),VLOOKUP(WEEKDAY($A27,2),Holidays!$E$3:$H$9,4,FALSE),C27-(B27+D27)),VLOOKUP(WEEKDAY($A27,2),Holidays!$E$3:$H$9,4,FALSE)))))","v":"0:00"},0,"0:00",{"$f":"J26+H27","v":7},"7:00",1]
["2025-10-21",null,null,null,null,1,{"$f":"IF(ISERROR(VLOOKUP($E28,HolidayType,2,FALSE)),IF(OR(ISBLANK(B28),ISBLANK(C28),ISBLANK(D28)),\"0:00\",C28-(B28+D28)),IF(OR(ISBLANK(B28),ISBLANK(C28),ISBLANK(D28)),IF(VLOOKUP($E28,HolidayType,2,FALSE),IF(VLOOKUP($A28,Holidays,4,FALSE),VLOOKUP(WEEKDAY($A28,2),Holidays!$E$3:$H$9,4,FALSE),\"0:00\"),VLOOKUP(WEEKDAY($A28,2),Holidays!$E$3:$H$9,4,FALSE)),IF(C28-(B28+D28)>VLOOKUP(WEEKDAY($A28,2),Holidays!$E$3:$H$9,4,FALSE),C28-(B28+D28),IF(VLOOKUP($E28,HolidayType,2,FALSE),IF(VLOOKUP($A28,Holidays,4,FALSE),VLOOKUP(WEEKDAY($A28,2),Holidays!$E$3:$H$9,4,FALSE),C28-(B28+D28)),VLOOKUP(WEEKDAY($A28,2),Holidays!$E$3:$H$9,4,FALSE)))))","v":"0:00"},0,"0:00",7,"7:00",1]
["2025-10-22",null,null,null,null,1,{"$f":"IF(ISERROR(VLOOKUP($E29,HolidayType,2,FALSE)),IF(OR(ISBLANK(B29),ISBLANK(C29),ISBLANK(D29)),\"0:00\",C29-(B29+D29)),IF(OR(ISBLANK(B29),ISBLANK(C29),ISBLANK(D29)),IF(VLOOKUP($E29,HolidayType,2,FALSE),IF(VLOOKUP($A29,Holidays,4,FALSE),VLOOKUP(WEEKDAY($A29,2),Holidays!$E$3:$H$9,4,FALSE),\"0:00\"),VLOOKUP(WEEKDAY($A29,2),Holidays!$E$3:$H$9,4,FALSE)),IF(C29-(B29+D29)>VLOOKUP(WEEKDAY($A29,2),Holidays!$E$3:$H$9,4,FALSE),C29-(B29+D29),IF(VLOOKUP($E29,HolidayType,2,FALSE),IF(VLOOKUP($A29,Holidays,4,FALSE),VLOOKUP(WEEKDAY($A29,2),Holidays!$E$3:$H$9,4,FALSE),C29-(B29+D29)),VLOOKUP(WEEKDAY($A29,2),Holidays!$E$3:$H$9,4,FALSE)))))","v":"0:00"},0,"0:00",7,"7:00",1]
["2025-10-23",null,null,null,{"$f":"IF(ISERROR(VLOOKUP($A30,Holidays,2,FALSE)),\"\",VLOOKUP($A30,Holidays,2,0))","v":""},1,{"$f":"IF(ISERROR(VLOOKUP($E30,HolidayType,2,FALSE)),IF(OR(ISBLANK(B30),ISBLANK(C30),ISBLANK(D30)),\"0:00\",C30-(B30+D30)),IF(OR(ISBLANK(B30),ISBLANK(C30),ISBLANK(D30)),IF(VLOOKUP($E30,HolidayType,2,FALSE),IF(VLOOKUP($A30,Holidays,4,FALSE),VLOOKUP(WEEKDAY($A30,2),Holidays!$E$3:$H$9,4,FALSE),\"0:00\"),VLOOKUP(WEEKDAY($A30,2),Holidays!$E$3:$H$9,4,FALSE)),IF(C30-(B30+D30)>VLOOKUP(WEEKDAY($A30,2),Holidays!$E$3:$H$9,4,FALSE),C30-(B30+D30),IF(VLOOKUP($E30,HolidayType,2,FALSE),IF(VLOOKUP($A30,Holidays,4,FALSE),VLOOKUP(WEEKDAY($A30,2),Holidays!$E$3:$H$9,4,FALSE),C30-(B30+D30)),VLOOKUP(WEEKDAY($A30,2),Holidays!$E$3:$H$9,4,FALSE)))))","v":"0:00"},0,"0:00",7,"7:00",1]
["2025-10-24",null,null,null,"",1,{"$f":"IF(ISERROR(VLOOKUP($E31,HolidayType,2,FALSE)),IF(OR(ISBLANK(B31),ISBLANK(C31),ISBLANK(D31)),\"0:00\",C31-(B31+D31)),IF(OR(ISBLANK(B31),ISBLANK(C31),ISBLANK(D31)),IF(VLOOKUP($E31,HolidayType,2,FALSE),IF(VLOOKUP($A31,Holidays,4,FALSE),VLOOKUP(WEEKDAY($A31,2),Holidays!$E$3:$H$9,4,FALSE),\"0:00\"),VLOOKUP(WEEKDAY($A31,2),Holidays!$E$3:$H$9,4,FALSE)),IF(C31-(B31+D31)>VLOOKUP(WEEKDAY($A31,2),Holidays!$E$3:$H$9,4,FALSE),C31-(B31+D31),IF(VLOOKUP($E31,HolidayType,2,FALSE),IF(VLOOKUP($A31,Holidays,4,FALSE),VLOOKUP(WEEKDAY($A31,2),Holidays!$E$3:$H$9,4,FALSE),C31-(B31+D31)),VLOOKUP(WEEKDAY($A31,2),Holidays!$E$3:$H$9,4,FALSE)))))","v":"0:00"},0,"0:00",7,"7:00",1]
["2025-10-25",null,null,null,"",1.5,{"$f":"IF(ISERROR(VLOOKUP($E32,HolidayType,2,FALSE)),IF(OR(ISBLANK(B32),ISBLANK(C32),ISBLANK(D32)),\"0:00\",C32-(B32+D32)),IF(OR(ISBLANK(B32),ISBLANK(C32),ISBLANK(D32)),IF(VLOOKUP($E32,HolidayType,2,FALSE),IF(VLOOKUP($A32,Holidays,4,FALSE),VLOOKUP(WEEKDAY($A32,2),Holidays!$E$3:$H$9,4,FALSE),\"0:00\"),VLOOKUP(WEEKDAY($A32,2),Holidays!$E$3:$H$9,4,FALSE)),IF(C32-(B32+D32)>VLOOKUP(WEEKDAY($A32,2),Holidays!$E$3:$H$9,4,FALSE),C32-(B32+D32),IF(VLOOKUP($E32,HolidayType,2,FALSE),IF(VLOOKUP($A32,Holidays,4,FALSE),VLOOKUP(WEEKDAY($A32,2),Holidays!$E$3:$H$9,4,FALSE),C32-(B32+D32)),VLOOKUP(WEEKDAY($A32,2),Holidays!$E$3:$H$9,4,FALSE)))))","v":"0:00"},0,"0:00",{"$f":"J31+H32","v":7},"7:00",0]
["2025-10-26",null,null,null,"",2,{"$f":"IF(ISERROR(VLOOKUP($E33,HolidayType,2,FALSE)),IF(OR(ISBLANK(B33),ISBLANK(C33),ISBLANK(D33)),\"0:00\",C33-(B33+D33)),IF(OR(ISBLANK(B33),ISBLANK(C33),ISBLANK(D33)),IF(VLOOKUP($E33,HolidayType,2,FALSE),IF(VLOOKUP($A33,Holidays,4,FALSE),VLOOKUP(WEEKDAY($A33,2),Holidays!$E$3:$H$9,4,FALSE),\"0:00\"),VLOOKUP(WEEKDAY($A33,2),Holidays!$E$3:$H$9,4,FALSE)),IF(C33-(B33+D33)>VLOOKUP(WEEKDAY($A33,2),Holidays!$E$3:$H$9,4,FALSE),C33-(B33+D33),IF(VLOOKUP($E33,HolidayType,2,FALSE),IF(VLOOKUP($A33,Holidays,4,FALSE),VLOOKUP(WEEKDAY($A33,2),Holidays!$E$3:$H$9,4,FALSE),C33-(B33+D33)),VLOOKUP(WEEKDAY($A33,2),Holidays!$E$3:$H$9,4,FALSE)))))","v":"0:00"},0,"0:00",{"$f":"J32+H33","v":7},"7:00",0]
["2025-10-27",null,null,null,"",1,{"$f":"IF(ISERROR(VLOOKUP($E34,HolidayType,2,FALSE)),IF(OR(ISBLANK(B34),ISBLANK(C34),ISBLANK(D34)),\"0:00\",C34-(B34+D34)),IF(OR(ISBLANK(B34),ISBLANK(C34),ISBLANK(D34)),IF(VLOOKUP($E34,HolidayType,2,FALSE),IF(VLOOKUP($A34,Holidays,4,FALSE),VLOOKUP(WEEKDAY($A34,2),Holidays!$E$3:$H$9,4,FALSE),\"0:00\"),VLOOKUP(WEEKDAY($A34,2),Holidays!$E$3:$H$9,4,FALSE)),IF(C34-(B34+D34)>VLOOKUP(WEEKDAY($A34,2),Holidays!$E$3:$H$9,4,FALSE),C34-(B34+D34),IF(VLOOKUP($E34,HolidayType,2,FALSE),IF(VLOOKUP($A34,Holidays,4,FALSE),VLOOKUP(WEEKDAY($A34,2),Holidays!$E$3:$H$9,4,FALSE),C34-(B34+D34)),VLOOKUP(WEEKDAY($A34,2),Holidays!$E$3:$H$9,4,FALSE)))))","v":"0:00"},0,"0:00",{"$f":"J31+H34","v":7},"7:00",1]
["2025-10-28",null,null,null,"",1,{"$f":"IF(ISERROR(VLOOKUP($E35,HolidayType,2,FALSE)),IF(OR(ISBLANK(B35),ISBLANK(C35),ISBLANK(D35)),\"0:00\",C35-(B35+D35)),IF(OR(ISBLANK(B35),ISBLANK(C35),ISBLANK(D35)),IF(VLOOKUP($E35,HolidayType,2,FALSE),IF(VLOOKUP($A35,Holidays,4,FALSE),VLOOKUP(WEEKDAY($A35,2),Holidays!$E$3:$H$9,4,FALSE),\"0:00\"),VLOOKUP(WEEKDAY($A35,2),Holidays!$E$3:$H$9,4,FALSE)),IF(C35-(B35+D35)>VLOOKUP(WEEKDAY($A35,2),Holidays!$E$3:$H$9,4,FALSE),C35-(B35+D35),IF(VLOOKUP($E35,HolidayType,2,FALSE),IF(VLOOKUP($A35,Holidays,4,FALSE),VLOOKUP(WEEKDAY($A35,2),Holidays!$E$3:$H$9,4,FALSE),C35-(B35+D35)),VLOOKUP(WEEKDAY($A35,2),Holidays!$E$3:$H$9,4,FALSE)))))","v":"0:00"},0,"0:00",7,"7:00",1]
["2025-10-29",null,null,null,"",1,{"$f":"IF(ISERROR(VLOOKUP($E36,HolidayType,2,FALSE)),IF(OR(ISBLANK(B36),ISBLANK(C36),ISBLANK(D36)),\"0:00\",C36-(B36+D36)),IF(OR(ISBLANK(B36),ISBLANK(C36),ISBLANK(D36)),IF(VLOOKUP($E36,HolidayType,2,FALSE),IF(VLOOKUP($A36,Holidays,4,FALSE),VLOOKUP(WEEKDAY($A36,2),Holidays!$E$3:$H$9,4,FALSE),\"0:00\"),VLOOKUP(WEEKDAY($A36,2),Holidays!$E$3:$H$9,4,FALSE)),IF(C36-(B36+D36)>VLOOKUP(WEEKDAY($A36,2),Holidays!$E$3:$H$9,4,FALSE),C36-(B36+D36),IF(VLOOKUP($E36,HolidayType,2,FALSE),IF(VLOOKUP($A36,Holidays,4,FALSE),VLOOKUP(WEEKDAY($A36,2),Holidays!$E$3:$H$9,4,FALSE),C36-(B36+D36)),VLOOKUP(WEEKDAY($A36,2),Holidays!$E$3:$H$9,4,FALSE)))))","v":"0:00"},0,"0:00",7,"7:00",1]
["2025-10-30",null,null,null,"",1,{"$f":"IF(ISERROR(VLOOKUP($E37,HolidayType,2,FALSE)),IF(OR(ISBLANK(B37),ISBLANK(C37),ISBLANK(D37)),\"0:00\",C37-(B37+D37)),IF(OR(ISBLANK(B37),ISBLANK(C37),ISBLANK(D37)),IF(VLOOKUP($E37,HolidayType,2,FALSE),IF(VLOOKUP($A37,Holidays,4,FALSE),VLOOKUP(WEEKDAY($A37,2),Holidays!$E$3:$H$9,4,FALSE),\"0:00\"),VLOOKUP(WEEKDAY($A37,2),Holidays!$E$3:$H$9,4,FALSE)),IF(C37-(B37+D37)>VLOOKUP(WEEKDAY($A37,2),Holidays!$E$3:$H$9,4,FALSE),C37-(B37+D37),IF(VLOOKUP($E37,HolidayType,2,FALSE),IF(VLOOKUP($A37,Holidays,4,FALSE),VLOOKUP(WEEKDAY($A37,2),Holidays!$E$3:$H$9,4,FALSE),C37-(B37+D37)),VLOOKUP(WEEKDAY($A37,2),Holidays!$E$3:$H$9,4,FALSE)))))","v":"0:00"},0,"0:00",7,"7:00",1]
["2025-10-31",null,null,null,"",1,{"$f":"IF(ISERROR(VLOOKUP($E38,HolidayType,2,FALSE)),IF(OR(ISBLANK(B38),ISBLANK(C38),ISBLANK(D38)),\"0:00\",C38-(B38+D38)),IF(OR(ISBLANK(B38),ISBLANK(C38),ISBLANK(D38)),IF(VLOOKUP($E38,HolidayType,2,FALSE),IF(VLOOKUP($A38,Holidays,4,FALSE),VLOOKUP(WEEKDAY($A38,2),Holidays!$E$3:$H$9,4,FALSE),\"0:00\"),VLOOKUP(WEEKDAY($A38,2),Holidays!$E$3:$H$9,4,FALSE)),IF(C38-(B38+D38)>VLOOKUP(WEEKDAY($A38,2),Holidays!$E$3:$H$9,4,FALSE),C38-(B38+D38),IF(VLOOKUP($E38,HolidayType,2,FALSE),IF(VLOOKUP($A38,Holidays,4,FALSE),VLOOKUP(WEEKDAY($A38,2),Holidays!$E$3:$H$9,4,FALSE),C38-(B38+D38)),VLOOKUP(WEEKDAY($A38,2),Holidays!$E$3:$H$9,4,FALSE)))))","v":"0:00"},0,"0:00",7,"7:00",1]
["2025-11-01",null,null,null,"",1.5,{"$f":"IF(ISERROR(VLOOKUP($E39,HolidayType,2,FALSE)),IF(OR(ISBLANK(B39),ISBLANK(C39),ISBLANK(D39)),\"0:00\",C39-(B39+D39)),IF(OR(ISBLANK(B39),ISBLANK(C39),ISBLANK(D39)),IF(VLOOKUP($E39,HolidayType,2,FALSE),IF(VLOOKUP($A39,Holidays,4,FALSE),VLOOKUP(WEEKDAY($A39,2),Holidays!$E$3:$H$9,4,FALSE),\"0:00\"),VLOOKUP(WEEKDAY($A39,2),Holidays!$E$3:$H$9,4,FALSE)),IF(C39-(B39+D39)>VLOOKUP(WEEKDAY($A39,2),Holidays!$E$3:$H$9,4,FALSE),C39-(B39+D39),IF(VLOOKUP($E39,HolidayType,2,FALSE),IF(VLOOKUP($A39,Holidays,4,FALSE),VLOOKUP(WEEKDAY($A39,2),Holidays!$E$3:$H$9,4,FALSE),C39-(B39+D39)),VLOOKUP(WEEKDAY($A39,2),Holidays!$E$3:$H$9,4,FALSE)))))","v":"0:00"},0,"0:00",7,"7:00",0]
["2025-11-02",null,null,null,"",2,{"$f":"IF(ISERROR(VLOOKUP($E40,HolidayType,2,FALSE)),IF(OR(ISBLANK(B40),ISBLANK(C40),ISBLANK(D40)),\"0:00\",C40-(B40+D40)),IF(OR(ISBLANK(B40),ISBLANK(C40),ISBLANK(D40)),IF(VLOOKUP($E40,HolidayType,2,FALSE),IF(VLOOKUP($A40,Holidays,4,FALSE),VLOOKUP(WEEKDAY($A40,2),Holidays!$E$3:$H$9,4,FALSE),\"0:00\"),VLOOKUP(WEEKDAY($A40,2),Holidays!$E$3:$H$9,4,FALSE)),IF(C40-(B40+D40)>VLOOKUP(WEEKDAY($A40,2),Holidays!$E$3:$H$9,4,FALSE),C40-(B40+D40),IF(VLOOKUP($E40,HolidayType,2,FALSE),IF(VLOOKUP($A40,Holidays,4,FALSE),VLOOKUP(WEEKDAY($A40,2),Holidays!$E$3:$H$9,4,FALSE),C40-(B40+D40)),VLOOKUP(WEEKDAY($A40,2),Holidays!$E$3:$H$9,4,FALSE)))))","v":"0:00"},0,"0:00",{"$f":"J39+H40","v":7},"7:00",0]
[null,null,null,null,null,null,null,null,null,null,null,{"$f":"SUM(L13:L40)","v":20}]
[null,null,null,null,"Total ordinary hours for accounting period",null,{"$f":"CONCATENATE(TRUNC(INT(ABS(J42))),\":\",TEXT(ABS(ABS(J42)-TRUNC(INT(ABS(J42))))*60,\"00\"))","v":"140:00"},null,null,{"$f":"J10*4","v":140}]
[null,null,null,null,"Total actual hours worked in accounting period",null,{"$f":"CONCATENATE(TRUNC(INT(ABS(J43))),\":\",TEXT(ABS(ABS(J43)-TRUNC(INT(ABS(J43))))*60,\"00\"))","v":"7:00"},null,null,{"$f":"J40","v":7}]
[null,null,null,null,"Difference",null,{"$f":"CONCATENATE(TRUNC(INT(ABS(J44))),\":\",TEXT(ABS(ABS(J44)-TRUNC(INT(ABS(J44))))*60,\"00\"))","v":"133:00"},null,{"$f":"IF(J44<0,\"Debit\",IF(J44=0,\"\",\"Credit\"))","v":"Debit"},{"$f":"ROUND(J43-J42,2)","v":-133}]
[null,null,null,null,"If applicable, carry over from previous period",null,"0:00",null,"Credit",{"$f":"IF(I45=\"Debit\",0-(LEFT(G45,FIND(\":\",G45)-1)+RIGHT(G45,2)/60),LEFT(G45,FIND(\":\",G45)-1)+RIGHT(G45,2)/60)","v":0}]
[null,null,null,null,"Carry over to following period",null,{"$f":"CONCATENATE(TRUNC(INT(ABS(J46))),\":\",TEXT(ABS(ABS(J46)-TRUNC(INT(ABS(J46))))*60,\"00\"))","v":"133:00"},null,{"$f":"IF(J46<0,\"Debit\",IF(J46=0,\"\",\"Credit\"))","v":"Debit"},{"$f":"ROUND(J44+J45,2)","v":-133}]
[]
[null,null,null,null,"Future flex leave bookings",null,"0:00",null,null,{"$f":"IF(I48=\"Debit\",0-(LEFT(G48,FIND(\":\",G48)-1)+RIGHT(G48,2)/60),LEFT(G48,FIND(\":\",G48)-1)+RIGHT(G48,2)/60)","v":0}]
[null,null,null,null,"Remaining",null,{"$f":"CONCATENATE(TRUNC(INT(ABS(J49))),\":\",TEXT(ABS(ABS(J49)-TRUNC(INT(ABS(J49))))*60,\"00\"))","v":"133:00"},null,{"$f":"IF(J49<0,\"Debit\",IF(J49=0,\"\",\"Credit\"))","v":"Debit"},{"$f":"J46-J48","v":-133}]
[]
[]
[]
["Signature",null,null,null,"Certified Correct"]
[null,"(Employee)",null,null,null,"(Supervisor)"]
[]
["Completed timesheets shall be authorised as correct by the supervisor and filed as an auditable document for 7yrs"]
[]
[]
["INSERT Comments/Leave below:"]
["Albury"]
["Annual Leave"]
["Carers Leave"]
["Concessional Half Day"]
["Dubbo"]
["Exam"]
["Flexi Day"]
["Goulburn"]
["Leave Without Pay"]
["Long Service Leave"]
["Maternity Leave"]
["Public Holiday"]
["Purchased Leave"]
["Sick Leave"]
["Special Leave"]
["Study Leave"]
["Training"]
["Wagga Wagga"]
["Working @ home"]

{"sheet":"Flexi Timesheet (12)","index":13,"n_rows":78,"n_cols":12,"rows_kept":78,"cut":false,"hidden":false,"merged":[[65,0,65,1],[7,2,7,4],[8,2,8,4],[52,1,52,2],[52,5,52,10],[53,1,53,2],[53,5,53,10],[59,0,59,1],[60,0,60,1],[62,0,62,1],[63,0,63,1],[64,0,64,1],[73,0,73,1],[77,0,77,1],[79,0,79,1],[66,0,66,1],[67,0,67,1],[68,0,68,1],[69,0,69,1],[70,0,70,1],[72,0,72,1]]}
[null,null,null,null,null,null,null,null,null,null,"Flexible Working Hours Scheme"]
[null,null,null,null,null,null,null,null,null,null,"2025 Flexi-Timesheet"]
[]
[]
[]
[]
[]
[null,"Name:"]
[null,"Team:",null,null,null,null,null,null,"Hours per Day",{"$f":"HOUR(K9)+MINUTE(K9)/60","v":7},"07:00:00","Don't override cell, click into cell and change time to equal your hours. i.e. 7 hours = 7:00am"]
[null,"Accounting Period:","2025-11-03",{"$f":"CONCATENATE(\" to \",TEXT(C10+27,\"dd-mmm-yyyy\"))","v":" to 30-Nov-2025"},null,null,null,null,"Days per Week",{"$f":"J9*K10","v":35},5]
[null,null,null,null,{"$f":"IF(ISERROR(VLOOKUP($A11,Holidays,2,FALSE)),\"\",VLOOKUP($A11,Holidays,2,0))","v":""},null,null,null,"Work Days",null,"Mo, Tu, We, Th, Fr"]
["Date","Start Time","Finish Time","Unpaid Breaks","Comments/Leave","Rate","Elapsed Time","Decimal Hours","Total Hours","Cum. Dec.","Cumulative Total"]
[{"$f":"C10","v":"2025-11-03"},null,null,null,null,1,{"$f":"IF(ISERROR(VLOOKUP($E13,HolidayType,2,FALSE)),IF(OR(ISBLANK(B13),ISBLANK(C13),ISBLANK(D13)),\"0:00\",C13-(B13+D13)),IF(OR(ISBLANK(B13),ISBLANK(C13),ISBLANK(D13)),IF(VLOOKUP($E13,HolidayType,2,FALSE),IF(VLOOKUP($A13,Holidays,4,FALSE),VLOOKUP(WEEKDAY($A13,2),Holidays!$E$3:$H$9,4,FALSE),\"0:00\"),VLOOKUP(WEEKDAY($A13,2),Holidays!$E$3:$H$9,4,FALSE)),IF(C13-(B13+D13)>VLOOKUP(WEEKDAY($A13,2),Holidays!$E$3:$H$9,4,FALSE),C13-(B13+D13),IF(VLOOKUP($E13,HolidayType,2,FALSE),IF(VLOOKUP($A13,Holidays,4,FALSE),VLOOKUP(WEEKDAY($A13,2),Holidays!$E$3:$H$9,4,FALSE),C13-(B13+D13)),VLOOKUP(WEEKDAY($A13,2),Holidays!$E$3:$H$9,4,FALSE)))))","v":"0:00"},{"$f":"((HOUR(G13)+MINUTE(G13)/60))*F13","v":0},{"$f":"CONCATENATE(TRUNC(INT(H13)),\":\",TEXT((H13-TRUNC(INT(H13)))*60,\"00\"))","v":"0:00"},{"$f":"H13","v":0},{"$f":"CONCATENATE(TRUNC(INT(J13)),\":\",TEXT((J13-TRUNC(INT(J13)))*60,\"00\"))","v":"0:00"},{"$f":"IF(WEEKDAY(A13,2)<6,IF(F13<>0,1,0),0)","v":1}]
[{"$f":"A13+1","v":"2025-11-04"},null,null,null,null,1,{"$f":"IF(ISERROR(VLOOKUP($E14,HolidayType,2,FALSE)),IF(OR(ISBLANK(B14),ISBLANK(C14),ISBLANK(D14)),\"0:00\",C14-(B14+D14)),IF(OR(ISBLANK(B14),ISBLANK(C14),ISBLANK(D14)),IF(VLOOKUP($E14,HolidayType,2,FALSE),IF(VLOOKUP($A14,Holidays,4,FALSE),VLOOKUP(WEEKDAY($A14,2),Holidays!$E$3:$H$9,4,FALSE),\"0:00\"),VLOOKUP(WEEKDAY($A14,2),Holidays!$E$3:$H$9,4,FALSE)),IF(C14-(B14+D14)>VLOOKUP(WEEKDAY($A14,2),Holidays!$E$3:$H$9,4,FALSE),C14-(B14+D14),IF(VLOOKUP($E14,HolidayType,2,FALSE),IF(VLOOKUP($A14,Holidays,4,FALSE),VLOOKUP(WEEKDAY($A14,2),Holidays!$E$3:$H$9,4,FALSE),C14-(B14+D14)),VLOOKUP(WEEKDAY($A14,2),Holidays!$E$3:$H$9,4,FALSE)))))","v":"0:00"},0,{"$f":"CONCATENATE(TRUNC(INT(H14)),\":\",TEXT((H14-TRUNC(INT(H14)))*60,\"00\"))","v":"0:00"},{"$f":"J13+H14","v":0},{"$f":"CONCATENATE(TRUNC(INT(J14)),\":\",TEXT((J14-TRUNC(INT(J14)))*60,\"00\"))","v":"0:00"},1]
["2025-11-05",null,null,null,null,1,{"$f":"IF(ISERROR(VLOOKUP($E15,HolidayType,2,FALSE)),IF(OR(ISBLANK(B15),ISBLANK(C15),ISBLANK(D15)),\"0:00\",C15-(B15+D15)),IF(OR(ISBLANK(B15),ISBLANK(C15),ISBLANK(D15)),IF(VLOOKUP($E15,HolidayType,2,FALSE),IF(VLOOKUP($A15,Holidays,4,FALSE),VLOOKUP(WEEKDAY($A15,2),Holidays!$E$3:$H$9,4,FALSE),\"0:00\"),VLOOKUP(WEEKDAY($A15,2),Holidays!$E$3:$H$9,4,FALSE)),IF(C15-(B15+D15)>VLOOKUP(WEEKDAY($A15,2),Holidays!$E$3:$H$9,4,FALSE),C15-(B15+D15),IF(VLOOKUP($E15,HolidayType,2,FALSE),IF(VLOOKUP($A15,Holidays,4,FALSE),VLOOKUP(WEEKDAY($A15,2),Holidays!$E$3:$H$9,4,FALSE),C15-(B15+D15)),VLOOKUP(WEEKDAY($A15,2),Holidays!$E$3:$H$9,4,FALSE)))))","v":"0:00"},0,"0:00",{"$f":"J14+H15","v":0},"0:00",1]
["2025-11-06",null,null,null,null,1,{"$f":"IF(ISERROR(VLOOKUP($E16,HolidayType,2,FALSE)),IF(OR(ISBLANK(B16),ISBLANK(C16),ISBLANK(D16)),\"0:00\",C16-(B16+D16)),IF(OR(ISBLANK(B16),ISBLANK(C16),ISBLANK(D16)),IF(VLOOKUP($E16,HolidayType,2,FALSE),IF(VLOOKUP($A16,Holidays,4,FALSE),VLOOKUP(WEEKDAY($A16,2),Holidays!$E$3:$H$9,4,FALSE),\"0:00\"),VLOOKUP(WEEKDAY($A16,2),Holidays!$E$3:$H$9,4,FALSE)),IF(C16-(B16+D16)>VLOOKUP(WEEKDAY($A16,2),Holidays!$E$3:$H$9,4,FALSE),C16-(B16+D16),IF(VLOOKUP($E16,HolidayType,2,FALSE),IF(VLOOKUP($A16,Holidays,4,FALSE),VLOOKUP(WEEKDAY($A16,2),Holidays!$E$3:$H$9,4,FALSE),C16-(B16+D16)),VLOOKUP(WEEKDAY($A16,2),Holidays!$E$3:$H$9,4,FALSE)))))","v":"0:00"},0,"0:00",0,"0:00",1]
["2025-11-07",null,null,null,null,1,{"$f":"IF(ISERROR(VLOOKUP($E17,HolidayType,2,FALSE)),IF(OR(ISBLANK(B17),ISBLANK(C17),ISBLANK(D17)),\"0:00\",C17-(B17+D17)),IF(OR(ISBLANK(B17),ISBLANK(C17),ISBLANK(D17)),IF(VLOOKUP($E17,HolidayType,2,FALSE),IF(VLOOKUP($A17,Holidays,4,FALSE),VLOOKUP(WEEKDAY($A17,2),Holidays!$E$3:$H$9,4,FALSE),\"0:00\"),VLOOKUP(WEEKDAY($A17,2),Holidays!$E$3:$H$9,4,FALSE)),IF(C17-(B17+D17)>VLOOKUP(WEEKDAY($A17,2),Holidays!$E$3:$H$9,4,FALSE),C17-(B17+D17),IF(VLOOKUP($E17,HolidayType,2,FALSE),IF(VLOOKUP($A17,Holidays,4,FALSE),VLOOKUP(WEEKDAY($A17,2),Holidays!$E$3:$H$9,4,FALSE),C17-(B17+D17)),VLOOKUP(WEEKDAY($A17,2),Holidays!$E$3:$H$9,4,FALSE)))))","v":"0:00"},0,"0:00",0,"0:00",1]
["2025-11-08",null,null,null,{"$f":"IF(ISERROR(VLOOKUP($A18,Holidays,2,FALSE)),\"\",VLOOKUP($A18,Holidays,2,0))","v":""},1.5,{"$f":"IF(ISERROR(VLOOKUP($E18,HolidayType,2,FALSE)),IF(OR(ISBLANK(B18),ISBLANK(C18),ISBLANK(D18)),\"0:00\",C18-(B18+D18)),IF(OR(ISBLANK(B18),ISBLANK(C18),ISBLANK(D18)),IF(VLOOKUP($E18,HolidayType,2,FALSE),IF(VLOOKUP($A18,Holidays,4,FALSE),VLOOKUP(WEEKDAY($A18,2),Holidays!$E$3:$H$9,4,FALSE),\"0:00\"),VLOOKUP(WEEKDAY($A18,2),Holidays!$E$3:$H$9,4,FALSE)),IF(C18-(B18+D18)>VLOOKUP(WEEKDAY($A18,2),Holidays!$E$3:$H$9,4,FALSE),C18-(B18+D18),IF(VLOOKUP($E18,HolidayType,2,FALSE),IF(VLOOKUP($A18,Holidays,4,FALSE),VLOOKUP(WEEKDAY($A18,2),Holidays!$E$3:$H$9,4,FALSE),C18-(B18+D18)),VLOOKUP(WEEKDAY($A18,2),Holidays!$E$3:$H$9,4,FALSE)))))","v":"0:00"},0,"0:00",0,"0:00",0]
["2025-11-09",null,null,null,{"$f":"IF(ISERROR(VLOOKUP($A19,Holidays,2,FALSE)),\"\",VLOOKUP($A19,Holidays,2,0))","v":""},2,{"$f":"IF(ISERROR(VLOOKUP($E19,HolidayType,2,FALSE)),IF(OR(ISBLANK(B19),ISBLANK(C19),ISBLANK(D19)),\"0:00\",C19-(B19+D19)),IF(OR(ISBLANK(B19),ISBLANK(C19),ISBLANK(D19)),IF(VLOOKUP($E19,HolidayType,2,FALSE),IF(VLOOKUP($A19,Holidays,4,FALSE),VLOOKUP(WEEKDAY($A19,2),Holidays!$E$3:$H$9,4,FALSE),\"0:00\"),VLOOKUP(WEEKDAY($A19,2),Holidays!$E$3:$H$9,4,FALSE)),IF(C19-(B19+D19)>VLOOKUP(WEEKDAY($A19,2),Holidays!$E$3:$H$9,4,FALSE),C19-(B19+D19),IF(VLOOKUP($E19,HolidayType,2,FALSE),IF(VLOOKUP($A19,Holidays,4,FALSE),VLOOKUP(WEEKDAY($A19,2),Holidays!$E$3:$H$9,4,FALSE),C19-(B19+D19)),VLOOKUP(WEEKDAY($A19,2),Holidays!$E$3:$H$9,4,FALSE)))))","v":"0:00"},0,"0:00",{"$f":"J18+H19","v":0},"0:00",0]
["2025-11-10",null,null,null,null,1,{"$f":"IF(ISERROR(VLOOKUP($E20,HolidayType,2,FALSE)),IF(OR(ISBLANK(B20),ISBLANK(C20),ISBLANK(D20)),\"0:00\",C20-(B20+D20)),IF(OR(ISBLANK(B20),ISBLANK(C20),ISBLANK(D20)),IF(VLOOKUP($E20,HolidayType,2,FALSE),IF(VLOOKUP($A20,Holidays,4,FALSE),VLOOKUP(WEEKDAY($A20,2),Holidays!$E$3:$H$9,4,FALSE),\"0:00\"),VLOOKUP(WEEKDAY($A20,2),Holidays!$E$3:$H$9,4,FALSE)),IF(C20-(B20+D20)>VLOOKUP(WEEKDAY($A20,2),Holidays!$E$3:$H$9,4,FALSE),C20-(B20+D20),IF(VLOOKUP($E20,HolidayType,2,FALSE),IF(VLOOKUP($A20,Holidays,4,FALSE),VLOOKUP(WEEKDAY($A20,2),Holidays!$E$3:$H$9,4,FALSE),C20-(B20+D20)),VLOOKUP(WEEKDAY($A20,2),Holidays!$E$3:$H$9,4,FALSE)))))","v":"0:00"},0,"0:00",{"$f":"J19+H20","v":0},"0:00",1]
["2025-11-11",null,null,null,null,1,{"$f":"IF(ISERROR(VLOOKUP($E21,HolidayType,2,FALSE)),IF(OR(ISBLANK(B21),ISBLANK(C21),ISBLANK(D21)),\"0:00\",C21-(B21+D21)),IF(OR(ISBLANK(B21),ISBLANK(C21),ISBLANK(D21)),IF(VLOOKUP($E21,HolidayType,2,FALSE),IF(VLOOKUP($A21,Holidays,4,FALSE),VLOOKUP(WEEKDAY($A21,2),Holidays!$E$3:$H$9,4,FALSE),\"0:00\"),VLOOKUP(WEEKDAY($A21,2),Holidays!$E$3:$H$9,4,FALSE)),IF(C21-(B21+D21)>VLOOKUP(WEEKDAY($A21,2),Holidays!$E$3:$H$9,4,FALSE),C21-(B21+D21),IF(VLOOKUP($E21,HolidayType,2,FALSE),IF(VLOOKUP($A21,Holidays,4,FALSE),VLOOKUP(WEEKDAY($A21,2),Holidays!$E$3:$H$9,4,FALSE),C21-(B21+D21)),VLOOKUP(WEEKDAY($A21,2),Holidays!$E$3:$H$9,4,FALSE)))))","v":"0:00"},0,"0:00",0,"0:00",1]
["2025-11-12",null,null,null,null,1,{"$f":"IF(ISERROR(VLOOKUP($E22,HolidayType,2,FALSE)),IF(OR(ISBLANK(B22),ISBLANK(C22),ISBLANK(D22)),\"0:00\",C22-(B22+D22)),IF(OR(ISBLANK(B22),ISBLANK(C22),ISBLANK(D22)),IF(VLOOKUP($E22,HolidayType,2,FALSE),IF(VLOOKUP($A22,Holidays,4,FALSE),VLOOKUP(WEEKDAY($A22,2),Holidays!$E$3:$H$9,4,FALSE),\"0:00\"),VLOOKUP(WEEKDAY($A22,2),Holidays!$E$3:$H$9,4,FALSE)),IF(C22-(B22+D22)>VLOOKUP(WEEKDAY($A22,2),Holidays!$E$3:$H$9,4,FALSE),C22-(B22+D22),IF(VLOOKUP($E22,HolidayType,2,FALSE),IF(VLOOKUP($A22,Holidays,4,FALSE),VLOOKUP(WEEKDAY($A22,2),Holidays!$E$3:$H$9,4,FALSE),C22-(B22+D22)),VLOOKUP(WEEKDAY($A22,2),Holidays!$E$3:$H$9,4,FALSE)))))","v":"0:00"},0,"0:00",0,"0:00",1]
["2025-11-13",null,null,null,null,1,{"$f":"IF(ISERROR(VLOOKUP($E23,HolidayType,2,FALSE)),IF(OR(ISBLANK(B23),ISBLANK(C23),ISBLANK(D23)),\"0:00\",C23-(B23+D23)),IF(OR(ISBLANK(B23),ISBLANK(C23),ISBLANK(D23)),IF(VLOOKUP($E23,HolidayType,2,FALSE),IF(VLOOKUP($A23,Holidays,4,FALSE),VLOOKUP(WEEKDAY($A23,2),Holidays!$E$3:$H$9,4,FALSE),\"0:00\"),VLOOKUP(WEEKDAY($A23,2),Holidays!$E$3:$H$9,4,FALSE)),IF(C23-(B23+D23)>VLOOKUP(WEEKDAY($A23,2),Holidays!$E$3:$H$9,4,FALSE),C23-(B23+D23),IF(VLOOKUP($E23,HolidayType,2,FALSE),IF(VLOOKUP($A23,Holidays,4,FALSE),VLOOKUP(WEEKDAY($A23,2),Holidays!$E$3:$H$9,4,FALSE),C23-(B23+D23)),VLOOKUP(WEEKDAY($A23,2),Holidays!$E$3:$H$9,4,FALSE)))))","v":"0:00"},0,"0:00",0,"0:00",1]
["2025-11-14",null,null,null,null,1,{"$f":"IF(ISERROR(VLOOKUP($E24,HolidayType,2,FALSE)),IF(OR(ISBLANK(B24),ISBLANK(C24),ISBLANK(D24)),\"0:00\",C24-(B24+D24)),IF(OR(ISBLANK(B24),ISBLANK(C24),ISBLANK(D24)),IF(VLOOKUP($E24,HolidayType,2,FALSE),IF(VLOOKUP($A24,Holidays,4,FALSE),VLOOKUP(WEEKDAY($A24,2),Holidays!$E$3:$H$9,4,FALSE),\"0:00\"),VLOOKUP(WEEKDAY($A24,2),Holidays!$E$3:$H$9,4,FALSE)),IF(C24-(B24+D24)>VLOOKUP(WEEKDAY($A24,2),Holidays!$E$3:$H$9,4,FALSE),C24-(B24+D24),IF(VLOOKUP($E24,HolidayType,2,FALSE),IF(VLOOKUP($A24,Holidays,4,FALSE),VLOOKUP(WEEKDAY($A24,2),Holidays!$E$3:$H$9,4,FALSE),C24-(B24+D24)),VLOOKUP(WEEKDAY($A24,2),Holidays!$E$3:$H$9,4,FALSE)))))","v":"0:00"},0,"0:00",0,"0:00",1]
["2025-11-15",null,null,null,null,1.5,{"$f":"IF(ISERROR(VLOOKUP($E25,HolidayType,2,FALSE)),IF(OR(ISBLANK(B25),ISBLANK(C25),ISBLANK(D25)),\"0:00\",C25-(B25+D25)),IF(OR(ISBLANK(B25),ISBLANK(C25),ISBLANK(D25)),IF(VLOOKUP($E25,HolidayType,2,FALSE),IF(VLOOKUP($A25,Holidays,4,FALSE),VLOOKUP(WEEKDAY($A25,2),Holidays!$E$3:$H$9,4,FALSE),\"0:00\"),VLOOKUP(WEEKDAY($A25,2),Holidays!$E$3:$H$9,4,FALSE)),IF(C25-(B25+D25)>VLOOKUP(WEEKDAY($A25,2),Holidays!$E$3:$H$9,4,FALSE),C25-(B25+D25),IF(VLOOKUP($E25,HolidayType,2,FALSE),IF(VLOOKUP($A25,Holidays,4,FALSE),VLOOKUP(WEEKDAY($A25,2),Holidays!$E$3:$H$9,4,FALSE),C25-(B25+D25)),VLOOKUP(WEEKDAY($A25,2),Holidays!$E$3:$H$9,4,FALSE)))))","v":"0:00"},0,"0:00",{"$f":"J24+H25","v":0},"0:00",0]
["2025-11-16",null,null,null,null,2,{"$f":"IF(ISERROR(VLOOKUP($E26,HolidayType,2,FALSE)),IF(OR(ISBLANK(B26),ISBLANK(C26),ISBLANK(D26)),\"0:00\",C26-(B26+D26)),IF(OR(ISBLANK(B26),ISBLANK(C26),ISBLANK(D26)),IF(VLOOKUP($E26,HolidayType,2,FALSE),IF(VLOOKUP($A26,Holidays,4,FALSE),VLOOKUP(WEEKDAY($A26,2),Holidays!$E$3:$H$9,4,FALSE),\"0:00\"),VLOOKUP(WEEKDAY($A26,2),Holidays!$E$3:$H$9,4,FALSE)),IF(C26-(B26+D26)>VLOOKUP(WEEKDAY($A26,2),Holidays!$E$3:$H$9,4,FALSE),C26-(B26+D26),IF(VLOOKUP($E26,HolidayType,2,FALSE),IF(VLOOKUP($A26,Holidays,4,FALSE),VLOOKUP(WEEKDAY($A26,2),Holidays!$E$3:$H$9,4,FALSE),C26-(B26+D26)),VLOOKUP(WEEKDAY($A26,2),Holidays!$E$3:$H$9,4,FALSE)))))","v":"0:00"},0,"0:00",{"$f":"J25+H26","v":0},"0:00",0]
["2025-11-17",null,null,null,null,1,{"$f":"IF(ISERROR(VLOOKUP($E27,HolidayType,2,FALSE)),IF(OR(ISBLANK(B27),ISBLANK(C27),ISBLANK(D27)),\"0:00\",C27-(B27+D27)),IF(OR(ISBLANK(B27),ISBLANK(C27),ISBLANK(D27)),IF(VLOOKUP($E27,HolidayType,2,FALSE),IF(VLOOKUP($A27,Holidays,4,FALSE),VLOOKUP(WEEKDAY($A27,2),Holidays!$E$3:$H$9,4,FALSE),\"0:00\"),VLOOKUP(WEEKDAY($A27,2),Holidays!$E$3:$H$9,4,FALSE)),IF(C27-(B27+D27)>VLOOKUP(WEEKDAY($A27,2),Holidays!$E$3:$H$9,4,FALSE),C27-(B27+D27),IF(VLOOKUP($E27,HolidayType,2,FALSE),IF(VLOOKUP($A27,Holidays,4,FALSE),VLOOKUP(WEEKDAY($A27,2),Holidays!$E$3:$H$9,4,FALSE),C27-(B27+D27)),VLOOKUP(WEEKDAY($A27,2),Holidays!$E$3:$H$9,4,FALSE)))))","v":"0:00"},0,"0:00",{"$f":"J26+H27","v":0},"0:00",1]
["2025-11-18",null,null,null,null,1,{"$f":"IF(ISERROR(VLOOKUP($E28,HolidayType,2,FALSE)),IF(OR(ISBLANK(B28),ISBLANK(C28),ISBLANK(D28)),\"0:00\",C28-(B28+D28)),IF(OR(ISBLANK(B28),ISBLANK(C28),ISBLANK(D28)),IF(VLOOKUP($E28,HolidayType,2,FALSE),IF(VLOOKUP($A28,Holidays,4,FALSE),VLOOKUP(WEEKDAY($A28,2),Holidays!$E$3:$H$9,4,FALSE),\"0:00\"),VLOOKUP(WEEKDAY($A28,2),Holidays!$E$3:$H$9,4,FALSE)),IF(C28-(B28+D28)>VLOOKUP(WEEKDAY($A28,2),Holidays!$E$3:$H$9,4,FALSE),C28-(B28+D28),IF(VLOOKUP($E28,HolidayType,2,FALSE),IF(VLOOKUP($A28,Holidays,4,FALSE),VLOOKUP(WEEKDAY($A28,2),Holidays!$E$3:$H$9,4,FALSE),C28-(B28+D28)),VLOOKUP(WEEKDAY($A28,2),Holidays!$E$3:$H$9,4,FALSE)))))","v":"0:00"},0,"0:00",0,"0:00",1]
["2025-11-19",null,null,null,null,1,{"$f":"IF(ISERROR(VLOOKUP($E29,HolidayType,2,FALSE)),IF(OR(ISBLANK(B29),ISBLANK(C29),ISBLANK(D29)),\"0:00\",C29-(B29+D29)),IF(OR(ISBLANK(B29),ISBLANK(C29),ISBLANK(D29)),IF(VLOOKUP($E29,HolidayType,2,FALSE),IF(VLOOKUP($A29,Holidays,4,FALSE),VLOOKUP(WEEKDAY($A29,2),Holidays!$E$3:$H$9,4,FALSE),\"0:00\"),VLOOKUP(WEEKDAY($A29,2),Holidays!$E$3:$H$9,4,FALSE)),IF(C29-(B29+D29)>VLOOKUP(WEEKDAY($A29,2),Holidays!$E$3:$H$9,4,FALSE),C29-(B29+D29),IF(VLOOKUP($E29,HolidayType,2,FALSE),IF(VLOOKUP($A29,Holidays,4,FALSE),VLOOKUP(WEEKDAY($A29,2),Holidays!$E$3:$H$9,4,FALSE),C29-(B29+D29)),VLOOKUP(WEEKDAY($A29,2),Holidays!$E$3:$H$9,4,FALSE)))))","v":"0:00"},0,"0:00",0,"0:00",1]
["2025-11-20",null,null,null,{"$f":"IF(ISERROR(VLOOKUP($A30,Holidays,2,FALSE)),\"\",VLOOKUP($A30,Holidays,2,0))","v":""},1,{"$f":"IF(ISERROR(VLOOKUP($E30,HolidayType,2,FALSE)),IF(OR(ISBLANK(B30),ISBLANK(C30),ISBLANK(D30)),\"0:00\",C30-(B30+D30)),IF(OR(ISBLANK(B30),ISBLANK(C30),ISBLANK(D30)),IF(VLOOKUP($E30,HolidayType,2,FALSE),IF(VLOOKUP($A30,Holidays,4,FALSE),VLOOKUP(WEEKDAY($A30,2),Holidays!$E$3:$H$9,4,FALSE),\"0:00\"),VLOOKUP(WEEKDAY($A30,2),Holidays!$E$3:$H$9,4,FALSE)),IF(C30-(B30+D30)>VLOOKUP(WEEKDAY($A30,2),Holidays!$E$3:$H$9,4,FALSE),C30-(B30+D30),IF(VLOOKUP($E30,HolidayType,2,FALSE),IF(VLOOKUP($A30,Holidays,4,FALSE),VLOOKUP(WEEKDAY($A30,2),Holidays!$E$3:$H$9,4,FALSE),C30-(B30+D30)),VLOOKUP(WEEKDAY($A30,2),Holidays!$E$3:$H$9,4,FALSE)))))","v":"0:00"},0,"0:00",0,"0:00",1]
["2025-11-21",null,null,null,"",1,{"$f":"IF(ISERROR(VLOOKUP($E31,HolidayType,2,FALSE)),IF(OR(ISBLANK(B31),ISBLANK(C31),ISBLANK(D31)),\"0:00\",C31-(B31+D31)),IF(OR(ISBLANK(B31),ISBLANK(C31),ISBLANK(D31)),IF(VLOOKUP($E31,HolidayType,2,FALSE),IF(VLOOKUP($A31,Holidays,4,FALSE),VLOOKUP(WEEKDAY($A31,2),Holidays!$E$3:$H$9,4,FALSE),\"0:00\"),VLOOKUP(WEEKDAY($A31,2),Holidays!$E$3:$H$9,4,FALSE)),IF(C31-(B31+D31)>VLOOKUP(WEEKDAY($A31,2),Holidays!$E$3:$H$9,4,FALSE),C31-(B31+D31),IF(VLOOKUP($E31,HolidayType,2,FALSE),IF(VLOOKUP($A31,Holidays,4,FALSE),VLOOKUP(WEEKDAY($A31,2),Holidays!$E$3:$H$9,4,FALSE),C31-(B31+D31)),VLOOKUP(WEEKDAY($A31,2),Holidays!$E$3:$H$9,4,FALSE)))))","v":"0:00"},0,"0:00",0,"0:00",1]
["2025-11-22",null,null,null,"",1.5,{"$f":"IF(ISERROR(VLOOKUP($E32,HolidayType,2,FALSE)),IF(OR(ISBLANK(B32),ISBLANK(C32),ISBLANK(D32)),\"0:00\",C32-(B32+D32)),IF(OR(ISBLANK(B32),ISBLANK(C32),ISBLANK(D32)),IF(VLOOKUP($E32,HolidayType,2,FALSE),IF(VLOOKUP($A32,Holidays,4,FALSE),VLOOKUP(WEEKDAY($A32,2),Holidays!$E$3:$H$9,4,FALSE),\"0:00\"),VLOOKUP(WEEKDAY($A32,2),Holidays!$E$3:$H$9,4,FALSE)),IF(C32-(B32+D32)>VLOOKUP(WEEKDAY($A32,2),Holidays!$E$3:$H$9,4,FALSE),C32-(B32+D32),IF(VLOOKUP($E32,HolidayType,2,FALSE),IF(VLOOKUP($A32,Holidays,4,FALSE),VLOOKUP(WEEKDAY($A32,2),Holidays!$E$3:$H$9,4,FALSE),C32-(B32+D32)),VLOOKUP(WEEKDAY($A32,2),Holidays!$E$3:$H$9,4,FALSE)))))","v":"0:00"},0,"0:00",{"$f":"J31+H32","v":0},"0:00",0]
["2025-11-23",null,null,null,"",2,{"$f":"IF(ISERROR(VLOOKUP($E33,HolidayType,2,FALSE)),IF(OR(ISBLANK(B33),ISBLANK(C33),ISBLANK(D33)),\"0:00\",C33-(B33+D33)),IF(OR(ISBLANK(B33),ISBLANK(C33),ISBLANK(D33)),IF(VLOOKUP($E33,HolidayType,2,FALSE),IF(VLOOKUP($A33,Holidays,4,FALSE),VLOOKUP(WEEKDAY($A33,2),Holidays!$E$3:$H$9,4,FALSE),\"0:00\"),VLOOKUP(WEEKDAY($A33,2),Holidays!$E$3:$H$9,4,FALSE)),IF(C33-(B33+D33)>VLOOKUP(WEEKDAY($A33,2),Holidays!$E$3:$H$9,4,FALSE),C33-(B33+D33),IF(VLOOKUP($E33,HolidayType,2,FALSE),IF(VLOOKUP($A33,Holidays,4,FALSE),VLOOKUP(WEEKDAY($A33,2),Holidays!$E$3:$H$9,4,FALSE),C33-(B33+D33)),VLOOKUP(WEEKDAY($A33,2),Holidays!$E$3:$H$9,4,FALSE)))))","v":"0:00"},0,"0:00",{"$f":"J32+H33","v":0},"0:00",0]
["2025-11-24",null,null,null,"",1,{"$f":"IF(ISERROR(VLOOKUP($E34,HolidayType,2,FALSE)),IF(OR(ISBLANK(B34),ISBLANK(C34),ISBLANK(D34)),\"0:00\",C34-(B34+D34)),IF(OR(ISBLANK(B34),ISBLANK(C34),ISBLANK(D34)),IF(VLOOKUP($E34,HolidayType,2,FALSE),IF(VLOOKUP($A34,Holidays,4,FALSE),VLOOKUP(WEEKDAY($A34,2),Holidays!$E$3:$H$9,4,FALSE),\"0:00\"),VLOOKUP(WEEKDAY($A34,2),Holidays!$E$3:$H$9,4,FALSE)),IF(C34-(B34+D34)>VLOOKUP(WEEKDAY($A34,2),Holidays!$E$3:$H$9,4,FALSE),C34-(B34+D34),IF(VLOOKUP($E34,HolidayType,2,FALSE),IF(VLOOKUP($A34,Holidays,4,FALSE),VLOOKUP(WEEKDAY($A34,2),Holidays!$E$3:$H$9,4,FALSE),C34-(B34+D34)),VLOOKUP(WEEKDAY($A34,2),Holidays!$E$3:$H$9,4,FALSE)))))","v":"0:00"},0,"0:00",{"$f":"J31+H34","v":0},"0:00",1]
["2025-11-25",null,null,null,"",1,{"$f":"IF(ISERROR(VLOOKUP($E35,HolidayType,2,FALSE)),IF(OR(ISBLANK(B35),ISBLANK(C35),ISBLANK(D35)),\"0:00\",C35-(B35+D35)),IF(OR(ISBLANK(B35),ISBLANK(C35),ISBLANK(D35)),IF(VLOOKUP($E35,HolidayType,2,FALSE),IF(VLOOKUP($A35,Holidays,4,FALSE),VLOOKUP(WEEKDAY($A35,2),Holidays!$E$3:$H$9,4,FALSE),\"0:00\"),VLOOKUP(WEEKDAY($A35,2),Holidays!$E$3:$H$9,4,FALSE)),IF(C35-(B35+D35)>VLOOKUP(WEEKDAY($A35,2),Holidays!$E$3:$H$9,4,FALSE),C35-(B35+D35),IF(VLOOKUP($E35,HolidayType,2,FALSE),IF(VLOOKUP($A35,Holidays,4,FALSE),VLOOKUP(WEEKDAY($A35,2),Holidays!$E$3:$H$9,4,FALSE),C35-(B35+D35)),VLOOKUP(WEEKDAY($A35,2),Holidays!$E$3:$H$9,4,FALSE)))))","v":"0:00"},0,"0:00",0,"0:00",1]
["2025-11-26",null,null,null,"",1,{"$f":"IF(ISERROR(VLOOKUP($E36,HolidayType,2,FALSE)),IF(OR(ISBLANK(B36),ISBLANK(C36),ISBLANK(D36)),\"0:00\",C36-(B36+D36)),IF(OR(ISBLANK(B36),ISBLANK(C36),ISBLANK(D36)),IF(VLOOKUP($E36,HolidayType,2,FALSE),IF(VLOOKUP($A36,Holidays,4,FALSE),VLOOKUP(WEEKDAY($A36,2),Holidays!$E$3:$H$9,4,FALSE),\"0:00\"),VLOOKUP(WEEKDAY($A36,2),Holidays!$E$3:$H$9,4,FALSE)),IF(C36-(B36+D36)>VLOOKUP(WEEKDAY($A36,2),Holidays!$E$3:$H$9,4,FALSE),C36-(B36+D36),IF(VLOOKUP($E36,HolidayType,2,FALSE),IF(VLOOKUP($A36,Holidays,4,FALSE),VLOOKUP(WEEKDAY($A36,2),Holidays!$E$3:$H$9,4,FALSE),C36-(B36+D36)),VLOOKUP(WEEKDAY($A36,2),Holidays!$E$3:$H$9,4,FALSE)))))","v":"0:00"},0,"0:00",0,"0:00",1]
["2025-11-27",null,null,null,"",1,{"$f":"IF(ISERROR(VLOOKUP($E37,HolidayType,2,FALSE)),IF(OR(ISBLANK(B37),ISBLANK(C37),ISBLANK(D37)),\"0:00\",C37-(B37+D37)),IF(OR(ISBLANK(B37),ISBLANK(C37),ISBLANK(D37)),IF(VLOOKUP($E37,HolidayType,2,FALSE),IF(VLOOKUP($A37,Holidays,4,FALSE),VLOOKUP(WEEKDAY($A37,2),Holidays!$E$3:$H$9,4,FALSE),\"0:00\"),VLOOKUP(WEEKDAY($A37,2),Holidays!$E$3:$H$9,4,FALSE)),IF(C37-(B37+D37)>VLOOKUP(WEEKDAY($A37,2),Holidays!$E$3:$H$9,4,FALSE),C37-(B37+D37),IF(VLOOKUP($E37,HolidayType,2,FALSE),IF(VLOOKUP($A37,Holidays,4,FALSE),VLOOKUP(WEEKDAY($A37,2),Holidays!$E$3:$H$9,4,FALSE),C37-(B37+D37)),VLOOKUP(WEEKDAY($A37,2),Holidays!$E$3:$H$9,4,FALSE)))))","v":"0:00"},0,"0:00",0,"0:00",1]
["2025-11-28",null,null,null,"",1,{"$f":"IF(ISERROR(VLOOKUP($E38,HolidayType,2,FALSE)),IF(OR(ISBLANK(B38),ISBLANK(C38),ISBLANK(D38)),\"0:00\",C38-(B38+D38)),IF(OR(ISBLANK(B38),ISBLANK(C38),ISBLANK(D38)),IF(VLOOKUP($E38,HolidayType,2,FALSE),IF(VLOOKUP($A38,Holidays,4,FALSE),VLOOKUP(WEEKDAY($A38,2),Holidays!$E$3:$H$9,4,FALSE),\"0:00\"),VLOOKUP(WEEKDAY($A38,2),Holidays!$E$3:$H$9,4,FALSE)),IF(C38-(B38+D38)>VLOOKUP(WEEKDAY($A38,2),Holidays!$E$3:$H$9,4,FALSE),C38-(B38+D38),IF(VLOOKUP($E38,HolidayType,2,FALSE),IF(VLOOKUP($A38,Holidays,4,FALSE),VLOOKUP(WEEKDAY($A38,2),Holidays!$E$3:$H$9,4,FALSE),C38-(B38+D38)),VLOOKUP(WEEKDAY($A38,2),Holidays!$E$3:$H$9,4,FALSE)))))","v":"0:00"},0,"0:00",0,"0:00",1]
["2025-11-29",null,null,null,"",1.5,{"$f":"IF(ISERROR(VLOOKUP($E39,HolidayType,2,FALSE)),IF(OR(ISBLANK(B39),ISBLANK(C39),ISBLANK(D39)),\"0:00\",C39-(B39+D39)),IF(OR(ISBLANK(B39),ISBLANK(C39),ISBLANK(D39)),IF(VLOOKUP($E39,HolidayType,2,FALSE),IF(VLOOKUP($A39,Holidays,4,FALSE),VLOOKUP(WEEKDAY($A39,2),Holidays!$E$3:$H$9,4,FALSE),\"0:00\"),VLOOKUP(WEEKDAY($A39,2),Holidays!$E$3:$H$9,4,FALSE)),IF(C39-(B39+D39)>VLOOKUP(WEEKDAY($A39,2),Holidays!$E$3:$H$9,4,FALSE),C39-(B39+D39),IF(VLOOKUP($E39,HolidayType,2,FALSE),IF(VLOOKUP($A39,Holidays,4,FALSE),VLOOKUP(WEEKDAY($A39,2),Holidays!$E$3:$H$9,4,FALSE),C39-(B39+D39)),VLOOKUP(WEEKDAY($A39,2),Holidays!$E$3:$H$9,4,FALSE)))))","v":"0:00"},0,"0:00",0,"0:00",0]
["2025-11-30",null,null,null,"",2,{"$f":"IF(ISERROR(VLOOKUP($E40,HolidayType,2,FALSE)),IF(OR(ISBLANK(B40),ISBLANK(C40),ISBLANK(D40)),\"0:00\",C40-(B40+D40)),IF(OR(ISBLANK(B40),ISBLANK(C40),ISBLANK(D40)),IF(VLOOKUP($E40,HolidayType,2,FALSE),IF(VLOOKUP($A40,Holidays,4,FALSE),VLOOKUP(WEEKDAY($A40,2),Holidays!$E$3:$H$9,4,FALSE),\"0:00\"),VLOOKUP(WEEKDAY($A40,2),Holidays!$E$3:$H$9,4,FALSE)),IF(C40-(B40+D40)>VLOOKUP(WEEKDAY($A40,2),Holidays!$E$3:$H$9,4,FALSE),C40-(B40+D40),IF(VLOOKUP($E40,HolidayType,2,FALSE),IF(VLOOKUP($A40,Holidays,4,FALSE),VLOOKUP(WEEKDAY($A40,2),Holidays!$E$3:$H$9,4,FALSE),C40-(B40+D40)),VLOOKUP(WEEKDAY($A40,2),Holidays!$E$3:$H$9,4,FALSE)))))","v":"0:00"},0,"0:00",{"$f":"J39+H40","v":0},"0:00",0]
[null,null,null,null,null,null,null,null,null,null,null,{"$f":"SUM(L13:L40)","v":20}]
[null,null,null,null,"Total ordinary hours for accounting period",null,{"$f":"CONCATENATE(TRUNC(INT(ABS(J42))),\":\",TEXT(ABS(ABS(J42)-TRUNC(INT(ABS(J42))))*60,\"00\"))","v":"140:00"},null,null,{"$f":"J10*4","v":140}]
[null,null,null,null,"Total actual hours worked in accounting period",null,{"$f":"CONCATENATE(TRUNC(INT(ABS(J43))),\":\",TEXT(ABS(ABS(J43)-TRUNC(INT(ABS(J43))))*60,\"00\"))","v":"0:00"},null,null,{"$f":"J40","v":0}]
[null,null,null,null,"Difference",null,{"$f":"CONCATENATE(TRUNC(INT(ABS(J44))),\":\",TEXT(ABS(ABS(J44)-TRUNC(INT(ABS(J44))))*60,\"00\"))","v":"140:00"},null,{"$f":"IF(J44<0,\"Debit\",IF(J44=0,\"\",\"Credit\"))","v":"Debit"},{"$f":"ROUND(J43-J42,2)","v":-140}]
[null,null,null,null,"If applicable, carry over from previous period",null,"0:00",null,"Credit",{"$f":"IF(I45=\"Debit\",0-(LEFT(G45,FIND(\":\",G45)-1)+RIGHT(G45,2)/60),LEFT(G45,FIND(\":\",G45)-1)+RIGHT(G45,2)/60)","v":0}]
[null,null,null,null,"Carry over to following period",null,{"$f":"CONCATENATE(TRUNC(INT(ABS(J46))),\":\",TEXT(ABS(ABS(J46)-TRUNC(INT(ABS(J46))))*60,\"00\"))","v":"140:00"},null,{"$f":"IF(J46<0,\"Debit\",IF(J46=0,\"\",\"Credit\"))","v":"Debit"},{"$f":"ROUND(J44+J45,2)","v":-140}]
[]
[null,null,null,null,"Future flex leave bookings",null,"0:00",null,null,{"$f":"IF(I48=\"Debit\",0-(LEFT(G48,FIND(\":\",G48)-1)+RIGHT(G48,2)/60),LEFT(G48,FIND(\":\",G48)-1)+RIGHT(G48,2)/60)","v":0}]
[null,null,null,null,"Remaining",null,{"$f":"CONCATENATE(TRUNC(INT(ABS(J49))),\":\",TEXT(ABS(ABS(J49)-TRUNC(INT(ABS(J49))))*60,\"00\"))","v":"140:00"},null,{"$f":"IF(J49<0,\"Debit\",IF(J49=0,\"\",\"Credit\"))","v":"Debit"},{"$f":"J46-J48","v":-140}]
[]
[]
[]
["Signature",null,null,null,"Certified Correct"]
[null,"(Employee)",null,null,null,"(Supervisor)"]
[]
["Completed timesheets shall be authorised as correct by the supervisor and filed as an auditable document for 7yrs"]
[]
[]
["INSERT Comments/Leave below:"]
["Albury"]
["Annual Leave"]
["Carers Leave"]
["Concessional Half Day"]
["Dubbo"]
["Exam"]
["Flexi Day"]
["Goulburn"]
["Leave Without Pay"]
["Long Service Leave"]
["Maternity Leave"]
["Public Holiday"]
["Purchased Leave"]
["Sick Leave"]
["Special Leave"]
["Study Leave"]
["Training"]
["Wagga Wagga"]
["Working @ home"]

{"sheet":"Flexi Timesheet (13)","index":14,"n_rows":78,"n_cols":12,"rows_kept":78,"cut":false,"hidden":false,"merged":[[65,0,65,1],[7,2,7,4],[8,2,8,4],[52,1,52,2],[52,5,52,10],[53,1,53,2],[53,5,53,10],[59,0,59,1],[60,0,60,1],[62,0,62,1],[63,0,63,1],[64,0,64,1],[73,0,73,1],[77,0,77,1],[79,0,79,1],[66,0,66,1],[67,0,67,1],[68,0,68,1],[69,0,69,1],[70,0,70,1],[72,0,72,1]]}
[null,null,null,null,null,null,null,null,null,null,"Flexible Working Hours Scheme"]
[null,null,null,null,null,null,null,null,null,null,"2025 Flexi-Timesheet"]
[]
[]
[]
[]
[]
[null,"Name:"]
[null,"Team:",null,null,null,null,null,null,"Hours per Day",{"$f":"HOUR(K9)+MINUTE(K9)/60","v":7},"07:00:00","Don't override cell, click into cell and change time to equal your hours. i.e. 7 hours = 7:00am"]
[null,"Accounting Period:","2025-12-01",{"$f":"CONCATENATE(\" to \",TEXT(C10+27,\"dd-mmm-yyyy\"))","v":" to 28-Dec-2025"},null,null,null,null,"Days per Week",{"$f":"J9*K10","v":35},5]
[null,null,null,null,{"$f":"IF(ISERROR(VLOOKUP($A11,Holidays,2,FALSE)),\"\",VLOOKUP($A11,Holidays,2,0))","v":""},null,null,null,"Work Days",null,"Mo, Tu, We, Th, Fr"]
["Date","Start Time","Finish Time","Unpaid Breaks","Comments/Leave","Rate","Elapsed Time","Decimal Hours","Total Hours","Cum. Dec.","Cumulative Total"]
[{"$f":"C10","v":"2025-12-01"},null,null,null,null,1,{"$f":"IF(ISERROR(VLOOKUP($E13,HolidayType,2,FALSE)),IF(OR(ISBLANK(B13),ISBLANK(C13),ISBLANK(D13)),\"0:00\",C13-(B13+D13)),IF(OR(ISBLANK(B13),ISBLANK(C13),ISBLANK(D13)),IF(VLOOKUP($E13,HolidayType,2,FALSE),IF(VLOOKUP($A13,Holidays,4,FALSE),VLOOKUP(WEEKDAY($A13,2),Holidays!$E$3:$H$9,4,FALSE),\"0:00\"),VLOOKUP(WEEKDAY($A13,2),Holidays!$E$3:$H$9,4,FALSE)),IF(C13-(B13+D13)>VLOOKUP(WEEKDAY($A13,2),Holidays!$E$3:$H$9,4,FALSE),C13-(B13+D13),IF(VLOOKUP($E13,HolidayType,2,FALSE),IF(VLOOKUP($A13,Holidays,4,FALSE),VLOOKUP(WEEKDAY($A13,2),Holidays!$E$3:$H$9,4,FALSE),C13-(B13+D13)),VLOOKUP(WEEKDAY($A13,2),Holidays!$E$3:$H$9,4,FALSE)))))","v":"0:00"},{"$f":"((HOUR(G13)+MINUTE(G13)/60))*F13","v":0},{"$f":"CONCATENATE(TRUNC(INT(H13)),\":\",TEXT((H13-TRUNC(INT(H13)))*60,\"00\"))","v":"0:00"},{"$f":"H13","v":0},{"$f":"CONCATENATE(TRUNC(INT(J13)),\":\",TEXT((J13-TRUNC(INT(J13)))*60,\"00\"))","v":"0:00"},{"$f":"IF(WEEKDAY(A13,2)<6,IF(F13<>0,1,0),0)","v":1}]
[{"$f":"A13+1","v":"2025-12-02"},null,null,null,null,1,{"$f":"IF(ISERROR(VLOOKUP($E14,HolidayType,2,FALSE)),IF(OR(ISBLANK(B14),ISBLANK(C14),ISBLANK(D14)),\"0:00\",C14-(B14+D14)),IF(OR(ISBLANK(B14),ISBLANK(C14),ISBLANK(D14)),IF(VLOOKUP($E14,HolidayType,2,FALSE),IF(VLOOKUP($A14,Holidays,4,FALSE),VLOOKUP(WEEKDAY($A14,2),Holidays!$E$3:$H$9,4,FALSE),\"0:00\"),VLOOKUP(WEEKDAY($A14,2),Holidays!$E$3:$H$9,4,FALSE)),IF(C14-(B14+D14)>VLOOKUP(WEEKDAY($A14,2),Holidays!$E$3:$H$9,4,FALSE),C14-(B14+D14),IF(VLOOKUP($E14,HolidayType,2,FALSE),IF(VLOOKUP($A14,Holidays,4,FALSE),VLOOKUP(WEEKDAY($A14,2),Holidays!$E$3:$H$9,4,FALSE),C14-(B14+D14)),VLOOKUP(WEEKDAY($A14,2),Holidays!$E$3:$H$9,4,FALSE)))))","v":"0:00"},0,{"$f":"CONCATENATE(TRUNC(INT(H14)),\":\",TEXT((H14-TRUNC(INT(H14)))*60,\"00\"))","v":"0:00"},{"$f":"J13+H14","v":0},{"$f":"CONCATENATE(TRUNC(INT(J14)),\":\",TEXT((J14-TRUNC(INT(J14)))*60,\"00\"))","v":"0:00"},1]
["2025-12-03",null,null,null,null,1,{"$f":"IF(ISERROR(VLOOKUP($E15,HolidayType,2,FALSE)),IF(OR(ISBLANK(B15),ISBLANK(C15),ISBLANK(D15)),\"0:00\",C15-(B15+D15)),IF(OR(ISBLANK(B15),ISBLANK(C15),ISBLANK(D15)),IF(VLOOKUP($E15,HolidayType,2,FALSE),IF(VLOOKUP($A15,Holidays,4,FALSE),VLOOKUP(WEEKDAY($A15,2),Holidays!$E$3:$H$9,4,FALSE),\"0:00\"),VLOOKUP(WEEKDAY($A15,2),Holidays!$E$3:$H$9,4,FALSE)),IF(C15-(B15+D15)>VLOOKUP(WEEKDAY($A15,2),Holidays!$E$3:$H$9,4,FALSE),C15-(B15+D15),IF(VLOOKUP($E15,HolidayType,2,FALSE),IF(VLOOKUP($A15,Holidays,4,FALSE),VLOOKUP(WEEKDAY($A15,2),Holidays!$E$3:$H$9,4,FALSE),C15-(B15+D15)),VLOOKUP(WEEKDAY($A15,2),Holidays!$E$3:$H$9,4,FALSE)))))","v":"0:00"},0,"0:00",{"$f":"J14+H15","v":0},"0:00",1]
["2025-12-04",null,null,null,null,1,{"$f":"IF(ISERROR(VLOOKUP($E16,HolidayType,2,FALSE)),IF(OR(ISBLANK(B16),ISBLANK(C16),ISBLANK(D16)),\"0:00\",C16-(B16+D16)),IF(OR(ISBLANK(B16),ISBLANK(C16),ISBLANK(D16)),IF(VLOOKUP($E16,HolidayType,2,FALSE),IF(VLOOKUP($A16,Holidays,4,FALSE),VLOOKUP(WEEKDAY($A16,2),Holidays!$E$3:$H$9,4,FALSE),\"0:00\"),VLOOKUP(WEEKDAY($A16,2),Holidays!$E$3:$H$9,4,FALSE)),IF(C16-(B16+D16)>VLOOKUP(WEEKDAY($A16,2),Holidays!$E$3:$H$9,4,FALSE),C16-(B16+D16),IF(VLOOKUP($E16,HolidayType,2,FALSE),IF(VLOOKUP($A16,Holidays,4,FALSE),VLOOKUP(WEEKDAY($A16,2),Holidays!$E$3:$H$9,4,FALSE),C16-(B16+D16)),VLOOKUP(WEEKDAY($A16,2),Holidays!$E$3:$H$9,4,FALSE)))))","v":"0:00"},0,"0:00",0,"0:00",1]
["2025-12-05",null,null,null,null,1,{"$f":"IF(ISERROR(VLOOKUP($E17,HolidayType,2,FALSE)),IF(OR(ISBLANK(B17),ISBLANK(C17),ISBLANK(D17)),\"0:00\",C17-(B17+D17)),IF(OR(ISBLANK(B17),ISBLANK(C17),ISBLANK(D17)),IF(VLOOKUP($E17,HolidayType,2,FALSE),IF(VLOOKUP($A17,Holidays,4,FALSE),VLOOKUP(WEEKDAY($A17,2),Holidays!$E$3:$H$9,4,FALSE),\"0:00\"),VLOOKUP(WEEKDAY($A17,2),Holidays!$E$3:$H$9,4,FALSE)),IF(C17-(B17+D17)>VLOOKUP(WEEKDAY($A17,2),Holidays!$E$3:$H$9,4,FALSE),C17-(B17+D17),IF(VLOOKUP($E17,HolidayType,2,FALSE),IF(VLOOKUP($A17,Holidays,4,FALSE),VLOOKUP(WEEKDAY($A17,2),Holidays!$E$3:$H$9,4,FALSE),C17-(B17+D17)),VLOOKUP(WEEKDAY($A17,2),Holidays!$E$3:$H$9,4,FALSE)))))","v":"0:00"},0,"0:00",0,"0:00",1]
["2025-12-06",null,null,null,{"$f":"IF(ISERROR(VLOOKUP($A18,Holidays,2,FALSE)),\"\",VLOOKUP($A18,Holidays,2,0))","v":""},1.5,{"$f":"IF(ISERROR(VLOOKUP($E18,HolidayType,2,FALSE)),IF(OR(ISBLANK(B18),ISBLANK(C18),ISBLANK(D18)),\"0:00\",C18-(B18+D18)),IF(OR(ISBLANK(B18),ISBLANK(C18),ISBLANK(D18)),IF(VLOOKUP($E18,HolidayType,2,FALSE),IF(VLOOKUP($A18,Holidays,4,FALSE),VLOOKUP(WEEKDAY($A18,2),Holidays!$E$3:$H$9,4,FALSE),\"0:00\"),VLOOKUP(WEEKDAY($A18,2),Holidays!$E$3:$H$9,4,FALSE)),IF(C18-(B18+D18)>VLOOKUP(WEEKDAY($A18,2),Holidays!$E$3:$H$9,4,FALSE),C18-(B18+D18),IF(VLOOKUP($E18,HolidayType,2,FALSE),IF(VLOOKUP($A18,Holidays,4,FALSE),VLOOKUP(WEEKDAY($A18,2),Holidays!$E$3:$H$9,4,FALSE),C18-(B18+D18)),VLOOKUP(WEEKDAY($A18,2),Holidays!$E$3:$H$9,4,FALSE)))))","v":"0:00"},0,"0:00",0,"0:00",0]
["2025-12-07",null,null,null,{"$f":"IF(ISERROR(VLOOKUP($A19,Holidays,2,FALSE)),\"\",VLOOKUP($A19,Holidays,2,0))","v":""},2,{"$f":"IF(ISERROR(VLOOKUP($E19,HolidayType,2,FALSE)),IF(OR(ISBLANK(B19),ISBLANK(C19),ISBLANK(D19)),\"0:00\",C19-(B19+D19)),IF(OR(ISBLANK(B19),ISBLANK(C19),ISBLANK(D19)),IF(VLOOKUP($E19,HolidayType,2,FALSE),IF(VLOOKUP($A19,Holidays,4,FALSE),VLOOKUP(WEEKDAY($A19,2),Holidays!$E$3:$H$9,4,FALSE),\"0:00\"),VLOOKUP(WEEKDAY($A19,2),Holidays!$E$3:$H$9,4,FALSE)),IF(C19-(B19+D19)>VLOOKUP(WEEKDAY($A19,2),Holidays!$E$3:$H$9,4,FALSE),C19-(B19+D19),IF(VLOOKUP($E19,HolidayType,2,FALSE),IF(VLOOKUP($A19,Holidays,4,FALSE),VLOOKUP(WEEKDAY($A19,2),Holidays!$E$3:$H$9,4,FALSE),C19-(B19+D19)),VLOOKUP(WEEKDAY($A19,2),Holidays!$E$3:$H$9,4,FALSE)))))","v":"0:00"},0,"0:00",{"$f":"J18+H19","v":0},"0:00",0]
["2025-12-08",null,null,null,null,1,{"$f":"IF(ISERROR(VLOOKUP($E20,HolidayType,2,FALSE)),IF(OR(ISBLANK(B20),ISBLANK(C20),ISBLANK(D20)),\"0:00\",C20-(B20+D20)),IF(OR(ISBLANK(B20),ISBLANK(C20),ISBLANK(D20)),IF(VLOOKUP($E20,HolidayType,2,FALSE),IF(VLOOKUP($A20,Holidays,4,FALSE),VLOOKUP(WEEKDAY($A20,2),Holidays!$E$3:$H$9,4,FALSE),\"0:00\"),VLOOKUP(WEEKDAY($A20,2),Holidays!$E$3:$H$9,4,FALSE)),IF(C20-(B20+D20)>VLOOKUP(WEEKDAY($A20,2),Holidays!$E$3:$H$9,4,FALSE),C20-(B20+D20),IF(VLOOKUP($E20,HolidayType,2,FALSE),IF(VLOOKUP($A20,Holidays,4,FALSE),VLOOKUP(WEEKDAY($A20,2),Holidays!$E$3:$H$9,4,FALSE),C20-(B20+D20)),VLOOKUP(WEEKDAY($A20,2),Holidays!$E$3:$H$9,4,FALSE)))))","v":"0:00"},0,"0:00",{"$f":"J19+H20","v":0},"0:00",1]
["2025-12-09",null,null,null,null,1,{"$f":"IF(ISERROR(VLOOKUP($E21,HolidayType,2,FALSE)),IF(OR(ISBLANK(B21),ISBLANK(C21),ISBLANK(D21)),\"0:00\",C21-(B21+D21)),IF(OR(ISBLANK(B21),ISBLANK(C21),ISBLANK(D21)),IF(VLOOKUP($E21,HolidayType,2,FALSE),IF(VLOOKUP($A21,Holidays,4,FALSE),VLOOKUP(WEEKDAY($A21,2),Holidays!$E$3:$H$9,4,FALSE),\"0:00\"),VLOOKUP(WEEKDAY($A21,2),Holidays!$E$3:$H$9,4,FALSE)),IF(C21-(B21+D21)>VLOOKUP(WEEKDAY($A21,2),Holidays!$E$3:$H$9,4,FALSE),C21-(B21+D21),IF(VLOOKUP($E21,HolidayType,2,FALSE),IF(VLOOKUP($A21,Holidays,4,FALSE),VLOOKUP(WEEKDAY($A21,2),Holidays!$E$3:$H$9,4,FALSE),C21-(B21+D21)),VLOOKUP(WEEKDAY($A21,2),Holidays!$E$3:$H$9,4,FALSE)))))","v":"0:00"},0,"0:00",0,"0:00",1]
["2025-12-10",null,null,null,null,1,{"$f":"IF(ISERROR(VLOOKUP($E22,HolidayType,2,FALSE)),IF(OR(ISBLANK(B22),ISBLANK(C22),ISBLANK(D22)),\"0:00\",C22-(B22+D22)),IF(OR(ISBLANK(B22),ISBLANK(C22),ISBLANK(D22)),IF(VLOOKUP($E22,HolidayType,2,FALSE),IF(VLOOKUP($A22,Holidays,4,FALSE),VLOOKUP(WEEKDAY($A22,2),Holidays!$E$3:$H$9,4,FALSE),\"0:00\"),VLOOKUP(WEEKDAY($A22,2),Holidays!$E$3:$H$9,4,FALSE)),IF(C22-(B22+D22)>VLOOKUP(WEEKDAY($A22,2),Holidays!$E$3:$H$9,4,FALSE),C22-(B22+D22),IF(VLOOKUP($E22,HolidayType,2,FALSE),IF(VLOOKUP($A22,Holidays,4,FALSE),VLOOKUP(WEEKDAY($A22,2),Holidays!$E$3:$H$9,4,FALSE),C22-(B22+D22)),VLOOKUP(WEEKDAY($A22,2),Holidays!$E$3:$H$9,4,FALSE)))))","v":"0:00"},0,"0:00",0,"0:00",1]
["2025-12-11",null,null,null,null,1,{"$f":"IF(ISERROR(VLOOKUP($E23,HolidayType,2,FALSE)),IF(OR(ISBLANK(B23),ISBLANK(C23),ISBLANK(D23)),\"0:00\",C23-(B23+D23)),IF(OR(ISBLANK(B23),ISBLANK(C23),ISBLANK(D23)),IF(VLOOKUP($E23,HolidayType,2,FALSE),IF(VLOOKUP($A23,Holidays,4,FALSE),VLOOKUP(WEEKDAY($A23,2),Holidays!$E$3:$H$9,4,FALSE),\"0:00\"),VLOOKUP(WEEKDAY($A23,2),Holidays!$E$3:$H$9,4,FALSE)),IF(C23-(B23+D23)>VLOOKUP(WEEKDAY($A23,2),Holidays!$E$3:$H$9,4,FALSE),C23-(B23+D23),IF(VLOOKUP($E23,HolidayType,2,FALSE),IF(VLOOKUP($A23,Holidays,4,FALSE),VLOOKUP(WEEKDAY($A23,2),Holidays!$E$3:$H$9,4,FALSE),C23-(B23+D23)),VLOOKUP(WEEKDAY($A23,2),Holidays!$E$3:$H$9,4,FALSE)))))","v":"0:00"},0,"0:00",0,"0:00",1]
["2025-12-12",null,null,null,null,1,{"$f":"IF(ISERROR(VLOOKUP($E24,HolidayType,2,FALSE)),IF(OR(ISBLANK(B24),ISBLANK(C24),ISBLANK(D24)),\"0:00\",C24-(B24+D24)),IF(OR(ISBLANK(B24),ISBLANK(C24),ISBLANK(D24)),IF(VLOOKUP($E24,HolidayType,2,FALSE),IF(VLOOKUP($A24,Holidays,4,FALSE),VLOOKUP(WEEKDAY($A24,2),Holidays!$E$3:$H$9,4,FALSE),\"0:00\"),VLOOKUP(WEEKDAY($A24,2),Holidays!$E$3:$H$9,4,FALSE)),IF(C24-(B24+D24)>VLOOKUP(WEEKDAY($A24,2),Holidays!$E$3:$H$9,4,FALSE),C24-(B24+D24),IF(VLOOKUP($E24,HolidayType,2,FALSE),IF(VLOOKUP($A24,Holidays,4,FALSE),VLOOKUP(WEEKDAY($A24,2),Holidays!$E$3:$H$9,4,FALSE),C24-(B24+D24)),VLOOKUP(WEEKDAY($A24,2),Holidays!$E$3:$H$9,4,FALSE)))))","v":"0:00"},0,"0:00",0,"0:00",1]
["2025-12-13",null,null,null,null,1.5,{"$f":"IF(ISERROR(VLOOKUP($E25,HolidayType,2,FALSE)),IF(OR(ISBLANK(B25),ISBLANK(C25),ISBLANK(D25)),\"0:00\",C25-(B25+D25)),IF(OR(ISBLANK(B25),ISBLANK(C25),ISBLANK(D25)),IF(VLOOKUP($E25,HolidayType,2,FALSE),IF(VLOOKUP($A25,Holidays,4,FALSE),VLOOKUP(WEEKDAY($A25,2),Holidays!$E$3:$H$9,4,FALSE),\"0:00\"),VLOOKUP(WEEKDAY($A25,2),Holidays!$E$3:$H$9,4,FALSE)),IF(C25-(B25+D25)>VLOOKUP(WEEKDAY($A25,2),Holidays!$E$3:$H$9,4,FALSE),C25-(B25+D25),IF(VLOOKUP($E25,HolidayType,2,FALSE),IF(VLOOKUP($A25,Holidays,4,FALSE),VLOOKUP(WEEKDAY($A25,2),Holidays!$E$3:$H$9,4,FALSE),C25-(B25+D25)),VLOOKUP(WEEKDAY($A25,2),Holidays!$E$3:$H$9,4,FALSE)))))","v":"0:00"},0,"0:00",{"$f":"J24+H25","v":0},"0:00",0]
["2025-12-14",null,null,null,null,2,{"$f":"IF(ISERROR(VLOOKUP($E26,HolidayType,2,FALSE)),IF(OR(ISBLANK(B26),ISBLANK(C26),ISBLANK(D26)),\"0:00\",C26-(B26+D26)),IF(OR(ISBLANK(B26),ISBLANK(C26),ISBLANK(D26)),IF(VLOOKUP($E26,HolidayType,2,FALSE),IF(VLOOKUP($A26,Holidays,4,FALSE),VLOOKUP(WEEKDAY($A26,2),Holidays!$E$3:$H$9,4,FALSE),\"0:00\"),VLOOKUP(WEEKDAY($A26,2),Holidays!$E$3:$H$9,4,FALSE)),IF(C26-(B26+D26)>VLOOKUP(WEEKDAY($A26,2),Holidays!$E$3:$H$9,4,FALSE),C26-(B26+D26),IF(VLOOKUP($E26,HolidayType,2,FALSE),IF(VLOOKUP($A26,Holidays,4,FALSE),VLOOKUP(WEEKDAY($A26,2),Holidays!$E$3:$H$9,4,FALSE),C26-(B26+D26)),VLOOKUP(WEEKDAY($A26,2),Holidays!$E$3:$H$9,4,FALSE)))))","v":"0:00"},0,"0:00",{"$f":"J25+H26","v":0},"0:00",0]
["2025-12-15",null,null,null,null,1,{"$f":"IF(ISERROR(VLOOKUP($E27,HolidayType,2,FALSE)),IF(OR(ISBLANK(B27),ISBLANK(C27),ISBLANK(D27)),\"0:00\",C27-(B27+D27)),IF(OR(ISBLANK(B27),ISBLANK(C27),ISBLANK(D27)),IF(VLOOKUP($E27,HolidayType,2,FALSE),IF(VLOOKUP($A27,Holidays,4,FALSE),VLOOKUP(WEEKDAY($A27,2),Holidays!$E$3:$H$9,4,FALSE),\"0:00\"),VLOOKUP(WEEKDAY($A27,2),Holidays!$E$3:$H$9,4,FALSE)),IF(C27-(B27+D27)>VLOOKUP(WEEKDAY($A27,2),Holidays!$E$3:$H$9,4,FALSE),C27-(B27+D27),IF(VLOOKUP($E27,HolidayType,2,FALSE),IF(VLOOKUP($A27,Holidays,4,FALSE),VLOOKUP(WEEKDAY($A27,2),Holidays!$E$3:$H$9,4,FALSE),C27-(B27+D27)),VLOOKUP(WEEKDAY($A27,2),Holidays!$E$3:$H$9,4,FALSE)))))","v":"0:00"},0,"0:00",{"$f":"J26+H27","v":0},"0:00",1]
["2025-12-16",null,null,null,null,1,{"$f":"IF(ISERROR(VLOOKUP($E28,HolidayType,2,FALSE)),IF(OR(ISBLANK(B28),ISBLANK(C28),ISBLANK(D28)),\"0:00\",C28-(B28+D28)),IF(OR(ISBLANK(B28),ISBLANK(C28),ISBLANK(D28)),IF(VLOOKUP($E28,HolidayType,2,FALSE),IF(VLOOKUP($A28,Holidays,4,FALSE),VLOOKUP(WEEKDAY($A28,2),Holidays!$E$3:$H$9,4,FALSE),\"0:00\"),VLOOKUP(WEEKDAY($A28,2),Holidays!$E$3:$H$9,4,FALSE)),IF(C28-(B28+D28)>VLOOKUP(WEEKDAY($A28,2),Holidays!$E$3:$H$9,4,FALSE),C28-(B28+D28),IF(VLOOKUP($E28,HolidayType,2,FALSE),IF(VLOOKUP($A28,Holidays,4,FALSE),VLOOKUP(WEEKDAY($A28,2),Holidays!$E$3:$H$9,4,FALSE),C28-(B28+D28)),VLOOKUP(WEEKDAY($A28,2),Holidays!$E$3:$H$9,4,FALSE)))))","v":"0:00"},0,"0:00",0,"0:00",1]
["2025-12-17",null,null,null,null,1,{"$f":"IF(ISERROR(VLOOKUP($E29,HolidayType,2,FALSE)),IF(OR(ISBLANK(B29),ISBLANK(C29),ISBLANK(D29)),\"0:00\",C29-(B29+D29)),IF(OR(ISBLANK(B29),ISBLANK(C29),ISBLANK(D29)),IF(VLOOKUP($E29,HolidayType,2,FALSE),IF(VLOOKUP($A29,Holidays,4,FALSE),VLOOKUP(WEEKDAY($A29,2),Holidays!$E$3:$H$9,4,FALSE),\"0:00\"),VLOOKUP(WEEKDAY($A29,2),Holidays!$E$3:$H$9,4,FALSE)),IF(C29-(B29+D29)>VLOOKUP(WEEKDAY($A29,2),Holidays!$E$3:$H$9,4,FALSE),C29-(B29+D29),IF(VLOOKUP($E29,HolidayType,2,FALSE),IF(VLOOKUP($A29,Holidays,4,FALSE),VLOOKUP(WEEKDAY($A29,2),Holidays!$E$3:$H$9,4,FALSE),C29-(B29+D29)),VLOOKUP(WEEKDAY($A29,2),Holidays!$E$3:$H$9,4,FALSE)))))","v":"0:00"},0,"0:00",0,"0:00",1]
["2025-12-18",null,null,null,{"$f":"IF(ISERROR(VLOOKUP($A30,Holidays,2,FALSE)),\"\",VLOOKUP($A30,Holidays,2,0))","v":""},1,{"$f":"IF(ISERROR(VLOOKUP($E30,HolidayType,2,FALSE)),IF(OR(ISBLANK(B30),ISBLANK(C30),ISBLANK(D30)),\"0:00\",C30-(B30+D30)),IF(OR(ISBLANK(B30),ISBLANK(C30),ISBLANK(D30)),IF(VLOOKUP($E30,HolidayType,2,FALSE),IF(VLOOKUP($A30,Holidays,4,FALSE),VLOOKUP(WEEKDAY($A30,2),Holidays!$E$3:$H$9,4,FALSE),\"0:00\"),VLOOKUP(WEEKDAY($A30,2),Holidays!$E$3:$H$9,4,FALSE)),IF(C30-(B30+D30)>VLOOKUP(WEEKDAY($A30,2),Holidays!$E$3:$H$9,4,FALSE),C30-(B30+D30),IF(VLOOKUP($E30,HolidayType,2,FALSE),IF(VLOOKUP($A30,Holidays,4,FALSE),VLOOKUP(WEEKDAY($A30,2),Holidays!$E$3:$H$9,4,FALSE),C30-(B30+D30)),VLOOKUP(WEEKDAY($A30,2),Holidays!$E$3:$H$9,4,FALSE)))))","v":"0:00"},0,"0:00",0,"0:00",1]
["2025-12-19",null,null,null,"",1,{"$f":"IF(ISERROR(VLOOKUP($E31,HolidayType,2,FALSE)),IF(OR(ISBLANK(B31),ISBLANK(C31),ISBLANK(D31)),\"0:00\",C31-(B31+D31)),IF(OR(ISBLANK(B31),ISBLANK(C31),ISBLANK(D31)),IF(VLOOKUP($E31,HolidayType,2,FALSE),IF(VLOOKUP($A31,Holidays,4,FALSE),VLOOKUP(WEEKDAY($A31,2),Holidays!$E$3:$H$9,4,FALSE),\"0:00\"),VLOOKUP(WEEKDAY($A31,2),Holidays!$E$3:$H$9,4,FALSE)),IF(C31-(B31+D31)>VLOOKUP(WEEKDAY($A31,2),Holidays!$E$3:$H$9,4,FALSE),C31-(B31+D31),IF(VLOOKUP($E31,HolidayType,2,FALSE),IF(VLOOKUP($A31,Holidays,4,FALSE),VLOOKUP(WEEKDAY($A31,2),Holidays!$E$3:$H$9,4,FALSE),C31-(B31+D31)),VLOOKUP(WEEKDAY($A31,2),Holidays!$E$3:$H$9,4,FALSE)))))","v":"0:00"},0,"0:00",0,"0:00",1]
["2025-12-20",null,null,null,"",1.5,{"$f":"IF(ISERROR(VLOOKUP($E32,HolidayType,2,FALSE)),IF(OR(ISBLANK(B32),ISBLANK(C32),ISBLANK(D32)),\"0:00\",C32-(B32+D32)),IF(OR(ISBLANK(B32),ISBLANK(C32),ISBLANK(D32)),IF(VLOOKUP($E32,HolidayType,2,FALSE),IF(VLOOKUP($A32,Holidays,4,FALSE),VLOOKUP(WEEKDAY($A32,2),Holidays!$E$3:$H$9,4,FALSE),\"0:00\"),VLOOKUP(WEEKDAY($A32,2),Holidays!$E$3:$H$9,4,FALSE)),IF(C32-(B32+D32)>VLOOKUP(WEEKDAY($A32,2),Holidays!$E$3:$H$9,4,FALSE),C32-(B32+D32),IF(VLOOKUP($E32,HolidayType,2,FALSE),IF(VLOOKUP($A32,Holidays,4,FALSE),VLOOKUP(WEEKDAY($A32,2),Holidays!$E$3:$H$9,4,FALSE),C32-(B32+D32)),VLOOKUP(WEEKDAY($A32,2),Holidays!$E$3:$H$9,4,FALSE)))))","v":"0:00"},0,"0:00",{"$f":"J31+H32","v":0},"0:00",0]
["2025-12-21",null,null,null,"",2,{"$f":"IF(ISERROR(VLOOKUP($E33,HolidayType,2,FALSE)),IF(OR(ISBLANK(B33),ISBLANK(C33),ISBLANK(D33)),\"0:00\",C33-(B33+D33)),IF(OR(ISBLANK(B33),ISBLANK(C33),ISBLANK(D33)),IF(VLOOKUP($E33,HolidayType,2,FALSE),IF(VLOOKUP($A33,Holidays,4,FALSE),VLOOKUP(WEEKDAY($A33,2),Holidays!$E$3:$H$9,4,FALSE),\"0:00\"),VLOOKUP(WEEKDAY($A33,2),Holidays!$E$3:$H$9,4,FALSE)),IF(C33-(B33+D33)>VLOOKUP(WEEKDAY($A33,2),Holidays!$E$3:$H$9,4,FALSE),C33-(B33+D33),IF(VLOOKUP($E33,HolidayType,2,FALSE),IF(VLOOKUP($A33,Holidays,4,FALSE),VLOOKUP(WEEKDAY($A33,2),Holidays!$E$3:$H$9,4,FALSE),C33-(B33+D33)),VLOOKUP(WEEKDAY($A33,2),Holidays!$E$3:$H$9,4,FALSE)))))","v":"0:00"},0,"0:00",{"$f":"J32+H33","v":0},"0:00",0]
["2025-12-22",null,null,null,"",1,{"$f":"IF(ISERROR(VLOOKUP($E34,HolidayType,2,FALSE)),IF(OR(ISBLANK(B34),ISBLANK(C34),ISBLANK(D34)),\"0:00\",C34-(B34+D34)),IF(OR(ISBLANK(B34),ISBLANK(C34),ISBLANK(D34)),IF(VLOOKUP($E34,HolidayType,2,FALSE),IF(VLOOKUP($A34,Holidays,4,FALSE),VLOOKUP(WEEKDAY($A34,2),Holidays!$E$3:$H$9,4,FALSE),\"0:00\"),VLOOKUP(WEEKDAY($A34,2),Holidays!$E$3:$H$9,4,FALSE)),IF(C34-(B34+D34)>VLOOKUP(WEEKDAY($A34,2),Holidays!$E$3:$H$9,4,FALSE),C34-(B34+D34),IF(VLOOKUP($E34,HolidayType,2,FALSE),IF(VLOOKUP($A34,Holidays,4,FALSE),VLOOKUP(WEEKDAY($A34,2),Holidays!$E$3:$H$9,4,FALSE),C34-(B34+D34)),VLOOKUP(WEEKDAY($A34,2),Holidays!$E$3:$H$9,4,FALSE)))))","v":"0:00"},0,"0:00",{"$f":"J31+H34","v":0},"0:00",1]
["2025-12-23",null,null,null,"",1,{"$f":"IF(ISERROR(VLOOKUP($E35,HolidayType,2,FALSE)),IF(OR(ISBLANK(B35),ISBLANK(C35),ISBLANK(D35)),\"0:00\",C35-(B35+D35)),IF(OR(ISBLANK(B35),ISBLANK(C35),ISBLANK(D35)),IF(VLOOKUP($E35,HolidayType,2,FALSE),IF(VLOOKUP($A35,Holidays,4,FALSE),VLOOKUP(WEEKDAY($A35,2),Holidays!$E$3:$H$9,4,FALSE),\"0:00\"),VLOOKUP(WEEKDAY($A35,2),Holidays!$E$3:$H$9,4,FALSE)),IF(C35-(B35+D35)>VLOOKUP(WEEKDAY($A35,2),Holidays!$E$3:$H$9,4,FALSE),C35-(B35+D35),IF(VLOOKUP($E35,HolidayType,2,FALSE),IF(VLOOKUP($A35,Holidays,4,FALSE),VLOOKUP(WEEKDAY($A35,2),Holidays!$E$3:$H$9,4,FALSE),C35-(B35+D35)),VLOOKUP(WEEKDAY($A35,2),Holidays!$E$3:$H$9,4,FALSE)))))","v":"0:00"},0,"0:00",0,"0:00",1]
["2025-12-24",null,null,null,"",1,{"$f":"IF(ISERROR(VLOOKUP($E36,HolidayType,2,FALSE)),IF(OR(ISBLANK(B36),ISBLANK(C36),ISBLANK(D36)),\"0:00\",C36-(B36+D36)),IF(OR(ISBLANK(B36),ISBLANK(C36),ISBLANK(D36)),IF(VLOOKUP($E36,HolidayType,2,FALSE),IF(VLOOKUP($A36,Holidays,4,FALSE),VLOOKUP(WEEKDAY($A36,2),Holidays!$E$3:$H$9,4,FALSE),\"0:00\"),VLOOKUP(WEEKDAY($A36,2),Holidays!$E$3:$H$9,4,FALSE)),IF(C36-(B36+D36)>VLOOKUP(WEEKDAY($A36,2),Holidays!$E$3:$H$9,4,FALSE),C36-(B36+D36),IF(VLOOKUP($E36,HolidayType,2,FALSE),IF(VLOOKUP($A36,Holidays,4,FALSE),VLOOKUP(WEEKDAY($A36,2),Holidays!$E$3:$H$9,4,FALSE),C36-(B36+D36)),VLOOKUP(WEEKDAY($A36,2),Holidays!$E$3:$H$9,4,FALSE)))))","v":"0:00"},0,"0:00",0,"0:00",1]
["2025-12-25",null,null,null,"Public Holiday",1,{"$f":"IF(ISERROR(VLOOKUP($E37,HolidayType,2,FALSE)),IF(OR(ISBLANK(B37),ISBLANK(C37),ISBLANK(D37)),\"0:00\",C37-(B37+D37)),IF(OR(ISBLANK(B37),ISBLANK(C37),ISBLANK(D37)),IF(VLOOKUP($E37,HolidayType,2,FALSE),IF(VLOOKUP($A37,Holidays,4,FALSE),VLOOKUP(WEEKDAY($A37,2),Holidays!$E$3:$H$9,4,FALSE),\"0:00\"),VLOOKUP(WEEKDAY($A37,2),Holidays!$E$3:$H$9,4,FALSE)),IF(C37-(B37+D37)>VLOOKUP(WEEKDAY($A37,2),Holidays!$E$3:$H$9,4,FALSE),C37-(B37+D37),IF(VLOOKUP($E37,HolidayType,2,FALSE),IF(VLOOKUP($A37,Holidays,4,FALSE),VLOOKUP(WEEKDAY($A37,2),Holidays!$E$3:$H$9,4,FALSE),C37-(B37+D37)),VLOOKUP(WEEKDAY($A37,2),Holidays!$E$3:$H$9,4,FALSE)))))","v":"07:00:00"},7,"7:00",7,"7:00",1]
["2025-12-26",null,null,null,"Public Holiday",1,{"$f":"IF(ISERROR(VLOOKUP($E38,HolidayType,2,FALSE)),IF(OR(ISBLANK(B38),ISBLANK(C38),ISBLANK(D38)),\"0:00\",C38-(B38+D38)),IF(OR(ISBLANK(B38),ISBLANK(C38),ISBLANK(D38)),IF(VLOOKUP($E38,HolidayType,2,FALSE),IF(VLOOKUP($A38,Holidays,4,FALSE),VLOOKUP(WEEKDAY($A38,2),Holidays!$E$3:$H$9,4,FALSE),\"0:00\"),VLOOKUP(WEEKDAY($A38,2),Holidays!$E$3:$H$9,4,FALSE)),IF(C38-(B38+D38)>VLOOKUP(WEEKDAY($A38,2),Holidays!$E$3:$H$9,4,FALSE),C38-(B38+D38),IF(VLOOKUP($E38,HolidayType,2,FALSE),IF(VLOOKUP($A38,Holidays,4,FALSE),VLOOKUP(WEEKDAY($A38,2),Holidays!$E$3:$H$9,4,FALSE),C38-(B38+D38)),VLOOKUP(WEEKDAY($A38,2),Holidays!$E$3:$H$9,4,FALSE)))))","v":"07:00:00"},7,"7:00",14,"14:00",1]
["2025-12-27",null,null,null,"",1.5,{"$f":"IF(ISERROR(VLOOKUP($E39,HolidayType,2,FALSE)),IF(OR(ISBLANK(B39),ISBLANK(C39),ISBLANK(D39)),\"0:00\",C39-(B39+D39)),IF(OR(ISBLANK(B39),ISBLANK(C39),ISBLANK(D39)),IF(VLOOKUP($E39,HolidayType,2,FALSE),IF(VLOOKUP($A39,Holidays,4,FALSE),VLOOKUP(WEEKDAY($A39,2),Holidays!$E$3:$H$9,4,FALSE),\"0:00\"),VLOOKUP(WEEKDAY($A39,2),Holidays!$E$3:$H$9,4,FALSE)),IF(C39-(B39+D39)>VLOOKUP(WEEKDAY($A39,2),Holidays!$E$3:$H$9,4,FALSE),C39-(B39+D39),IF(VLOOKUP($E39,HolidayType,2,FALSE),IF(VLOOKUP($A39,Holidays,4,FALSE),VLOOKUP(WEEKDAY($A39,2),Holidays!$E$3:$H$9,4,FALSE),C39-(B39+D39)),VLOOKUP(WEEKDAY($A39,2),Holidays!$E$3:$H$9,4,FALSE)))))","v":"0:00"},0,"0:00",14,"14:00",0]
["2025-12-28",null,null,null,"",2,{"$f":"IF(ISERROR(VLOOKUP($E40,HolidayType,2,FALSE)),IF(OR(ISBLANK(B40),ISBLANK(C40),ISBLANK(D40)),\"0:00\",C40-(B40+D40)),IF(OR(ISBLANK(B40),ISBLANK(C40),ISBLANK(D40)),IF(VLOOKUP($E40,HolidayType,2,FALSE),IF(VLOOKUP($A40,Holidays,4,FALSE),VLOOKUP(WEEKDAY($A40,2),Holidays!$E$3:$H$9,4,FALSE),\"0:00\"),VLOOKUP(WEEKDAY($A40,2),Holidays!$E$3:$H$9,4,FALSE)),IF(C40-(B40+D40)>VLOOKUP(WEEKDAY($A40,2),Holidays!$E$3:$H$9,4,FALSE),C40-(B40+D40),IF(VLOOKUP($E40,HolidayType,2,FALSE),IF(VLOOKUP($A40,Holidays,4,FALSE),VLOOKUP(WEEKDAY($A40,2),Holidays!$E$3:$H$9,4,FALSE),C40-(B40+D40)),VLOOKUP(WEEKDAY($A40,2),Holidays!$E$3:$H$9,4,FALSE)))))","v":"0:00"},0,"0:00",{"$f":"J39+H40","v":14},"14:00",0]
[null,null,null,null,null,null,null,null,null,null,null,{"$f":"SUM(L13:L40)","v":20}]
[null,null,null,null,"Total ordinary hours for accounting period",null,{"$f":"CONCATENATE(TRUNC(INT(ABS(J42))),\":\",TEXT(ABS(ABS(J42)-TRUNC(INT(ABS(J42))))*60,\"00\"))","v":"140:00"},null,null,{"$f":"J10*4","v":140}]
[null,null,null,null,"Total actual hours worked in accounting period",null,{"$f":"CONCATENATE(TRUNC(INT(ABS(J43))),\":\",TEXT(ABS(ABS(J43)-TRUNC(INT(ABS(J43))))*60,\"00\"))","v":"14:00"},null,null,{"$f":"J40","v":14}]
[null,null,null,null,"Difference",null,{"$f":"CONCATENATE(TRUNC(INT(ABS(J44))),\":\",TEXT(ABS(ABS(J44)-TRUNC(INT(ABS(J44))))*60,\"00\"))","v":"126:00"},null,{"$f":"IF(J44<0,\"Debit\",IF(J44=0,\"\",\"Credit\"))","v":"Debit"},{"$f":"ROUND(J43-J42,2)","v":-126}]
[null,null,null,null,"If applicable, carry over from previous period",null,"0:00",null,"Credit",{"$f":"IF(I45=\"Debit\",0-(LEFT(G45,FIND(\":\",G45)-1)+RIGHT(G45,2)/60),LEFT(G45,FIND(\":\",G45)-1)+RIGHT(G45,2)/60)","v":0}]
[null,null,null,null,"Carry over to following period",null,{"$f":"CONCATENATE(TRUNC(INT(ABS(J46))),\":\",TEXT(ABS(ABS(J46)-TRUNC(INT(ABS(J46))))*60,\"00\"))","v":"126:00"},null,{"$f":"IF(J46<0,\"Debit\",IF(J46=0,\"\",\"Credit\"))","v":"Debit"},{"$f":"ROUND(J44+J45,2)","v":-126}]
[]
[null,null,null,null,"Future flex leave bookings",null,"0:00",null,null,{"$f":"IF(I48=\"Debit\",0-(LEFT(G48,FIND(\":\",G48)-1)+RIGHT(G48,2)/60),LEFT(G48,FIND(\":\",G48)-1)+RIGHT(G48,2)/60)","v":0}]
[null,null,null,null,"Remaining",null,{"$f":"CONCATENATE(TRUNC(INT(ABS(J49))),\":\",TEXT(ABS(ABS(J49)-TRUNC(INT(ABS(J49))))*60,\"00\"))","v":"126:00"},null,{"$f":"IF(J49<0,\"Debit\",IF(J49=0,\"\",\"Credit\"))","v":"Debit"},{"$f":"J46-J48","v":-126}]
[]
[]
[]
["Signature",null,null,null,"Certified Correct"]
[null,"(Employee)",null,null,null,"(Supervisor)"]
[]
["Completed timesheets shall be authorised as correct by the supervisor and filed as an auditable document for 7yrs"]
[]
[]
["INSERT Comments/Leave below:"]
["Albury"]
["Annual Leave"]
["Carers Leave"]
["Concessional Half Day"]
["Dubbo"]
["Exam"]
["Flexi Day"]
["Goulburn"]
["Leave Without Pay"]
["Long Service Leave"]
["Maternity Leave"]
["Public Holiday"]
["Purchased Leave"]
["Sick Leave"]
["Special Leave"]
["Study Leave"]
["Training"]
["Wagga Wagga"]
["Working @ home"]